Workbook

Sheet Константы
C1: ВВЕСТИ ЗНАЧЕНИЕ ДИАМЕТРА НКТ СКВАЖИНЫ И НАЖАТЬ ctrl + z для протяжки
AO2: pж, кг/м3 | AP2: 1007
A3: 100 | C3: 100 | D3: 100 | E3: 100 | F3: 100 | G3: 100 | H3: 100 | I3: 100 | J3: 100 | K3: 100 | L3: 100 | M3: 100 | N3: 100 | O3: 100 | P3: 100 | Q3: 100 | R3: 100 | S3: 100 | T3: 100 | U3: 100 | V3: 100 | W3: 100 | X3: 100 | Y3: 100 | Z3: 100 | AA3: 100 | AB3: 100 | AC3: 100 | AD3: 100 | AE3: 100 | AF3: 100 | AG3: 100 | AH3: 100 | AI3: 100 | AJ3: 100 | AK3: 100 | AL3: 100 | AM3: 100
A4: =A3+1 -> 101 | C4: 100 | D4: 100 | E4: 100 | F4: 100 | G4: 100 | H4: 100 | I4: 100 | J4: 100 | K4: 100 | L4: 100 | M4: 100 | N4: 100 | O4: 100 | P4: 100 | Q4: 100 | R4: 100 | S4: 100 | T4: 100 | U4: 100 | V4: 100 | W4: 100 | X4: 100 | Y4: 100 | Z4: 100 | AA4: 100 | AB4: 100 | AC4: 100 | AD4: 100 | AE4: 100 | AF4: 100 | AG4: 100 | AH4: 100 | AI4: 100 | AJ4: 100 | AK4: 100 | AL4: 100 | AM4: 100 | AO4: g, м2/c | AP4: 9.81
A5: =A4+1 -> 102 | C5: 100 | D5: 100 | E5: 100 | F5: 100 | G5: 100 | H5: 100 | I5: 100 | J5: 100 | K5: 100 | L5: 100 | M5: 100 | N5: 100 | O5: 100 | P5: 100 | Q5: 100 | R5: 100 | S5: 100 | T5: 100 | U5: 100 | V5: 100 | W5: 100 | X5: 100 | Y5: 100 | Z5: 100 | AA5: 100 | AB5: 100 | AC5: 100 | AD5: 100 | AE5: 100 | AF5: 100 | AG5: 100 | AH5: 100 | AI5: 100 | AJ5: 100 | AK5: 100 | AL5: 100 | AM5: 100
A6: 103 | C6: 100 | D6: 100 | E6: 100 | F6: 100 | G6: 100 | H6: 100 | I6: 100 | J6: 100 | K6: 100 | L6: 100 | M6: 100 | N6: 100 | O6: 100 | P6: 100 | Q6: 100 | R6: 100 | S6: 100 | T6: 100 | U6: 100 | V6: 100 | W6: 100 | X6: 100 | Y6: 100 | Z6: 100 | AA6: 100 | AB6: 100 | AC6: 100 | AD6: 100 | AE6: 100 | AF6: 100 | AG6: 100 | AH6: 100 | AI6: 100 | AJ6: 100 | AK6: 100 | AL6: 100 | AM6: 100 | AO6: pг (Pст, Тст), кг/м3 | AP6: 0.71
A7: 104 | C7: 76 | D7: 76 | E7: 76 | F7: 76 | G7: 76 | H7: 76 | I7: 76 | J7: 76 | K7: 76 | L7: 76 | M7: 76 | N7: 76 | O7: 76 | P7: 76 | Q7: 76 | R7: 76 | S7: 76 | T7: 76 | U7: 76 | V7: 76 | W7: 76 | X7: 76 | Y7: 76 | Z7: 76 | AA7: 76 | AB7: 76 | AC7: 76 | AD7: 76 | AE7: 76 | AF7: 76 | AG7: 76 | AH7: 76 | AI7: 76 | AJ7: 76 | AK7: 76 | AL7: 76 | AM7: 76
A8: 105 | C8: 76 | D8: 76 | E8: 76 | F8: 76 | G8: 76 | H8: 76 | I8: 76 | J8: 76 | K8: 76 | L8: 76 | M8: 76 | N8: 76 | O8: 76 | P8: 76 | Q8: 76 | R8: 76 | S8: 76 | T8: 76 | U8: 76 | V8: 76 | W8: 76 | X8: 76 | Y8: 76 | Z8: 76 | AA8: 76 | AB8: 76 | AC8: 76 | AD8: 76 | AE8: 76 | AF8: 76 | AG8: 76 | AH8: 76 | AI8: 76 | AJ8: 76 | AK8: 76 | AL8: 76 | AM8: 76 | AO8: zст | AP8: 0.993684
A9: 106 | C9: 100 | D9: 100 | E9: 100 | F9: 100 | G9: 100 | H9: 100 | I9: 100 | J9: 100 | K9: 100 | L9: 100 | M9: 100 | N9: 100 | O9: 100 | P9: 100 | Q9: 100 | R9: 100 | S9: 100 | T9: 100 | U9: 100 | V9: 100 | W9: 100 | X9: 100 | Y9: 100 | Z9: 100 | AA9: 100 | AB9: 100 | AC9: 100 | AD9: 100 | AE9: 100 | AF9: 100 | AG9: 100 | AH9: 100 | AI9: 100 | AJ9: 100 | AK9: 100 | AL9: 100 | AM9: 100
A10: 107 | C10: 100 | D10: 100 | E10: 100 | F10: 100 | G10: 100 | H10: 100 | I10: 100 | J10: 100 | K10: 100 | L10: 100 | M10: 100 | N10: 100 | O10: 100 | P10: 100 | Q10: 100 | R10: 100 | S10: 100 | T10: 100 | U10: 100 | V10: 100 | W10: 100 | X10: 100 | Y10: 100 | Z10: 100 | AA10: 100 | AB10: 100 | AC10: 100 | AD10: 100 | AE10: 100 | AF10: 100 | AG10: 100 | AH10: 100 | AI10: 100 | AJ10: 100 | AK10: 100 | AL10: 100 | AM10: 100 | AO10: Тзаб | AP10: =50+273.15 -> 323.15
A11: 108 | C11: 100 | D11: 100 | E11: 100 | F11: 100 | G11: 100 | H11: 100 | I11: 100 | J11: 100 | K11: 100 | L11: 100 | M11: 100 | N11: 100 | O11: 100 | P11: 100 | Q11: 100 | R11: 100 | S11: 100 | T11: 100 | U11: 100 | V11: 100 | W11: 100 | X11: 100 | Y11: 100 | Z11: 100 | AA11: 100 | AB11: 100 | AC11: 100 | AD11: 100 | AE11: 100 | AF11: 100 | AG11: 100 | AH11: 100 | AI11: 100 | AJ11: 100 | AK11: 100 | AL11: 100 | AM11: 100
A12: 109 | C12: 100 | D12: 100 | E12: 100 | F12: 100 | G12: 100 | H12: 100 | I12: 100 | J12: 100 | K12: 100 | L12: 100 | M12: 100 | N12: 100 | O12: 100 | P12: 100 | Q12: 100 | R12: 100 | S12: 100 | T12: 100 | U12: 100 | V12: 100 | W12: 100 | X12: 100 | Y12: 100 | Z12: 100 | AA12: 100 | AB12: 100 | AC12: 100 | AD12: 100 | AE12: 100 | AF12: 100 | AG12: 100 | AH12: 100 | AI12: 100 | AJ12: 100 | AK12: 100 | AL12: 100 | AM12: 100 | AO12: Tкр | AP12: 199.838
A13: 110 | C13: 76 | D13: 76 | E13: 76 | F13: 76 | G13: 76 | H13: 76 | I13: 76 | J13: 76 | K13: 76 | L13: 76 | M13: 76 | N13: 76 | O13: 76 | P13: 76 | Q13: 76 | R13: 76 | S13: 76 | T13: 76 | U13: 76 | V13: 76 | W13: 76 | X13: 76 | Y13: 76 | Z13: 76 | AA13: 76 | AB13: 76 | AC13: 76 | AD13: 76 | AE13: 76 | AF13: 76 | AG13: 76 | AH13: 76 | AI13: 76 | AJ13: 76 | AK13: 76 | AL13: 76 | AM13: 76
A14: 111 | C14: 76 | D14: 76 | E14: 76 | F14: 76 | G14: 76 | H14: 76 | I14: 76 | J14: 76 | K14: 76 | L14: 76 | M14: 76 | N14: 76 | O14: 76 | P14: 76 | Q14: 76 | R14: 76 | S14: 76 | T14: 76 | U14: 76 | V14: 76 | W14: 76 | X14: 76 | Y14: 76 | Z14: 76 | AA14: 76 | AB14: 76 | AC14: 76 | AD14: 76 | AE14: 76 | AF14: 76 | AG14: 76 | AH14: 76 | AI14: 76 | AJ14: 76 | AK14: 76 | AL14: 76 | AM14: 76 | AO14: Тпр | AP14: =AP10/AP12 -> 1.617059818
A15: 112 | C15: 76 | D15: 76 | E15: 76 | F15: 76 | G15: 76 | H15: 76 | I15: 76 | J15: 76 | K15: 76 | L15: 76 | M15: 76 | N15: 76 | O15: 76 | P15: 76 | Q15: 76 | R15: 76 | S15: 76 | T15: 76 | U15: 76 | V15: 76 | W15: 76 | X15: 76 | Y15: 76 | Z15: 76 | AA15: 76 | AB15: 76 | AC15: 76 | AD15: 76 | AE15: 76 | AF15: 76 | AG15: 76 | AH15: 76 | AI15: 76 | AJ15: 76 | AK15: 76 | AL15: 76 | AM15: 76
A16: 113 | C16: 76 | D16: 76 | E16: 76 | F16: 76 | G16: 76 | H16: 76 | I16: 76 | J16: 76 | K16: 76 | L16: 76 | M16: 76 | N16: 76 | O16: 76 | P16: 76 | Q16: 76 | R16: 76 | S16: 76 | T16: 76 | U16: 76 | V16: 76 | W16: 76 | X16: 76 | Y16: 76 | Z16: 76 | AA16: 76 | AB16: 76 | AC16: 76 | AD16: 76 | AE16: 76 | AF16: 76 | AG16: 76 | AH16: 76 | AI16: 76 | AJ16: 76 | AK16: 76 | AL16: 76 | AM16: 76 | AO16: Ркр | AP16: 6.06
A17: 114 | C17: 76 | D17: 76 | E17: 76 | F17: 76 | G17: 76 | H17: 76 | I17: 76 | J17: 76 | K17: 76 | L17: 76 | M17: 76 | N17: 76 | O17: 76 | P17: 76 | Q17: 76 | R17: 76 | S17: 76 | T17: 76 | U17: 76 | V17: 76 | W17: 76 | X17: 76 | Y17: 76 | Z17: 76 | AA17: 76 | AB17: 76 | AC17: 76 | AD17: 76 | AE17: 76 | AF17: 76 | AG17: 76 | AH17: 76 | AI17: 76 | AJ17: 76 | AK17: 76 | AL17: 76 | AM17: 76
A18: 115 | C18: 76 | D18: 76 | E18: 76 | F18: 76 | G18: 76 | H18: 76 | I18: 76 | J18: 76 | K18: 76 | L18: 76 | M18: 76 | N18: 76 | O18: 76 | P18: 76 | Q18: 76 | R18: 76 | S18: 76 | T18: 76 | U18: 76 | V18: 76 | W18: 76 | X18: 76 | Y18: 76 | Z18: 76 | AA18: 76 | AB18: 76 | AC18: 76 | AD18: 76 | AE18: 76 | AF18: 76 | AG18: 76 | AH18: 76 | AI18: 76 | AJ18: 76 | AK18: 76 | AL18: 76 | AM18: 76 | AO18: σ | AP18: =-0.0000000006*AP10^3+0.00000003*AP10^2 + 0.00006*I118+0.0676 -> 0.05048563556
A19: 116 | C19: 76 | D19: 76 | E19: 76 | F19: 76 | G19: 76 | H19: 76 | I19: 76 | J19: 76 | K19: 76 | L19: 76 | M19: 76 | N19: 76 | O19: 76 | P19: 76 | Q19: 76 | R19: 76 | S19: 76 | T19: 76 | U19: 76 | V19: 76 | W19: 76 | X19: 76 | Y19: 76 | Z19: 76 | AA19: 76 | AB19: 76 | AC19: 76 | AD19: 76 | AE19: 76 | AF19: 76 | AG19: 76 | AH19: 76 | AI19: 76 | AJ19: 76 | AK19: 76 | AL19: 76 | AM19: 76
A20: 117 | C20: 76 | D20: 76 | E20: 76 | F20: 76 | G20: 76 | H20: 76 | I20: 76 | J20: 76 | K20: 76 | L20: 76 | M20: 76 | N20: 76 | O20: 76 | P20: 76 | Q20: 76 | R20: 76 | S20: 76 | T20: 76 | U20: 76 | V20: 76 | W20: 76 | X20: 76 | Y20: 76 | Z20: 76 | AA20: 76 | AB20: 76 | AC20: 76 | AD20: 76 | AE20: 76 | AF20: 76 | AG20: 76 | AH20: 76 | AI20: 76 | AJ20: 76 | AK20: 76 | AL20: 76 | AM20: 76
A21: 118 | C21: 76 | D21: 76 | E21: 76 | F21: 76 | G21: 76 | H21: 76 | I21: 76 | J21: 76 | K21: 76 | L21: 76 | M21: 76 | N21: 76 | O21: 76 | P21: 76 | Q21: 76 | R21: 76 | S21: 76 | T21: 76 | U21: 76 | V21: 76 | W21: 76 | X21: 76 | Y21: 76 | Z21: 76 | AA21: 76 | AB21: 76 | AC21: 76 | AD21: 76 | AE21: 76 | AF21: 76 | AG21: 76 | AH21: 76 | AI21: 76 | AJ21: 76 | AK21: 76 | AL21: 76 | AM21: 76
A22: 119 | C22: 76 | D22: 76 | E22: 76 | F22: 76 | G22: 76 | H22: 76 | I22: 76 | J22: 76 | K22: 76 | L22: 76 | M22: 76 | N22: 76 | O22: 76 | P22: 76 | Q22: 76 | R22: 76 | S22: 76 | T22: 76 | U22: 76 | V22: 76 | W22: 76 | X22: 76 | Y22: 76 | Z22: 76 | AA22: 76 | AB22: 76 | AC22: 76 | AD22: 76 | AE22: 76 | AF22: 76 | AG22: 76 | AH22: 76 | AI22: 76 | AJ22: 76 | AK22: 76 | AL22: 76 | AM22: 76
A23: 120
A24: 121
A25: 122
A26: 123
A145: 202ZBS | B145: dнкт
A146: 203ZBS | B146: dнкт
A147: 53ZBS | B147: dнкт
A148: 41ZBS | B148: dнкт
A149: 12ZBS | B149: dнкт
A150: 13ZBS | B150: dнкт
A151: 23ZBS | B151: dнкт
A152: 31ZBS | B152: dнкт
A153: 152ZBS | B153: dнкт
A154: 153ZBS | B154: dнкт
A155: 111ZBS | B155: dнкт
A156: 112ZBS | B156: dнкт
A157: 121ZBS | B157: dнкт
A158: 122ZBS | B158: dнкт
A159: 123ZBS | B159: dнкт
A160: 141ZBS | B160: dнкт
A161: 142ZBS | B161: dнкт
A162: 143ZBS | B162: dнкт
A163: 212ZBS | B163: dнкт
A164: 131ZBS2 | B164: dнкт

Sheet давление
C2: 1999-01-01 | D2: 1999-01-02 | E2: 1999-01-03 | F2: 1999-01-04 | G2: 1999-01-05 | H2: 1999-01-06 | I2: 1999-01-07 | J2: 1999-01-08 | K2: 1999-01-09 | L2: 1999-01-10 | M2: 1999-01-11 | N2: 1999-01-12 | O2: 1999-01-13 | P2: 1999-01-14 | Q2: 1999-01-15 | R2: 1999-01-16 | S2: 1999-01-17 | T2: 1999-01-18 | U2: 1999-01-19 | V2: 1999-01-20 | W2: 1999-01-21 | X2: 1999-01-22 | Y2: 1999-01-23 | Z2: 1999-01-24 | AA2: 1999-01-25 | AB2: 1999-01-26 | AC2: 1999-01-27 | AD2: 1999-01-28 | AE2: 1999-01-29 | AF2: 1999-01-30 | AG2: 1999-01-31 | AH2: 1999-02-01 | AI2: 1999-02-02 | AJ2: 1999-02-03 | AK2: 1999-02-04 | AL2: 1999-02-05 | AM2: 1999-02-06
A3: 100 | B3: Давление | C3: 81.04963651 | D3: 81.06545022 | E3: 80.74765873 | F3: 80.52274933 | G3: 80.07796888 | H3: 79.71291881 | I3: 78.96984306 | J3: 78.74632022 | K3: 78.89801152 | L3: 78.3992034 | M3: 78.07968449 | N3: 77.7717128 | O3: 77.42829998 | P3: 77.07399353 | Q3: 76.83475365 | R3: 76.6732663 | S3: 76.50664721 | T3: 76.34837302 | U3: 76.18063282 | V3: 75.83353314 | W3: 75.46473803 | X3: 74.29767507 | Y3: 73.24466797 | Z3: 72.35852994 | AA3: 71.69005257 | AB3: 71.07260662 | AC3: 70.48632055 | AD3: 69.98520769 | AE3: 69.68614749 | AF3: 69.57889755 | AG3: 69.35287257 | AH3: 69.18358032 | AI3: 69.02604387 | AJ3: 68.97948118 | AK3: 68.87578249 | AL3: 68.84488201 | AM3: 68.6798925
A4: =A3+1 -> 101 | B4: Давление | C4: 82.84358328 | D4: 82.1472194 | E4: 83.48925695 | F4: 81.72361143 | G4: 81.59706192 | H4: 80.90139762 | I4: 79.54121962 | J4: 79.16962756 | K4: 79.28807526 | L4: 78.63165682 | M4: 78.20736275 | N4: 77.82919799 | O4: 77.37931675 | P4: 77.002881 | Q4: 76.60191623 | R4: 76.41166008 | S4: 76.24438451 | T4: 76.15570174 | U4: 75.99588596 | V4: 75.89655918 | W4: 75.88092183 | X4: 75.41190447 | Y4: 75.08287433 | Z4: 74.7136059 | AA4: 74.01734105 | AB4: 73.90334091 | AC4: 73.54996617 | AD4: 73.25845861 | AE4: 72.8622601 | AF4: 72.45608873 | AG4: 72.31119206 | AH4: 71.88748264 | AI4: 71.75919511 | AJ4: 71.87290492 | AK4: 71.9029685 | AL4: 71.92545209 | AM4: 71.8225328
A5: =A4+1 -> 102 | B5: Давление | C5: 78.00882614 | D5: 77.41440357 | E5: 78.59427904 | F5: 76.72351778 | G5: 78.18652962 | H5: 77.37244929 | I5: 73.452112 | J5: 73.04455498 | K5: 73.80184596 | L5: 72.54649518 | M5: 72.08092555 | N5: 71.62643008 | O5: 71.12191713 | P5: 70.93134172 | Q5: 84.20247226 | R5: 85.08829846 | S5: 85.13601878 | T5: 85.11457088 | U5: 85.01538279 | V5: 84.85215309 | W5: 84.63930438 | X5: 84.23532455 | Y5: 83.75386599 | Z5: 83.24148785 | AA5: 82.72985653 | AB5: 82.23251146 | AC5: 81.79481064 | AD5: 81.64641678 | AE5: 81.04167703 | AF5: 80.67671074 | AG5: 80.39756396 | AH5: 80.08673792 | AI5: 79.93677455 | AJ5: 79.60306395 | AK5: 79.04125545 | AL5: 79.06421605 | AM5: 78.93469723
A6: 103 | B6: Давление | C6: 77.68247735 | D6: 77.67805439 | E6: 77.3705667 | F6: 79.62539971 | G6: 88.6811825 | H6: 89.34452559 | I6: 89.61022811 | J6: 89.64473956 | K6: 89.7688684 | L6: 89.59308639 | M6: 89.37470164 | N6: 89.24875844 | O6: 89.14187017 | P6: 88.99182136 | Q6: 88.84284125 | R6: 88.70764663 | S6: 88.58962564 | T6: 88.28792531 | U6: 87.52763671 | V6: 85.99671436 | W6: 84.65942117 | X6: 83.61561223 | Y6: 82.75106957 | Z6: 82.0184628 | AA6: 81.40042685 | AB6: 80.87404742 | AC6: 80.3630101 | AD6: 79.85826793 | AE6: 79.38086458 | AF6: 78.91808694 | AG6: 78.42332912 | AH6: 78.02692336 | AI6: 77.77522381 | AJ6: 77.42113464 | AK6: 77.08298548 | AL6: 76.80592049 | AM6: 76.16951474
A7: 104 | B7: Давление
A8: 105 | B8: Давление | C8: 81.42295472 | D8: 80.74568948 | E8: 76.78634139 | F8: 77.63115484 | G8: 76.63475805 | H8: 82.85811065 | I8: 76.31280825 | J8: 76.18119404 | K8: 76.11220678 | L8: 76.05923633 | M8: 76.0126611 | N8: 75.97123767 | O8: 75.93149599 | P8: 75.89326873 | Q8: 75.85973863 | R8: 75.8215247 | S8: 75.78722589 | T8: 75.74929393 | U8: 75.71292538 | V8: 75.67577575 | W8: 75.64057379 | X8: 75.60696323 | Y8: 75.56933956 | Z8: 75.53527631
A9: 106 | B9: Давление | C9: 82.81553152 | D9: 82.30798486 | E9: 82.58668779 | F9: 82.13649963 | G9: 81.61916595 | H9: 81.27800282 | I9: 80.5624541 | J9: 80.29667529 | K9: 80.42003555 | L9: 79.92582492 | M9: 79.58709131 | N9: 79.25316855 | O9: 78.89245165 | P9: 78.50826506 | Q9: 78.21303412 | R9: 78.00218684 | S9: 77.81642856 | T9: 77.63835728 | U9: 77.45828882 | V9: 77.1593273 | W9: 76.91552293 | X9: 75.94651062 | Y9: 74.8145788 | Z9: 74.23730587 | AA9: 73.75870356 | AB9: 73.35007543 | AC9: 72.97639692 | AD9: 72.64370105 | AE9: 72.35312792 | AF9: 72.07238338 | AG9: 71.79937406 | AH9: 71.59978301 | AI9: 71.52908379 | AJ9: 71.28239471 | AK9: 71.10856005 | AL9: 70.96019053 | AM9: 70.77704254
A10: 107 | B10: Давление | C10: 75.12709355 | D10: 76.98668414 | E10: 82.22941957 | F10: 76.05895119 | G10: 74.01280599 | H10: 72.81634651 | I10: 78.26443676 | J10: 78.01155621 | K10: 78.35779471 | L10: 77.76690624 | M10: 77.37156859 | N10: 77.16421171 | O10: 76.94064737 | P10: 76.69579941 | Q10: 76.48887326 | R10: 76.24834524 | S10: 76.06615033 | T10: 75.94628362 | U10: 75.9907444 | V10: 76.22965742 | W10: 76.16292308
A11: 108 | B11: Давление | C11: 81.21418139 | D11: 80.64721781 | E11: 80.53184197 | F11: 81.80152201 | G11: 80.20920555 | H11: 79.75790232 | I11: 79.30853191 | J11: 79.10379825 | K11: 79.24919843 | L11: 78.80668738 | M11: 78.56801371 | N11: 78.36638324 | O11: 78.16857722 | P11: 77.94816239 | Q11: 77.70725451 | R11: 77.52815992 | S11: 77.38770079 | T11: 77.29938873 | U11: 77.18057222 | V11: 77.11527797 | W11: 77.1944531 | X11: 77.05535882 | Y11: 76.556215 | Z11: 76.12585359 | AA11: 75.28207748 | AB11: 74.84590316 | AC11: 74.49346394 | AD11: 74.15128187 | AE11: 73.85865883 | AF11: 73.59869954 | AG11: 73.34243516 | AH11: 73.11040152 | AI11: 73.11099878 | AJ11: 72.76357941 | AK11: 72.75136428 | AL11: 72.86777559 | AM11: 72.82162784
A12: 109 | B12: Давление | C12: 99.20402368 | D12: 97.98606807 | E12: 99.1226431 | F12: 97.26083732 | G12: 96.6844146 | H12: 96.20907945 | I12: 91.29738699 | J12: 90.85748948 | K12: 90.63669032 | L12: 90.22176988 | M12: 89.80304507 | N12: 89.44636682 | O12: 89.10252315 | P12: 88.73907173 | Q12: 88.34428349 | R12: 88.04041746 | S12: 87.76124316 | T12: 87.57231816 | U12: 87.32450648 | V12: 87.20489935 | W12: 87.11468794 | X12: 86.82112194 | Y12: 86.66880017 | Z12: 86.76731555 | AA12: 86.5122343 | AB12: 86.25617542 | AC12: 86.02617515 | AD12: 85.8386345 | AE12: 85.59200068 | AF12: 85.39953806 | AG12: 85.16403164 | AH12: 84.92298097 | AI12: 84.85560228 | AJ12: 84.56420395 | AK12: 84.38405571 | AL12: 84.23563305 | AM12: 84.04861298
A13: 110 | B13: Давление | C13: 78.5768733 | D13: 75.99104938 | E13: 75.80169584 | F13: 75.40985007 | G13: 74.57405724 | H13: 73.24135217 | I13: 84.87420693 | J13: 84.83719342 | K13: 84.84959718 | L13: 84.65476382 | M13: 84.44848695 | N13: 84.23538636 | O13: 84.05462302 | P13: 83.78897903 | Q13: 83.57552012 | R13: 83.45409714 | S13: 83.33108326 | T13: 83.21582029 | U13: 83.12538521 | V13: 82.5033893 | W13: 81.68867656 | X13: 80.65451546 | Y13: 79.50701039 | Z13: 78.58331938 | AA13: 77.92969883 | AB13: 77.41064332 | AC13: 76.95946184 | AD13: 76.54354392 | AE13: 76.19794819 | AF13: 75.86871442 | AG13: 75.59588953 | AH13: 75.31396563 | AI13: 75.17601805 | AJ13: 74.97312965 | AK13: 74.76881276 | AL13: 74.56982226 | AM13: 74.41028068
A14: 111 | B14: Давление | C14: 86.96134306 | D14: 86.83765369 | E14: 86.62717487 | F14: 87.69318289 | G14: 89.555435 | H14: 90.17520671
A15: 112 | B15: Давление | C15: 100.4131483 | D15: 100.0354987 | E15: 99.90158749 | F15: 99.89990258 | G15: 98.47965544 | H15: 97.53615032 | I15: 95.86882058 | J15: 94.78045935 | K15: 95.72039635 | L15: 93.66775675 | M15: 92.28139062 | N15: 91.22307507 | O15: 90.20268793 | P15: 89.21802806 | Q15: 88.35179032 | R15: 87.4208697 | S15: 86.53359649 | T15: 85.60558785 | U15: 84.71894708 | V15: 83.82101833 | W15: 83.88394708 | X15: 82.40956627 | Y15: 81.94428641 | Z15: 81.64653294 | AA15: 81.39817081 | AB15: 81.17013509 | AC15: 80.97645827 | AD15: 80.77686377 | AE15: 80.5909478 | AF15: 80.40600388 | AG15: 80.23417489 | AH15: 80.06104693 | AI15: 80.79872164 | AJ15: 79.85371645 | AK15: 79.62976835 | AL15: 79.46046316 | AM15: 79.29259486
A16: 113 | B16: Давление | C16: 78.86444645 | D16: 78.847721 | E16: 71.88604836 | F16: 71.5948637 | G16: 71.00450232 | H16: 69.77715856 | I16: 74.93244252 | J16: 74.81293951 | K16: 75.05334131 | L16: 74.54849716 | M16: 74.51486483 | N16: 74.418727 | O16: 74.3159491 | P16: 74.21210796 | Q16: 74.12094991 | R16: 74.0227318 | S16: 73.92908656 | T16: 73.84508546 | U16: 73.76710339 | V16: 73.68807456 | W16: 73.71976081 | X16: 73.56816877 | Y16: 73.47833554 | Z16: 73.40719939 | AA16: 73.34372524 | AB16: 73.28566425 | AC16: 73.23314212 | AD16: 73.17985475 | AE16: 73.12951266 | AF16: 73.07880687 | AG16: 73.03100529 | AH16: 72.98222909 | AI16: 73.15373629 | AJ16: 72.94875337 | AK16: 72.86971699 | AL16: 72.81537457 | AM16: 72.76384235
A17: 114 | B17: Давление | C17: 127.6386242 | D17: 128.9730752 | E17: 122.8584113 | F17: 127.1509901 | G17: 125.0244896 | H17: 123.6752757
A18: 115 | B18: Давление | Z18: 82.92868685 | AA18: 81.63638959 | AB18: 80.98627787 | AC18: 80.50258264 | AD18: 80.03405389 | AE18: 79.6263335 | AF18: 79.23546084 | AG18: 78.88976178 | AH18: 78.55456608 | AI18: 78.56028529 | AJ18: 77.95925421 | AK18: 77.63480135 | AL18: 77.39565243 | AM18: 77.1617049
A19: 116 | B19: Давление | Y19: 72.15593876 | Z19: 71.60125843 | AA19: 71.18833149 | AB19: 70.88341796 | AC19: 70.62285375 | AD19: 70.43862569 | AE19: 70.22241057 | AF19: 70.07762903 | AG19: 69.88382764 | AH19: 69.7163647 | AI19: 69.60701813 | AJ19: 69.49158698 | AK19: 69.40847046 | AL19: 69.34819358 | AM19: 69.19041589
A20: 117 | B20: Давление | W20: 74.9070904 | X20: 72.89389475 | Y20: 72.25805549 | Z20: 71.89416464 | AA20: 71.52238612 | AB20: 71.19992899 | AC20: 70.88252998 | AD20: 70.64680026 | AE20: 70.39757067 | AF20: 70.23849421 | AG20: 70.03307093 | AH20: 69.84535481 | AI20: 69.71734161 | AJ20: 69.60699092 | AK20: 69.51160517 | AL20: 69.42367854 | AM20: 69.25220209
A21: 118 | B21: Давление | V21: 76.36828089 | W21: 74.18911256 | X21: 72.51407854 | Y21: 72.2879948 | Z21: 72.04903739 | AA21: 71.74335814 | AB21: 71.50256962 | AC21: 71.26108295 | AD21: 71.0429022 | AE21: 70.82616352 | AF21: 70.63923844 | AG21: 70.41104392 | AH21: 70.23408052 | AI21: 70.1266651 | AJ21: 69.97462752 | AK21: 69.88673561 | AL21: 69.81422623 | AM21: 69.6061294
A22: 119 | B22: Давление | T22: 88.21114654 | U22: 86.82539039 | V22: 85.90760925 | W22: 84.88165827 | X22: 83.88724646 | Y22: 83.03394648 | Z22: 82.24353049 | AA22: 81.52442496 | AB22: 80.83132549 | AC22: 80.17103888 | AD22: 79.5226372 | AE22: 78.91944665 | AF22: 78.32408147 | AG22: 77.76905099 | AH22: 77.14142884 | AI22: 76.97047037 | AJ22: 75.72162482 | AK22: 75.0373069 | AL22: 74.72338936 | AM22: 74.56689732
A23: 120 | B23: Давление
A24: 121 | B24: Давление
A25: 122 | B25: Давление
A26: 123 | B26: Давление | AB26: 145.2164915 | AC26: 132.5603313 | AD26: 125.5807705 | AE26: 120.9857106 | AF26: 117.4378615 | AG26: 114.7695708 | AH26: 112.3996829 | AI26: 110.3622163 | AJ26: 108.5982268 | AK26: 106.983949 | AL26: 105.606453 | AM26: 104.2051327

Sheet Zзаб
A3: 100 | B3: Zзаб | C3: 0.9094600994 | D3: 0.9094479582 | E3: 0.9096923035 | F3: 0.9098656848 | G3: 0.9102096656 | H3: 0.9104930791 | I3: 0.9110730268 | J3: 0.911248279 | K3: 0.9111293057 | L3: 0.9115211675 | M3: 0.9117731479 | N3: 0.9120167369 | O3: 0.9122891858 | P3: 0.9125711919 | Q3: 0.9127621376 | R3: 0.9128912657 | S3: 0.9130246995 | T3: 0.9131516408 | U3: 0.9132863765 | V3: 0.9135658422 | W3: 0.9138637529 | X3: 0.9148131325 | Y3: 0.9156783808 | Z3: 0.9164128725 | AA3: 0.9169707977 | AB3: 0.917489069 | AC3: 0.9179837969 | AD3: 0.918408669 | AE3: 0.9186631149 | AF3: 0.9187545264 | AG3: 0.9189474511 | AH3: 0.919092199 | AI3: 0.919227086 | AJ3: 0.9192669894 | AK3: 0.919355915 | AL3: 0.9193824287 | AM3: 0.9195241153
A4: =A3+1 -> 101 | B4: Zзаб | C4: 0.9080945675 | D4: 0.9086218036 | E4: 0.9076089169 | F4: 0.9089442842 | G4: 0.9090408804 | H4: 0.9095740026 | I4: 0.910626722 | J4: 0.9109166995 | K4: 0.9108241561 | L4: 0.9113383239 | M4: 0.9116723671 | N4: 0.911971216 | O4: 0.9123281181 | P4: 0.912627905 | Q4: 0.9129483799 | R4: 0.9131008602 | S4: 0.913235144 | T4: 0.9133064199 | U4: 0.9134350136 | V4: 0.9135150308 | W4: 0.9135276349 | X4: 0.9139065139 | Y4: 0.9141732809 | Z4: 0.914473626 | AA4: 0.9150426794 | AB4: 0.9151361929 | AC4: 0.9154266748 | AD4: 0.9156669961 | AE4: 0.9159946338 | AF4: 0.9163317244 | AG4: 0.9164522729 | AH4: 0.9168056743 | AI4: 0.9169129365 | AJ4: 0.9168178567 | AK4: 0.9167927347 | AL4: 0.9167739511 | AM4: 0.9168599642
A5: =A4+1 -> 102 | B5: Zзаб | C5: 0.9118291309 | D5: 0.912300229 | E5: 0.9113676976 | F5: 0.912851063 | G5: 0.9116888031 | H5: 0.9123335778 | I5: 0.9155072765 | J5: 0.9158437401 | K5: 0.9152195294 | L5: 0.9162565885 | M5: 0.9166441654 | N5: 0.9170240707 | O5: 0.9174475751 | P5: 0.9176080405 | Q5: 0.9070760503 | R5: 0.906419462 | S5: 0.9063842557 | T5: 0.9064000771 | U5: 0.9064732889 | V5: 0.9065939289 | W5: 0.9067515377 | X5: 0.907051596 | Y5: 0.9074107795 | Z5: 0.9077949143 | AA5: 0.908180428 | AB5: 0.9085570338 | AC5: 0.9088899895 | AD5: 0.9090031934 | AE5: 0.9094662112 | AF5: 0.9097469565 | AG5: 0.9099623517 | AH5: 0.9102028697 | AI5: 0.9103191675 | AJ5: 0.91057856 | AK5: 0.9110171142 | AL5: 0.9109991451 | AM5: 0.9111005583
A6: 103 | B6: Zзаб | C6: 0.9120874486 | D6: 0.9120909549 | E6: 0.9123350746 | F6: 0.9105611727 | G6: 0.9038159039 | H6: 0.9033456643 | I6: 0.903158223 | J6: 0.9031339151 | K6: 0.9030465584 | L6: 0.9031703 | M6: 0.9033243502 | N6: 0.9034133519 | O6: 0.90348898 | P6: 0.9035952886 | Q6: 0.903701005 | R6: 0.9037970813 | S6: 0.9038810637 | T6: 0.9040962188 | U6: 0.9046414003 | V6: 0.905752161 | W6: 0.9067366274 | X6: 0.9075142383 | Y6: 0.9081644055 | Z6: 0.9087196818 | AA6: 0.9091912085 | AB6: 0.9095950355 | AC6: 0.9099890542 | AD6: 0.9103801164 | AE6: 0.9107517322 | AF6: 0.9111135731 | AG6: 0.9115021721 | AH6: 0.9118148293 | AI6: 0.912013956 | AJ6: 0.9122948797 | AK6: 0.9125640234 | AL6: 0.9127851789 | AM6: 0.9132953144
A7: 104 | B7: Zзаб | C7: 0.996 | D7: 0.996 | E7: 0.996 | F7: 0.996 | G7: 0.996 | H7: 0.996 | I7: 0.996 | J7: 0.996 | K7: 0.996 | L7: 0.996 | M7: 0.996 | N7: 0.996 | O7: 0.996 | P7: 0.996 | Q7: 0.996 | R7: 0.996 | S7: 0.996 | T7: 0.996 | U7: 0.996 | V7: 0.996 | W7: 0.996 | X7: 0.996 | Y7: 0.996 | Z7: 0.996 | AA7: 0.996 | AB7: 0.996 | AC7: 0.996 | AD7: 0.996 | AE7: 0.996 | AF7: 0.996 | AG7: 0.996 | AH7: 0.996 | AI7: 0.996 | AJ7: 0.996 | AK7: 0.996 | AL7: 0.996 | AM7: 0.996
A8: 105 | B8: Zзаб | C8: 0.9091739714 | D8: 0.90969382 | E8: 0.9128008286 | F8: 0.912128144 | G8: 0.9129220861 | H8: 0.9080836067 | I8: 0.9131801905 | J8: 0.9132859254 | K8: 0.9133413989 | L8: 0.9133840169 | M8: 0.9134215068 | N8: 0.9134548633 | O8: 0.9134868776 | P8: 0.9135176829 | Q8: 0.9135447119 | R8: 0.9135755267 | S8: 0.9136031937 | T8: 0.9136338015 | U8: 0.9136631577 | V8: 0.9136931546 | W8: 0.9137215882 | X8: 0.9137487449 | Y8: 0.9137791541 | Z8: 0.9138066946 | AA8: 0.996 | AB8: 0.996 | AC8: 0.996 | AD8: 0.996 | AE8: 0.996 | AF8: 0.996 | AG8: 0.996 | AH8: 0.996 | AI8: 0.996 | AJ8: 0.996 | AK8: 0.996 | AL8: 0.996 | AM8: 0.996
A9: 106 | B9: Zзаб | C9: 0.9081157369 | D9: 0.908499765 | E9: 0.9082886523 | F9: 0.9086299478 | G9: 0.9090239997 | H9: 0.9092849466 | I9: 0.9098350495 | J9: 0.9100403412 | K9: 0.9099449908 | L9: 0.9103276656 | M9: 0.9105909962 | N9: 0.910851418 | O9: 0.9111336634 | P9: 0.9114353318 | Q9: 0.9116678933 | R9: 0.9118343783 | S9: 0.9119813256 | T9: 0.9121224318 | U9: 0.9122653592 | V9: 0.9125031865 | W9: 0.9126976254 | X9: 0.913474781 | Y9: 0.9143913993 | Z9: 0.9148625157 | AA9: 0.9152549763 | AB9: 0.9155913987 | AC9: 0.9159001288 | AD9: 0.9161758691 | AE9: 0.9164173679 | AF9: 0.9166512916 | AG9: 0.9168793295 | AH9: 0.917046392 | AI9: 0.9171056396 | AJ9: 0.9173126608 | AK9: 0.9174588131 | AL9: 0.9175837324 | AM9: 0.9177381579
A10: 107 | B10: Zзаб | C10: 0.9141373828 | D10: 0.9126408275 | E10: 0.9085593808 | F10: 0.9133842464 | G10: 0.9150463977 | H10: 0.9160326773 | I10: 0.9116273556 | J10: 0.9118269732 | K10: 0.9115537808 | L10: 0.9120205442 | M10: 0.912334278 | N10: 0.9124992956 | O10: 0.9126775679 | P10: 0.9128732362 | Q10: 0.9130389456 | R10: 0.9132319621 | S10: 0.913378453 | T10: 0.9134749639 | U10: 0.9134391538 | V10: 0.9132469764 | W10: 0.9133006138 | X10: 0.996 | Y10: 0.996 | Z10: 0.996 | AA10: 0.996 | AB10: 0.996 | AC10: 0.996 | AD10: 0.996 | AE10: 0.996 | AF10: 0.996 | AG10: 0.996 | AH10: 0.996 | AI10: 0.996 | AJ10: 0.996 | AK10: 0.996 | AL10: 0.996 | AM10: 0.996
A11: 108 | B11: Zзаб | C11: 0.9093338576 | D11: 0.9097696866 | E11: 0.9098586681 | F11: 0.9088848735 | G11: 0.9101080186 | H11: 0.910458102 | I11: 0.9108081838 | J11: 0.910968177 | K11: 0.9108545192 | L11: 0.9112009119 | M11: 0.9113883446 | N11: 0.9115470155 | O11: 0.9117029691 | P11: 0.9118770889 | Q11: 0.9120678088 | R11: 0.9122098712 | S11: 0.9123214531 | T11: 0.9123916837 | U11: 0.9124862641 | V11: 0.9125382842 | W11: 0.9124752093 | X11: 0.9125860497 | Y11: 0.9129849826 | Z11: 0.9133304225 | AA11: 0.9140116778 | AB11: 0.9143659058 | AC11: 0.914653159 | AD11: 0.9149329316 | AE11: 0.9151728715 | AF11: 0.91538656 | AG11: 0.9155977006 | AH11: 0.9157892965 | AI11: 0.9157888028 | AJ11: 0.9160764188 | AK11: 0.9160865475 | AL11: 0.9159900647 | AM11: 0.9160283004
A12: 109 | B12: Zзаб | C12: 0.8967402432 | D12: 0.8975172725 | E12: 0.89679182 | F12: 0.8979851687 | G12: 0.8983598351 | H12: 0.8986706459 | I12: 0.9019801993 | J12: 0.9022853183 | K12: 0.9024390075 | L12: 0.9027287926 | M12: 0.9030225264 | N12: 0.9032737581 | O12: 0.903516841 | P12: 0.9037747369 | Q12: 0.9040559763 | R12: 0.9042732301 | S12: 0.9044734324 | T12: 0.9046092422 | U12: 0.9047877834 | V12: 0.9048741195 | W12: 0.904939307 | X12: 0.9051518568 | Y12: 0.9052623933 | Z12: 0.9051908833 | AA12: 0.9053761885 | AB12: 0.9055626883 | AC12: 0.9057306221 | AD12: 0.9058678439 | AE12: 0.9060486998 | AF12: 0.9061901449 | AG12: 0.9063635968 | AH12: 0.9065415571 | AI12: 0.9065913777 | AJ12: 0.9068072276 | AK12: 0.9069409846 | AL12: 0.9070513664 | AM12: 0.9071906852
A13: 110 | B13: Zзаб | C13: 0.9113813796 | D13: 0.9134389082 | E13: 0.9135915205 | F13: 0.9139081771 | G13: 0.9145873909 | H13: 0.9156811183 | I13: 0.9065776178 | J13: 0.9066049952 | K13: 0.9065958195 | L13: 0.9067400791 | M13: 0.9068931179 | N13: 0.90705155 | O13: 0.907186204 | P13: 0.9073845261 | Q13: 0.9075442667 | R13: 0.9076352833 | S13: 0.9077276036 | T13: 0.9078142087 | U13: 0.9078822276 | V13: 0.9083516893 | W13: 0.9089709384 | X13: 0.9097640617 | Y13: 0.910653375 | Z13: 0.9113763123 | AA13: 0.9118916908 | AB13: 0.9123032174 | AC13: 0.9126625508 | AD13: 0.9129951338 | AE13: 0.9132724585 | AF13: 0.9135374756 | AG13: 0.9137576941 | AH13: 0.9139858358 | AI13: 0.9140976817 | AJ13: 0.9142624366 | AK13: 0.9144286593 | AL13: 0.9145908456 | AM13: 0.914721091
A14: 111 | B14: Zзаб | C14: 0.9050502533 | D14: 0.9051398704 | E14: 0.9052926297 | F14: 0.9045223275 | G14: 0.9031968344 | H14: 0.9027613924 | I14: 0.996 | J14: 0.996 | K14: 0.996 | L14: 0.996 | M14: 0.996 | N14: 0.996 | O14: 0.996 | P14: 0.996 | Q14: 0.996 | R14: 0.996 | S14: 0.996 | T14: 0.996 | U14: 0.996 | V14: 0.996 | W14: 0.996 | X14: 0.996 | Y14: 0.996 | Z14: 0.996 | AA14: 0.996 | AB14: 0.996 | AC14: 0.996 | AD14: 0.996 | AE14: 0.996 | AF14: 0.996 | AG14: 0.996 | AH14: 0.996 | AI14: 0.996 | AJ14: 0.996 | AK14: 0.996 | AL14: 0.996 | AM14: 0.996
A15: 112 | B15: Zзаб | C15: 0.8959797072 | D15: 0.8962160858 | E15: 0.896300157 | F15: 0.8963012157 | G15: 0.8972010514 | H15: 0.897807087 | I15: 0.8988941604 | J15: 0.8996148532 | K15: 0.8989919279 | L15: 0.9003607271 | M15: 0.9013028652 | N15: 0.9020316425 | O15: 0.9027421503 | P15: 0.9034350863 | Q15: 0.9040506178 | R15: 0.9047183025 | S15: 0.9053606514 | T15: 0.9060387247 | U15: 0.9066925251 | V15: 0.9073605788 | W15: 0.9073135657 | X15: 0.9084227523 | Y15: 0.908776125 | Z15: 0.9090031047 | AA15: 0.9091929349 | AB15: 0.9093676311 | AC15: 0.9095163075 | AD15: 0.909669817 | AE15: 0.9098130715 | AF15: 0.9099558308 | AG15: 0.9100886935 | AH15: 0.9102227815 | AI15: 0.9096529916 | AJ15: 0.9103836514 | AK15: 0.9105577724 | AL15: 0.9106896546 | AM15: 0.910820627
A16: 113 | B16: Zзаб | C16: 0.9111556165 | D16: 0.9111687303 | E16: 0.9168068728 | F16: 0.9170505133 | G16: 0.9175464071 | H16: 0.918585611 | I16: 0.9142955131 | J16: 0.9143927337 | K16: 0.9141972646 | L16: 0.914608244 | M16: 0.9146356901 | N16: 0.9147141909 | O16: 0.9147981893 | P16: 0.9148831361 | Q16: 0.9149577733 | R16: 0.9150382598 | S16: 0.9151150655 | T16: 0.9151840166 | U16: 0.9152480737 | V16: 0.9153130366 | W16: 0.9152869845 | X16: 0.9154116893 | Y16: 0.9154856694 | Z16: 0.9155442944 | AA16: 0.9155966365 | AB16: 0.9156445409 | AC16: 0.9156878969 | AD16: 0.9157319055 | AE16: 0.9157735009 | AF16: 0.9158154158 | AG16: 0.9158549474 | AH16: 0.9158953024 | AI16: 0.9157534836 | AJ16: 0.9159230087 | AK16: 0.9159884565 | AL16: 0.9160334828 | AM16: 0.9160762008
A17: 114 | B17: Zзаб | C17: 0.881719573 | D17: 0.8811616429 | E17: 0.8838263255 | F17: 0.8819267393 | G17: 0.8828507308 | H17: 0.8834543341 | I17: 0.996 | J17: 0.996 | K17: 0.996 | L17: 0.996 | M17: 0.996 | N17: 0.996 | O17: 0.996 | P17: 0.996 | Q17: 0.996 | R17: 0.996 | S17: 0.996 | T17: 0.996 | U17: 0.996 | V17: 0.996 | W17: 0.996 | X17: 0.996 | Y17: 0.996 | Z17: 0.996 | AA17: 0.996 | AB17: 0.996 | AC17: 0.996 | AD17: 0.996 | AE17: 0.996 | AF17: 0.996 | AG17: 0.996 | AH17: 0.996 | AI17: 0.996 | AJ17: 0.996 | AK17: 0.996 | AL17: 0.996 | AM17: 0.996
A18: 115 | B18: Zзаб | C18: 0.996 | D18: 0.996 | E18: 0.996 | F18: 0.996 | G18: 0.996 | H18: 0.996 | I18: 0.996 | J18: 0.996 | K18: 0.996 | L18: 0.996 | M18: 0.996 | N18: 0.996 | O18: 0.996 | P18: 0.996 | Q18: 0.996 | R18: 0.996 | S18: 0.996 | T18: 0.996 | U18: 0.996 | V18: 0.996 | W18: 0.996 | X18: 0.996 | Y18: 0.996 | Z18: 0.9080303794 | AA18: 0.9090108486 | AB18: 0.9095087628 | AC18: 0.9098812495 | AD18: 0.9102437077 | AE18: 0.9105604459 | AF18: 0.910865251 | AG18: 0.9111357717 | AH18: 0.9113989177 | AI18: 0.9113944209 | AJ18: 0.9118683182 | AK18: 0.9121252519 | AL18: 0.9123151324 | AM18: 0.9125012925
A19: 116 | B19: Zзаб | C19: 0.996 | D19: 0.996 | E19: 0.996 | F19: 0.996 | G19: 0.996 | H19: 0.996 | I19: 0.996 | J19: 0.996 | K19: 0.996 | L19: 0.996 | M19: 0.996 | N19: 0.996 | O19: 0.996 | P19: 0.996 | Q19: 0.996 | R19: 0.996 | S19: 0.996 | T19: 0.996 | U19: 0.996 | V19: 0.996 | W19: 0.996 | X19: 0.996 | Y19: 0.9165816101 | Z19: 0.917045156 | AA19: 0.9173917171 | AB19: 0.9176484348 | AC19: 0.9178683583 | AD19: 0.9180241553 | AE19: 0.9182073232 | AF19: 0.9183301692 | AG19: 0.9184948509 | AH19: 0.9186373755 | AI19: 0.9187305503 | AJ19: 0.9188290059 | AK19: 0.9188999602 | AL19: 0.9189514489 | AM19: 0.9190863503
A20: 117 | B20: Zзаб | C20: 0.996 | D20: 0.996 | E20: 0.996 | F20: 0.996 | G20: 0.996 | H20: 0.996 | I20: 0.996 | J20: 0.996 | K20: 0.996 | L20: 0.996 | M20: 0.996 | N20: 0.996 | O20: 0.996 | P20: 0.996 | Q20: 0.996 | R20: 0.996 | S20: 0.996 | T20: 0.996 | U20: 0.996 | V20: 0.996 | W20: 0.9143161292 | X20: 0.9159684307 | Y20: 0.9164965194 | Z20: 0.9168000908 | AA20: 0.9171112544 | AB20: 0.9173819664 | AC20: 0.9176491834 | AD20: 0.9178481258 | AE20: 0.9180589087 | AF20: 0.918193686 | AG20: 0.9183680076 | AH20: 0.918527576 | AI20: 0.9186365435 | AJ20: 0.9187305735 | AK20: 0.9188119246 | AL20: 0.9188869736 | AM20: 0.9190335006
A21: 118 | B21: Zзаб | C21: 0.996 | D21: 0.996 | E21: 0.996 | F21: 0.996 | G21: 0.996 | H21: 0.996 | I21: 0.996 | J21: 0.996 | K21: 0.996 | L21: 0.996 | M21: 0.996 | N21: 0.996 | O21: 0.996 | P21: 0.996 | Q21: 0.996 | R21: 0.996 | S21: 0.996 | T21: 0.996 | U21: 0.996 | V21: 0.9131356638 | W21: 0.9149019582 | X21: 0.9162835227 | Y21: 0.9164715865 | Z21: 0.9166707703 | AA21: 0.9169261864 | AB21: 0.9171278687 | AC21: 0.9173305667 | AD21: 0.9175140734 | AE21: 0.9176967161 | AF21: 0.9178545144 | AG21: 0.9180475021 | AH21: 0.9181974281 | AI21: 0.9182885451 | AJ21: 0.9184176596 | AK21: 0.9184923778 | AL21: 0.9185540621 | AM21: 0.918731308
A22: 119 | B22: Zзаб | C22: 0.996 | D22: 0.996 | E22: 0.996 | F22: 0.996 | G22: 0.996 | H22: 0.996 | I22: 0.996 | J22: 0.996 | K22: 0.996 | L22: 0.996 | M22: 0.996 | N22: 0.996 | O22: 0.996 | P22: 0.996 | Q22: 0.996 | R22: 0.996 | S22: 0.996 | T22: 0.9041510805 | U22: 0.9051487618 | V22: 0.9058173454 | W22: 0.9065721076 | X22: 0.9073111016 | Y22: 0.907951063 | Z22: 0.90854867 | AA22: 0.9090963783 | AB22: 0.9096279009 | AC22: 0.9101375668 | AD22: 0.9106411988 | AE22: 0.9111125076 | AF22: 0.9115803425 | AG22: 0.9120188454 | AH22: 0.912517446 | AI22: 0.9126537653 | AJ22: 0.9136561348 | AK22: 0.9142102887 | AL22: 0.9144656556 | AM22: 0.9145932318
A23: 120 | B23: Zзаб | C23: 0.996 | D23: 0.996 | E23: 0.996 | F23: 0.996 | G23: 0.996 | H23: 0.996 | I23: 0.996 | J23: 0.996 | K23: 0.996 | L23: 0.996 | M23: 0.996 | N23: 0.996 | O23: 0.996 | P23: 0.996 | Q23: 0.996 | R23: 0.996 | S23: 0.996 | T23: 0.996 | U23: 0.996 | V23: 0.996 | W23: 0.996 | X23: 0.996 | Y23: 0.996 | Z23: 0.996 | AA23: 0.996 | AB23: 0.996 | AC23: 0.996 | AD23: 0.996 | AE23: 0.996 | AF23: 0.996 | AG23: 0.996 | AH23: 0.996 | AI23: 0.996 | AJ23: 0.996 | AK23: 0.996 | AL23: 0.996 | AM23: 0.996
A24: 121 | B24: Zзаб | C24: 0.996 | D24: 0.996 | E24: 0.996 | F24: 0.996 | G24: 0.996 | H24: 0.996 | I24: 0.996 | J24: 0.996 | K24: 0.996 | L24: 0.996 | M24: 0.996 | N24: 0.996 | O24: 0.996 | P24: 0.996 | Q24: 0.996 | R24: 0.996 | S24: 0.996 | T24: 0.996 | U24: 0.996 | V24: 0.996 | W24: 0.996 | X24: 0.996 | Y24: 0.996 | Z24: 0.996 | AA24: 0.996 | AB24: 0.996 | AC24: 0.996 | AD24: 0.996 | AE24: 0.996 | AF24: 0.996 | AG24: 0.996 | AH24: 0.996 | AI24: 0.996 | AJ24: 0.996 | AK24: 0.996 | AL24: 0.996 | AM24: 0.996
A25: 122 | B25: Zзаб | C25: 0.996 | D25: 0.996 | E25: 0.996 | F25: 0.996 | G25: 0.996 | H25: 0.996 | I25: 0.996 | J25: 0.996 | K25: 0.996 | L25: 0.996 | M25: 0.996 | N25: 0.996 | O25: 0.996 | P25: 0.996 | Q25: 0.996 | R25: 0.996 | S25: 0.996 | T25: 0.996 | U25: 0.996 | V25: 0.996 | W25: 0.996 | X25: 0.996 | Y25: 0.996 | Z25: 0.996 | AA25: 0.996 | AB25: 0.996 | AC25: 0.996 | AD25: 0.996 | AE25: 0.996 | AF25: 0.996 | AG25: 0.996 | AH25: 0.996 | AI25: 0.996 | AJ25: 0.996 | AK25: 0.996 | AL25: 0.996 | AM25: 0.996
A26: 123 | B26: Zзаб | C26: 0.996 | D26: 0.996 | E26: 0.996 | F26: 0.996 | G26: 0.996 | H26: 0.996 | I26: 0.996 | J26: 0.996 | K26: 0.996 | L26: 0.996 | M26: 0.996 | N26: 0.996 | O26: 0.996 | P26: 0.996 | Q26: 0.996 | R26: 0.996 | S26: 0.996 | T26: 0.996 | U26: 0.996 | V26: 0.996 | W26: 0.996 | X26: 0.996 | Y26: 0.996 | Z26: 0.996 | AA26: 0.996 | AB26: 0.8754268606 | AC26: 0.8797271529 | AD26: 0.8826057875 | AE26: 0.8846977712 | AF26: 0.8864198961 | AG26: 0.8877764595 | AH26: 0.8890254963 | AI26: 0.8901325609 | AJ26: 0.8911158443 | AK26: 0.8920358551 | AL26: 0.8928361688 | AM26: 0.8936647335

Sheet ВГФ
A3: 100 | B3: ВГФ | C3: 0 | D3: 0 | E3: 0 | F3: 0 | G3: 0 | H3: 0 | I3: 0 | J3: 0 | K3: 0 | L3: 0 | M3: 0 | N3: 0 | O3: 0 | P3: 0 | Q3: 0 | R3: 0 | S3: 0 | T3: 0 | U3: 0 | V3: 0 | W3: 0 | X3: 0 | Y3: 0 | Z3: 0 | AA3: 0 | AB3: 0 | AC3: 0 | AD3: 0 | AE3: 0 | AF3: 0 | AG3: 0 | AH3: 0 | AI3: 0 | AJ3: 0 | AK3: 0 | AL3: 0 | AM3: 0
A4: =A3+1 -> 101 | B4: ВГФ | C4: 11.20392505 | D4: 11.15025799 | E4: 11.71112522 | F4: 12.02220597 | G4: 12.28002906 | H4: 11.89971947 | I4: 12.36672404 | J4: 12.38169342 | K4: 12.77731189 | L4: 12.94646 | M4: 13.19592752 | N4: 13.53157229 | O4: 13.91546351 | P4: 14.26287714 | Q4: 14.76226336 | R4: 15.23413633 | S4: 15.67665247 | T4: 16.22488716 | U4: 17.07370404 | V4: 17.71769222 | W4: 19.59574791 | X4: 21.11095226 | Y4: 23.47780937 | Z4: 28.44503168 | AA4: 29.34310123 | AB4: 33.01063546 | AC4: 37.31883343 | AD4: 41.76517796 | AE4: 49.26396042 | AF4: 105.7790067 | AG4: 110.2544204 | AH4: 109.2235193 | AI4: 116.5862628 | AJ4: 121.3061828 | AK4: 126.5528966 | AL4: 128.3447817 | AM4: 132.3629969
A5: =A4+1 -> 102 | B5: ВГФ | C5: 8.195524949 | D5: 8.385137502 | E5: 8.331721078 | F5: 8.587852399 | G5: 9.088926337 | H5: 8.328737484 | I5: 8.825876196 | J5: 8.39230228 | K5: 8.953374764 | L5: 9.070296207 | M5: 9.226935663 | N5: 9.380050171 | O5: 9.694847379 | P5: 11.15287041
A6: 103 | B6: ВГФ | C6: 59.22172202 | D6: 60.71718088 | E6: 51.12534091
A7: 104 | B7: ВГФ
A8: 105 | B8: ВГФ | C8: 0 | D8: 0 | E8: 0 | F8: 0 | G8: 0 | H8: 0 | I8: 0 | J8: 0 | K8: 0 | L8: 0 | M8: 0 | N8: 0 | O8: 0 | P8: 0 | Q8: 0 | R8: 0 | S8: 0 | T8: 0 | U8: 0 | V8: 0 | W8: 0 | X8: 0 | Y8: 0
A9: 106 | B9: ВГФ | C9: 0 | D9: 0 | E9: 0 | F9: 0 | G9: 0 | H9: 0 | I9: 0 | J9: 0 | K9: 0 | L9: 0 | M9: 0 | N9: 0 | O9: 0 | P9: 0 | Q9: 0 | R9: 0 | S9: 0 | T9: 0 | U9: 0 | V9: 0 | W9: 0 | X9: 0 | Y9: 0 | Z9: 1.968661686e-06 | AA9: 4.539266964e-05 | AB9: 0.0001441845422 | AC9: 0.0003998654556 | AD9: 0.0009378084561 | AE9: 0.002120238434 | AF9: 0.005331419355 | AG9: 0.01000616932 | AH9: 0.01944400226 | AI9: 0.03671746256 | AJ9: 0.07116360119 | AK9: 0.148331123 | AL9: 0.2176702847 | AM9: 0.4320142168
A10: 107 | B10: ВГФ | C10: 51.13404285 | D10: 53.06947643 | E10: 59.08537658 | F10: 56.53311465 | G10: 59.67745091 | H10: 71.0847362 | I10: 64.61419163 | J10: 63.73433897 | K10: 63.21421534 | L10: 64.75440184 | M10: 64.84214961 | N10: 65.30475847 | O10: 65.81475199 | P10: 66.38904291 | Q10: 66.48735055 | R10: 67.61602727 | S10: 67.78323593 | T10: 68.42922489 | U10: 69.20959396 | V10: 69.34740453
A11: 108 | B11: ВГФ | C11: 10.34313318 | D11: 10.34941828 | E11: 10.66057986 | F11: 10.81952125 | G11: 10.98556611 | H11: 10.21828345 | I11: 10.6995498 | J11: 10.37143749 | K11: 10.87410653 | L11: 10.92478617 | M11: 11.01123039 | N11: 11.09977298 | O11: 11.18784517 | P11: 11.27892891 | Q11: 11.41486164 | R11: 11.58422161 | S11: 11.69773999 | T11: 11.78701154 | U11: 11.86600972 | V11: 11.81840359 | W11: 11.41311338 | X11: 11.46706704 | Y11: 11.54800784 | Z11: 13.26497326 | AA11: 14.01243063 | AB11: 14.4139552 | AC11: 14.78683408 | AD11: 15.07760791 | AE11: 15.4782154 | AF11: 15.70937929 | AG11: 16.06730921 | AH11: 15.60556215 | AI11: 17.78269237 | AJ11: 17.3360416 | AK11: 18.68527316 | AL11: 18.93516014 | AM11: 18.77473347
A12: 109 | B12: ВГФ | C12: 0 | D12: 0 | E12: 0 | F12: 0 | G12: 0 | H12: 0 | I12: 0 | J12: 0 | K12: 0 | L12: 0 | M12: 0 | N12: 0 | O12: 0 | P12: 0 | Q12: 0 | R12: 0 | S12: 0 | T12: 0 | U12: 0 | V12: 0 | W12: 0 | X12: 0 | Y12: 0 | Z12: 0 | AA12: 0 | AB12: 0 | AC12: 0 | AD12: 0 | AE12: 0 | AF12: 0 | AG12: 0 | AH12: 0 | AI12: 0 | AJ12: 0 | AK12: 0 | AL12: 0 | AM12: 0
A13: 110 | B13: ВГФ | C13: 98.88667075 | D13: 121.9676347 | E13: 130.1175591 | F13: 126.3009104 | G13: 129.1059495
A14: 111 | B14: ВГФ
A15: 112 | B15: ВГФ | C15: 5.441945737 | D15: 5.671533552 | E15: 5.277767026 | F15: 5.462390206 | G15: 5.48335756 | H15: 5.077651453 | I15: 5.231524918 | J15: 5.088652366 | K15: 5.130720284 | L15: 5.123285152 | M15: 5.113217424 | N15: 5.101888628 | O15: 5.094147974 | P15: 5.090922605 | Q15: 5.09978967 | R15: 5.105200344 | S15: 5.115234582 | T15: 5.131081701 | U15: 5.156119338 | V15: 5.161810013 | W15: 5.184025613 | X15: 5.288491518 | Y15: 5.349436754 | Z15: 5.413102853 | AA15: 5.471933976 | AB15: 5.536160763 | AC15: 5.611822407 | AD15: 5.686594343 | AE15: 5.766741342 | AF15: 5.866643558 | AG15: 5.940287144 | AH15: 5.718577367 | AI15: 6.040831796 | AJ15: 6.210010196 | AK15: 6.372758184 | AL15: 6.449709157 | AM15: 6.577328113
A16: 113 | B16: ВГФ | C16: 2.841933693 | D16: 2.669926393 | E16: 2.45240665 | F16: 2.685244256 | G16: 2.837633002 | H16: 3.395094759 | I16: 3.112189967 | J16: 3.033190916 | K16: 3.210022852 | L16: 3.203416291 | M16: 3.228141709 | N16: 3.256276962 | O16: 3.285939405 | P16: 3.314941957 | Q16: 3.350973826 | R16: 3.384808877 | S16: 3.410757677 | T16: 3.438116789 | U16: 3.474798409 | V16: 3.487531534 | W16: 3.526490233 | X16: 3.562614256 | Y16: 3.591633621 | Z16: 3.623889662 | AA16: 3.650488219 | AB16: 3.676448465 | AC16: 3.703903807 | AD16: 3.730171053 | AE16: 3.75706181 | AF16: 3.788473522 | AG16: 3.812725236 | AH16: 3.710949827 | AI16: 3.799132991 | AJ16: 3.876072475 | AK16: 3.92960267 | AL16: 3.952926255 | AM16: 3.991197181
A17: 114 | B17: ВГФ | D17: 0.8915656155
A18: 115 | B18: ВГФ | Y18: 0 | Z18: 0 | AA18: 0 | AB18: 0 | AC18: 0 | AD18: 0 | AE18: 0 | AF18: 0 | AG18: 0 | AH18: 0 | AI18: 0 | AJ18: 0 | AK18: 0 | AL18: 0 | AM18: 0
A19: 116 | B19: ВГФ | X19: 0 | Y19: 0 | Z19: 0 | AA19: 0 | AB19: 0 | AC19: 0 | AD19: 0 | AE19: 0 | AF19: 0 | AG19: 0 | AH19: 0 | AI19: 0 | AJ19: 0 | AK19: 0 | AL19: 0 | AM19: 0
A20: 117 | B20: ВГФ | V20: 0 | W20: 0 | X20: 0 | Y20: 0 | Z20: 0 | AA20: 0 | AB20: 0 | AC20: 0 | AD20: 0 | AE20: 0 | AF20: 0 | AG20: 0 | AH20: 0 | AI20: 0 | AJ20: 0 | AK20: 0 | AL20: 0 | AM20: 0
A21: 118 | B21: ВГФ | U21: 0 | V21: 0 | W21: 0 | X21: 0 | Y21: 0 | Z21: 0 | AA21: 0 | AB21: 0 | AC21: 0 | AD21: 0 | AE21: 0 | AF21: 0 | AG21: 0 | AH21: 0 | AI21: 0 | AJ21: 0 | AK21: 0 | AL21: 0 | AM21: 0
A22: 119 | B22: ВГФ | S22: 0 | T22: 0 | U22: 0 | V22: 0 | W22: 7.519382033e-06 | X22: 6.238677033e-05 | Y22: 0.0002452046337 | Z22: 0.001043526719 | AA22: 0.003839339521 | AB22: 0.01180638504 | AC22: 0.03864900541 | AD22: 0.1101530197 | AE22: 0.3109187072 | AF22: 0.9830220552 | AG22: 2.441155724 | AH22: 7.013435571 | AI22: 23.98517697 | AJ22: 47.79897216 | AK22: 56.23504701 | AL22: 63.33655088 | AM22: 68.97319557
A23: 120 | B23: ВГФ
A24: 121 | B24: ВГФ
A25: 122 | B25: ВГФ
A26: 123 | B26: ВГФ | AA26: 0.4390585791 | AB26: 0.4855079395 | AC26: 0.4919615071 | AD26: 0.4831206142 | AE26: 0.4768947043 | AF26: 0.4742690208 | AG26: 0.4745959566 | AH26: 0.4759173639 | AI26: 0.4779352359 | AJ26: 0.4810907872 | AK26: 0.4856941875 | AL26: 0.4883896138 | AM26: 0.4930547813

Sheet Qmin
A3: 100 | B3: Qmin | C3: 173.9843611 | D3: 174.0028594 | E3: 173.6308266 | F3: 173.3671581 | G3: 172.8448185 | H3: 172.415206 | I3: 171.538169 | J3: 171.1150847 | K3: 171.4532061 | L3: 170.7005649 | M3: 170.3182786 | N3: 169.9491481 | O3: 169.5367703 | P3: 169.1104577 | Q3: -167771660 | R3: 168.6272392 | S3: 168.4259907 | T3: 168.2346413 | U3: 168.0316553 | V3: 167.6109919 | W3: 167.1630982 | X3: 165.7392954 | Y3: 164.446124 | Z3: 163.3515037 | AA3: 162.5218349 | AB3: 161.7524688 | AC3: 161.0192006 | AD3: 160.3903288 | AE3: 160.0140795 | AF3: 159.8789749 | AG3: 159.5939474 | AH3: 159.3801949 | AI3: 159.1810791 | AJ3: 159.1221887 | AK3: 158.9909726 | AL3: 158.9518555 | AM3: 158.7428642
A4: =A3+1 -> 101 | B4: Qmin | C4: 187.6723266 | D4: 186.7399139 | E4: 188.8524503 | F4: 186.786611 | G4: 186.7947813 | H4: 185.6367857 | I4: 184.1668023 | J4: 183.6881837 | K4: 184.0987755 | L4: 183.3399386 | M4: 182.9348125 | N4: 182.6408591 | O4: 182.2760282 | P4: 181.9820402 | Q4: 181.7408585 | R4: 181.7618956 | S4: 181.7929035 | T4: 181.9879682 | U4: 182.25109 | V4: 182.4743964 | W4: 183.4773759 | X4: 183.6258211 | Y4: 184.3731115 | Z4: 186.2546349 | AA4: 185.6620447 | AB4: 187.1535495 | AC4: 188.4968513 | AD4: 189.906901 | AE4: 192.2684949 | AF4: 210.5984479 | AG4: 211.6733199 | AH4: 210.5961644 | AI4: 212.5154644 | AJ4: 214.0849063 | AK4: 215.6328033 | AL4: 216.1802211 | AM4: 217.1088085
A5: =A4+1 -> 102 | B5: Qmin | C5: 179.3118372 | D5: 178.6805517 | E5: 180.165935 | F5: 177.9278062 | G5: 180.1830995 | H5: 178.5855918 | I5: 173.6324808 | J5: 172.7921124 | K5: 174.1860004 | L5: 172.5826263 | M5: 172.0589213 | N5: 171.5445178 | O5: 171.0626007 | P5: 171.7123843 | Q5: 177.6428737 | R5: 178.660256 | S5: 178.7149345 | T5: 178.6903609 | U5: 178.576683 | V5: 178.3894843 | W5: 178.1451491 | X5: 177.6806863 | Y5: 177.1259031 | Z5: 176.5339995 | AA5: 175.9414144 | AB5: 175.3638876 | AC5: 174.8543996 | AD5: 174.6814071 | AE5: 173.9750498 | AF5: 173.5476852 | AG5: 173.2202657 | AH5: 172.8551283 | AI5: 172.6787498 | AJ5: 172.2857617 | AK5: 171.6226043 | AL5: 171.6497452 | AM5: 171.4966022
A6: 103 | B6: Qmin | C6: 203.6838921 | D6: 204.2507589 | E6: 200.011518 | F6: 172.3120864 | G6: 182.7408389 | H6: 183.4863331 | I6: 183.7842633 | J6: 183.8229324 | K6: 183.9619613 | L6: 183.7650541 | M6: 183.5201888 | N6: 183.3788553 | O6: 183.2588369 | P6: 183.0902502 | Q6: 182.9227415 | R6: 182.7706269 | S6: 182.6377527 | T6: 182.2977321 | U6: 181.4386306 | V6: 179.6988854 | W6: 178.168253 | X6: 176.9663431 | Y6: 175.9660147 | Z6: 175.1148762 | AA6: 174.3943485 | AB6: 173.778861 | AC6: 173.1797033 | AD6: 172.5863596 | AE6: 172.0237117 | AF6: 171.4769547 | AG6: 170.7294018 | AH6: 170.255086 | AI6: 169.95336 | AJ6: 169.5281574 | AK6: 169.1212879 | AL6: 168.7873247 | AM6: 168.0181941
A7: 104 | B7: Qmin | C7: 500 | D7: 500 | E7: 500 | F7: 500 | G7: 500 | H7: 500 | I7: 500 | J7: 500 | K7: 500 | L7: 500 | M7: 500 | N7: 500 | O7: 500 | P7: 500 | Q7: 500 | R7: 500 | S7: 500 | T7: 500 | U7: 500 | V7: 500 | W7: 500 | X7: 500 | Y7: 500 | Z7: 500 | AA7: 500 | AB7: 500 | AC7: 500 | AD7: 500 | AE7: 500 | AF7: 500 | AG7: 500 | AH7: 500 | AI7: 500 | AJ7: 500 | AK7: 500 | AL7: 500 | AM7: 500
A8: 105 | B8: Qmin | C8: 97.82340502 | D8: 97.37051027 | E8: 94.68822042 | F8: 95.26561055 | G8: 94.58432304 | H8: 98.77757018 | I8: 94.36335175 | J8: 94.27289912 | K8: 94.22545962 | L8: 94.18902126 | M8: 94.1569729 | N8: 94.12846218 | O8: 94.10110251 | P8: 94.07477945 | Q8: 94.051686 | R8: 94.02536111 | S8: 94.00172829 | T8: 93.97558662 | U8: 93.95051697 | V8: 93.92490341 | W8: 93.90062758 | X8: 93.87744455 | Y8: 93.85148806 | Z8: 93.82798296 | AA8: 500 | AB8: 500 | AC8: 500 | AD8: 500 | AE8: 500 | AF8: 500 | AG8: 500 | AH8: 500 | AI8: 500 | AJ8: 500 | AK8: 500 | AL8: 500 | AM8: 500
A9: 106 | B9: Qmin | C9: 176.0407535 | D9: 175.4516236 | E9: 175.7753149 | F9: 175.252227 | G9: 174.6496246 | H9: 174.2513495 | I9: 173.4137277 | J9: 173.1018133 | K9: 173.2466409 | L9: 172.665866 | M9: 172.2669346 | N9: 171.8729757 | O9: 171.4466285 | P9: 170.8308921 | Q9: 170.4779085 | R9: 170.2254522 | S9: 170.0027841 | T9: 169.7891082 | U9: 169.572814 | V9: 169.2132135 | W9: 168.9194991 | X9: 167.7480072 | Y9: 166.3711245 | Z9: 165.6657068 | AA9: 165.0810717 | AB9: 164.5816483 | AC9: 164.1265733 | AD9: 163.7241313 | AE9: 163.3786676 | AF9: 163.0591672 | AG9: 162.7523752 | AH9: 162.5565393 | AI9: 162.5459485 | AJ9: 162.3620321 | AK9: 162.3638073 | AL9: 162.3423419 | AM9: 162.5342352
A10: 107 | B10: Qmin | C10: 196.5351547 | D10: 200.1924857 | E10: 210.7317234 | F10: 200.0891748 | G10: 198.0141905 | H10: 200.1091394 | I10: 206.6632987 | J10: 205.9274592 | K10: 206.2818123 | L10: 205.9203374 | M10: 205.3194623 | N10: 205.1585589 | O10: 204.9875285 | P10: 204.8039386 | Q10: 204.505426 | R10: 204.5272344 | S10: 204.2917585 | T10: 204.3300815 | U10: 204.6836235 | V10: 205.1232301 | W10: 168.0102128 | X10: 500 | Y10: 500 | Z10: 500 | AA10: 500 | AB10: 500 | AC10: 500 | AD10: 500 | AE10: 500 | AF10: 500 | AG10: 500 | AH10: 500 | AI10: 500 | AJ10: 500 | AK10: 500 | AL10: 500 | AM10: 500
A11: 108 | B11: Qmin | C11: 184.9769451 | D11: 184.2505494 | E11: 184.3170382 | F11: 186.0655798 | G11: 184.1213231 | H11: 183.0095198 | I11: 182.7559686 | J11: 182.2659004 | K11: 182.7968356 | L11: 182.2533369 | M11: 181.9989717 | N11: 181.793741 | O11: 181.5925352 | P11: 181.3629113 | Q11: 181.1348146 | R11: 181.0087903 | S11: 180.8966683 | T11: 180.8373795 | U11: 180.7307948 | V11: 180.6137908 | W11: 180.4570827 | X11: 180.3081988 | Y11: 179.6993077 | Z11: 180.1995259 | AA11: 179.5127984 | AB11: 179.1582396 | AC11: 178.8954774 | AD11: 178.5953767 | AE11: 178.4222307 | AF11: 178.1951036 | AG11: 178.0416275 | AH11: 177.4643382 | AI11: 178.655916 | AJ11: 177.9321231 | AK11: 178.6319106 | AL11: 178.9261459 | AM11: 178.7773621
A12: 109 | B12: Qmin | C12: 194.2916082 | D12: 192.9838372 | E12: 194.204456 | F12: 192.2016062 | G12: 191.5779892 | H12: 191.0624695 | I12: 185.6670997 | J12: 185.1776667 | K12: 184.9316109 | L12: 184.4685153 | M12: 184.0002257 | N12: 183.6005726 | O12: 183.2146407 | P12: 182.805994 | Q12: 182.3612869 | R12: 182.0184099 | S12: 181.7029415 | T12: 181.4892084 | U12: 181.2085531 | V12: 181.0729706 | W12: 180.9706569 | X12: 180.6373902 | Y12: 180.4642774 | Z12: 180.5762546 | AA12: 180.2862044 | AB12: 179.9946718 | AC12: 179.7324901 | AD12: 179.5184858 | AE12: 179.2367438 | AF12: 179.0166422 | AG12: 178.7470259 | AH12: 178.4707316 | AI12: 178.3934416 | AJ12: 178.0588765 | AK12: 177.8517955 | AL12: 177.6810414 | AM12: 177.4656998
A13: 110 | B13: Qmin | C13: 114.3982144 | D13: 114.8341255 | E13: 115.580722 | F13: 114.7861973 | G13: 114.3163506 | H13: 92.23415773 | I13: 100.1055222 | J13: 100.0812712 | K13: 100.0893986 | L13: 99.96167481 | M13: 99.82630463 | N13: 99.68629972 | O13: 99.56741488 | P13: 99.3924964 | Q13: 99.25175926 | R13: 99.17163083 | S13: 99.09039907 | T13: 99.01423665 | U13: 98.95444658 | V13: 98.54242728 | W13: 98.00063556 | X13: 97.30941172 | Y13: 96.53777973 | Z13: 95.91303788 | AA13: 95.46898413 | AB13: 95.11517116 | AC13: 94.80676857 | AD13: 94.52175972 | AE13: 94.28441735 | AF13: 94.05786841 | AG13: 93.86980542 | AH13: 93.67515498 | AI13: 93.57979374 | AJ13: 93.43939932 | AK13: 93.29784687 | AL13: 93.15982046 | AM13: 93.04903977
A14: 111 | B14: Qmin | C14: 101.4653512 | D14: 101.385179 | E14: 101.2486329 | F14: 101.938655 | G14: 103.1349875 | H14: 103.5306115 | I14: 500 | J14: 500 | K14: 500 | L14: 500 | M14: 500 | N14: 500 | O14: 500 | P14: 500 | Q14: 500 | R14: 500 | S14: 500 | T14: 500 | U14: 500 | V14: 500 | W14: 500 | X14: 500 | Y14: 500 | Z14: 500 | AA14: 500 | AB14: 500 | AC14: 500 | AD14: 500 | AE14: 500 | AF14: 500 | AG14: 500 | AH14: 500 | AI14: 500 | AJ14: 500 | AK14: 500 | AL14: 500 | AM14: 500
A15: 112 | B15: Qmin | C15: 113.1565299 | D15: 113.0078999 | E15: 112.7657433 | F15: 112.8387127 | G15: 111.9408188 | H15: 111.1752283 | I15: 110.1616996 | J15: 109.4001013 | K15: 110.0261992 | L15: 108.6883107 | M15: 107.7753942 | N15: 107.0730776 | O15: 106.3937766 | P15: 105.7366563 | Q15: 105.1602241 | R15: 104.5363858 | S15: 103.9407805 | T15: 103.3167706 | U15: 102.7211607 | V15: 102.1081072 | W15: 102.159057 | X15: 101.1788486 | Y15: 100.8770718 | Z15: 100.691676 | AA15: 100.538528 | AB15: 100.4009475 | AC15: 100.29076 | AD15: 100.1757877 | AE15: 100.0717863 | AF15: 99.97449277 | AG15: 99.87755817 | AH15: 99.68444438 | AI15: 100.3059066 | AJ15: 99.69555841 | AK15: 99.58851081 | AL15: 99.49275552 | AM15: 99.41330493
A16: 113 | B16: Qmin | C16: 97.8193857 | D16: 97.73768709 | E16: 92.71816084 | F16: 92.59695575 | G16: 92.22498843 | H16: 91.52442883 | I16: 95.15596075 | J16: 95.04111299 | K16: 95.27857358 | L16: 94.91591669 | M16: 94.9009972 | N16: 94.84259242 | O16: 94.77990147 | P16: 94.71610686 | Q16: 94.66384976 | R16: 94.60562701 | S16: 94.54774869 | T16: 94.49722354 | U16: 94.45427312 | V16: 94.40197229 | W16: 94.43858949 | X16: 94.34224767 | Y16: 94.2877424 | Z16: 94.24776903 | AA16: 94.21127798 | AB16: 94.17841908 | AC16: 94.15003051 | AD16: 94.12063182 | AE16: 94.09353221 | AF16: 94.06767867 | AG16: 94.04142157 | AH16: 93.97114126 | AI16: 94.12551139 | AJ16: 94.00351829 | AK16: 93.96443713 | AL16: 93.93293591 | AM16: 93.90846391
A17: 114 | B17: Qmin | C17: 125.4655507 | D17: 127.3873225 | E17: 122.8784079 | F17: 125.2039664 | G17: 124.0570667 | H17: 123.3241425 | I17: 500 | J17: 500 | K17: 500 | L17: 500 | M17: 500 | N17: 500 | O17: 500 | P17: 500 | Q17: 500 | R17: 500 | S17: 500 | T17: 500 | U17: 500 | V17: 500 | W17: 500 | X17: 500 | Y17: 500 | Z17: 500 | AA17: 500 | AB17: 500 | AC17: 500 | AD17: 500 | AE17: 500 | AF17: 500 | AG17: 500 | AH17: 500 | AI17: 500 | AJ17: 500 | AK17: 500 | AL17: 500 | AM17: 500
A18: 115 | B18: Qmin | C18: 500 | D18: 500 | E18: 500 | F18: 500 | G18: 500 | H18: 500 | I18: 500 | J18: 500 | K18: 500 | L18: 500 | M18: 500 | N18: 500 | O18: 500 | P18: 500 | Q18: 500 | R18: 500 | S18: 500 | T18: 500 | U18: 500 | V18: 500 | W18: 500 | X18: 500 | Y18: 500 | Z18: 98.82430082 | AA18: 97.96578174 | AB18: 97.5315882 | AC18: 97.20752822 | AD18: 96.89279923 | AE18: 96.6182481 | AF18: 96.35445306 | AG18: 96.12066183 | AH18: 95.89353819 | AI18: 95.89741706 | AJ18: 95.48909896 | AK18: 95.26809671 | AL18: 95.10493704 | AM18: 94.94510953
A19: 116 | B19: Qmin | C19: 500 | D19: 500 | E19: 500 | F19: 500 | G19: 500 | H19: 500 | I19: 500 | J19: 500 | K19: 500 | L19: 500 | M19: 500 | N19: 500 | O19: 500 | P19: 500 | Q19: 500 | R19: 500 | S19: 500 | T19: 500 | U19: 500 | V19: 500 | W19: 500 | X19: 500 | Y19: 91.47235772 | Z19: 91.08111153 | AA19: 90.78898793 | AB19: 90.57280114 | AC19: 90.38773549 | AD19: 90.25670713 | AE19: 90.1027372 | AF19: 89.9995202 | AG19: 89.8612101 | AH19: 89.74156183 | AI19: 89.66336851 | AJ19: 89.58076587 | AK19: 89.52125049 | AL19: 89.47806989 | AM19: 89.36496487
A20: 117 | B20: Qmin | C20: 500 | D20: 500 | E20: 500 | F20: 500 | G20: 500 | H20: 500 | I20: 500 | J20: 500 | K20: 500 | L20: 500 | M20: 500 | N20: 500 | O20: 500 | P20: 500 | Q20: 500 | R20: 500 | S20: 500 | T20: 500 | U20: 500 | V20: 500 | W20: 93.39366541 | X20: 91.99083715 | Y20: 91.54424215 | Z20: 91.28787925 | AA20: 91.02537079 | AB20: 90.79720266 | AC20: 90.57217096 | AD20: 90.40475596 | AE20: 90.22748718 | AF20: 90.11419773 | AG20: 89.96773528 | AH20: 89.83373328 | AI20: 89.74226017 | AJ20: 89.66334905 | AK20: 89.59509521 | AL20: 89.53214252 | AM20: 89.40927053
A21: 118 | B21: Qmin | C21: 500 | D21: 500 | E21: 500 | F21: 500 | G21: 500 | H21: 500 | I21: 500 | J21: 500 | K21: 500 | L21: 500 | M21: 500 | N21: 500 | O21: 500 | P21: 500 | Q21: 500 | R21: 500 | S21: 500 | T21: 500 | U21: 500 | V21: 94.40145495 | W21: 92.8952942 | X21: 91.72427209 | Y21: 91.56530927 | Z21: 91.39705732 | AA21: 91.1814685 | AB21: 91.01136181 | AC21: 90.84050947 | AD21: 90.68592779 | AE21: 90.53216176 | AF21: 90.39938151 | AG21: 90.23707727 | AH21: 90.11105283 | AI21: 90.03448921 | AJ21: 89.92603204 | AK21: 89.86328667 | AL21: 89.8114968 | AM21: 89.66273276
A22: 119 | B22: Qmin | C22: 500 | D22: 500 | E22: 500 | F22: 500 | G22: 500 | H22: 500 | I22: 500 | J22: 500 | K22: 500 | L22: 500 | M22: 500 | N22: 500 | O22: 500 | P22: 500 | Q22: 500 | R22: 500 | S22: 500 | T22: 102.2725538 | U22: 101.3772274 | V22: 100.7806821 | W22: 100.1107527 | X22: 99.45864761 | Y22: 98.89745902 | Z22: 98.37898541 | AA22: 97.91265058 | AB22: 97.47308005 | AC22: 97.08388236 | AD22: 96.74592731 | AE22: 96.5329334 | AF22: 96.57685573 | AG22: 96.89126926 | AH22: 98.01017779 | AI22: 101.8163086 | AJ22: 104.9281331 | AK22: 105.6277751 | AL22: 106.374991 | AM22: 107.0160392
A23: 120 | B23: Qmin | C23: 500 | D23: 500 | E23: 500 | F23: 500 | G23: 500 | H23: 500 | I23: 500 | J23: 500 | K23: 500 | L23: 500 | M23: 500 | N23: 500 | O23: 500 | P23: 500 | Q23: 500 | R23: 500 | S23: 500 | T23: 500 | U23: 500 | V23: 500 | W23: 500 | X23: 500 | Y23: 500 | Z23: 500 | AA23: 500 | AB23: 500 | AC23: 500 | AD23: 500 | AE23: 500 | AF23: 500 | AG23: 500 | AH23: 500 | AI23: 500 | AJ23: 500 | AK23: 500 | AL23: 500 | AM23: 500
A24: 121 | B24: Qmin | C24: 500 | D24: 500 | E24: 500 | F24: 500 | G24: 500 | H24: 500 | I24: 500 | J24: 500 | K24: 500 | L24: 500 | M24: 500 | N24: 500 | O24: 500 | P24: 500 | Q24: 500 | R24: 500 | S24: 500 | T24: 500 | U24: 500 | V24: 500 | W24: 500 | X24: 500 | Y24: 500 | Z24: 500 | AA24: 500 | AB24: 500 | AC24: 500 | AD24: 500 | AE24: 500 | AF24: 500 | AG24: 500 | AH24: 500 | AI24: 500 | AJ24: 500 | AK24: 500 | AL24: 500 | AM24: 500
A25: 122 | B25: Qmin | C25: 500 | D25: 500 | E25: 500 | F25: 500 | G25: 500 | H25: 500 | I25: 500 | J25: 500 | K25: 500 | L25: 500 | M25: 500 | N25: 500 | O25: 500 | P25: 500 | Q25: 500 | R25: 500 | S25: 500 | T25: 500 | U25: 500 | V25: 500 | W25: 500 | X25: 500 | Y25: 500 | Z25: 500 | AA25: 500 | AB25: 500 | AC25: 500 | AD25: 500 | AE25: 500 | AF25: 500 | AG25: 500 | AH25: 500 | AI25: 500 | AJ25: 500 | AK25: 500 | AL25: 500 | AM25: 500
A26: 123 | B26: Qmin | C26: 500 | D26: 500 | E26: 500 | F26: 500 | G26: 500 | H26: 500 | I26: 500 | J26: 500 | K26: 500 | L26: 500 | M26: 500 | N26: 500 | O26: 500 | P26: 500 | Q26: 500 | R26: 500 | S26: 500 | T26: 500 | U26: 500 | V26: 500 | W26: 500 | X26: 500 | Y26: 500 | Z26: 500 | AA26: 500 | AB26: 500 | AC26: 500 | AD26: 500 | AE26: 500 | AF26: 500 | AG26: 500 | AH26: 500 | AI26: 500 | AJ26: 500 | AK26: 500 | AL26: 500 | AM26: 500

Sheet Критерий1
A3: 100 | B3: Фруд1 | C3: =(0.387231 / ((Константы!C3 / 10) ^ (8 / 3)) + 0.0029) * ((Qmin!C3*ВГФ!C3/24) ^ (2 / 3)) + 4.9766 / (Константы!C3/ 10) + 0.15- 0.5213 / (Qmin!C3 / 10) - 0.0659 -> 0.5517975369 | D3: =(0.387231 / ((Константы!D3 / 10) ^ (8 / 3)) + 0.0029) * ((Qmin!D3*ВГФ!D3/24) ^ (2 / 3)) + 4.9766 / (Константы!D3/ 10) + 0.15- 0.5213 / (Qmin!D3 / 10) - 0.0659 -> 0.5518007222 | E3: =(0.387231 / ((Константы!E3 / 10) ^ (8 / 3)) + 0.0029) * ((Qmin!E3*ВГФ!E3/24) ^ (2 / 3)) + 4.9766 / (Константы!E3/ 10) + 0.15- 0.5213 / (Qmin!E3 / 10) - 0.0659 -> 0.5517365295 | F3: =(0.387231 / ((Константы!F3 / 10) ^ (8 / 3)) + 0.0029) * ((Qmin!F3*ВГФ!F3/24) ^ (2 / 3)) + 4.9766 / (Константы!F3/ 10) + 0.15- 0.5213 / (Qmin!F3 / 10) - 0.0659 -> 0.5516908678 | G3: =(0.387231 / ((Константы!G3 / 10) ^ (8 / 3)) + 0.0029) * ((Qmin!G3*ВГФ!G3/24) ^ (2 / 3)) + 4.9766 / (Константы!G3/ 10) + 0.15- 0.5213 / (Qmin!G3 / 10) - 0.0659 -> 0.5515999984 | H3: =(0.387231 / ((Константы!H3 / 10) ^ (8 / 3)) + 0.0029) * ((Qmin!H3*ВГФ!H3/24) ^ (2 / 3)) + 4.9766 / (Константы!H3/ 10) + 0.15- 0.5213 / (Qmin!H3 / 10) - 0.0659 -> 0.5515248478 | I3: =(0.387231 / ((Константы!I3 / 10) ^ (8 / 3)) + 0.0029) * ((Qmin!I3*ВГФ!I3/24) ^ (2 / 3)) + 4.9766 / (Константы!I3/ 10) + 0.15- 0.5213 / (Qmin!I3 / 10) - 0.0659 -> 0.5513702621 | J3: =(0.387231 / ((Константы!J3 / 10) ^ (8 / 3)) + 0.0029) * ((Qmin!J3*ВГФ!J3/24) ^ (2 / 3)) + 4.9766 / (Константы!J3/ 10) + 0.15- 0.5213 / (Qmin!J3 / 10) - 0.0659 -> 0.551295123 | K3: =(0.387231 / ((Константы!K3 / 10) ^ (8 / 3)) + 0.0029) * ((Qmin!K3*ВГФ!K3/24) ^ (2 / 3)) + 4.9766 / (Константы!K3/ 10) + 0.15- 0.5213 / (Qmin!K3 / 10) - 0.0659 -> 0.5513552026 | L3: =(0.387231 / ((Константы!L3 / 10) ^ (8 / 3)) + 0.0029) * ((Qmin!L3*ВГФ!L3/24) ^ (2 / 3)) + 4.9766 / (Константы!L3/ 10) + 0.15- 0.5213 / (Qmin!L3 / 10) - 0.0659 -> 0.5512211438 | M3: =(0.387231 / ((Константы!M3 / 10) ^ (8 / 3)) + 0.0029) * ((Qmin!M3*ВГФ!M3/24) ^ (2 / 3)) + 4.9766 / (Константы!M3/ 10) + 0.15- 0.5213 / (Qmin!M3 / 10) - 0.0659 -> 0.5511525981 | N3: =(0.387231 / ((Константы!N3 / 10) ^ (8 / 3)) + 0.0029) * ((Qmin!N3*ВГФ!N3/24) ^ (2 / 3)) + 4.9766 / (Константы!N3/ 10) + 0.15- 0.5213 / (Qmin!N3 / 10) - 0.0659 -> 0.5510861187 | O3: =(0.387231 / ((Константы!O3 / 10) ^ (8 / 3)) + 0.0029) * ((Qmin!O3*ВГФ!O3/24) ^ (2 / 3)) + 4.9766 / (Константы!O3/ 10) + 0.15- 0.5213 / (Qmin!O3 / 10) - 0.0659 -> 0.5510115082 | P3: =(0.387231 / ((Константы!P3 / 10) ^ (8 / 3)) + 0.0029) * ((Qmin!P3*ВГФ!P3/24) ^ (2 / 3)) + 4.9766 / (Константы!P3/ 10) + 0.15- 0.5213 / (Qmin!P3 / 10) - 0.0659 -> 0.5509339939 | Q3: =(0.387231 / ((Константы!Q3 / 10) ^ (8 / 3)) + 0.0029) * ((Qmin!Q3*ВГФ!Q3/24) ^ (2 / 3)) + 4.9766 / (Константы!Q3/ 10) + 0.15- 0.5213 / (Qmin!Q3 / 10) - 0.0659 -> 0.5817600311 | R3: =(0.387231 / ((Константы!R3 / 10) ^ (8 / 3)) + 0.0029) * ((Qmin!R3*ВГФ!R3/24) ^ (2 / 3)) + 4.9766 / (Константы!R3/ 10) + 0.15- 0.5213 / (Qmin!R3 / 10) - 0.0659 -> 0.5508456588 | S3: =(0.387231 / ((Константы!S3 / 10) ^ (8 / 3)) + 0.0029) * ((Qmin!S3*ВГФ!S3/24) ^ (2 / 3)) + 4.9766 / (Константы!S3/ 10) + 0.15- 0.5213 / (Qmin!S3 / 10) - 0.0659 -> 0.55080872 | T3: =(0.387231 / ((Константы!T3 / 10) ^ (8 / 3)) + 0.0029) * ((Qmin!T3*ВГФ!T3/24) ^ (2 / 3)) + 4.9766 / (Константы!T3/ 10) + 0.15- 0.5213 / (Qmin!T3 / 10) - 0.0659 -> 0.5507735161 | U3: =(0.387231 / ((Константы!U3 / 10) ^ (8 / 3)) + 0.0029) * ((Qmin!U3*ВГФ!U3/24) ^ (2 / 3)) + 4.9766 / (Константы!U3/ 10) + 0.15- 0.5213 / (Qmin!U3 / 10) - 0.0659 -> 0.5507360838 | V3: =(0.387231 / ((Константы!V3 / 10) ^ (8 / 3)) + 0.0029) * ((Qmin!V3*ВГФ!V3/24) ^ (2 / 3)) + 4.9766 / (Константы!V3/ 10) + 0.15- 0.5213 / (Qmin!V3 / 10) - 0.0659 -> 0.5506582212 | W3: =(0.387231 / ((Константы!W3 / 10) ^ (8 / 3)) + 0.0029) * ((Qmin!W3*ВГФ!W3/24) ^ (2 / 3)) + 4.9766 / (Константы!W3/ 10) + 0.15- 0.5213 / (Qmin!W3 / 10) - 0.0659 -> 0.5505748876 | X3: =(0.387231 / ((Константы!X3 / 10) ^ (8 / 3)) + 0.0029) * ((Qmin!X3*ВГФ!X3/24) ^ (2 / 3)) + 4.9766 / (Константы!X3/ 10) + 0.15- 0.5213 / (Qmin!X3 / 10) - 0.0659 -> 0.5503069883 | Y3: =(0.387231 / ((Константы!Y3 / 10) ^ (8 / 3)) + 0.0029) * ((Qmin!Y3*ВГФ!Y3/24) ^ (2 / 3)) + 4.9766 / (Константы!Y3/ 10) + 0.15- 0.5213 / (Qmin!Y3 / 10) - 0.0659 -> 0.5500596481 | Z3: =(0.387231 / ((Константы!Z3 / 10) ^ (8 / 3)) + 0.0029) * ((Qmin!Z3*ВГФ!Z3/24) ^ (2 / 3)) + 4.9766 / (Константы!Z3/ 10) + 0.15- 0.5213 / (Qmin!Z3 / 10) - 0.0659 -> 0.5498472237 | AA3: =(0.387231 / ((Константы!AA3 / 10) ^ (8 / 3)) + 0.0029) * ((Qmin!AA3*ВГФ!AA3/24) ^ (2 / 3)) + 4.9766 / (Константы!AA3/ 10) + 0.15- 0.5213 / (Qmin!AA3 / 10) - 0.0659 -> 0.54968431 | AB3: =(0.387231 / ((Константы!AB3 / 10) ^ (8 / 3)) + 0.0029) * ((Qmin!AB3*ВГФ!AB3/24) ^ (2 / 3)) + 4.9766 / (Константы!AB3/ 10) + 0.15- 0.5213 / (Qmin!AB3 / 10) - 0.0659 -> 0.5495317438 | AC3: =(0.387231 / ((Константы!AC3 / 10) ^ (8 / 3)) + 0.0029) * ((Qmin!AC3*ВГФ!AC3/24) ^ (2 / 3)) + 4.9766 / (Константы!AC3/ 10) + 0.15- 0.5213 / (Qmin!AC3 / 10) - 0.0659 -> 0.549384979 | AD3: =(0.387231 / ((Константы!AD3 / 10) ^ (8 / 3)) + 0.0029) * ((Qmin!AD3*ВГФ!AD3/24) ^ (2 / 3)) + 4.9766 / (Константы!AD3/ 10) + 0.15- 0.5213 / (Qmin!AD3 / 10) - 0.0659 -> 0.5492580403 | AE3: =(0.387231 / ((Константы!AE3 / 10) ^ (8 / 3)) + 0.0029) * ((Qmin!AE3*ВГФ!AE3/24) ^ (2 / 3)) + 4.9766 / (Константы!AE3/ 10) + 0.15- 0.5213 / (Qmin!AE3 / 10) - 0.0659 -> 0.5491816168 | AF3: =(0.387231 / ((Константы!AF3 / 10) ^ (8 / 3)) + 0.0029) * ((Qmin!AF3*ВГФ!AF3/24) ^ (2 / 3)) + 4.9766 / (Константы!AF3/ 10) + 0.15- 0.5213 / (Qmin!AF3 / 10) - 0.0659 -> 0.5491540867 | AG3: =(0.387231 / ((Константы!AG3 / 10) ^ (8 / 3)) + 0.0029) * ((Qmin!AG3*ВГФ!AG3/24) ^ (2 / 3)) + 4.9766 / (Константы!AG3/ 10) + 0.15- 0.5213 / (Qmin!AG3 / 10) - 0.0659 -> 0.549095854 | AH3: =(0.387231 / ((Константы!AH3 / 10) ^ (8 / 3)) + 0.0029) * ((Qmin!AH3*ВГФ!AH3/24) ^ (2 / 3)) + 4.9766 / (Константы!AH3/ 10) + 0.15- 0.5213 / (Qmin!AH3 / 10) - 0.0659 -> 0.5490520465 | AI3: =(0.387231 / ((Константы!AI3 / 10) ^ (8 / 3)) + 0.0029) * ((Qmin!AI3*ВГФ!AI3/24) ^ (2 / 3)) + 4.9766 / (Константы!AI3/ 10) + 0.15- 0.5213 / (Qmin!AI3 / 10) - 0.0659 -> 0.5490111329 | AJ3: =(0.387231 / ((Константы!AJ3 / 10) ^ (8 / 3)) + 0.0029) * ((Qmin!AJ3*ВГФ!AJ3/24) ^ (2 / 3)) + 4.9766 / (Константы!AJ3/ 10) + 0.15- 0.5213 / (Qmin!AJ3 / 10) - 0.0659 -> 0.5489990127 | AK3: =(0.387231 / ((Константы!AK3 / 10) ^ (8 / 3)) + 0.0029) * ((Qmin!AK3*ВГФ!AK3/24) ^ (2 / 3)) + 4.9766 / (Константы!AK3/ 10) + 0.15- 0.5213 / (Qmin!AK3 / 10) - 0.0659 -> 0.5489719749 | AL3: =(0.387231 / ((Константы!AL3 / 10) ^ (8 / 3)) + 0.0029) * ((Qmin!AL3*ВГФ!AL3/24) ^ (2 / 3)) + 4.9766 / (Константы!AL3/ 10) + 0.15- 0.5213 / (Qmin!AL3 / 10) - 0.0659 -> 0.548963906 | AM3: =(0.387231 / ((Константы!AM3 / 10) ^ (8 / 3)) + 0.0029) * ((Qmin!AM3*ВГФ!AM3/24) ^ (2 / 3)) + 4.9766 / (Константы!AM3/ 10) + 0.15- 0.5213 / (Qmin!AM3 / 10) - 0.0659 -> 0.5489207286
A4: =A3+1 -> 101 | B4: Фруд1 | C4: =(0.387231 / ((Константы!C4 / 10) ^ (8 / 3)) + 0.0029) * ((Qmin!C4*ВГФ!C4/24) ^ (2 / 3)) + 4.9766 / (Константы!C4/ 10) + 0.15- 0.5213 / (Qmin!C4 / 10) - 0.0659 -> 0.6276450256 | D4: =(0.387231 / ((Константы!D4 / 10) ^ (8 / 3)) + 0.0029) * ((Qmin!D4*ВГФ!D4/24) ^ (2 / 3)) + 4.9766 / (Константы!D4/ 10) + 0.15- 0.5213 / (Qmin!D4 / 10) - 0.0659 -> 0.6270275081 | E4: =(0.387231 / ((Константы!E4 / 10) ^ (8 / 3)) + 0.0029) * ((Qmin!E4*ВГФ!E4/24) ^ (2 / 3)) + 4.9766 / (Константы!E4/ 10) + 0.15- 0.5213 / (Qmin!E4 / 10) - 0.0659 -> 0.6303429961 | F4: =(0.387231 / ((Константы!F4 / 10) ^ (8 / 3)) + 0.0029) * ((Qmin!F4*ВГФ!F4/24) ^ (2 / 3)) + 4.9766 / (Константы!F4/ 10) + 0.15- 0.5213 / (Qmin!F4 / 10) - 0.0659 -> 0.6308145245 | G4: =(0.387231 / ((Константы!G4 / 10) ^ (8 / 3)) + 0.0029) * ((Qmin!G4*ВГФ!G4/24) ^ (2 / 3)) + 4.9766 / (Константы!G4/ 10) + 0.15- 0.5213 / (Qmin!G4 / 10) - 0.0659 -> 0.6319144747 | H4: =(0.387231 / ((Константы!H4 / 10) ^ (8 / 3)) + 0.0029) * ((Qmin!H4*ВГФ!H4/24) ^ (2 / 3)) + 4.9766 / (Константы!H4/ 10) + 0.15- 0.5213 / (Qmin!H4 / 10) - 0.0659 -> 0.6298039909 | I4: =(0.387231 / ((Константы!I4 / 10) ^ (8 / 3)) + 0.0029) * ((Qmin!I4*ВГФ!I4/24) ^ (2 / 3)) + 4.9766 / (Константы!I4/ 10) + 0.15- 0.5213 / (Qmin!I4 / 10) - 0.0659 -> 0.63114588 | J4: =(0.387231 / ((Константы!J4 / 10) ^ (8 / 3)) + 0.0029) * ((Qmin!J4*ВГФ!J4/24) ^ (2 / 3)) + 4.9766 / (Константы!J4/ 10) + 0.15- 0.5213 / (Qmin!J4 / 10) - 0.0659 -> 0.6310000363 | K4: =(0.387231 / ((Константы!K4 / 10) ^ (8 / 3)) + 0.0029) * ((Qmin!K4*ВГФ!K4/24) ^ (2 / 3)) + 4.9766 / (Константы!K4/ 10) + 0.15- 0.5213 / (Qmin!K4 / 10) - 0.0659 -> 0.6328261188 | L4: =(0.387231 / ((Константы!L4 / 10) ^ (8 / 3)) + 0.0029) * ((Qmin!L4*ВГФ!L4/24) ^ (2 / 3)) + 4.9766 / (Константы!L4/ 10) + 0.15- 0.5213 / (Qmin!L4 / 10) - 0.0659 -> 0.6331877569 | M4: =(0.387231 / ((Константы!M4 / 10) ^ (8 / 3)) + 0.0029) * ((Qmin!M4*ВГФ!M4/24) ^ (2 / 3)) + 4.9766 / (Константы!M4/ 10) + 0.15- 0.5213 / (Qmin!M4 / 10) - 0.0659 -> 0.6340282317 | N4: =(0.387231 / ((Константы!N4 / 10) ^ (8 / 3)) + 0.0029) * ((Qmin!N4*ВГФ!N4/24) ^ (2 / 3)) + 4.9766 / (Константы!N4/ 10) + 0.15- 0.5213 / (Qmin!N4 / 10) - 0.0659 -> 0.6352581492 | O4: =(0.387231 / ((Константы!O4 / 10) ^ (8 / 3)) + 0.0029) * ((Qmin!O4*ВГФ!O4/24) ^ (2 / 3)) + 4.9766 / (Константы!O4/ 10) + 0.15- 0.5213 / (Qmin!O4 / 10) - 0.0659 -> 0.6366340904 | P4: =(0.387231 / ((Константы!P4 / 10) ^ (8 / 3)) + 0.0029) * ((Qmin!P4*ВГФ!P4/24) ^ (2 / 3)) + 4.9766 / (Константы!P4/ 10) + 0.15- 0.5213 / (Qmin!P4 / 10) - 0.0659 -> 0.6378802385 | Q4: =(0.387231 / ((Константы!Q4 / 10) ^ (8 / 3)) + 0.0029) * ((Qmin!Q4*ВГФ!Q4/24) ^ (2 / 3)) + 4.9766 / (Константы!Q4/ 10) + 0.15- 0.5213 / (Qmin!Q4 / 10) - 0.0659 -> 0.6397328115 | R4: =(0.387231 / ((Константы!R4 / 10) ^ (8 / 3)) + 0.0029) * ((Qmin!R4*ВГФ!R4/24) ^ (2 / 3)) + 4.9766 / (Константы!R4/ 10) + 0.15- 0.5213 / (Qmin!R4 / 10) - 0.0659 -> 0.6415798988 | S4: =(0.387231 / ((Константы!S4 / 10) ^ (8 / 3)) + 0.0029) * ((Qmin!S4*ВГФ!S4/24) ^ (2 / 3)) + 4.9766 / (Константы!S4/ 10) + 0.15- 0.5213 / (Qmin!S4 / 10) - 0.0659 -> 0.6433006757 | T4: =(0.387231 / ((Константы!T4 / 10) ^ (8 / 3)) + 0.0029) * ((Qmin!T4*ВГФ!T4/24) ^ (2 / 3)) + 4.9766 / (Константы!T4/ 10) + 0.15- 0.5213 / (Qmin!T4 / 10) - 0.0659 -> 0.6454886826 | U4: =(0.387231 / ((Константы!U4 / 10) ^ (8 / 3)) + 0.0029) * ((Qmin!U4*ВГФ!U4/24) ^ (2 / 3)) + 4.9766 / (Константы!U4/ 10) + 0.15- 0.5213 / (Qmin!U4 / 10) - 0.0659 -> 0.6488163969 | V4: =(0.387231 / ((Константы!V4 / 10) ^ (8 / 3)) + 0.0029) * ((Qmin!V4*ВГФ!V4/24) ^ (2 / 3)) + 4.9766 / (Константы!V4/ 10) + 0.15- 0.5213 / (Qmin!V4 / 10) - 0.0659 -> 0.6513220089 | W4: =(0.387231 / ((Константы!W4 / 10) ^ (8 / 3)) + 0.0029) * ((Qmin!W4*ВГФ!W4/24) ^ (2 / 3)) + 4.9766 / (Константы!W4/ 10) + 0.15- 0.5213 / (Qmin!W4 / 10) - 0.0659 -> 0.6586797997 | X4: =(0.387231 / ((Константы!X4 / 10) ^ (8 / 3)) + 0.0029) * ((Qmin!X4*ВГФ!X4/24) ^ (2 / 3)) + 4.9766 / (Константы!X4/ 10) + 0.15- 0.5213 / (Qmin!X4 / 10) - 0.0659 -> 0.6641245274 | Y4: =(0.387231 / ((Константы!Y4 / 10) ^ (8 / 3)) + 0.0029) * ((Qmin!Y4*ВГФ!Y4/24) ^ (2 / 3)) + 4.9766 / (Константы!Y4/ 10) + 0.15- 0.5213 / (Qmin!Y4 / 10) - 0.0659 -> 0.6726925901 | Z4: =(0.387231 / ((Константы!Z4 / 10) ^ (8 / 3)) + 0.0029) * ((Qmin!Z4*ВГФ!Z4/24) ^ (2 / 3)) + 4.9766 / (Константы!Z4/ 10) + 0.15- 0.5213 / (Qmin!Z4 / 10) - 0.0659 -> 0.6901689688 | AA4: =(0.387231 / ((Константы!AA4 / 10) ^ (8 / 3)) + 0.0029) * ((Qmin!AA4*ВГФ!AA4/24) ^ (2 / 3)) + 4.9766 / (Константы!AA4/ 10) + 0.15- 0.5213 / (Qmin!AA4 / 10) - 0.0659 -> 0.6926401181 | AB4: =(0.387231 / ((Константы!AB4 / 10) ^ (8 / 3)) + 0.0029) * ((Qmin!AB4*ВГФ!AB4/24) ^ (2 / 3)) + 4.9766 / (Константы!AB4/ 10) + 0.15- 0.5213 / (Qmin!AB4 / 10) - 0.0659 -> 0.7050178175 | AC4: =(0.387231 / ((Константы!AC4 / 10) ^ (8 / 3)) + 0.0029) * ((Qmin!AC4*ВГФ!AC4/24) ^ (2 / 3)) + 4.9766 / (Константы!AC4/ 10) + 0.15- 0.5213 / (Qmin!AC4 / 10) - 0.0659 -> 0.7188772021 | AD4: =(0.387231 / ((Константы!AD4 / 10) ^ (8 / 3)) + 0.0029) * ((Qmin!AD4*ВГФ!AD4/24) ^ (2 / 3)) + 4.9766 / (Константы!AD4/ 10) + 0.15- 0.5213 / (Qmin!AD4 / 10) - 0.0659 -> 0.7328080689 | AE4: =(0.387231 / ((Константы!AE4 / 10) ^ (8 / 3)) + 0.0029) * ((Qmin!AE4*ВГФ!AE4/24) ^ (2 / 3)) + 4.9766 / (Константы!AE4/ 10) + 0.15- 0.5213 / (Qmin!AE4 / 10) - 0.0659 -> 0.7555665537 | AF4: =(0.387231 / ((Константы!AF4 / 10) ^ (8 / 3)) + 0.0029) * ((Qmin!AF4*ВГФ!AF4/24) ^ (2 / 3)) + 4.9766 / (Константы!AF4/ 10) + 0.15- 0.5213 / (Qmin!AF4 / 10) - 0.0659 -> 0.9123384245 | AG4: =(0.387231 / ((Константы!AG4 / 10) ^ (8 / 3)) + 0.0029) * ((Qmin!AG4*ВГФ!AG4/24) ^ (2 / 3)) + 4.9766 / (Константы!AG4/ 10) + 0.15- 0.5213 / (Qmin!AG4 / 10) - 0.0659 -> 0.9236591133 | AH4: =(0.387231 / ((Константы!AH4 / 10) ^ (8 / 3)) + 0.0029) * ((Qmin!AH4*ВГФ!AH4/24) ^ (2 / 3)) + 4.9766 / (Константы!AH4/ 10) + 0.15- 0.5213 / (Qmin!AH4 / 10) - 0.0659 -> 0.9200081082 | AI4: =(0.387231 / ((Константы!AI4 / 10) ^ (8 / 3)) + 0.0029) * ((Qmin!AI4*ВГФ!AI4/24) ^ (2 / 3)) + 4.9766 / (Константы!AI4/ 10) + 0.15- 0.5213 / (Qmin!AI4 / 10) - 0.0659 -> 0.9386669971 | AJ4: =(0.387231 / ((Константы!AJ4 / 10) ^ (8 / 3)) + 0.0029) * ((Qmin!AJ4*ВГФ!AJ4/24) ^ (2 / 3)) + 4.9766 / (Константы!AJ4/ 10) + 0.15- 0.5213 / (Qmin!AJ4 / 10) - 0.0659 -> 0.9509993466 | AK4: =(0.387231 / ((Константы!AK4 / 10) ^ (8 / 3)) + 0.0029) * ((Qmin!AK4*ВГФ!AK4/24) ^ (2 / 3)) + 4.9766 / (Константы!AK4/ 10) + 0.15- 0.5213 / (Qmin!AK4 / 10) - 0.0659 -> 0.964391993 | AL4: =(0.387231 / ((Константы!AL4 / 10) ^ (8 / 3)) + 0.0029) * ((Qmin!AL4*ВГФ!AL4/24) ^ (2 / 3)) + 4.9766 / (Константы!AL4/ 10) + 0.15- 0.5213 / (Qmin!AL4 / 10) - 0.0659 -> 0.9689789301 | AM4: =(0.387231 / ((Константы!AM4 / 10) ^ (8 / 3)) + 0.0029) * ((Qmin!AM4*ВГФ!AM4/24) ^ (2 / 3)) + 4.9766 / (Константы!AM4/ 10) + 0.15- 0.5213 / (Qmin!AM4 / 10) - 0.0659 -> 0.9788247203
A5: =A4+1 -> 102 | B5: Фруд1 | C5: =(0.387231 / ((Константы!C5 / 10) ^ (8 / 3)) + 0.0029) * ((Qmin!C5*ВГФ!C5/24) ^ (2 / 3)) + 4.9766 / (Константы!C5/ 10) + 0.15- 0.5213 / (Qmin!C5 / 10) - 0.0659 -> 0.6107002092 | D5: =(0.387231 / ((Константы!D5 / 10) ^ (8 / 3)) + 0.0029) * ((Qmin!D5*ВГФ!D5/24) ^ (2 / 3)) + 4.9766 / (Константы!D5/ 10) + 0.15- 0.5213 / (Qmin!D5 / 10) - 0.0659 -> 0.6113505364 | E5: =(0.387231 / ((Константы!E5 / 10) ^ (8 / 3)) + 0.0029) * ((Qmin!E5*ВГФ!E5/24) ^ (2 / 3)) + 4.9766 / (Константы!E5/ 10) + 0.15- 0.5213 / (Qmin!E5 / 10) - 0.0659 -> 0.6116650813 | F5: =(0.387231 / ((Константы!F5 / 10) ^ (8 / 3)) + 0.0029) * ((Qmin!F5*ВГФ!F5/24) ^ (2 / 3)) + 4.9766 / (Константы!F5/ 10) + 0.15- 0.5213 / (Qmin!F5 / 10) - 0.0659 -> 0.6120026438 | G5: =(0.387231 / ((Константы!G5 / 10) ^ (8 / 3)) + 0.0029) * ((Qmin!G5*ВГФ!G5/24) ^ (2 / 3)) + 4.9766 / (Константы!G5/ 10) + 0.15- 0.5213 / (Qmin!G5 / 10) - 0.0659 -> 0.6151848483 | H5: =(0.387231 / ((Константы!H5 / 10) ^ (8 / 3)) + 0.0029) * ((Qmin!H5*ВГФ!H5/24) ^ (2 / 3)) + 4.9766 / (Константы!H5/ 10) + 0.15- 0.5213 / (Qmin!H5 / 10) - 0.0659 -> 0.6110504859 | I5: =(0.387231 / ((Константы!I5 / 10) ^ (8 / 3)) + 0.0029) * ((Qmin!I5*ВГФ!I5/24) ^ (2 / 3)) + 4.9766 / (Константы!I5/ 10) + 0.15- 0.5213 / (Qmin!I5 / 10) - 0.0659 -> 0.6113931703 | J5: =(0.387231 / ((Константы!J5 / 10) ^ (8 / 3)) + 0.0029) * ((Qmin!J5*ВГФ!J5/24) ^ (2 / 3)) + 4.9766 / (Константы!J5/ 10) + 0.15- 0.5213 / (Qmin!J5 / 10) - 0.0659 -> 0.6090907576 | K5: =(0.387231 / ((Константы!K5 / 10) ^ (8 / 3)) + 0.0029) * ((Qmin!K5*ВГФ!K5/24) ^ (2 / 3)) + 4.9766 / (Константы!K5/ 10) + 0.15- 0.5213 / (Qmin!K5 / 10) - 0.0659 -> 0.6121896674 | L5: =(0.387231 / ((Константы!L5 / 10) ^ (8 / 3)) + 0.0029) * ((Qmin!L5*ВГФ!L5/24) ^ (2 / 3)) + 4.9766 / (Константы!L5/ 10) + 0.15- 0.5213 / (Qmin!L5 / 10) - 0.0659 -> 0.6120617711 | M5: =(0.387231 / ((Константы!M5 / 10) ^ (8 / 3)) + 0.0029) * ((Qmin!M5*ВГФ!M5/24) ^ (2 / 3)) + 4.9766 / (Константы!M5/ 10) + 0.15- 0.5213 / (Qmin!M5 / 10) - 0.0659 -> 0.6125405905 | N5: =(0.387231 / ((Константы!N5 / 10) ^ (8 / 3)) + 0.0029) * ((Qmin!N5*ВГФ!N5/24) ^ (2 / 3)) + 4.9766 / (Константы!N5/ 10) + 0.15- 0.5213 / (Qmin!N5 / 10) - 0.0659 -> 0.6130004427 | O5: =(0.387231 / ((Константы!O5 / 10) ^ (8 / 3)) + 0.0029) * ((Qmin!O5*ВГФ!O5/24) ^ (2 / 3)) + 4.9766 / (Константы!O5/ 10) + 0.15- 0.5213 / (Qmin!O5 / 10) - 0.0659 -> 0.6141680459 | P5: =(0.387231 / ((Константы!P5 / 10) ^ (8 / 3)) + 0.0029) * ((Qmin!P5*ВГФ!P5/24) ^ (2 / 3)) + 4.9766 / (Константы!P5/ 10) + 0.15- 0.5213 / (Qmin!P5 / 10) - 0.0659 -> 0.6206144169 | Q5: =(0.387231 / ((Константы!Q5 / 10) ^ (8 / 3)) + 0.0029) * ((Qmin!Q5*ВГФ!Q5/24) ^ (2 / 3)) + 4.9766 / (Константы!Q5/ 10) + 0.15- 0.5213 / (Qmin!Q5 / 10) - 0.0659 -> 0.5524146067 | R5: =(0.387231 / ((Константы!R5 / 10) ^ (8 / 3)) + 0.0029) * ((Qmin!R5*ВГФ!R5/24) ^ (2 / 3)) + 4.9766 / (Константы!R5/ 10) + 0.15- 0.5213 / (Qmin!R5 / 10) - 0.0659 -> 0.5525817143 | S5: =(0.387231 / ((Константы!S5 / 10) ^ (8 / 3)) + 0.0029) * ((Qmin!S5*ВГФ!S5/24) ^ (2 / 3)) + 4.9766 / (Константы!S5/ 10) + 0.15- 0.5213 / (Qmin!S5 / 10) - 0.0659 -> 0.5525906415 | T5: =(0.387231 / ((Константы!T5 / 10) ^ (8 / 3)) + 0.0029) * ((Qmin!T5*ВГФ!T5/24) ^ (2 / 3)) + 4.9766 / (Константы!T5/ 10) + 0.15- 0.5213 / (Qmin!T5 / 10) - 0.0659 -> 0.5525866301 | U5: =(0.387231 / ((Константы!U5 / 10) ^ (8 / 3)) + 0.0029) * ((Qmin!U5*ВГФ!U5/24) ^ (2 / 3)) + 4.9766 / (Константы!U5/ 10) + 0.15- 0.5213 / (Qmin!U5 / 10) - 0.0659 -> 0.552568059 | V5: =(0.387231 / ((Константы!V5 / 10) ^ (8 / 3)) + 0.0029) * ((Qmin!V5*ВГФ!V5/24) ^ (2 / 3)) + 4.9766 / (Константы!V5/ 10) + 0.15- 0.5213 / (Qmin!V5 / 10) - 0.0659 -> 0.5525374255 | W5: =(0.387231 / ((Константы!W5 / 10) ^ (8 / 3)) + 0.0029) * ((Qmin!W5*ВГФ!W5/24) ^ (2 / 3)) + 4.9766 / (Константы!W5/ 10) + 0.15- 0.5213 / (Qmin!W5 / 10) - 0.0659 -> 0.5524973452 | X5: =(0.387231 / ((Константы!X5 / 10) ^ (8 / 3)) + 0.0029) * ((Qmin!X5*ВГФ!X5/24) ^ (2 / 3)) + 4.9766 / (Константы!X5/ 10) + 0.15- 0.5213 / (Qmin!X5 / 10) - 0.0659 -> 0.5524208517 | Y5: =(0.387231 / ((Константы!Y5 / 10) ^ (8 / 3)) + 0.0029) * ((Qmin!Y5*ВГФ!Y5/24) ^ (2 / 3)) + 4.9766 / (Константы!Y5/ 10) + 0.15- 0.5213 / (Qmin!Y5 / 10) - 0.0659 -> 0.5523289574 | Z5: =(0.387231 / ((Константы!Z5 / 10) ^ (8 / 3)) + 0.0029) * ((Qmin!Z5*ВГФ!Z5/24) ^ (2 / 3)) + 4.9766 / (Константы!Z5/ 10) + 0.15- 0.5213 / (Qmin!Z5 / 10) - 0.0659 -> 0.5522302776 | AA5: =(0.387231 / ((Константы!AA5 / 10) ^ (8 / 3)) + 0.0029) * ((Qmin!AA5*ВГФ!AA5/24) ^ (2 / 3)) + 4.9766 / (Константы!AA5/ 10) + 0.15- 0.5213 / (Qmin!AA5 / 10) - 0.0659 -> 0.5521308191 | AB5: =(0.387231 / ((Константы!AB5 / 10) ^ (8 / 3)) + 0.0029) * ((Qmin!AB5*ВГФ!AB5/24) ^ (2 / 3)) + 4.9766 / (Константы!AB5/ 10) + 0.15- 0.5213 / (Qmin!AB5 / 10) - 0.0659 -> 0.5520332411 | AC5: =(0.387231 / ((Константы!AC5 / 10) ^ (8 / 3)) + 0.0029) * ((Qmin!AC5*ВГФ!AC5/24) ^ (2 / 3)) + 4.9766 / (Константы!AC5/ 10) + 0.15- 0.5213 / (Qmin!AC5 / 10) - 0.0659 -> 0.5519466238 | AD5: =(0.387231 / ((Константы!AD5 / 10) ^ (8 / 3)) + 0.0029) * ((Qmin!AD5*ВГФ!AD5/24) ^ (2 / 3)) + 4.9766 / (Константы!AD5/ 10) + 0.15- 0.5213 / (Qmin!AD5 / 10) - 0.0659 -> 0.5519170986 | AE5: =(0.387231 / ((Константы!AE5 / 10) ^ (8 / 3)) + 0.0029) * ((Qmin!AE5*ВГФ!AE5/24) ^ (2 / 3)) + 4.9766 / (Константы!AE5/ 10) + 0.15- 0.5213 / (Qmin!AE5 / 10) - 0.0659 -> 0.5517959333 | AF5: =(0.387231 / ((Константы!AF5 / 10) ^ (8 / 3)) + 0.0029) * ((Qmin!AF5*ВГФ!AF5/24) ^ (2 / 3)) + 4.9766 / (Константы!AF5/ 10) + 0.15- 0.5213 / (Qmin!AF5 / 10) - 0.0659 -> 0.5517221462 | AG5: =(0.387231 / ((Константы!AG5 / 10) ^ (8 / 3)) + 0.0029) * ((Qmin!AG5*ВГФ!AG5/24) ^ (2 / 3)) + 4.9766 / (Константы!AG5/ 10) + 0.15- 0.5213 / (Qmin!AG5 / 10) - 0.0659 -> 0.5516653689 | AH5: =(0.387231 / ((Константы!AH5 / 10) ^ (8 / 3)) + 0.0029) * ((Qmin!AH5*ВГФ!AH5/24) ^ (2 / 3)) + 4.9766 / (Константы!AH5/ 10) + 0.15- 0.5213 / (Qmin!AH5 / 10) - 0.0659 -> 0.5516017973 | AI5: =(0.387231 / ((Константы!AI5 / 10) ^ (8 / 3)) + 0.0029) * ((Qmin!AI5*ВГФ!AI5/24) ^ (2 / 3)) + 4.9766 / (Константы!AI5/ 10) + 0.15- 0.5213 / (Qmin!AI5 / 10) - 0.0659 -> 0.5515709929 | AJ5: =(0.387231 / ((Константы!AJ5 / 10) ^ (8 / 3)) + 0.0029) * ((Qmin!AJ5*ВГФ!AJ5/24) ^ (2 / 3)) + 4.9766 / (Константы!AJ5/ 10) + 0.15- 0.5213 / (Qmin!AJ5 / 10) - 0.0659 -> 0.551502131 | AK5: =(0.387231 / ((Константы!AK5 / 10) ^ (8 / 3)) + 0.0029) * ((Qmin!AK5*ВГФ!AK5/24) ^ (2 / 3)) + 4.9766 / (Константы!AK5/ 10) + 0.15- 0.5213 / (Qmin!AK5 / 10) - 0.0659 -> 0.5513852133 | AL5: =(0.387231 / ((Константы!AL5 / 10) ^ (8 / 3)) + 0.0029) * ((Qmin!AL5*ВГФ!AL5/24) ^ (2 / 3)) + 4.9766 / (Константы!AL5/ 10) + 0.15- 0.5213 / (Qmin!AL5 / 10) - 0.0659 -> 0.5513900161 | AM5: =(0.387231 / ((Константы!AM5 / 10) ^ (8 / 3)) + 0.0029) * ((Qmin!AM5*ВГФ!AM5/24) ^ (2 / 3)) + 4.9766 / (Константы!AM5/ 10) + 0.15- 0.5213 / (Qmin!AM5 / 10) - 0.0659 -> 0.5513628963
A6: 103 | B6: Фруд1 | C6: =(0.387231 / ((Константы!C6 / 10) ^ (8 / 3)) + 0.0029) * ((Qmin!C6*ВГФ!C6/24) ^ (2 / 3)) + 4.9766 / (Константы!C6/ 10) + 0.15- 0.5213 / (Qmin!C6 / 10) - 0.0659 -> 0.7922265576 | D6: =(0.387231 / ((Константы!D6 / 10) ^ (8 / 3)) + 0.0029) * ((Qmin!D6*ВГФ!D6/24) ^ (2 / 3)) + 4.9766 / (Константы!D6/ 10) + 0.15- 0.5213 / (Qmin!D6 / 10) - 0.0659 -> 0.7967001386 | E6: =(0.387231 / ((Константы!E6 / 10) ^ (8 / 3)) + 0.0029) * ((Qmin!E6*ВГФ!E6/24) ^ (2 / 3)) + 4.9766 / (Константы!E6/ 10) + 0.15- 0.5213 / (Qmin!E6 / 10) - 0.0659 -> 0.7671386968 | F6: =(0.387231 / ((Константы!F6 / 10) ^ (8 / 3)) + 0.0029) * ((Qmin!F6*ВГФ!F6/24) ^ (2 / 3)) + 4.9766 / (Константы!F6/ 10) + 0.15- 0.5213 / (Qmin!F6 / 10) - 0.0659 -> 0.5515067536 | G6: =(0.387231 / ((Константы!G6 / 10) ^ (8 / 3)) + 0.0029) * ((Qmin!G6*ВГФ!G6/24) ^ (2 / 3)) + 4.9766 / (Константы!G6/ 10) + 0.15- 0.5213 / (Qmin!G6 / 10) - 0.0659 -> 0.5532332622 | H6: =(0.387231 / ((Константы!H6 / 10) ^ (8 / 3)) + 0.0029) * ((Qmin!H6*ВГФ!H6/24) ^ (2 / 3)) + 4.9766 / (Константы!H6/ 10) + 0.15- 0.5213 / (Qmin!H6 / 10) - 0.0659 -> 0.5533491646 | I6: =(0.387231 / ((Константы!I6 / 10) ^ (8 / 3)) + 0.0029) * ((Qmin!I6*ВГФ!I6/24) ^ (2 / 3)) + 4.9766 / (Константы!I6/ 10) + 0.15- 0.5213 / (Qmin!I6 / 10) - 0.0659 -> 0.5533952211 | J6: =(0.387231 / ((Константы!J6 / 10) ^ (8 / 3)) + 0.0029) * ((Qmin!J6*ВГФ!J6/24) ^ (2 / 3)) + 4.9766 / (Константы!J6/ 10) + 0.15- 0.5213 / (Qmin!J6 / 10) - 0.0659 -> 0.5534011879 | K6: =(0.387231 / ((Константы!K6 / 10) ^ (8 / 3)) + 0.0029) * ((Qmin!K6*ВГФ!K6/24) ^ (2 / 3)) + 4.9766 / (Константы!K6/ 10) + 0.15- 0.5213 / (Qmin!K6 / 10) - 0.0659 -> 0.55342262 | L6: =(0.387231 / ((Константы!L6 / 10) ^ (8 / 3)) + 0.0029) * ((Qmin!L6*ВГФ!L6/24) ^ (2 / 3)) + 4.9766 / (Константы!L6/ 10) + 0.15- 0.5213 / (Qmin!L6 / 10) - 0.0659 -> 0.5533922561 | M6: =(0.387231 / ((Константы!M6 / 10) ^ (8 / 3)) + 0.0029) * ((Qmin!M6*ВГФ!M6/24) ^ (2 / 3)) + 4.9766 / (Константы!M6/ 10) + 0.15- 0.5213 / (Qmin!M6 / 10) - 0.0659 -> 0.5533544059 | N6: =(0.387231 / ((Константы!N6 / 10) ^ (8 / 3)) + 0.0029) * ((Qmin!N6*ВГФ!N6/24) ^ (2 / 3)) + 4.9766 / (Константы!N6/ 10) + 0.15- 0.5213 / (Qmin!N6 / 10) - 0.0659 -> 0.5533325131 | O6: =(0.387231 / ((Константы!O6 / 10) ^ (8 / 3)) + 0.0029) * ((Qmin!O6*ВГФ!O6/24) ^ (2 / 3)) + 4.9766 / (Константы!O6/ 10) + 0.15- 0.5213 / (Qmin!O6 / 10) - 0.0659 -> 0.5533138956 | P6: =(0.387231 / ((Константы!P6 / 10) ^ (8 / 3)) + 0.0029) * ((Qmin!P6*ВГФ!P6/24) ^ (2 / 3)) + 4.9766 / (Константы!P6/ 10) + 0.15- 0.5213 / (Qmin!P6 / 10) - 0.0659 -> 0.5532877029 | Q6: =(0.387231 / ((Константы!Q6 / 10) ^ (8 / 3)) + 0.0029) * ((Qmin!Q6*ВГФ!Q6/24) ^ (2 / 3)) + 4.9766 / (Константы!Q6/ 10) + 0.15- 0.5213 / (Qmin!Q6 / 10) - 0.0659 -> 0.5532616298 | R6: =(0.387231 / ((Константы!R6 / 10) ^ (8 / 3)) + 0.0029) * ((Qmin!R6*ВГФ!R6/24) ^ (2 / 3)) + 4.9766 / (Константы!R6/ 10) + 0.15- 0.5213 / (Qmin!R6 / 10) - 0.0659 -> 0.5532379115 | S6: =(0.387231 / ((Константы!S6 / 10) ^ (8 / 3)) + 0.0029) * ((Qmin!S6*ВГФ!S6/24) ^ (2 / 3)) + 4.9766 / (Константы!S6/ 10) + 0.15- 0.5213 / (Qmin!S6 / 10) - 0.0659 -> 0.5532171608 | T6: =(0.387231 / ((Константы!T6 / 10) ^ (8 / 3)) + 0.0029) * ((Qmin!T6*ВГФ!T6/24) ^ (2 / 3)) + 4.9766 / (Константы!T6/ 10) + 0.15- 0.5213 / (Qmin!T6 / 10) - 0.0659 -> 0.5531639229 | U6: =(0.387231 / ((Константы!U6 / 10) ^ (8 / 3)) + 0.0029) * ((Qmin!U6*ВГФ!U6/24) ^ (2 / 3)) + 4.9766 / (Константы!U6/ 10) + 0.15- 0.5213 / (Qmin!U6 / 10) - 0.0659 -> 0.5530285221 | V6: =(0.387231 / ((Константы!V6 / 10) ^ (8 / 3)) + 0.0029) * ((Qmin!V6*ВГФ!V6/24) ^ (2 / 3)) + 4.9766 / (Константы!V6/ 10) + 0.15- 0.5213 / (Qmin!V6 / 10) - 0.0659 -> 0.5527503599 | W6: =(0.387231 / ((Константы!W6 / 10) ^ (8 / 3)) + 0.0029) * ((Qmin!W6*ВГФ!W6/24) ^ (2 / 3)) + 4.9766 / (Константы!W6/ 10) + 0.15- 0.5213 / (Qmin!W6 / 10) - 0.0659 -> 0.5525011398 | X6: =(0.387231 / ((Константы!X6 / 10) ^ (8 / 3)) + 0.0029) * ((Qmin!X6*ВГФ!X6/24) ^ (2 / 3)) + 4.9766 / (Константы!X6/ 10) + 0.15- 0.5213 / (Qmin!X6 / 10) - 0.0659 -> 0.5523024212 | Y6: =(0.387231 / ((Константы!Y6 / 10) ^ (8 / 3)) + 0.0029) * ((Qmin!Y6*ВГФ!Y6/24) ^ (2 / 3)) + 4.9766 / (Константы!Y6/ 10) + 0.15- 0.5213 / (Qmin!Y6 / 10) - 0.0659 -> 0.5521349613 | Z6: =(0.387231 / ((Константы!Z6 / 10) ^ (8 / 3)) + 0.0029) * ((Qmin!Z6*ВГФ!Z6/24) ^ (2 / 3)) + 4.9766 / (Константы!Z6/ 10) + 0.15- 0.5213 / (Qmin!Z6 / 10) - 0.0659 -> 0.55199097 | AA6: =(0.387231 / ((Константы!AA6 / 10) ^ (8 / 3)) + 0.0029) * ((Qmin!AA6*ВГФ!AA6/24) ^ (2 / 3)) + 4.9766 / (Константы!AA6/ 10) + 0.15- 0.5213 / (Qmin!AA6 / 10) - 0.0659 -> 0.5518679763 | AB6: =(0.387231 / ((Константы!AB6 / 10) ^ (8 / 3)) + 0.0029) * ((Qmin!AB6*ВГФ!AB6/24) ^ (2 / 3)) + 4.9766 / (Константы!AB6/ 10) + 0.15- 0.5213 / (Qmin!AB6 / 10) - 0.0659 -> 0.5517621051 | AC6: =(0.387231 / ((Константы!AC6 / 10) ^ (8 / 3)) + 0.0029) * ((Qmin!AC6*ВГФ!AC6/24) ^ (2 / 3)) + 4.9766 / (Константы!AC6/ 10) + 0.15- 0.5213 / (Qmin!AC6 / 10) - 0.0659 -> 0.5516583201 | AD6: =(0.387231 / ((Константы!AD6 / 10) ^ (8 / 3)) + 0.0029) * ((Qmin!AD6*ВГФ!AD6/24) ^ (2 / 3)) + 4.9766 / (Константы!AD6/ 10) + 0.15- 0.5213 / (Qmin!AD6 / 10) - 0.0659 -> 0.5515548319 | AE6: =(0.387231 / ((Константы!AE6 / 10) ^ (8 / 3)) + 0.0029) * ((Qmin!AE6*ВГФ!AE6/24) ^ (2 / 3)) + 4.9766 / (Константы!AE6/ 10) + 0.15- 0.5213 / (Qmin!AE6 / 10) - 0.0659 -> 0.5514560381 | AF6: =(0.387231 / ((Константы!AF6 / 10) ^ (8 / 3)) + 0.0029) * ((Qmin!AF6*ВГФ!AF6/24) ^ (2 / 3)) + 4.9766 / (Константы!AF6/ 10) + 0.15- 0.5213 / (Qmin!AF6 / 10) - 0.0659 -> 0.5513594135 | AG6: =(0.387231 / ((Константы!AG6 / 10) ^ (8 / 3)) + 0.0029) * ((Qmin!AG6*ВГФ!AG6/24) ^ (2 / 3)) + 4.9766 / (Константы!AG6/ 10) + 0.15- 0.5213 / (Qmin!AG6 / 10) - 0.0659 -> 0.551226302 | AH6: =(0.387231 / ((Константы!AH6 / 10) ^ (8 / 3)) + 0.0029) * ((Qmin!AH6*ВГФ!AH6/24) ^ (2 / 3)) + 4.9766 / (Константы!AH6/ 10) + 0.15- 0.5213 / (Qmin!AH6 / 10) - 0.0659 -> 0.5511412377 | AI6: =(0.387231 / ((Константы!AI6 / 10) ^ (8 / 3)) + 0.0029) * ((Qmin!AI6*ВГФ!AI6/24) ^ (2 / 3)) + 4.9766 / (Константы!AI6/ 10) + 0.15- 0.5213 / (Qmin!AI6 / 10) - 0.0659 -> 0.5510868789 | AJ6: =(0.387231 / ((Константы!AJ6 / 10) ^ (8 / 3)) + 0.0029) * ((Qmin!AJ6*ВГФ!AJ6/24) ^ (2 / 3)) + 4.9766 / (Константы!AJ6/ 10) + 0.15- 0.5213 / (Qmin!AJ6 / 10) - 0.0659 -> 0.551009946 | AK6: =(0.387231 / ((Константы!AK6 / 10) ^ (8 / 3)) + 0.0029) * ((Qmin!AK6*ВГФ!AK6/24) ^ (2 / 3)) + 4.9766 / (Константы!AK6/ 10) + 0.15- 0.5213 / (Qmin!AK6 / 10) - 0.0659 -> 0.5509359679 | AL6: =(0.387231 / ((Константы!AL6 / 10) ^ (8 / 3)) + 0.0029) * ((Qmin!AL6*ВГФ!AL6/24) ^ (2 / 3)) + 4.9766 / (Константы!AL6/ 10) + 0.15- 0.5213 / (Qmin!AL6 / 10) - 0.0659 -> 0.5508749794 | AM6: =(0.387231 / ((Константы!AM6 / 10) ^ (8 / 3)) + 0.0029) * ((Qmin!AM6*ВГФ!AM6/24) ^ (2 / 3)) + 4.9766 / (Константы!AM6/ 10) + 0.15- 0.5213 / (Qmin!AM6 / 10) - 0.0659 -> 0.5507335982
A7: 104 | B7: Фруд1 | C7: =(0.387231 / ((Константы!C7 / 10) ^ (8 / 3)) + 0.0029) * ((Qmin!C7*ВГФ!C7/24) ^ (2 / 3)) + 4.9766 / (Константы!C7/ 10) + 0.15- 0.5213 / (Qmin!C7 / 10) - 0.0659 -> 0.7284897895 | D7: =(0.387231 / ((Константы!D7 / 10) ^ (8 / 3)) + 0.0029) * ((Qmin!D7*ВГФ!D7/24) ^ (2 / 3)) + 4.9766 / (Константы!D7/ 10) + 0.15- 0.5213 / (Qmin!D7 / 10) - 0.0659 -> 0.7284897895 | E7: =(0.387231 / ((Константы!E7 / 10) ^ (8 / 3)) + 0.0029) * ((Qmin!E7*ВГФ!E7/24) ^ (2 / 3)) + 4.9766 / (Константы!E7/ 10) + 0.15- 0.5213 / (Qmin!E7 / 10) - 0.0659 -> 0.7284897895 | F7: =(0.387231 / ((Константы!F7 / 10) ^ (8 / 3)) + 0.0029) * ((Qmin!F7*ВГФ!F7/24) ^ (2 / 3)) + 4.9766 / (Константы!F7/ 10) + 0.15- 0.5213 / (Qmin!F7 / 10) - 0.0659 -> 0.7284897895 | G7: =(0.387231 / ((Константы!G7 / 10) ^ (8 / 3)) + 0.0029) * ((Qmin!G7*ВГФ!G7/24) ^ (2 / 3)) + 4.9766 / (Константы!G7/ 10) + 0.15- 0.5213 / (Qmin!G7 / 10) - 0.0659 -> 0.7284897895 | H7: =(0.387231 / ((Константы!H7 / 10) ^ (8 / 3)) + 0.0029) * ((Qmin!H7*ВГФ!H7/24) ^ (2 / 3)) + 4.9766 / (Константы!H7/ 10) + 0.15- 0.5213 / (Qmin!H7 / 10) - 0.0659 -> 0.7284897895 | I7: =(0.387231 / ((Константы!I7 / 10) ^ (8 / 3)) + 0.0029) * ((Qmin!I7*ВГФ!I7/24) ^ (2 / 3)) + 4.9766 / (Константы!I7/ 10) + 0.15- 0.5213 / (Qmin!I7 / 10) - 0.0659 -> 0.7284897895 | J7: =(0.387231 / ((Константы!J7 / 10) ^ (8 / 3)) + 0.0029) * ((Qmin!J7*ВГФ!J7/24) ^ (2 / 3)) + 4.9766 / (Константы!J7/ 10) + 0.15- 0.5213 / (Qmin!J7 / 10) - 0.0659 -> 0.7284897895 | K7: =(0.387231 / ((Константы!K7 / 10) ^ (8 / 3)) + 0.0029) * ((Qmin!K7*ВГФ!K7/24) ^ (2 / 3)) + 4.9766 / (Константы!K7/ 10) + 0.15- 0.5213 / (Qmin!K7 / 10) - 0.0659 -> 0.7284897895 | L7: =(0.387231 / ((Константы!L7 / 10) ^ (8 / 3)) + 0.0029) * ((Qmin!L7*ВГФ!L7/24) ^ (2 / 3)) + 4.9766 / (Константы!L7/ 10) + 0.15- 0.5213 / (Qmin!L7 / 10) - 0.0659 -> 0.7284897895 | M7: =(0.387231 / ((Константы!M7 / 10) ^ (8 / 3)) + 0.0029) * ((Qmin!M7*ВГФ!M7/24) ^ (2 / 3)) + 4.9766 / (Константы!M7/ 10) + 0.15- 0.5213 / (Qmin!M7 / 10) - 0.0659 -> 0.7284897895 | N7: =(0.387231 / ((Константы!N7 / 10) ^ (8 / 3)) + 0.0029) * ((Qmin!N7*ВГФ!N7/24) ^ (2 / 3)) + 4.9766 / (Константы!N7/ 10) + 0.15- 0.5213 / (Qmin!N7 / 10) - 0.0659 -> 0.7284897895 | O7: =(0.387231 / ((Константы!O7 / 10) ^ (8 / 3)) + 0.0029) * ((Qmin!O7*ВГФ!O7/24) ^ (2 / 3)) + 4.9766 / (Константы!O7/ 10) + 0.15- 0.5213 / (Qmin!O7 / 10) - 0.0659 -> 0.7284897895 | P7: =(0.387231 / ((Константы!P7 / 10) ^ (8 / 3)) + 0.0029) * ((Qmin!P7*ВГФ!P7/24) ^ (2 / 3)) + 4.9766 / (Константы!P7/ 10) + 0.15- 0.5213 / (Qmin!P7 / 10) - 0.0659 -> 0.7284897895 | Q7: =(0.387231 / ((Константы!Q7 / 10) ^ (8 / 3)) + 0.0029) * ((Qmin!Q7*ВГФ!Q7/24) ^ (2 / 3)) + 4.9766 / (Константы!Q7/ 10) + 0.15- 0.5213 / (Qmin!Q7 / 10) - 0.0659 -> 0.7284897895 | R7: =(0.387231 / ((Константы!R7 / 10) ^ (8 / 3)) + 0.0029) * ((Qmin!R7*ВГФ!R7/24) ^ (2 / 3)) + 4.9766 / (Константы!R7/ 10) + 0.15- 0.5213 / (Qmin!R7 / 10) - 0.0659 -> 0.7284897895 | S7: =(0.387231 / ((Константы!S7 / 10) ^ (8 / 3)) + 0.0029) * ((Qmin!S7*ВГФ!S7/24) ^ (2 / 3)) + 4.9766 / (Константы!S7/ 10) + 0.15- 0.5213 / (Qmin!S7 / 10) - 0.0659 -> 0.7284897895 | T7: =(0.387231 / ((Константы!T7 / 10) ^ (8 / 3)) + 0.0029) * ((Qmin!T7*ВГФ!T7/24) ^ (2 / 3)) + 4.9766 / (Константы!T7/ 10) + 0.15- 0.5213 / (Qmin!T7 / 10) - 0.0659 -> 0.7284897895 | U7: =(0.387231 / ((Константы!U7 / 10) ^ (8 / 3)) + 0.0029) * ((Qmin!U7*ВГФ!U7/24) ^ (2 / 3)) + 4.9766 / (Константы!U7/ 10) + 0.15- 0.5213 / (Qmin!U7 / 10) - 0.0659 -> 0.7284897895 | V7: =(0.387231 / ((Константы!V7 / 10) ^ (8 / 3)) + 0.0029) * ((Qmin!V7*ВГФ!V7/24) ^ (2 / 3)) + 4.9766 / (Константы!V7/ 10) + 0.15- 0.5213 / (Qmin!V7 / 10) - 0.0659 -> 0.7284897895 | W7: =(0.387231 / ((Константы!W7 / 10) ^ (8 / 3)) + 0.0029) * ((Qmin!W7*ВГФ!W7/24) ^ (2 / 3)) + 4.9766 / (Константы!W7/ 10) + 0.15- 0.5213 / (Qmin!W7 / 10) - 0.0659 -> 0.7284897895 | X7: =(0.387231 / ((Константы!X7 / 10) ^ (8 / 3)) + 0.0029) * ((Qmin!X7*ВГФ!X7/24) ^ (2 / 3)) + 4.9766 / (Константы!X7/ 10) + 0.15- 0.5213 / (Qmin!X7 / 10) - 0.0659 -> 0.7284897895 | Y7: =(0.387231 / ((Константы!Y7 / 10) ^ (8 / 3)) + 0.0029) * ((Qmin!Y7*ВГФ!Y7/24) ^ (2 / 3)) + 4.9766 / (Константы!Y7/ 10) + 0.15- 0.5213 / (Qmin!Y7 / 10) - 0.0659 -> 0.7284897895 | Z7: =(0.387231 / ((Константы!Z7 / 10) ^ (8 / 3)) + 0.0029) * ((Qmin!Z7*ВГФ!Z7/24) ^ (2 / 3)) + 4.9766 / (Константы!Z7/ 10) + 0.15- 0.5213 / (Qmin!Z7 / 10) - 0.0659 -> 0.7284897895 | AA7: =(0.387231 / ((Константы!AA7 / 10) ^ (8 / 3)) + 0.0029) * ((Qmin!AA7*ВГФ!AA7/24) ^ (2 / 3)) + 4.9766 / (Константы!AA7/ 10) + 0.15- 0.5213 / (Qmin!AA7 / 10) - 0.0659 -> 0.7284897895 | AB7: =(0.387231 / ((Константы!AB7 / 10) ^ (8 / 3)) + 0.0029) * ((Qmin!AB7*ВГФ!AB7/24) ^ (2 / 3)) + 4.9766 / (Константы!AB7/ 10) + 0.15- 0.5213 / (Qmin!AB7 / 10) - 0.0659 -> 0.7284897895 | AC7: =(0.387231 / ((Константы!AC7 / 10) ^ (8 / 3)) + 0.0029) * ((Qmin!AC7*ВГФ!AC7/24) ^ (2 / 3)) + 4.9766 / (Константы!AC7/ 10) + 0.15- 0.5213 / (Qmin!AC7 / 10) - 0.0659 -> 0.7284897895 | AD7: =(0.387231 / ((Константы!AD7 / 10) ^ (8 / 3)) + 0.0029) * ((Qmin!AD7*ВГФ!AD7/24) ^ (2 / 3)) + 4.9766 / (Константы!AD7/ 10) + 0.15- 0.5213 / (Qmin!AD7 / 10) - 0.0659 -> 0.7284897895 | AE7: =(0.387231 / ((Константы!AE7 / 10) ^ (8 / 3)) + 0.0029) * ((Qmin!AE7*ВГФ!AE7/24) ^ (2 / 3)) + 4.9766 / (Константы!AE7/ 10) + 0.15- 0.5213 / (Qmin!AE7 / 10) - 0.0659 -> 0.7284897895 | AF7: =(0.387231 / ((Константы!AF7 / 10) ^ (8 / 3)) + 0.0029) * ((Qmin!AF7*ВГФ!AF7/24) ^ (2 / 3)) + 4.9766 / (Константы!AF7/ 10) + 0.15- 0.5213 / (Qmin!AF7 / 10) - 0.0659 -> 0.7284897895 | AG7: =(0.387231 / ((Константы!AG7 / 10) ^ (8 / 3)) + 0.0029) * ((Qmin!AG7*ВГФ!AG7/24) ^ (2 / 3)) + 4.9766 / (Константы!AG7/ 10) + 0.15- 0.5213 / (Qmin!AG7 / 10) - 0.0659 -> 0.7284897895 | AH7: =(0.387231 / ((Константы!AH7 / 10) ^ (8 / 3)) + 0.0029) * ((Qmin!AH7*ВГФ!AH7/24) ^ (2 / 3)) + 4.9766 / (Константы!AH7/ 10) + 0.15- 0.5213 / (Qmin!AH7 / 10) - 0.0659 -> 0.7284897895 | AI7: =(0.387231 / ((Константы!AI7 / 10) ^ (8 / 3)) + 0.0029) * ((Qmin!AI7*ВГФ!AI7/24) ^ (2 / 3)) + 4.9766 / (Константы!AI7/ 10) + 0.15- 0.5213 / (Qmin!AI7 / 10) - 0.0659 -> 0.7284897895 | AJ7: =(0.387231 / ((Константы!AJ7 / 10) ^ (8 / 3)) + 0.0029) * ((Qmin!AJ7*ВГФ!AJ7/24) ^ (2 / 3)) + 4.9766 / (Константы!AJ7/ 10) + 0.15- 0.5213 / (Qmin!AJ7 / 10) - 0.0659 -> 0.7284897895 | AK7: =(0.387231 / ((Константы!AK7 / 10) ^ (8 / 3)) + 0.0029) * ((Qmin!AK7*ВГФ!AK7/24) ^ (2 / 3)) + 4.9766 / (Константы!AK7/ 10) + 0.15- 0.5213 / (Qmin!AK7 / 10) - 0.0659 -> 0.7284897895 | AL7: =(0.387231 / ((Константы!AL7 / 10) ^ (8 / 3)) + 0.0029) * ((Qmin!AL7*ВГФ!AL7/24) ^ (2 / 3)) + 4.9766 / (Константы!AL7/ 10) + 0.15- 0.5213 / (Qmin!AL7 / 10) - 0.0659 -> 0.7284897895 | AM7: =(0.387231 / ((Константы!AM7 / 10) ^ (8 / 3)) + 0.0029) * ((Qmin!AM7*ВГФ!AM7/24) ^ (2 / 3)) + 4.9766 / (Константы!AM7/ 10) + 0.15- 0.5213 / (Qmin!AM7 / 10) - 0.0659 -> 0.7284897895
A8: 105 | B8: Фруд1 | C8: =(0.387231 / ((Константы!C8 / 10) ^ (8 / 3)) + 0.0029) * ((Qmin!C8*ВГФ!C8/24) ^ (2 / 3)) + 4.9766 / (Константы!C8/ 10) + 0.15- 0.5213 / (Qmin!C8 / 10) - 0.0659 -> 0.6856258841 | D8: =(0.387231 / ((Константы!D8 / 10) ^ (8 / 3)) + 0.0029) * ((Qmin!D8*ВГФ!D8/24) ^ (2 / 3)) + 4.9766 / (Константы!D8/ 10) + 0.15- 0.5213 / (Qmin!D8 / 10) - 0.0659 -> 0.6853780193 | E8: =(0.387231 / ((Константы!E8 / 10) ^ (8 / 3)) + 0.0029) * ((Qmin!E8*ВГФ!E8/24) ^ (2 / 3)) + 4.9766 / (Константы!E8/ 10) + 0.15- 0.5213 / (Qmin!E8 / 10) - 0.0659 -> 0.6838614229 | F8: =(0.387231 / ((Константы!F8 / 10) ^ (8 / 3)) + 0.0029) * ((Qmin!F8*ВГФ!F8/24) ^ (2 / 3)) + 4.9766 / (Константы!F8/ 10) + 0.15- 0.5213 / (Qmin!F8 / 10) - 0.0659 -> 0.6841950989 | G8: =(0.387231 / ((Константы!G8 / 10) ^ (8 / 3)) + 0.0029) * ((Qmin!G8*ВГФ!G8/24) ^ (2 / 3)) + 4.9766 / (Константы!G8/ 10) + 0.15- 0.5213 / (Qmin!G8 / 10) - 0.0659 -> 0.6838009477 | H8: =(0.387231 / ((Константы!H8 / 10) ^ (8 / 3)) + 0.0029) * ((Qmin!H8*ВГФ!H8/24) ^ (2 / 3)) + 4.9766 / (Константы!H8/ 10) + 0.15- 0.5213 / (Qmin!H8 / 10) - 0.0659 -> 0.6861406504 | I8: =(0.387231 / ((Константы!I8 / 10) ^ (8 / 3)) + 0.0029) * ((Qmin!I8*ВГФ!I8/24) ^ (2 / 3)) + 4.9766 / (Константы!I8/ 10) + 0.15- 0.5213 / (Qmin!I8 / 10) - 0.0659 -> 0.6836718849 | J8: =(0.387231 / ((Константы!J8 / 10) ^ (8 / 3)) + 0.0029) * ((Qmin!J8*ВГФ!J8/24) ^ (2 / 3)) + 4.9766 / (Константы!J8/ 10) + 0.15- 0.5213 / (Qmin!J8 / 10) - 0.0659 -> 0.6836188797 | K8: =(0.387231 / ((Константы!K8 / 10) ^ (8 / 3)) + 0.0029) * ((Qmin!K8*ВГФ!K8/24) ^ (2 / 3)) + 4.9766 / (Константы!K8/ 10) + 0.15- 0.5213 / (Qmin!K8 / 10) - 0.0659 -> 0.6835910394 | L8: =(0.387231 / ((Константы!L8 / 10) ^ (8 / 3)) + 0.0029) * ((Qmin!L8*ВГФ!L8/24) ^ (2 / 3)) + 4.9766 / (Константы!L8/ 10) + 0.15- 0.5213 / (Qmin!L8 / 10) - 0.0659 -> 0.6835696363 | M8: =(0.387231 / ((Константы!M8 / 10) ^ (8 / 3)) + 0.0029) * ((Qmin!M8*ВГФ!M8/24) ^ (2 / 3)) + 4.9766 / (Константы!M8/ 10) + 0.15- 0.5213 / (Qmin!M8 / 10) - 0.0659 -> 0.683550798 | N8: =(0.387231 / ((Константы!N8 / 10) ^ (8 / 3)) + 0.0029) * ((Qmin!N8*ВГФ!N8/24) ^ (2 / 3)) + 4.9766 / (Константы!N8/ 10) + 0.15- 0.5213 / (Qmin!N8 / 10) - 0.0659 -> 0.6835340284 | O8: =(0.387231 / ((Константы!O8 / 10) ^ (8 / 3)) + 0.0029) * ((Qmin!O8*ВГФ!O8/24) ^ (2 / 3)) + 4.9766 / (Константы!O8/ 10) + 0.15- 0.5213 / (Qmin!O8 / 10) - 0.0659 -> 0.6835179263 | P8: =(0.387231 / ((Константы!P8 / 10) ^ (8 / 3)) + 0.0029) * ((Qmin!P8*ВГФ!P8/24) ^ (2 / 3)) + 4.9766 / (Константы!P8/ 10) + 0.15- 0.5213 / (Qmin!P8 / 10) - 0.0659 -> 0.6835024254 | Q8: =(0.387231 / ((Константы!Q8 / 10) ^ (8 / 3)) + 0.0029) * ((Qmin!Q8*ВГФ!Q8/24) ^ (2 / 3)) + 4.9766 / (Константы!Q8/ 10) + 0.15- 0.5213 / (Qmin!Q8 / 10) - 0.0659 -> 0.6834888192 | R8: =(0.387231 / ((Константы!R8 / 10) ^ (8 / 3)) + 0.0029) * ((Qmin!R8*ВГФ!R8/24) ^ (2 / 3)) + 4.9766 / (Константы!R8/ 10) + 0.15- 0.5213 / (Qmin!R8 / 10) - 0.0659 -> 0.683473301 | S8: =(0.387231 / ((Константы!S8 / 10) ^ (8 / 3)) + 0.0029) * ((Qmin!S8*ВГФ!S8/24) ^ (2 / 3)) + 4.9766 / (Константы!S8/ 10) + 0.15- 0.5213 / (Qmin!S8 / 10) - 0.0659 -> 0.6834593623 | T8: =(0.387231 / ((Константы!T8 / 10) ^ (8 / 3)) + 0.0029) * ((Qmin!T8*ВГФ!T8/24) ^ (2 / 3)) + 4.9766 / (Константы!T8/ 10) + 0.15- 0.5213 / (Qmin!T8 / 10) - 0.0659 -> 0.6834439357 | U8: =(0.387231 / ((Константы!U8 / 10) ^ (8 / 3)) + 0.0029) * ((Qmin!U8*ВГФ!U8/24) ^ (2 / 3)) + 4.9766 / (Константы!U8/ 10) + 0.15- 0.5213 / (Qmin!U8 / 10) - 0.0659 -> 0.6834291336 | V8: =(0.387231 / ((Константы!V8 / 10) ^ (8 / 3)) + 0.0029) * ((Qmin!V8*ВГФ!V8/24) ^ (2 / 3)) + 4.9766 / (Константы!V8/ 10) + 0.15- 0.5213 / (Qmin!V8 / 10) - 0.0659 -> 0.6834140023 | W8: =(0.387231 / ((Константы!W8 / 10) ^ (8 / 3)) + 0.0029) * ((Qmin!W8*ВГФ!W8/24) ^ (2 / 3)) + 4.9766 / (Константы!W8/ 10) + 0.15- 0.5213 / (Qmin!W8 / 10) - 0.0659 -> 0.6833996536 | X8: =(0.387231 / ((Константы!X8 / 10) ^ (8 / 3)) + 0.0029) * ((Qmin!X8*ВГФ!X8/24) ^ (2 / 3)) + 4.9766 / (Константы!X8/ 10) + 0.15- 0.5213 / (Qmin!X8 / 10) - 0.0659 -> 0.6833859439 | Y8: =(0.387231 / ((Константы!Y8 / 10) ^ (8 / 3)) + 0.0029) * ((Qmin!Y8*ВГФ!Y8/24) ^ (2 / 3)) + 4.9766 / (Константы!Y8/ 10) + 0.15- 0.5213 / (Qmin!Y8 / 10) - 0.0659 -> 0.683370586 | Z8: =(0.387231 / ((Константы!Z8 / 10) ^ (8 / 3)) + 0.0029) * ((Qmin!Z8*ВГФ!Z8/24) ^ (2 / 3)) + 4.9766 / (Константы!Z8/ 10) + 0.15- 0.5213 / (Qmin!Z8 / 10) - 0.0659 -> 0.6833566712 | AA8: =(0.387231 / ((Константы!AA8 / 10) ^ (8 / 3)) + 0.0029) * ((Qmin!AA8*ВГФ!AA8/24) ^ (2 / 3)) + 4.9766 / (Константы!AA8/ 10) + 0.15- 0.5213 / (Qmin!AA8 / 10) - 0.0659 -> 0.7284897895 | AB8: =(0.387231 / ((Константы!AB8 / 10) ^ (8 / 3)) + 0.0029) * ((Qmin!AB8*ВГФ!AB8/24) ^ (2 / 3)) + 4.9766 / (Константы!AB8/ 10) + 0.15- 0.5213 / (Qmin!AB8 / 10) - 0.0659 -> 0.7284897895 | AC8: =(0.387231 / ((Константы!AC8 / 10) ^ (8 / 3)) + 0.0029) * ((Qmin!AC8*ВГФ!AC8/24) ^ (2 / 3)) + 4.9766 / (Константы!AC8/ 10) + 0.15- 0.5213 / (Qmin!AC8 / 10) - 0.0659 -> 0.7284897895 | AD8: =(0.387231 / ((Константы!AD8 / 10) ^ (8 / 3)) + 0.0029) * ((Qmin!AD8*ВГФ!AD8/24) ^ (2 / 3)) + 4.9766 / (Константы!AD8/ 10) + 0.15- 0.5213 / (Qmin!AD8 / 10) - 0.0659 -> 0.7284897895 | AE8: =(0.387231 / ((Константы!AE8 / 10) ^ (8 / 3)) + 0.0029) * ((Qmin!AE8*ВГФ!AE8/24) ^ (2 / 3)) + 4.9766 / (Константы!AE8/ 10) + 0.15- 0.5213 / (Qmin!AE8 / 10) - 0.0659 -> 0.7284897895 | AF8: =(0.387231 / ((Константы!AF8 / 10) ^ (8 / 3)) + 0.0029) * ((Qmin!AF8*ВГФ!AF8/24) ^ (2 / 3)) + 4.9766 / (Константы!AF8/ 10) + 0.15- 0.5213 / (Qmin!AF8 / 10) - 0.0659 -> 0.7284897895 | AG8: =(0.387231 / ((Константы!AG8 / 10) ^ (8 / 3)) + 0.0029) * ((Qmin!AG8*ВГФ!AG8/24) ^ (2 / 3)) + 4.9766 / (Константы!AG8/ 10) + 0.15- 0.5213 / (Qmin!AG8 / 10) - 0.0659 -> 0.7284897895 | AH8: =(0.387231 / ((Константы!AH8 / 10) ^ (8 / 3)) + 0.0029) * ((Qmin!AH8*ВГФ!AH8/24) ^ (2 / 3)) + 4.9766 / (Константы!AH8/ 10) + 0.15- 0.5213 / (Qmin!AH8 / 10) - 0.0659 -> 0.7284897895 | AI8: =(0.387231 / ((Константы!AI8 / 10) ^ (8 / 3)) + 0.0029) * ((Qmin!AI8*ВГФ!AI8/24) ^ (2 / 3)) + 4.9766 / (Константы!AI8/ 10) + 0.15- 0.5213 / (Qmin!AI8 / 10) - 0.0659 -> 0.7284897895 | AJ8: =(0.387231 / ((Константы!AJ8 / 10) ^ (8 / 3)) + 0.0029) * ((Qmin!AJ8*ВГФ!AJ8/24) ^ (2 / 3)) + 4.9766 / (Константы!AJ8/ 10) + 0.15- 0.5213 / (Qmin!AJ8 / 10) - 0.0659 -> 0.7284897895 | AK8: =(0.387231 / ((Константы!AK8 / 10) ^ (8 / 3)) + 0.0029) * ((Qmin!AK8*ВГФ!AK8/24) ^ (2 / 3)) + 4.9766 / (Константы!AK8/ 10) + 0.15- 0.5213 / (Qmin!AK8 / 10) - 0.0659 -> 0.7284897895 | AL8: =(0.387231 / ((Константы!AL8 / 10) ^ (8 / 3)) + 0.0029) * ((Qmin!AL8*ВГФ!AL8/24) ^ (2 / 3)) + 4.9766 / (Константы!AL8/ 10) + 0.15- 0.5213 / (Qmin!AL8 / 10) - 0.0659 -> 0.7284897895 | AM8: =(0.387231 / ((Константы!AM8 / 10) ^ (8 / 3)) + 0.0029) * ((Qmin!AM8*ВГФ!AM8/24) ^ (2 / 3)) + 4.9766 / (Константы!AM8/ 10) + 0.15- 0.5213 / (Qmin!AM8 / 10) - 0.0659 -> 0.7284897895
A9: 106 | B9: Фруд1 | C9: =(0.387231 / ((Константы!C9 / 10) ^ (8 / 3)) + 0.0029) * ((Qmin!C9*ВГФ!C9/24) ^ (2 / 3)) + 4.9766 / (Константы!C9/ 10) + 0.15- 0.5213 / (Qmin!C9 / 10) - 0.0659 -> 0.5521475387 | D9: =(0.387231 / ((Константы!D9 / 10) ^ (8 / 3)) + 0.0029) * ((Qmin!D9*ВГФ!D9/24) ^ (2 / 3)) + 4.9766 / (Константы!D9/ 10) + 0.15- 0.5213 / (Qmin!D9 / 10) - 0.0659 -> 0.5520481062 | E9: =(0.387231 / ((Константы!E9 / 10) ^ (8 / 3)) + 0.0029) * ((Qmin!E9*ВГФ!E9/24) ^ (2 / 3)) + 4.9766 / (Константы!E9/ 10) + 0.15- 0.5213 / (Qmin!E9 / 10) - 0.0659 -> 0.5521028209 | F9: =(0.387231 / ((Константы!F9 / 10) ^ (8 / 3)) + 0.0029) * ((Qmin!F9*ВГФ!F9/24) ^ (2 / 3)) + 4.9766 / (Константы!F9/ 10) + 0.15- 0.5213 / (Qmin!F9 / 10) - 0.0659 -> 0.552014301 | G9: =(0.387231 / ((Константы!G9 / 10) ^ (8 / 3)) + 0.0029) * ((Qmin!G9*ВГФ!G9/24) ^ (2 / 3)) + 4.9766 / (Константы!G9/ 10) + 0.15- 0.5213 / (Qmin!G9 / 10) - 0.0659 -> 0.5519116679 | H9: =(0.387231 / ((Константы!H9 / 10) ^ (8 / 3)) + 0.0029) * ((Qmin!H9*ВГФ!H9/24) ^ (2 / 3)) + 4.9766 / (Константы!H9/ 10) + 0.15- 0.5213 / (Qmin!H9 / 10) - 0.0659 -> 0.5518434455 | I9: =(0.387231 / ((Константы!I9 / 10) ^ (8 / 3)) + 0.0029) * ((Qmin!I9*ВГФ!I9/24) ^ (2 / 3)) + 4.9766 / (Константы!I9/ 10) + 0.15- 0.5213 / (Qmin!I9 / 10) - 0.0659 -> 0.5516989427 | J9: =(0.387231 / ((Константы!J9 / 10) ^ (8 / 3)) + 0.0029) * ((Qmin!J9*ВГФ!J9/24) ^ (2 / 3)) + 4.9766 / (Константы!J9/ 10) + 0.15- 0.5213 / (Qmin!J9 / 10) - 0.0659 -> 0.5516447753 | K9: =(0.387231 / ((Константы!K9 / 10) ^ (8 / 3)) + 0.0029) * ((Qmin!K9*ВГФ!K9/24) ^ (2 / 3)) + 4.9766 / (Константы!K9/ 10) + 0.15- 0.5213 / (Qmin!K9 / 10) - 0.0659 -> 0.5516699505 | L9: =(0.387231 / ((Константы!L9 / 10) ^ (8 / 3)) + 0.0029) * ((Qmin!L9*ВГФ!L9/24) ^ (2 / 3)) + 4.9766 / (Константы!L9/ 10) + 0.15- 0.5213 / (Qmin!L9 / 10) - 0.0659 -> 0.5515687403 | M9: =(0.387231 / ((Константы!M9 / 10) ^ (8 / 3)) + 0.0029) * ((Qmin!M9*ВГФ!M9/24) ^ (2 / 3)) + 4.9766 / (Константы!M9/ 10) + 0.15- 0.5213 / (Qmin!M9 / 10) - 0.0659 -> 0.5514988242 | N9: =(0.387231 / ((Константы!N9 / 10) ^ (8 / 3)) + 0.0029) * ((Qmin!N9*ВГФ!N9/24) ^ (2 / 3)) + 4.9766 / (Константы!N9/ 10) + 0.15- 0.5213 / (Qmin!N9 / 10) - 0.0659 -> 0.551429461 | O9: =(0.387231 / ((Константы!O9 / 10) ^ (8 / 3)) + 0.0029) * ((Qmin!O9*ВГФ!O9/24) ^ (2 / 3)) + 4.9766 / (Константы!O9/ 10) + 0.15- 0.5213 / (Qmin!O9 / 10) - 0.0659 -> 0.5513540361 | P9: =(0.387231 / ((Константы!P9 / 10) ^ (8 / 3)) + 0.0029) * ((Qmin!P9*ВГФ!P9/24) ^ (2 / 3)) + 4.9766 / (Константы!P9/ 10) + 0.15- 0.5213 / (Qmin!P9 / 10) - 0.0659 -> 0.551244442 | Q9: =(0.387231 / ((Константы!Q9 / 10) ^ (8 / 3)) + 0.0029) * ((Qmin!Q9*ВГФ!Q9/24) ^ (2 / 3)) + 4.9766 / (Константы!Q9/ 10) + 0.15- 0.5213 / (Qmin!Q9 / 10) - 0.0659 -> 0.5511812579 | R9: =(0.387231 / ((Константы!R9 / 10) ^ (8 / 3)) + 0.0029) * ((Qmin!R9*ВГФ!R9/24) ^ (2 / 3)) + 4.9766 / (Константы!R9/ 10) + 0.15- 0.5213 / (Qmin!R9 / 10) - 0.0659 -> 0.5511359075 | S9: =(0.387231 / ((Константы!S9 / 10) ^ (8 / 3)) + 0.0029) * ((Qmin!S9*ВГФ!S9/24) ^ (2 / 3)) + 4.9766 / (Константы!S9/ 10) + 0.15- 0.5213 / (Qmin!S9 / 10) - 0.0659 -> 0.5510957963 | T9: =(0.387231 / ((Константы!T9 / 10) ^ (8 / 3)) + 0.0029) * ((Qmin!T9*ВГФ!T9/24) ^ (2 / 3)) + 4.9766 / (Константы!T9/ 10) + 0.15- 0.5213 / (Qmin!T9 / 10) - 0.0659 -> 0.5510572061 | U9: =(0.387231 / ((Константы!U9 / 10) ^ (8 / 3)) + 0.0029) * ((Qmin!U9*ВГФ!U9/24) ^ (2 / 3)) + 4.9766 / (Константы!U9/ 10) + 0.15- 0.5213 / (Qmin!U9 / 10) - 0.0659 -> 0.5510180439 | V9: =(0.387231 / ((Константы!V9 / 10) ^ (8 / 3)) + 0.0029) * ((Qmin!V9*ВГФ!V9/24) ^ (2 / 3)) + 4.9766 / (Константы!V9/ 10) + 0.15- 0.5213 / (Qmin!V9 / 10) - 0.0659 -> 0.5509527132 | W9: =(0.387231 / ((Константы!W9 / 10) ^ (8 / 3)) + 0.0029) * ((Qmin!W9*ВГФ!W9/24) ^ (2 / 3)) + 4.9766 / (Константы!W9/ 10) + 0.15- 0.5213 / (Qmin!W9 / 10) - 0.0659 -> 0.550899146 | X9: =(0.387231 / ((Константы!X9 / 10) ^ (8 / 3)) + 0.0029) * ((Qmin!X9*ВГФ!X9/24) ^ (2 / 3)) + 4.9766 / (Константы!X9/ 10) + 0.15- 0.5213 / (Qmin!X9 / 10) - 0.0659 -> 0.5506836249 | Y9: =(0.387231 / ((Константы!Y9 / 10) ^ (8 / 3)) + 0.0029) * ((Qmin!Y9*ВГФ!Y9/24) ^ (2 / 3)) + 4.9766 / (Константы!Y9/ 10) + 0.15- 0.5213 / (Qmin!Y9 / 10) - 0.0659 -> 0.5504264377 | Z9: =(0.387231 / ((Константы!Z9 / 10) ^ (8 / 3)) + 0.0029) * ((Qmin!Z9*ВГФ!Z9/24) ^ (2 / 3)) + 4.9766 / (Константы!Z9/ 10) + 0.15- 0.5213 / (Qmin!Z9 / 10) - 0.0659 -> 0.5502951434 | AA9: =(0.387231 / ((Константы!AA9 / 10) ^ (8 / 3)) + 0.0029) * ((Qmin!AA9*ВГФ!AA9/24) ^ (2 / 3)) + 4.9766 / (Константы!AA9/ 10) + 0.15- 0.5213 / (Qmin!AA9 / 10) - 0.0659 -> 0.5501987629 | AB9: =(0.387231 / ((Константы!AB9 / 10) ^ (8 / 3)) + 0.0029) * ((Qmin!AB9*ВГФ!AB9/24) ^ (2 / 3)) + 4.9766 / (Константы!AB9/ 10) + 0.15- 0.5213 / (Qmin!AB9 / 10) - 0.0659 -> 0.5501228138 | AC9: =(0.387231 / ((Константы!AC9 / 10) ^ (8 / 3)) + 0.0029) * ((Qmin!AC9*ВГФ!AC9/24) ^ (2 / 3)) + 4.9766 / (Константы!AC9/ 10) + 0.15- 0.5213 / (Qmin!AC9 / 10) - 0.0659 -> 0.5500709512 | AD9: =(0.387231 / ((Константы!AD9 / 10) ^ (8 / 3)) + 0.0029) * ((Qmin!AD9*ВГФ!AD9/24) ^ (2 / 3)) + 4.9766 / (Константы!AD9/ 10) + 0.15- 0.5213 / (Qmin!AD9 / 10) - 0.0659 -> 0.5500485467 | AE9: =(0.387231 / ((Константы!AE9 / 10) ^ (8 / 3)) + 0.0029) * ((Qmin!AE9*ВГФ!AE9/24) ^ (2 / 3)) + 4.9766 / (Константы!AE9/ 10) + 0.15- 0.5213 / (Qmin!AE9 / 10) - 0.0659 -> 0.550073899 | AF9: =(0.387231 / ((Константы!AF9 / 10) ^ (8 / 3)) + 0.0029) * ((Qmin!AF9*ВГФ!AF9/24) ^ (2 / 3)) + 4.9766 / (Константы!AF9/ 10) + 0.15- 0.5213 / (Qmin!AF9 / 10) - 0.0659 -> 0.550198821 | AG9: =(0.387231 / ((Константы!AG9 / 10) ^ (8 / 3)) + 0.0029) * ((Qmin!AG9*ВГФ!AG9/24) ^ (2 / 3)) + 4.9766 / (Константы!AG9/ 10) + 0.15- 0.5213 / (Qmin!AG9 / 10) - 0.0659 -> 0.5503509877 | AH9: =(0.387231 / ((Константы!AH9 / 10) ^ (8 / 3)) + 0.0029) * ((Qmin!AH9*ВГФ!AH9/24) ^ (2 / 3)) + 4.9766 / (Константы!AH9/ 10) + 0.15- 0.5213 / (Qmin!AH9 / 10) - 0.0659 -> 0.5506577819 | AI9: =(0.387231 / ((Константы!AI9 / 10) ^ (8 / 3)) + 0.0029) * ((Qmin!AI9*ВГФ!AI9/24) ^ (2 / 3)) + 4.9766 / (Константы!AI9/ 10) + 0.15- 0.5213 / (Qmin!AI9 / 10) - 0.0659 -> 0.5511657835 | AJ9: =(0.387231 / ((Константы!AJ9 / 10) ^ (8 / 3)) + 0.0029) * ((Qmin!AJ9*ВГФ!AJ9/24) ^ (2 / 3)) + 4.9766 / (Константы!AJ9/ 10) + 0.15- 0.5213 / (Qmin!AJ9 / 10) - 0.0659 -> 0.5519465587 | AK9: =(0.387231 / ((Константы!AK9 / 10) ^ (8 / 3)) + 0.0029) * ((Qmin!AK9*ВГФ!AK9/24) ^ (2 / 3)) + 4.9766 / (Константы!AK9/ 10) + 0.15- 0.5213 / (Qmin!AK9 / 10) - 0.0659 -> 0.5533960222 | AL9: =(0.387231 / ((Константы!AL9 / 10) ^ (8 / 3)) + 0.0029) * ((Qmin!AL9*ВГФ!AL9/24) ^ (2 / 3)) + 4.9766 / (Константы!AL9/ 10) + 0.15- 0.5213 / (Qmin!AL9 / 10) - 0.0659 -> 0.5544818607 | AM9: =(0.387231 / ((Константы!AM9 / 10) ^ (8 / 3)) + 0.0029) * ((Qmin!AM9*ВГФ!AM9/24) ^ (2 / 3)) + 4.9766 / (Константы!AM9/ 10) + 0.15- 0.5213 / (Qmin!AM9 / 10) - 0.0659 -> 0.5573255741
A10: 107 | B10: Фруд1 | C10: =(0.387231 / ((Константы!C10 / 10) ^ (8 / 3)) + 0.0029) * ((Qmin!C10*ВГФ!C10/24) ^ (2 / 3)) + 4.9766 / (Константы!C10/ 10) + 0.15- 0.5213 / (Qmin!C10 / 10) - 0.0659 -> 0.7642442146 | D10: =(0.387231 / ((Константы!D10 / 10) ^ (8 / 3)) + 0.0029) * ((Qmin!D10*ВГФ!D10/24) ^ (2 / 3)) + 4.9766 / (Константы!D10/ 10) + 0.15- 0.5213 / (Qmin!D10 / 10) - 0.0659 -> 0.7726199 | E10: =(0.387231 / ((Константы!E10 / 10) ^ (8 / 3)) + 0.0029) * ((Qmin!E10*ВГФ!E10/24) ^ (2 / 3)) + 4.9766 / (Константы!E10/ 10) + 0.15- 0.5213 / (Qmin!E10 / 10) - 0.0659 -> 0.7981262273 | F10: =(0.387231 / ((Константы!F10 / 10) ^ (8 / 3)) + 0.0029) * ((Qmin!F10*ВГФ!F10/24) ^ (2 / 3)) + 4.9766 / (Константы!F10/ 10) + 0.15- 0.5213 / (Qmin!F10 / 10) - 0.0659 -> 0.7818662974 | G10: =(0.387231 / ((Константы!G10 / 10) ^ (8 / 3)) + 0.0029) * ((Qmin!G10*ВГФ!G10/24) ^ (2 / 3)) + 4.9766 / (Константы!G10/ 10) + 0.15- 0.5213 / (Qmin!G10 / 10) - 0.0659 -> 0.7882794874 | H10: =(0.387231 / ((Константы!H10 / 10) ^ (8 / 3)) + 0.0029) * ((Qmin!H10*ВГФ!H10/24) ^ (2 / 3)) + 4.9766 / (Константы!H10/ 10) + 0.15- 0.5213 / (Qmin!H10 / 10) - 0.0659 -> 0.8191965227 | I10: =(0.387231 / ((Константы!I10 / 10) ^ (8 / 3)) + 0.0029) * ((Qmin!I10*ВГФ!I10/24) ^ (2 / 3)) + 4.9766 / (Константы!I10/ 10) + 0.15- 0.5213 / (Qmin!I10 / 10) - 0.0659 -> 0.8091499446 | J10: =(0.387231 / ((Константы!J10 / 10) ^ (8 / 3)) + 0.0029) * ((Qmin!J10*ВГФ!J10/24) ^ (2 / 3)) + 4.9766 / (Константы!J10/ 10) + 0.15- 0.5213 / (Qmin!J10 / 10) - 0.0659 -> 0.8061668034 | K10: =(0.387231 / ((Константы!K10 / 10) ^ (8 / 3)) + 0.0029) * ((Qmin!K10*ВГФ!K10/24) ^ (2 / 3)) + 4.9766 / (Константы!K10/ 10) + 0.15- 0.5213 / (Qmin!K10 / 10) - 0.0659 -> 0.8051346478 | L10: =(0.387231 / ((Константы!L10 / 10) ^ (8 / 3)) + 0.0029) * ((Qmin!L10*ВГФ!L10/24) ^ (2 / 3)) + 4.9766 / (Константы!L10/ 10) + 0.15- 0.5213 / (Qmin!L10 / 10) - 0.0659 -> 0.8088175667 | M10: =(0.387231 / ((Константы!M10 / 10) ^ (8 / 3)) + 0.0029) * ((Qmin!M10*ВГФ!M10/24) ^ (2 / 3)) + 4.9766 / (Константы!M10/ 10) + 0.15- 0.5213 / (Qmin!M10 / 10) - 0.0659 -> 0.8084797873 | N10: =(0.387231 / ((Константы!N10 / 10) ^ (8 / 3)) + 0.0029) * ((Qmin!N10*ВГФ!N10/24) ^ (2 / 3)) + 4.9766 / (Константы!N10/ 10) + 0.15- 0.5213 / (Qmin!N10 / 10) - 0.0659 -> 0.8095251933 | O10: =(0.387231 / ((Константы!O10 / 10) ^ (8 / 3)) + 0.0029) * ((Qmin!O10*ВГФ!O10/24) ^ (2 / 3)) + 4.9766 / (Константы!O10/ 10) + 0.15- 0.5213 / (Qmin!O10 / 10) - 0.0659 -> 0.810678928 | P10: =(0.387231 / ((Константы!P10 / 10) ^ (8 / 3)) + 0.0029) * ((Qmin!P10*ВГФ!P10/24) ^ (2 / 3)) + 4.9766 / (Константы!P10/ 10) + 0.15- 0.5213 / (Qmin!P10 / 10) - 0.0659 -> 0.8119808317 | Q10: =(0.387231 / ((Константы!Q10 / 10) ^ (8 / 3)) + 0.0029) * ((Qmin!Q10*ВГФ!Q10/24) ^ (2 / 3)) + 4.9766 / (Константы!Q10/ 10) + 0.15- 0.5213 / (Qmin!Q10 / 10) - 0.0659 -> 0.8119472689 | R10: =(0.387231 / ((Константы!R10 / 10) ^ (8 / 3)) + 0.0029) * ((Qmin!R10*ВГФ!R10/24) ^ (2 / 3)) + 4.9766 / (Константы!R10/ 10) + 0.15- 0.5213 / (Qmin!R10 / 10) - 0.0659 -> 0.8148538045 | S10: =(0.387231 / ((Константы!S10 / 10) ^ (8 / 3)) + 0.0029) * ((Qmin!S10*ВГФ!S10/24) ^ (2 / 3)) + 4.9766 / (Константы!S10/ 10) + 0.15- 0.5213 / (Qmin!S10 / 10) - 0.0659 -> 0.8150517123 | T10: =(0.387231 / ((Константы!T10 / 10) ^ (8 / 3)) + 0.0029) * ((Qmin!T10*ВГФ!T10/24) ^ (2 / 3)) + 4.9766 / (Константы!T10/ 10) + 0.15- 0.5213 / (Qmin!T10 / 10) - 0.0659 -> 0.8167308065 | U10: =(0.387231 / ((Константы!U10 / 10) ^ (8 / 3)) + 0.0029) * ((Qmin!U10*ВГФ!U10/24) ^ (2 / 3)) + 4.9766 / (Константы!U10/ 10) + 0.15- 0.5213 / (Qmin!U10 / 10) - 0.0659 -> 0.8190541631 | V10: =(0.387231 / ((Константы!V10 / 10) ^ (8 / 3)) + 0.0029) * ((Qmin!V10*ВГФ!V10/24) ^ (2 / 3)) + 4.9766 / (Константы!V10/ 10) + 0.15- 0.5213 / (Qmin!V10 / 10) - 0.0659 -> 0.8198340346 | W10: =(0.387231 / ((Константы!W10 / 10) ^ (8 / 3)) + 0.0029) * ((Qmin!W10*ВГФ!W10/24) ^ (2 / 3)) + 4.9766 / (Константы!W10/ 10) + 0.15- 0.5213 / (Qmin!W10 / 10) - 0.0659 -> 0.5507321243 | X10: =(0.387231 / ((Константы!X10 / 10) ^ (8 / 3)) + 0.0029) * ((Qmin!X10*ВГФ!X10/24) ^ (2 / 3)) + 4.9766 / (Константы!X10/ 10) + 0.15- 0.5213 / (Qmin!X10 / 10) - 0.0659 -> 0.571334 | Y10: =(0.387231 / ((Константы!Y10 / 10) ^ (8 / 3)) + 0.0029) * ((Qmin!Y10*ВГФ!Y10/24) ^ (2 / 3)) + 4.9766 / (Константы!Y10/ 10) + 0.15- 0.5213 / (Qmin!Y10 / 10) - 0.0659 -> 0.571334 | Z10: =(0.387231 / ((Константы!Z10 / 10) ^ (8 / 3)) + 0.0029) * ((Qmin!Z10*ВГФ!Z10/24) ^ (2 / 3)) + 4.9766 / (Константы!Z10/ 10) + 0.15- 0.5213 / (Qmin!Z10 / 10) - 0.0659 -> 0.571334 | AA10: =(0.387231 / ((Константы!AA10 / 10) ^ (8 / 3)) + 0.0029) * ((Qmin!AA10*ВГФ!AA10/24) ^ (2 / 3)) + 4.9766 / (Константы!AA10/ 10) + 0.15- 0.5213 / (Qmin!AA10 / 10) - 0.0659 -> 0.571334 | AB10: =(0.387231 / ((Константы!AB10 / 10) ^ (8 / 3)) + 0.0029) * ((Qmin!AB10*ВГФ!AB10/24) ^ (2 / 3)) + 4.9766 / (Константы!AB10/ 10) + 0.15- 0.5213 / (Qmin!AB10 / 10) - 0.0659 -> 0.571334 | AC10: =(0.387231 / ((Константы!AC10 / 10) ^ (8 / 3)) + 0.0029) * ((Qmin!AC10*ВГФ!AC10/24) ^ (2 / 3)) + 4.9766 / (Константы!AC10/ 10) + 0.15- 0.5213 / (Qmin!AC10 / 10) - 0.0659 -> 0.571334 | AD10: =(0.387231 / ((Константы!AD10 / 10) ^ (8 / 3)) + 0.0029) * ((Qmin!AD10*ВГФ!AD10/24) ^ (2 / 3)) + 4.9766 / (Константы!AD10/ 10) + 0.15- 0.5213 / (Qmin!AD10 / 10) - 0.0659 -> 0.571334 | AE10: =(0.387231 / ((Константы!AE10 / 10) ^ (8 / 3)) + 0.0029) * ((Qmin!AE10*ВГФ!AE10/24) ^ (2 / 3)) + 4.9766 / (Константы!AE10/ 10) + 0.15- 0.5213 / (Qmin!AE10 / 10) - 0.0659 -> 0.571334 | AF10: =(0.387231 / ((Константы!AF10 / 10) ^ (8 / 3)) + 0.0029) * ((Qmin!AF10*ВГФ!AF10/24) ^ (2 / 3)) + 4.9766 / (Константы!AF10/ 10) + 0.15- 0.5213 / (Qmin!AF10 / 10) - 0.0659 -> 0.571334 | AG10: =(0.387231 / ((Константы!AG10 / 10) ^ (8 / 3)) + 0.0029) * ((Qmin!AG10*ВГФ!AG10/24) ^ (2 / 3)) + 4.9766 / (Константы!AG10/ 10) + 0.15- 0.5213 / (Qmin!AG10 / 10) - 0.0659 -> 0.571334 | AH10: =(0.387231 / ((Константы!AH10 / 10) ^ (8 / 3)) + 0.0029) * ((Qmin!AH10*ВГФ!AH10/24) ^ (2 / 3)) + 4.9766 / (Константы!AH10/ 10) + 0.15- 0.5213 / (Qmin!AH10 / 10) - 0.0659 -> 0.571334 | AI10: =(0.387231 / ((Константы!AI10 / 10) ^ (8 / 3)) + 0.0029) * ((Qmin!AI10*ВГФ!AI10/24) ^ (2 / 3)) + 4.9766 / (Константы!AI10/ 10) + 0.15- 0.5213 / (Qmin!AI10 / 10) - 0.0659 -> 0.571334 | AJ10: =(0.387231 / ((Константы!AJ10 / 10) ^ (8 / 3)) + 0.0029) * ((Qmin!AJ10*ВГФ!AJ10/24) ^ (2 / 3)) + 4.9766 / (Константы!AJ10/ 10) + 0.15- 0.5213 / (Qmin!AJ10 / 10) - 0.0659 -> 0.571334 | AK10: =(0.387231 / ((Константы!AK10 / 10) ^ (8 / 3)) + 0.0029) * ((Qmin!AK10*ВГФ!AK10/24) ^ (2 / 3)) + 4.9766 / (Константы!AK10/ 10) + 0.15- 0.5213 / (Qmin!AK10 / 10) - 0.0659 -> 0.571334 | AL10: =(0.387231 / ((Константы!AL10 / 10) ^ (8 / 3)) + 0.0029) * ((Qmin!AL10*ВГФ!AL10/24) ^ (2 / 3)) + 4.9766 / (Константы!AL10/ 10) + 0.15- 0.5213 / (Qmin!AL10 / 10) - 0.0659 -> 0.571334 | AM10: =(0.387231 / ((Константы!AM10 / 10) ^ (8 / 3)) + 0.0029) * ((Qmin!AM10*ВГФ!AM10/24) ^ (2 / 3)) + 4.9766 / (Константы!AM10/ 10) + 0.15- 0.5213 / (Qmin!AM10 / 10) - 0.0659 -> 0.571334
A11: 108 | B11: Фруд1 | C11: =(0.387231 / ((Константы!C11 / 10) ^ (8 / 3)) + 0.0029) * ((Qmin!C11*ВГФ!C11/24) ^ (2 / 3)) + 4.9766 / (Константы!C11/ 10) + 0.15- 0.5213 / (Qmin!C11 / 10) - 0.0659 -> 0.622746976 | D11: =(0.387231 / ((Константы!D11 / 10) ^ (8 / 3)) + 0.0029) * ((Qmin!D11*ВГФ!D11/24) ^ (2 / 3)) + 4.9766 / (Константы!D11/ 10) + 0.15- 0.5213 / (Qmin!D11 / 10) - 0.0659 -> 0.6224826146 | E11: =(0.387231 / ((Константы!E11 / 10) ^ (8 / 3)) + 0.0029) * ((Qmin!E11*ВГФ!E11/24) ^ (2 / 3)) + 4.9766 / (Константы!E11/ 10) + 0.15- 0.5213 / (Qmin!E11 / 10) - 0.0659 -> 0.6238862444 | F11: =(0.387231 / ((Константы!F11 / 10) ^ (8 / 3)) + 0.0029) * ((Qmin!F11*ВГФ!F11/24) ^ (2 / 3)) + 4.9766 / (Константы!F11/ 10) + 0.15- 0.5213 / (Qmin!F11 / 10) - 0.0659 -> 0.6252991359 | G11: =(0.387231 / ((Константы!G11 / 10) ^ (8 / 3)) + 0.0029) * ((Qmin!G11*ВГФ!G11/24) ^ (2 / 3)) + 4.9766 / (Константы!G11/ 10) + 0.15- 0.5213 / (Qmin!G11 / 10) - 0.0659 -> 0.6252290878 | H11: =(0.387231 / ((Константы!H11 / 10) ^ (8 / 3)) + 0.0029) * ((Qmin!H11*ВГФ!H11/24) ^ (2 / 3)) + 4.9766 / (Константы!H11/ 10) + 0.15- 0.5213 / (Qmin!H11 / 10) - 0.0659 -> 0.6213989008 | I11: =(0.387231 / ((Константы!I11 / 10) ^ (8 / 3)) + 0.0029) * ((Qmin!I11*ВГФ!I11/24) ^ (2 / 3)) + 4.9766 / (Константы!I11/ 10) + 0.15- 0.5213 / (Qmin!I11 / 10) - 0.0659 -> 0.6234170562 | J11: =(0.387231 / ((Константы!J11 / 10) ^ (8 / 3)) + 0.0029) * ((Qmin!J11*ВГФ!J11/24) ^ (2 / 3)) + 4.9766 / (Константы!J11/ 10) + 0.15- 0.5213 / (Qmin!J11 / 10) - 0.0659 -> 0.6217751975 | K11: =(0.387231 / ((Константы!K11 / 10) ^ (8 / 3)) + 0.0029) * ((Qmin!K11*ВГФ!K11/24) ^ (2 / 3)) + 4.9766 / (Константы!K11/ 10) + 0.15- 0.5213 / (Qmin!K11 / 10) - 0.0659 -> 0.6241952601 | L11: =(0.387231 / ((Константы!L11 / 10) ^ (8 / 3)) + 0.0029) * ((Qmin!L11*ВГФ!L11/24) ^ (2 / 3)) + 4.9766 / (Константы!L11/ 10) + 0.15- 0.5213 / (Qmin!L11 / 10) - 0.0659 -> 0.6241893538 | M11: =(0.387231 / ((Константы!M11 / 10) ^ (8 / 3)) + 0.0029) * ((Qmin!M11*ВГФ!M11/24) ^ (2 / 3)) + 4.9766 / (Константы!M11/ 10) + 0.15- 0.5213 / (Qmin!M11 / 10) - 0.0659 -> 0.6244571337 | N11: =(0.387231 / ((Константы!N11 / 10) ^ (8 / 3)) + 0.0029) * ((Qmin!N11*ВГФ!N11/24) ^ (2 / 3)) + 4.9766 / (Константы!N11/ 10) + 0.15- 0.5213 / (Qmin!N11 / 10) - 0.0659 -> 0.6247527953 | O11: =(0.387231 / ((Константы!O11 / 10) ^ (8 / 3)) + 0.0029) * ((Qmin!O11*ВГФ!O11/24) ^ (2 / 3)) + 4.9766 / (Константы!O11/ 10) + 0.15- 0.5213 / (Qmin!O11 / 10) - 0.0659 -> 0.6250464585 | P11: =(0.387231 / ((Константы!P11 / 10) ^ (8 / 3)) + 0.0029) * ((Qmin!P11*ВГФ!P11/24) ^ (2 / 3)) + 4.9766 / (Константы!P11/ 10) + 0.15- 0.5213 / (Qmin!P11 / 10) - 0.0659 -> 0.6253392999 | Q11: =(0.387231 / ((Константы!Q11 / 10) ^ (8 / 3)) + 0.0029) * ((Qmin!Q11*ВГФ!Q11/24) ^ (2 / 3)) + 4.9766 / (Константы!Q11/ 10) + 0.15- 0.5213 / (Qmin!Q11 / 10) - 0.0659 -> 0.6258218903 | R11: =(0.387231 / ((Константы!R11 / 10) ^ (8 / 3)) + 0.0029) * ((Qmin!R11*ВГФ!R11/24) ^ (2 / 3)) + 4.9766 / (Константы!R11/ 10) + 0.15- 0.5213 / (Qmin!R11 / 10) - 0.0659 -> 0.6264864495 | S11: =(0.387231 / ((Константы!S11 / 10) ^ (8 / 3)) + 0.0029) * ((Qmin!S11*ВГФ!S11/24) ^ (2 / 3)) + 4.9766 / (Константы!S11/ 10) + 0.15- 0.5213 / (Qmin!S11 / 10) - 0.0659 -> 0.6269175953 | T11: =(0.387231 / ((Константы!T11 / 10) ^ (8 / 3)) + 0.0029) * ((Qmin!T11*ВГФ!T11/24) ^ (2 / 3)) + 4.9766 / (Константы!T11/ 10) + 0.15- 0.5213 / (Qmin!T11 / 10) - 0.0659 -> 0.6272677856 | U11: =(0.387231 / ((Константы!U11 / 10) ^ (8 / 3)) + 0.0029) * ((Qmin!U11*ВГФ!U11/24) ^ (2 / 3)) + 4.9766 / (Константы!U11/ 10) + 0.15- 0.5213 / (Qmin!U11 / 10) - 0.0659 -> 0.6275532082 | V11: =(0.387231 / ((Константы!V11 / 10) ^ (8 / 3)) + 0.0029) * ((Qmin!V11*ВГФ!V11/24) ^ (2 / 3)) + 4.9766 / (Константы!V11/ 10) + 0.15- 0.5213 / (Qmin!V11 / 10) - 0.0659 -> 0.6273026302 | W11: =(0.387231 / ((Константы!W11 / 10) ^ (8 / 3)) + 0.0029) * ((Qmin!W11*ВГФ!W11/24) ^ (2 / 3)) + 4.9766 / (Константы!W11/ 10) + 0.15- 0.5213 / (Qmin!W11 / 10) - 0.0659 -> 0.6255245762 | X11: =(0.387231 / ((Константы!X11 / 10) ^ (8 / 3)) + 0.0029) * ((Qmin!X11*ВГФ!X11/24) ^ (2 / 3)) + 4.9766 / (Константы!X11/ 10) + 0.15- 0.5213 / (Qmin!X11 / 10) - 0.0659 -> 0.6256894192 | Y11: =(0.387231 / ((Константы!Y11 / 10) ^ (8 / 3)) + 0.0029) * ((Qmin!Y11*ВГФ!Y11/24) ^ (2 / 3)) + 4.9766 / (Константы!Y11/ 10) + 0.15- 0.5213 / (Qmin!Y11 / 10) - 0.0659 -> 0.6257689707 | Z11: =(0.387231 / ((Константы!Z11 / 10) ^ (8 / 3)) + 0.0029) * ((Qmin!Z11*ВГФ!Z11/24) ^ (2 / 3)) + 4.9766 / (Константы!Z11/ 10) + 0.15- 0.5213 / (Qmin!Z11 / 10) - 0.0659 -> 0.63306725 | AA11: =(0.387231 / ((Константы!AA11 / 10) ^ (8 / 3)) + 0.0029) * ((Qmin!AA11*ВГФ!AA11/24) ^ (2 / 3)) + 4.9766 / (Константы!AA11/ 10) + 0.15- 0.5213 / (Qmin!AA11 / 10) - 0.0659 -> 0.6357315034 | AB11: =(0.387231 / ((Константы!AB11 / 10) ^ (8 / 3)) + 0.0029) * ((Qmin!AB11*ВГФ!AB11/24) ^ (2 / 3)) + 4.9766 / (Константы!AB11/ 10) + 0.15- 0.5213 / (Qmin!AB11 / 10) - 0.0659 -> 0.6371409194 | AC11: =(0.387231 / ((Константы!AC11 / 10) ^ (8 / 3)) + 0.0029) * ((Qmin!AC11*ВГФ!AC11/24) ^ (2 / 3)) + 4.9766 / (Константы!AC11/ 10) + 0.15- 0.5213 / (Qmin!AC11 / 10) - 0.0659 -> 0.6384648582 | AD11: =(0.387231 / ((Константы!AD11 / 10) ^ (8 / 3)) + 0.0029) * ((Qmin!AD11*ВГФ!AD11/24) ^ (2 / 3)) + 4.9766 / (Константы!AD11/ 10) + 0.15- 0.5213 / (Qmin!AD11 / 10) - 0.0659 -> 0.6394403401 | AE11: =(0.387231 / ((Константы!AE11 / 10) ^ (8 / 3)) + 0.0029) * ((Qmin!AE11*ВГФ!AE11/24) ^ (2 / 3)) + 4.9766 / (Константы!AE11/ 10) + 0.15- 0.5213 / (Qmin!AE11 / 10) - 0.0659 -> 0.6408868606 | AF11: =(0.387231 / ((Константы!AF11 / 10) ^ (8 / 3)) + 0.0029) * ((Qmin!AF11*ВГФ!AF11/24) ^ (2 / 3)) + 4.9766 / (Константы!AF11/ 10) + 0.15- 0.5213 / (Qmin!AF11 / 10) - 0.0659 -> 0.6416513116 | AG11: =(0.387231 / ((Константы!AG11 / 10) ^ (8 / 3)) + 0.0029) * ((Qmin!AG11*ВГФ!AG11/24) ^ (2 / 3)) + 4.9766 / (Константы!AG11/ 10) + 0.15- 0.5213 / (Qmin!AG11 / 10) - 0.0659 -> 0.6429231272 | AH11: =(0.387231 / ((Константы!AH11 / 10) ^ (8 / 3)) + 0.0029) * ((Qmin!AH11*ВГФ!AH11/24) ^ (2 / 3)) + 4.9766 / (Константы!AH11/ 10) + 0.15- 0.5213 / (Qmin!AH11 / 10) - 0.0659 -> 0.6408948488 | AI11: =(0.387231 / ((Константы!AI11 / 10) ^ (8 / 3)) + 0.0029) * ((Qmin!AI11*ВГФ!AI11/24) ^ (2 / 3)) + 4.9766 / (Константы!AI11/ 10) + 0.15- 0.5213 / (Qmin!AI11 / 10) - 0.0659 -> 0.6495740943 | AJ11: =(0.387231 / ((Константы!AJ11 / 10) ^ (8 / 3)) + 0.0029) * ((Qmin!AJ11*ВГФ!AJ11/24) ^ (2 / 3)) + 4.9766 / (Константы!AJ11/ 10) + 0.15- 0.5213 / (Qmin!AJ11 / 10) - 0.0659 -> 0.6475666605 | AK11: =(0.387231 / ((Константы!AK11 / 10) ^ (8 / 3)) + 0.0029) * ((Qmin!AK11*ВГФ!AK11/24) ^ (2 / 3)) + 4.9766 / (Константы!AK11/ 10) + 0.15- 0.5213 / (Qmin!AK11 / 10) - 0.0659 -> 0.6528160341 | AL11: =(0.387231 / ((Константы!AL11 / 10) ^ (8 / 3)) + 0.0029) * ((Qmin!AL11*ВГФ!AL11/24) ^ (2 / 3)) + 4.9766 / (Константы!AL11/ 10) + 0.15- 0.5213 / (Qmin!AL11 / 10) - 0.0659 -> 0.6538667607 | AM11: =(0.387231 / ((Константы!AM11 / 10) ^ (8 / 3)) + 0.0029) * ((Qmin!AM11*ВГФ!AM11/24) ^ (2 / 3)) + 4.9766 / (Константы!AM11/ 10) + 0.15- 0.5213 / (Qmin!AM11 / 10) - 0.0659 -> 0.6532140472
A12: 109 | B12: Фруд1 | C12: =(0.387231 / ((Константы!C12 / 10) ^ (8 / 3)) + 0.0029) * ((Qmin!C12*ВГФ!C12/24) ^ (2 / 3)) + 4.9766 / (Константы!C12/ 10) + 0.15- 0.5213 / (Qmin!C12 / 10) - 0.0659 -> 0.5549291963 | D12: =(0.387231 / ((Константы!D12 / 10) ^ (8 / 3)) + 0.0029) * ((Qmin!D12*ВГФ!D12/24) ^ (2 / 3)) + 4.9766 / (Константы!D12/ 10) + 0.15- 0.5213 / (Qmin!D12 / 10) - 0.0659 -> 0.5547473751 | E12: =(0.387231 / ((Константы!E12 / 10) ^ (8 / 3)) + 0.0029) * ((Qmin!E12*ВГФ!E12/24) ^ (2 / 3)) + 4.9766 / (Константы!E12/ 10) + 0.15- 0.5213 / (Qmin!E12 / 10) - 0.0659 -> 0.5549171556 | F12: =(0.387231 / ((Константы!F12 / 10) ^ (8 / 3)) + 0.0029) * ((Qmin!F12*ВГФ!F12/24) ^ (2 / 3)) + 4.9766 / (Константы!F12/ 10) + 0.15- 0.5213 / (Qmin!F12 / 10) - 0.0659 -> 0.5546374379 | G12: =(0.387231 / ((Константы!G12 / 10) ^ (8 / 3)) + 0.0029) * ((Qmin!G12*ВГФ!G12/24) ^ (2 / 3)) + 4.9766 / (Константы!G12/ 10) + 0.15- 0.5213 / (Qmin!G12 / 10) - 0.0659 -> 0.5545491496 | H12: =(0.387231 / ((Константы!H12 / 10) ^ (8 / 3)) + 0.0029) * ((Qmin!H12*ВГФ!H12/24) ^ (2 / 3)) + 4.9766 / (Константы!H12/ 10) + 0.15- 0.5213 / (Qmin!H12 / 10) - 0.0659 -> 0.55447573 | I12: =(0.387231 / ((Константы!I12 / 10) ^ (8 / 3)) + 0.0029) * ((Qmin!I12*ВГФ!I12/24) ^ (2 / 3)) + 4.9766 / (Константы!I12/ 10) + 0.15- 0.5213 / (Qmin!I12 / 10) - 0.0659 -> 0.5536828662 | J12: =(0.387231 / ((Константы!J12 / 10) ^ (8 / 3)) + 0.0029) * ((Qmin!J12*ВГФ!J12/24) ^ (2 / 3)) + 4.9766 / (Константы!J12/ 10) + 0.15- 0.5213 / (Qmin!J12 / 10) - 0.0659 -> 0.5536086571 | K12: =(0.387231 / ((Константы!K12 / 10) ^ (8 / 3)) + 0.0029) * ((Qmin!K12*ВГФ!K12/24) ^ (2 / 3)) + 4.9766 / (Константы!K12/ 10) + 0.15- 0.5213 / (Qmin!K12 / 10) - 0.0659 -> 0.553571201 | L12: =(0.387231 / ((Константы!L12 / 10) ^ (8 / 3)) + 0.0029) * ((Qmin!L12*ВГФ!L12/24) ^ (2 / 3)) + 4.9766 / (Константы!L12/ 10) + 0.15- 0.5213 / (Qmin!L12 / 10) - 0.0659 -> 0.553500435 | M12: =(0.387231 / ((Константы!M12 / 10) ^ (8 / 3)) + 0.0029) * ((Qmin!M12*ВГФ!M12/24) ^ (2 / 3)) + 4.9766 / (Константы!M12/ 10) + 0.15- 0.5213 / (Qmin!M12 / 10) - 0.0659 -> 0.553428513 | N12: =(0.387231 / ((Константы!N12 / 10) ^ (8 / 3)) + 0.0029) * ((Qmin!N12*ВГФ!N12/24) ^ (2 / 3)) + 4.9766 / (Константы!N12/ 10) + 0.15- 0.5213 / (Qmin!N12 / 10) - 0.0659 -> 0.5533668424 | O12: =(0.387231 / ((Константы!O12 / 10) ^ (8 / 3)) + 0.0029) * ((Qmin!O12*ВГФ!O12/24) ^ (2 / 3)) + 4.9766 / (Константы!O12/ 10) + 0.15- 0.5213 / (Qmin!O12 / 10) - 0.0659 -> 0.5533070337 | P12: =(0.387231 / ((Константы!P12 / 10) ^ (8 / 3)) + 0.0029) * ((Qmin!P12*ВГФ!P12/24) ^ (2 / 3)) + 4.9766 / (Константы!P12/ 10) + 0.15- 0.5213 / (Qmin!P12 / 10) - 0.0659 -> 0.5532434296 | Q12: =(0.387231 / ((Константы!Q12 / 10) ^ (8 / 3)) + 0.0029) * ((Qmin!Q12*ВГФ!Q12/24) ^ (2 / 3)) + 4.9766 / (Константы!Q12/ 10) + 0.15- 0.5213 / (Qmin!Q12 / 10) - 0.0659 -> 0.5531738889 | R12: =(0.387231 / ((Константы!R12 / 10) ^ (8 / 3)) + 0.0029) * ((Qmin!R12*ВГФ!R12/24) ^ (2 / 3)) + 4.9766 / (Константы!R12/ 10) + 0.15- 0.5213 / (Qmin!R12 / 10) - 0.0659 -> 0.5531200399 | S12: =(0.387231 / ((Константы!S12 / 10) ^ (8 / 3)) + 0.0029) * ((Qmin!S12*ВГФ!S12/24) ^ (2 / 3)) + 4.9766 / (Константы!S12/ 10) + 0.15- 0.5213 / (Qmin!S12 / 10) - 0.0659 -> 0.5530703159 | T12: =(0.387231 / ((Константы!T12 / 10) ^ (8 / 3)) + 0.0029) * ((Qmin!T12*ВГФ!T12/24) ^ (2 / 3)) + 4.9766 / (Константы!T12/ 10) + 0.15- 0.5213 / (Qmin!T12 / 10) - 0.0659 -> 0.5530365291 | U12: =(0.387231 / ((Константы!U12 / 10) ^ (8 / 3)) + 0.0029) * ((Qmin!U12*ВГФ!U12/24) ^ (2 / 3)) + 4.9766 / (Константы!U12/ 10) + 0.15- 0.5213 / (Qmin!U12 / 10) - 0.0659 -> 0.5529920423 | V12: =(0.387231 / ((Константы!V12 / 10) ^ (8 / 3)) + 0.0029) * ((Qmin!V12*ВГФ!V12/24) ^ (2 / 3)) + 4.9766 / (Константы!V12/ 10) + 0.15- 0.5213 / (Qmin!V12 / 10) - 0.0659 -> 0.5529705016 | W12: =(0.387231 / ((Константы!W12 / 10) ^ (8 / 3)) + 0.0029) * ((Qmin!W12*ВГФ!W12/24) ^ (2 / 3)) + 4.9766 / (Константы!W12/ 10) + 0.15- 0.5213 / (Qmin!W12 / 10) - 0.0659 -> 0.5529542251 | X12: =(0.387231 / ((Константы!X12 / 10) ^ (8 / 3)) + 0.0029) * ((Qmin!X12*ВГФ!X12/24) ^ (2 / 3)) + 4.9766 / (Константы!X12/ 10) + 0.15- 0.5213 / (Qmin!X12 / 10) - 0.0659 -> 0.55290108 | Y12: =(0.387231 / ((Константы!Y12 / 10) ^ (8 / 3)) + 0.0029) * ((Qmin!Y12*ВГФ!Y12/24) ^ (2 / 3)) + 4.9766 / (Константы!Y12/ 10) + 0.15- 0.5213 / (Qmin!Y12 / 10) - 0.0659 -> 0.5528733967 | Z12: =(0.387231 / ((Константы!Z12 / 10) ^ (8 / 3)) + 0.0029) * ((Qmin!Z12*ВГФ!Z12/24) ^ (2 / 3)) + 4.9766 / (Константы!Z12/ 10) + 0.15- 0.5213 / (Qmin!Z12 / 10) - 0.0659 -> 0.5528913095 | AA12: =(0.387231 / ((Константы!AA12 / 10) ^ (8 / 3)) + 0.0029) * ((Qmin!AA12*ВГФ!AA12/24) ^ (2 / 3)) + 4.9766 / (Константы!AA12/ 10) + 0.15- 0.5213 / (Qmin!AA12 / 10) - 0.0659 -> 0.5528448647 | AB12: =(0.387231 / ((Константы!AB12 / 10) ^ (8 / 3)) + 0.0029) * ((Qmin!AB12*ВГФ!AB12/24) ^ (2 / 3)) + 4.9766 / (Константы!AB12/ 10) + 0.15- 0.5213 / (Qmin!AB12 / 10) - 0.0659 -> 0.5527980316 | AC12: =(0.387231 / ((Константы!AC12 / 10) ^ (8 / 3)) + 0.0029) * ((Qmin!AC12*ВГФ!AC12/24) ^ (2 / 3)) + 4.9766 / (Константы!AC12/ 10) + 0.15- 0.5213 / (Qmin!AC12 / 10) - 0.0659 -> 0.5527557838 | AD12: =(0.387231 / ((Константы!AD12 / 10) ^ (8 / 3)) + 0.0029) * ((Qmin!AD12*ВГФ!AD12/24) ^ (2 / 3)) + 4.9766 / (Константы!AD12/ 10) + 0.15- 0.5213 / (Qmin!AD12 / 10) - 0.0659 -> 0.5527212078 | AE12: =(0.387231 / ((Константы!AE12 / 10) ^ (8 / 3)) + 0.0029) * ((Qmin!AE12*ВГФ!AE12/24) ^ (2 / 3)) + 4.9766 / (Константы!AE12/ 10) + 0.15- 0.5213 / (Qmin!AE12 / 10) - 0.0659 -> 0.5526755618 | AF12: =(0.387231 / ((Константы!AF12 / 10) ^ (8 / 3)) + 0.0029) * ((Qmin!AF12*ВГФ!AF12/24) ^ (2 / 3)) + 4.9766 / (Константы!AF12/ 10) + 0.15- 0.5213 / (Qmin!AF12 / 10) - 0.0659 -> 0.5526398024 | AG12: =(0.387231 / ((Константы!AG12 / 10) ^ (8 / 3)) + 0.0029) * ((Qmin!AG12*ВГФ!AG12/24) ^ (2 / 3)) + 4.9766 / (Константы!AG12/ 10) + 0.15- 0.5213 / (Qmin!AG12 / 10) - 0.0659 -> 0.5525958784 | AH12: =(0.387231 / ((Константы!AH12 / 10) ^ (8 / 3)) + 0.0029) * ((Qmin!AH12*ВГФ!AH12/24) ^ (2 / 3)) + 4.9766 / (Константы!AH12/ 10) + 0.15- 0.5213 / (Qmin!AH12 / 10) - 0.0659 -> 0.5525507288 | AI12: =(0.387231 / ((Константы!AI12 / 10) ^ (8 / 3)) + 0.0029) * ((Qmin!AI12*ВГФ!AI12/24) ^ (2 / 3)) + 4.9766 / (Константы!AI12/ 10) + 0.15- 0.5213 / (Qmin!AI12 / 10) - 0.0659 -> 0.5525380737 | AJ12: =(0.387231 / ((Константы!AJ12 / 10) ^ (8 / 3)) + 0.0029) * ((Qmin!AJ12*ВГФ!AJ12/24) ^ (2 / 3)) + 4.9766 / (Константы!AJ12/ 10) + 0.15- 0.5213 / (Qmin!AJ12 / 10) - 0.0659 -> 0.552483167 | AK12: =(0.387231 / ((Константы!AK12 / 10) ^ (8 / 3)) + 0.0029) * ((Qmin!AK12*ВГФ!AK12/24) ^ (2 / 3)) + 4.9766 / (Константы!AK12/ 10) + 0.15- 0.5213 / (Qmin!AK12 / 10) - 0.0659 -> 0.5524490786 | AL12: =(0.387231 / ((Константы!AL12 / 10) ^ (8 / 3)) + 0.0029) * ((Qmin!AL12*ВГФ!AL12/24) ^ (2 / 3)) + 4.9766 / (Константы!AL12/ 10) + 0.15- 0.5213 / (Qmin!AL12 / 10) - 0.0659 -> 0.5524209104 | AM12: =(0.387231 / ((Константы!AM12 / 10) ^ (8 / 3)) + 0.0029) * ((Qmin!AM12*ВГФ!AM12/24) ^ (2 / 3)) + 4.9766 / (Константы!AM12/ 10) + 0.15- 0.5213 / (Qmin!AM12 / 10) - 0.0659 -> 0.5523853095
A13: 110 | B13: Фруд1 | C13: =(0.387231 / ((Константы!C13 / 10) ^ (8 / 3)) + 0.0029) * ((Qmin!C13*ВГФ!C13/24) ^ (2 / 3)) + 4.9766 / (Константы!C13/ 10) + 0.15- 0.5213 / (Qmin!C13 / 10) - 0.0659 -> 0.9740312868 | D13: =(0.387231 / ((Константы!D13 / 10) ^ (8 / 3)) + 0.0029) * ((Qmin!D13*ВГФ!D13/24) ^ (2 / 3)) + 4.9766 / (Константы!D13/ 10) + 0.15- 0.5213 / (Qmin!D13 / 10) - 0.0659 -> 1.017156235 | E13: =(0.387231 / ((Константы!E13 / 10) ^ (8 / 3)) + 0.0029) * ((Qmin!E13*ВГФ!E13/24) ^ (2 / 3)) + 4.9766 / (Константы!E13/ 10) + 0.15- 0.5213 / (Qmin!E13 / 10) - 0.0659 -> 1.03317349 | F13: =(0.387231 / ((Константы!F13 / 10) ^ (8 / 3)) + 0.0029) * ((Qmin!F13*ВГФ!F13/24) ^ (2 / 3)) + 4.9766 / (Константы!F13/ 10) + 0.15- 0.5213 / (Qmin!F13 / 10) - 0.0659 -> 1.024665867 | G13: =(0.387231 / ((Константы!G13 / 10) ^ (8 / 3)) + 0.0029) * ((Qmin!G13*ВГФ!G13/24) ^ (2 / 3)) + 4.9766 / (Константы!G13/ 10) + 0.15- 0.5213 / (Qmin!G13 / 10) - 0.0659 -> 1.028446856 | H13: =(0.387231 / ((Константы!H13 / 10) ^ (8 / 3)) + 0.0029) * ((Qmin!H13*ВГФ!H13/24) ^ (2 / 3)) + 4.9766 / (Константы!H13/ 10) + 0.15- 0.5213 / (Qmin!H13 / 10) - 0.0659 -> 0.6823965982 | I13: =(0.387231 / ((Константы!I13 / 10) ^ (8 / 3)) + 0.0029) * ((Qmin!I13*ВГФ!I13/24) ^ (2 / 3)) + 4.9766 / (Константы!I13/ 10) + 0.15- 0.5213 / (Qmin!I13 / 10) - 0.0659 -> 0.6868407402 | J13: =(0.387231 / ((Константы!J13 / 10) ^ (8 / 3)) + 0.0029) * ((Qmin!J13*ВГФ!J13/24) ^ (2 / 3)) + 4.9766 / (Константы!J13/ 10) + 0.15- 0.5213 / (Qmin!J13 / 10) - 0.0659 -> 0.6868281217 | K13: =(0.387231 / ((Константы!K13 / 10) ^ (8 / 3)) + 0.0029) * ((Qmin!K13*ВГФ!K13/24) ^ (2 / 3)) + 4.9766 / (Константы!K13/ 10) + 0.15- 0.5213 / (Qmin!K13 / 10) - 0.0659 -> 0.6868323513 | L13: =(0.387231 / ((Константы!L13 / 10) ^ (8 / 3)) + 0.0029) * ((Qmin!L13*ВГФ!L13/24) ^ (2 / 3)) + 4.9766 / (Константы!L13/ 10) + 0.15- 0.5213 / (Qmin!L13 / 10) - 0.0659 -> 0.6867658029 | M13: =(0.387231 / ((Константы!M13 / 10) ^ (8 / 3)) + 0.0029) * ((Qmin!M13*ВГФ!M13/24) ^ (2 / 3)) + 4.9766 / (Константы!M13/ 10) + 0.15- 0.5213 / (Qmin!M13 / 10) - 0.0659 -> 0.6866950845 | N13: =(0.387231 / ((Константы!N13 / 10) ^ (8 / 3)) + 0.0029) * ((Qmin!N13*ВГФ!N13/24) ^ (2 / 3)) + 4.9766 / (Константы!N13/ 10) + 0.15- 0.5213 / (Qmin!N13 / 10) - 0.0659 -> 0.6866217429 | O13: =(0.387231 / ((Константы!O13 / 10) ^ (8 / 3)) + 0.0029) * ((Qmin!O13*ВГФ!O13/24) ^ (2 / 3)) + 4.9766 / (Константы!O13/ 10) + 0.15- 0.5213 / (Qmin!O13 / 10) - 0.0659 -> 0.6865593031 | P13: =(0.387231 / ((Константы!P13 / 10) ^ (8 / 3)) + 0.0029) * ((Qmin!P13*ВГФ!P13/24) ^ (2 / 3)) + 4.9766 / (Константы!P13/ 10) + 0.15- 0.5213 / (Qmin!P13 / 10) - 0.0659 -> 0.6864671622 | Q13: =(0.387231 / ((Константы!Q13 / 10) ^ (8 / 3)) + 0.0029) * ((Qmin!Q13*ВГФ!Q13/24) ^ (2 / 3)) + 4.9766 / (Константы!Q13/ 10) + 0.15- 0.5213 / (Qmin!Q13 / 10) - 0.0659 -> 0.686392791 | R13: =(0.387231 / ((Константы!R13 / 10) ^ (8 / 3)) + 0.0029) * ((Qmin!R13*ВГФ!R13/24) ^ (2 / 3)) + 4.9766 / (Константы!R13/ 10) + 0.15- 0.5213 / (Qmin!R13 / 10) - 0.0659 -> 0.6863503536 | S13: =(0.387231 / ((Константы!S13 / 10) ^ (8 / 3)) + 0.0029) * ((Qmin!S13*ВГФ!S13/24) ^ (2 / 3)) + 4.9766 / (Константы!S13/ 10) + 0.15- 0.5213 / (Qmin!S13 / 10) - 0.0659 -> 0.6863072618 | T13: =(0.387231 / ((Константы!T13 / 10) ^ (8 / 3)) + 0.0029) * ((Qmin!T13*ВГФ!T13/24) ^ (2 / 3)) + 4.9766 / (Константы!T13/ 10) + 0.15- 0.5213 / (Qmin!T13 / 10) - 0.0659 -> 0.686266795 | U13: =(0.387231 / ((Константы!U13 / 10) ^ (8 / 3)) + 0.0029) * ((Qmin!U13*ВГФ!U13/24) ^ (2 / 3)) + 4.9766 / (Константы!U13/ 10) + 0.15- 0.5213 / (Qmin!U13 / 10) - 0.0659 -> 0.6862349835 | V13: =(0.387231 / ((Константы!V13 / 10) ^ (8 / 3)) + 0.0029) * ((Qmin!V13*ВГФ!V13/24) ^ (2 / 3)) + 4.9766 / (Константы!V13/ 10) + 0.15- 0.5213 / (Qmin!V13 / 10) - 0.0659 -> 0.6860147179 | W13: =(0.387231 / ((Константы!W13 / 10) ^ (8 / 3)) + 0.0029) * ((Qmin!W13*ВГФ!W13/24) ^ (2 / 3)) + 4.9766 / (Константы!W13/ 10) + 0.15- 0.5213 / (Qmin!W13 / 10) - 0.0659 -> 0.6857222569 | X13: =(0.387231 / ((Константы!X13 / 10) ^ (8 / 3)) + 0.0029) * ((Qmin!X13*ВГФ!X13/24) ^ (2 / 3)) + 4.9766 / (Константы!X13/ 10) + 0.15- 0.5213 / (Qmin!X13 / 10) - 0.0659 -> 0.6853444041 | Y13: =(0.387231 / ((Константы!Y13 / 10) ^ (8 / 3)) + 0.0029) * ((Qmin!Y13*ВГФ!Y13/24) ^ (2 / 3)) + 4.9766 / (Константы!Y13/ 10) + 0.15- 0.5213 / (Qmin!Y13 / 10) - 0.0659 -> 0.6849162049 | Z13: =(0.387231 / ((Константы!Z13 / 10) ^ (8 / 3)) + 0.0029) * ((Qmin!Z13*ВГФ!Z13/24) ^ (2 / 3)) + 4.9766 / (Константы!Z13/ 10) + 0.15- 0.5213 / (Qmin!Z13 / 10) - 0.0659 -> 0.6845644717 | AA13: =(0.387231 / ((Константы!AA13 / 10) ^ (8 / 3)) + 0.0029) * ((Qmin!AA13*ВГФ!AA13/24) ^ (2 / 3)) + 4.9766 / (Константы!AA13/ 10) + 0.15- 0.5213 / (Qmin!AA13 / 10) - 0.0659 -> 0.6843116681 | AB13: =(0.387231 / ((Константы!AB13 / 10) ^ (8 / 3)) + 0.0029) * ((Qmin!AB13*ВГФ!AB13/24) ^ (2 / 3)) + 4.9766 / (Константы!AB13/ 10) + 0.15- 0.5213 / (Qmin!AB13 / 10) - 0.0659 -> 0.6841085496 | AC13: =(0.387231 / ((Константы!AC13 / 10) ^ (8 / 3)) + 0.0029) * ((Qmin!AC13*ВГФ!AC13/24) ^ (2 / 3)) + 4.9766 / (Константы!AC13/ 10) + 0.15- 0.5213 / (Qmin!AC13 / 10) - 0.0659 -> 0.6839302639 | AD13: =(0.387231 / ((Константы!AD13 / 10) ^ (8 / 3)) + 0.0029) * ((Qmin!AD13*ВГФ!AD13/24) ^ (2 / 3)) + 4.9766 / (Константы!AD13/ 10) + 0.15- 0.5213 / (Qmin!AD13 / 10) - 0.0659 -> 0.6837644675 | AE13: =(0.387231 / ((Константы!AE13 / 10) ^ (8 / 3)) + 0.0029) * ((Qmin!AE13*ВГФ!AE13/24) ^ (2 / 3)) + 4.9766 / (Константы!AE13/ 10) + 0.15- 0.5213 / (Qmin!AE13 / 10) - 0.0659 -> 0.683625635 | AF13: =(0.387231 / ((Константы!AF13 / 10) ^ (8 / 3)) + 0.0029) * ((Qmin!AF13*ВГФ!AF13/24) ^ (2 / 3)) + 4.9766 / (Константы!AF13/ 10) + 0.15- 0.5213 / (Qmin!AF13 / 10) - 0.0659 -> 0.6834924625 | AG13: =(0.387231 / ((Константы!AG13 / 10) ^ (8 / 3)) + 0.0029) * ((Qmin!AG13*ВГФ!AG13/24) ^ (2 / 3)) + 4.9766 / (Константы!AG13/ 10) + 0.15- 0.5213 / (Qmin!AG13 / 10) - 0.0659 -> 0.6833814249 | AH13: =(0.387231 / ((Константы!AH13 / 10) ^ (8 / 3)) + 0.0029) * ((Qmin!AH13*ВГФ!AH13/24) ^ (2 / 3)) + 4.9766 / (Константы!AH13/ 10) + 0.15- 0.5213 / (Qmin!AH13 / 10) - 0.0659 -> 0.6832660283 | AI13: =(0.387231 / ((Константы!AI13 / 10) ^ (8 / 3)) + 0.0029) * ((Qmin!AI13*ВГФ!AI13/24) ^ (2 / 3)) + 4.9766 / (Константы!AI13/ 10) + 0.15- 0.5213 / (Qmin!AI13 / 10) - 0.0659 -> 0.6832093192 | AJ13: =(0.387231 / ((Константы!AJ13 / 10) ^ (8 / 3)) + 0.0029) * ((Qmin!AJ13*ВГФ!AJ13/24) ^ (2 / 3)) + 4.9766 / (Константы!AJ13/ 10) + 0.15- 0.5213 / (Qmin!AJ13 / 10) - 0.0659 -> 0.6831256192 | AK13: =(0.387231 / ((Константы!AK13 / 10) ^ (8 / 3)) + 0.0029) * ((Qmin!AK13*ВГФ!AK13/24) ^ (2 / 3)) + 4.9766 / (Константы!AK13/ 10) + 0.15- 0.5213 / (Qmin!AK13 / 10) - 0.0659 -> 0.6830409738 | AL13: =(0.387231 / ((Константы!AL13 / 10) ^ (8 / 3)) + 0.0029) * ((Qmin!AL13*ВГФ!AL13/24) ^ (2 / 3)) + 4.9766 / (Константы!AL13/ 10) + 0.15- 0.5213 / (Qmin!AL13 / 10) - 0.0659 -> 0.6829581891 | AM13: =(0.387231 / ((Константы!AM13 / 10) ^ (8 / 3)) + 0.0029) * ((Qmin!AM13*ВГФ!AM13/24) ^ (2 / 3)) + 4.9766 / (Константы!AM13/ 10) + 0.15- 0.5213 / (Qmin!AM13 / 10) - 0.0659 -> 0.6828915681
A14: 111 | B14: Фруд1 | C14: =(0.387231 / ((Константы!C14 / 10) ^ (8 / 3)) + 0.0029) * ((Qmin!C14*ВГФ!C14/24) ^ (2 / 3)) + 4.9766 / (Константы!C14/ 10) + 0.15- 0.5213 / (Qmin!C14 / 10) - 0.0659 -> 0.6875386451 | D14: =(0.387231 / ((Константы!D14 / 10) ^ (8 / 3)) + 0.0029) * ((Qmin!D14*ВГФ!D14/24) ^ (2 / 3)) + 4.9766 / (Константы!D14/ 10) + 0.15- 0.5213 / (Qmin!D14 / 10) - 0.0659 -> 0.6874980176 | E14: =(0.387231 / ((Константы!E14 / 10) ^ (8 / 3)) + 0.0029) * ((Qmin!E14*ВГФ!E14/24) ^ (2 / 3)) + 4.9766 / (Константы!E14/ 10) + 0.15- 0.5213 / (Qmin!E14 / 10) - 0.0659 -> 0.6874286745 | F14: =(0.387231 / ((Константы!F14 / 10) ^ (8 / 3)) + 0.0029) * ((Qmin!F14*ВГФ!F14/24) ^ (2 / 3)) + 4.9766 / (Константы!F14/ 10) + 0.15- 0.5213 / (Qmin!F14 / 10) - 0.0659 -> 0.6877771905 | G14: =(0.387231 / ((Константы!G14 / 10) ^ (8 / 3)) + 0.0029) * ((Qmin!G14*ВГФ!G14/24) ^ (2 / 3)) + 4.9766 / (Константы!G14/ 10) + 0.15- 0.5213 / (Qmin!G14 / 10) - 0.0659 -> 0.6883703817 | H14: =(0.387231 / ((Константы!H14 / 10) ^ (8 / 3)) + 0.0029) * ((Qmin!H14*ВГФ!H14/24) ^ (2 / 3)) + 4.9766 / (Константы!H14/ 10) + 0.15- 0.5213 / (Qmin!H14 / 10) - 0.0659 -> 0.6885635321 | I14: =(0.387231 / ((Константы!I14 / 10) ^ (8 / 3)) + 0.0029) * ((Qmin!I14*ВГФ!I14/24) ^ (2 / 3)) + 4.9766 / (Константы!I14/ 10) + 0.15- 0.5213 / (Qmin!I14 / 10) - 0.0659 -> 0.7284897895 | J14: =(0.387231 / ((Константы!J14 / 10) ^ (8 / 3)) + 0.0029) * ((Qmin!J14*ВГФ!J14/24) ^ (2 / 3)) + 4.9766 / (Константы!J14/ 10) + 0.15- 0.5213 / (Qmin!J14 / 10) - 0.0659 -> 0.7284897895 | K14: =(0.387231 / ((Константы!K14 / 10) ^ (8 / 3)) + 0.0029) * ((Qmin!K14*ВГФ!K14/24) ^ (2 / 3)) + 4.9766 / (Константы!K14/ 10) + 0.15- 0.5213 / (Qmin!K14 / 10) - 0.0659 -> 0.7284897895 | L14: =(0.387231 / ((Константы!L14 / 10) ^ (8 / 3)) + 0.0029) * ((Qmin!L14*ВГФ!L14/24) ^ (2 / 3)) + 4.9766 / (Константы!L14/ 10) + 0.15- 0.5213 / (Qmin!L14 / 10) - 0.0659 -> 0.7284897895 | M14: =(0.387231 / ((Константы!M14 / 10) ^ (8 / 3)) + 0.0029) * ((Qmin!M14*ВГФ!M14/24) ^ (2 / 3)) + 4.9766 / (Константы!M14/ 10) + 0.15- 0.5213 / (Qmin!M14 / 10) - 0.0659 -> 0.7284897895 | N14: =(0.387231 / ((Константы!N14 / 10) ^ (8 / 3)) + 0.0029) * ((Qmin!N14*ВГФ!N14/24) ^ (2 / 3)) + 4.9766 / (Константы!N14/ 10) + 0.15- 0.5213 / (Qmin!N14 / 10) - 0.0659 -> 0.7284897895 | O14: =(0.387231 / ((Константы!O14 / 10) ^ (8 / 3)) + 0.0029) * ((Qmin!O14*ВГФ!O14/24) ^ (2 / 3)) + 4.9766 / (Константы!O14/ 10) + 0.15- 0.5213 / (Qmin!O14 / 10) - 0.0659 -> 0.7284897895 | P14: =(0.387231 / ((Константы!P14 / 10) ^ (8 / 3)) + 0.0029) * ((Qmin!P14*ВГФ!P14/24) ^ (2 / 3)) + 4.9766 / (Константы!P14/ 10) + 0.15- 0.5213 / (Qmin!P14 / 10) - 0.0659 -> 0.7284897895 | Q14: =(0.387231 / ((Константы!Q14 / 10) ^ (8 / 3)) + 0.0029) * ((Qmin!Q14*ВГФ!Q14/24) ^ (2 / 3)) + 4.9766 / (Константы!Q14/ 10) + 0.15- 0.5213 / (Qmin!Q14 / 10) - 0.0659 -> 0.7284897895 | R14: =(0.387231 / ((Константы!R14 / 10) ^ (8 / 3)) + 0.0029) * ((Qmin!R14*ВГФ!R14/24) ^ (2 / 3)) + 4.9766 / (Константы!R14/ 10) + 0.15- 0.5213 / (Qmin!R14 / 10) - 0.0659 -> 0.7284897895 | S14: =(0.387231 / ((Константы!S14 / 10) ^ (8 / 3)) + 0.0029) * ((Qmin!S14*ВГФ!S14/24) ^ (2 / 3)) + 4.9766 / (Константы!S14/ 10) + 0.15- 0.5213 / (Qmin!S14 / 10) - 0.0659 -> 0.7284897895 | T14: =(0.387231 / ((Константы!T14 / 10) ^ (8 / 3)) + 0.0029) * ((Qmin!T14*ВГФ!T14/24) ^ (2 / 3)) + 4.9766 / (Константы!T14/ 10) + 0.15- 0.5213 / (Qmin!T14 / 10) - 0.0659 -> 0.7284897895 | U14: =(0.387231 / ((Константы!U14 / 10) ^ (8 / 3)) + 0.0029) * ((Qmin!U14*ВГФ!U14/24) ^ (2 / 3)) + 4.9766 / (Константы!U14/ 10) + 0.15- 0.5213 / (Qmin!U14 / 10) - 0.0659 -> 0.7284897895 | V14: =(0.387231 / ((Константы!V14 / 10) ^ (8 / 3)) + 0.0029) * ((Qmin!V14*ВГФ!V14/24) ^ (2 / 3)) + 4.9766 / (Константы!V14/ 10) + 0.15- 0.5213 / (Qmin!V14 / 10) - 0.0659 -> 0.7284897895 | W14: =(0.387231 / ((Константы!W14 / 10) ^ (8 / 3)) + 0.0029) * ((Qmin!W14*ВГФ!W14/24) ^ (2 / 3)) + 4.9766 / (Константы!W14/ 10) + 0.15- 0.5213 / (Qmin!W14 / 10) - 0.0659 -> 0.7284897895 | X14: =(0.387231 / ((Константы!X14 / 10) ^ (8 / 3)) + 0.0029) * ((Qmin!X14*ВГФ!X14/24) ^ (2 / 3)) + 4.9766 / (Константы!X14/ 10) + 0.15- 0.5213 / (Qmin!X14 / 10) - 0.0659 -> 0.7284897895 | Y14: =(0.387231 / ((Константы!Y14 / 10) ^ (8 / 3)) + 0.0029) * ((Qmin!Y14*ВГФ!Y14/24) ^ (2 / 3)) + 4.9766 / (Константы!Y14/ 10) + 0.15- 0.5213 / (Qmin!Y14 / 10) - 0.0659 -> 0.7284897895 | Z14: =(0.387231 / ((Константы!Z14 / 10) ^ (8 / 3)) + 0.0029) * ((Qmin!Z14*ВГФ!Z14/24) ^ (2 / 3)) + 4.9766 / (Константы!Z14/ 10) + 0.15- 0.5213 / (Qmin!Z14 / 10) - 0.0659 -> 0.7284897895 | AA14: =(0.387231 / ((Константы!AA14 / 10) ^ (8 / 3)) + 0.0029) * ((Qmin!AA14*ВГФ!AA14/24) ^ (2 / 3)) + 4.9766 / (Константы!AA14/ 10) + 0.15- 0.5213 / (Qmin!AA14 / 10) - 0.0659 -> 0.7284897895 | AB14: =(0.387231 / ((Константы!AB14 / 10) ^ (8 / 3)) + 0.0029) * ((Qmin!AB14*ВГФ!AB14/24) ^ (2 / 3)) + 4.9766 / (Константы!AB14/ 10) + 0.15- 0.5213 / (Qmin!AB14 / 10) - 0.0659 -> 0.7284897895 | AC14: =(0.387231 / ((Константы!AC14 / 10) ^ (8 / 3)) + 0.0029) * ((Qmin!AC14*ВГФ!AC14/24) ^ (2 / 3)) + 4.9766 / (Константы!AC14/ 10) + 0.15- 0.5213 / (Qmin!AC14 / 10) - 0.0659 -> 0.7284897895 | AD14: =(0.387231 / ((Константы!AD14 / 10) ^ (8 / 3)) + 0.0029) * ((Qmin!AD14*ВГФ!AD14/24) ^ (2 / 3)) + 4.9766 / (Константы!AD14/ 10) + 0.15- 0.5213 / (Qmin!AD14 / 10) - 0.0659 -> 0.7284897895 | AE14: =(0.387231 / ((Константы!AE14 / 10) ^ (8 / 3)) + 0.0029) * ((Qmin!AE14*ВГФ!AE14/24) ^ (2 / 3)) + 4.9766 / (Константы!AE14/ 10) + 0.15- 0.5213 / (Qmin!AE14 / 10) - 0.0659 -> 0.7284897895 | AF14: =(0.387231 / ((Константы!AF14 / 10) ^ (8 / 3)) + 0.0029) * ((Qmin!AF14*ВГФ!AF14/24) ^ (2 / 3)) + 4.9766 / (Константы!AF14/ 10) + 0.15- 0.5213 / (Qmin!AF14 / 10) - 0.0659 -> 0.7284897895 | AG14: =(0.387231 / ((Константы!AG14 / 10) ^ (8 / 3)) + 0.0029) * ((Qmin!AG14*ВГФ!AG14/24) ^ (2 / 3)) + 4.9766 / (Константы!AG14/ 10) + 0.15- 0.5213 / (Qmin!AG14 / 10) - 0.0659 -> 0.7284897895 | AH14: =(0.387231 / ((Константы!AH14 / 10) ^ (8 / 3)) + 0.0029) * ((Qmin!AH14*ВГФ!AH14/24) ^ (2 / 3)) + 4.9766 / (Константы!AH14/ 10) + 0.15- 0.5213 / (Qmin!AH14 / 10) - 0.0659 -> 0.7284897895 | AI14: =(0.387231 / ((Константы!AI14 / 10) ^ (8 / 3)) + 0.0029) * ((Qmin!AI14*ВГФ!AI14/24) ^ (2 / 3)) + 4.9766 / (Константы!AI14/ 10) + 0.15- 0.5213 / (Qmin!AI14 / 10) - 0.0659 -> 0.7284897895 | AJ14: =(0.387231 / ((Константы!AJ14 / 10) ^ (8 / 3)) + 0.0029) * ((Qmin!AJ14*ВГФ!AJ14/24) ^ (2 / 3)) + 4.9766 / (Константы!AJ14/ 10) + 0.15- 0.5213 / (Qmin!AJ14 / 10) - 0.0659 -> 0.7284897895 | AK14: =(0.387231 / ((Константы!AK14 / 10) ^ (8 / 3)) + 0.0029) * ((Qmin!AK14*ВГФ!AK14/24) ^ (2 / 3)) + 4.9766 / (Константы!AK14/ 10) + 0.15- 0.5213 / (Qmin!AK14 / 10) - 0.0659 -> 0.7284897895 | AL14: =(0.387231 / ((Константы!AL14 / 10) ^ (8 / 3)) + 0.0029) * ((Qmin!AL14*ВГФ!AL14/24) ^ (2 / 3)) + 4.9766 / (Константы!AL14/ 10) + 0.15- 0.5213 / (Qmin!AL14 / 10) - 0.0659 -> 0.7284897895 | AM14: =(0.387231 / ((Константы!AM14 / 10) ^ (8 / 3)) + 0.0029) * ((Qmin!AM14*ВГФ!AM14/24) ^ (2 / 3)) + 4.9766 / (Константы!AM14/ 10) + 0.15- 0.5213 / (Qmin!AM14 / 10) - 0.0659 -> 0.7284897895
A15: 112 | B15: Фруд1 | C15: =(0.387231 / ((Константы!C15 / 10) ^ (8 / 3)) + 0.0029) * ((Qmin!C15*ВГФ!C15/24) ^ (2 / 3)) + 4.9766 / (Константы!C15/ 10) + 0.15- 0.5213 / (Qmin!C15 / 10) - 0.0659 -> 0.733162123 | D15: =(0.387231 / ((Константы!D15 / 10) ^ (8 / 3)) + 0.0029) * ((Qmin!D15*ВГФ!D15/24) ^ (2 / 3)) + 4.9766 / (Константы!D15/ 10) + 0.15- 0.5213 / (Qmin!D15 / 10) - 0.0659 -> 0.7341913039 | E15: =(0.387231 / ((Константы!E15 / 10) ^ (8 / 3)) + 0.0029) * ((Qmin!E15*ВГФ!E15/24) ^ (2 / 3)) + 4.9766 / (Константы!E15/ 10) + 0.15- 0.5213 / (Qmin!E15 / 10) - 0.0659 -> 0.7320964936 | F15: =(0.387231 / ((Константы!F15 / 10) ^ (8 / 3)) + 0.0029) * ((Qmin!F15*ВГФ!F15/24) ^ (2 / 3)) + 4.9766 / (Константы!F15/ 10) + 0.15- 0.5213 / (Qmin!F15 / 10) - 0.0659 -> 0.7330575636 | G15: =(0.387231 / ((Константы!G15 / 10) ^ (8 / 3)) + 0.0029) * ((Qmin!G15*ВГФ!G15/24) ^ (2 / 3)) + 4.9766 / (Константы!G15/ 10) + 0.15- 0.5213 / (Qmin!G15 / 10) - 0.0659 -> 0.7325753281 | H15: =(0.387231 / ((Константы!H15 / 10) ^ (8 / 3)) + 0.0029) * ((Qmin!H15*ВГФ!H15/24) ^ (2 / 3)) + 4.9766 / (Константы!H15/ 10) + 0.15- 0.5213 / (Qmin!H15 / 10) - 0.0659 -> 0.7300705511 | I15: =(0.387231 / ((Константы!I15 / 10) ^ (8 / 3)) + 0.0029) * ((Qmin!I15*ВГФ!I15/24) ^ (2 / 3)) + 4.9766 / (Константы!I15/ 10) + 0.15- 0.5213 / (Qmin!I15 / 10) - 0.0659 -> 0.7301676907 | J15: =(0.387231 / ((Константы!J15 / 10) ^ (8 / 3)) + 0.0029) * ((Qmin!J15*ВГФ!J15/24) ^ (2 / 3)) + 4.9766 / (Константы!J15/ 10) + 0.15- 0.5213 / (Qmin!J15 / 10) - 0.0659 -> 0.7289580017 | K15: =(0.387231 / ((Константы!K15 / 10) ^ (8 / 3)) + 0.0029) * ((Qmin!K15*ВГФ!K15/24) ^ (2 / 3)) + 4.9766 / (Константы!K15/ 10) + 0.15- 0.5213 / (Qmin!K15 / 10) - 0.0659 -> 0.7295810749 | L15: =(0.387231 / ((Константы!L15 / 10) ^ (8 / 3)) + 0.0029) * ((Qmin!L15*ВГФ!L15/24) ^ (2 / 3)) + 4.9766 / (Константы!L15/ 10) + 0.15- 0.5213 / (Qmin!L15 / 10) - 0.0659 -> 0.7286523558 | M15: =(0.387231 / ((Константы!M15 / 10) ^ (8 / 3)) + 0.0029) * ((Qmin!M15*ВГФ!M15/24) ^ (2 / 3)) + 4.9766 / (Константы!M15/ 10) + 0.15- 0.5213 / (Qmin!M15 / 10) - 0.0659 -> 0.7279855585 | N15: =(0.387231 / ((Константы!N15 / 10) ^ (8 / 3)) + 0.0029) * ((Qmin!N15*ВГФ!N15/24) ^ (2 / 3)) + 4.9766 / (Константы!N15/ 10) + 0.15- 0.5213 / (Qmin!N15 / 10) - 0.0659 -> 0.7274503914 | O15: =(0.387231 / ((Константы!O15 / 10) ^ (8 / 3)) + 0.0029) * ((Qmin!O15*ВГФ!O15/24) ^ (2 / 3)) + 4.9766 / (Константы!O15/ 10) + 0.15- 0.5213 / (Qmin!O15 / 10) - 0.0659 -> 0.7269444477 | P15: =(0.387231 / ((Константы!P15 / 10) ^ (8 / 3)) + 0.0029) * ((Qmin!P15*ВГФ!P15/24) ^ (2 / 3)) + 4.9766 / (Константы!P15/ 10) + 0.15- 0.5213 / (Qmin!P15 / 10) - 0.0659 -> 0.7264717665 | Q15: =(0.387231 / ((Константы!Q15 / 10) ^ (8 / 3)) + 0.0029) * ((Qmin!Q15*ВГФ!Q15/24) ^ (2 / 3)) + 4.9766 / (Константы!Q15/ 10) + 0.15- 0.5213 / (Qmin!Q15 / 10) - 0.0659 -> 0.7261100732 | R15: =(0.387231 / ((Константы!R15 / 10) ^ (8 / 3)) + 0.0029) * ((Qmin!R15*ВГФ!R15/24) ^ (2 / 3)) + 4.9766 / (Константы!R15/ 10) + 0.15- 0.5213 / (Qmin!R15 / 10) - 0.0659 -> 0.7256945927 | S15: =(0.387231 / ((Константы!S15 / 10) ^ (8 / 3)) + 0.0029) * ((Qmin!S15*ВГФ!S15/24) ^ (2 / 3)) + 4.9766 / (Константы!S15/ 10) + 0.15- 0.5213 / (Qmin!S15 / 10) - 0.0659 -> 0.7253173285 | T15: =(0.387231 / ((Константы!T15 / 10) ^ (8 / 3)) + 0.0029) * ((Qmin!T15*ВГФ!T15/24) ^ (2 / 3)) + 4.9766 / (Константы!T15/ 10) + 0.15- 0.5213 / (Qmin!T15 / 10) - 0.0659 -> 0.7249431175 | U15: =(0.387231 / ((Константы!U15 / 10) ^ (8 / 3)) + 0.0029) * ((Qmin!U15*ВГФ!U15/24) ^ (2 / 3)) + 4.9766 / (Константы!U15/ 10) + 0.15- 0.5213 / (Qmin!U15 / 10) - 0.0659 -> 0.7246283347 | V15: =(0.387231 / ((Константы!V15 / 10) ^ (8 / 3)) + 0.0029) * ((Qmin!V15*ВГФ!V15/24) ^ (2 / 3)) + 4.9766 / (Константы!V15/ 10) + 0.15- 0.5213 / (Qmin!V15 / 10) - 0.0659 -> 0.7242051389 | W15: =(0.387231 / ((Константы!W15 / 10) ^ (8 / 3)) + 0.0029) * ((Qmin!W15*ВГФ!W15/24) ^ (2 / 3)) + 4.9766 / (Константы!W15/ 10) + 0.15- 0.5213 / (Qmin!W15 / 10) - 0.0659 -> 0.7243469261 | X15: =(0.387231 / ((Константы!X15 / 10) ^ (8 / 3)) + 0.0029) * ((Qmin!X15*ВГФ!X15/24) ^ (2 / 3)) + 4.9766 / (Константы!X15/ 10) + 0.15- 0.5213 / (Qmin!X15 / 10) - 0.0659 -> 0.7241040287 | Y15: =(0.387231 / ((Константы!Y15 / 10) ^ (8 / 3)) + 0.0029) * ((Qmin!Y15*ВГФ!Y15/24) ^ (2 / 3)) + 4.9766 / (Константы!Y15/ 10) + 0.15- 0.5213 / (Qmin!Y15 / 10) - 0.0659 -> 0.7241578062 | Z15: =(0.387231 / ((Константы!Z15 / 10) ^ (8 / 3)) + 0.0029) * ((Qmin!Z15*ВГФ!Z15/24) ^ (2 / 3)) + 4.9766 / (Константы!Z15/ 10) + 0.15- 0.5213 / (Qmin!Z15 / 10) - 0.0659 -> 0.7243093987 | AA15: =(0.387231 / ((Константы!AA15 / 10) ^ (8 / 3)) + 0.0029) * ((Qmin!AA15*ВГФ!AA15/24) ^ (2 / 3)) + 4.9766 / (Константы!AA15/ 10) + 0.15- 0.5213 / (Qmin!AA15 / 10) - 0.0659 -> 0.7244613668 | AB15: =(0.387231 / ((Константы!AB15 / 10) ^ (8 / 3)) + 0.0029) * ((Qmin!AB15*ВГФ!AB15/24) ^ (2 / 3)) + 4.9766 / (Константы!AB15/ 10) + 0.15- 0.5213 / (Qmin!AB15 / 10) - 0.0659 -> 0.7246479813 | AC15: =(0.387231 / ((Константы!AC15 / 10) ^ (8 / 3)) + 0.0029) * ((Qmin!AC15*ВГФ!AC15/24) ^ (2 / 3)) + 4.9766 / (Константы!AC15/ 10) + 0.15- 0.5213 / (Qmin!AC15 / 10) - 0.0659 -> 0.7249054274 | AD15: =(0.387231 / ((Константы!AD15 / 10) ^ (8 / 3)) + 0.0029) * ((Qmin!AD15*ВГФ!AD15/24) ^ (2 / 3)) + 4.9766 / (Константы!AD15/ 10) + 0.15- 0.5213 / (Qmin!AD15 / 10) - 0.0659 -> 0.7251530074 | AE15: =(0.387231 / ((Константы!AE15 / 10) ^ (8 / 3)) + 0.0029) * ((Qmin!AE15*ВГФ!AE15/24) ^ (2 / 3)) + 4.9766 / (Константы!AE15/ 10) + 0.15- 0.5213 / (Qmin!AE15 / 10) - 0.0659 -> 0.7254309808 | AF15: =(0.387231 / ((Константы!AF15 / 10) ^ (8 / 3)) + 0.0029) * ((Qmin!AF15*ВГФ!AF15/24) ^ (2 / 3)) + 4.9766 / (Константы!AF15/ 10) + 0.15- 0.5213 / (Qmin!AF15 / 10) - 0.0659 -> 0.725799582 | AG15: =(0.387231 / ((Константы!AG15 / 10) ^ (8 / 3)) + 0.0029) * ((Qmin!AG15*ВГФ!AG15/24) ^ (2 / 3)) + 4.9766 / (Константы!AG15/ 10) + 0.15- 0.5213 / (Qmin!AG15 / 10) - 0.0659 -> 0.7260494569 | AH15: =(0.387231 / ((Константы!AH15 / 10) ^ (8 / 3)) + 0.0029) * ((Qmin!AH15*ВГФ!AH15/24) ^ (2 / 3)) + 4.9766 / (Константы!AH15/ 10) + 0.15- 0.5213 / (Qmin!AH15 / 10) - 0.0659 -> 0.7249141632 | AI15: =(0.387231 / ((Константы!AI15 / 10) ^ (8 / 3)) + 0.0029) * ((Qmin!AI15*ВГФ!AI15/24) ^ (2 / 3)) + 4.9766 / (Константы!AI15/ 10) + 0.15- 0.5213 / (Qmin!AI15 / 10) - 0.0659 -> 0.7268285016 | AJ15: =(0.387231 / ((Константы!AJ15 / 10) ^ (8 / 3)) + 0.0029) * ((Qmin!AJ15*ВГФ!AJ15/24) ^ (2 / 3)) + 4.9766 / (Константы!AJ15/ 10) + 0.15- 0.5213 / (Qmin!AJ15 / 10) - 0.0659 -> 0.7270865806 | AK15: =(0.387231 / ((Константы!AK15 / 10) ^ (8 / 3)) + 0.0029) * ((Qmin!AK15*ВГФ!AK15/24) ^ (2 / 3)) + 4.9766 / (Константы!AK15/ 10) + 0.15- 0.5213 / (Qmin!AK15 / 10) - 0.0659 -> 0.7277047507 | AL15: =(0.387231 / ((Константы!AL15 / 10) ^ (8 / 3)) + 0.0029) * ((Qmin!AL15*ВГФ!AL15/24) ^ (2 / 3)) + 4.9766 / (Константы!AL15/ 10) + 0.15- 0.5213 / (Qmin!AL15 / 10) - 0.0659 -> 0.7279582566 | AM15: =(0.387231 / ((Константы!AM15 / 10) ^ (8 / 3)) + 0.0029) * ((Qmin!AM15*ВГФ!AM15/24) ^ (2 / 3)) + 4.9766 / (Константы!AM15/ 10) + 0.15- 0.5213 / (Qmin!AM15 / 10) - 0.0659 -> 0.7284388612
A16: 113 | B16: Фруд1 | C16: =(0.387231 / ((Константы!C16 / 10) ^ (8 / 3)) + 0.0029) * ((Qmin!C16*ВГФ!C16/24) ^ (2 / 3)) + 4.9766 / (Константы!C16/ 10) + 0.15- 0.5213 / (Qmin!C16 / 10) - 0.0659 -> 0.7093486919 | D16: =(0.387231 / ((Константы!D16 / 10) ^ (8 / 3)) + 0.0029) * ((Qmin!D16*ВГФ!D16/24) ^ (2 / 3)) + 4.9766 / (Константы!D16/ 10) + 0.15- 0.5213 / (Qmin!D16 / 10) - 0.0659 -> 0.7083242464 | E16: =(0.387231 / ((Константы!E16 / 10) ^ (8 / 3)) + 0.0029) * ((Qmin!E16*ВГФ!E16/24) ^ (2 / 3)) + 4.9766 / (Константы!E16/ 10) + 0.15- 0.5213 / (Qmin!E16 / 10) - 0.0659 -> 0.7034416541 | F16: =(0.387231 / ((Константы!F16 / 10) ^ (8 / 3)) + 0.0029) * ((Qmin!F16*ВГФ!F16/24) ^ (2 / 3)) + 4.9766 / (Константы!F16/ 10) + 0.15- 0.5213 / (Qmin!F16 / 10) - 0.0659 -> 0.7046422654 | G16: =(0.387231 / ((Константы!G16 / 10) ^ (8 / 3)) + 0.0029) * ((Qmin!G16*ВГФ!G16/24) ^ (2 / 3)) + 4.9766 / (Константы!G16/ 10) + 0.15- 0.5213 / (Qmin!G16 / 10) - 0.0659 -> 0.7051795355 | H16: =(0.387231 / ((Константы!H16 / 10) ^ (8 / 3)) + 0.0029) * ((Qmin!H16*ВГФ!H16/24) ^ (2 / 3)) + 4.9766 / (Константы!H16/ 10) + 0.15- 0.5213 / (Qmin!H16 / 10) - 0.0659 -> 0.7075111802 | I16: =(0.387231 / ((Константы!I16 / 10) ^ (8 / 3)) + 0.0029) * ((Qmin!I16*ВГФ!I16/24) ^ (2 / 3)) + 4.9766 / (Константы!I16/ 10) + 0.15- 0.5213 / (Qmin!I16 / 10) - 0.0659 -> 0.7088786121 | J16: =(0.387231 / ((Константы!J16 / 10) ^ (8 / 3)) + 0.0029) * ((Qmin!J16*ВГФ!J16/24) ^ (2 / 3)) + 4.9766 / (Константы!J16/ 10) + 0.15- 0.5213 / (Qmin!J16 / 10) - 0.0659 -> 0.7083722683 | K16: =(0.387231 / ((Константы!K16 / 10) ^ (8 / 3)) + 0.0029) * ((Qmin!K16*ВГФ!K16/24) ^ (2 / 3)) + 4.9766 / (Константы!K16/ 10) + 0.15- 0.5213 / (Qmin!K16 / 10) - 0.0659 -> 0.7094867413 | L16: =(0.387231 / ((Константы!L16 / 10) ^ (8 / 3)) + 0.0029) * ((Qmin!L16*ВГФ!L16/24) ^ (2 / 3)) + 4.9766 / (Константы!L16/ 10) + 0.15- 0.5213 / (Qmin!L16 / 10) - 0.0659 -> 0.7091788763 | M16: =(0.387231 / ((Константы!M16 / 10) ^ (8 / 3)) + 0.0029) * ((Qmin!M16*ВГФ!M16/24) ^ (2 / 3)) + 4.9766 / (Константы!M16/ 10) + 0.15- 0.5213 / (Qmin!M16 / 10) - 0.0659 -> 0.7092970178 | N16: =(0.387231 / ((Константы!N16 / 10) ^ (8 / 3)) + 0.0029) * ((Qmin!N16*ВГФ!N16/24) ^ (2 / 3)) + 4.9766 / (Константы!N16/ 10) + 0.15- 0.5213 / (Qmin!N16 / 10) - 0.0659 -> 0.7093996056 | O16: =(0.387231 / ((Константы!O16 / 10) ^ (8 / 3)) + 0.0029) * ((Qmin!O16*ВГФ!O16/24) ^ (2 / 3)) + 4.9766 / (Константы!O16/ 10) + 0.15- 0.5213 / (Qmin!O16 / 10) - 0.0659 -> 0.7095062786 | P16: =(0.387231 / ((Константы!P16 / 10) ^ (8 / 3)) + 0.0029) * ((Qmin!P16*ВГФ!P16/24) ^ (2 / 3)) + 4.9766 / (Константы!P16/ 10) + 0.15- 0.5213 / (Qmin!P16 / 10) - 0.0659 -> 0.7096080459 | Q16: =(0.387231 / ((Константы!Q16 / 10) ^ (8 / 3)) + 0.0029) * ((Qmin!Q16*ВГФ!Q16/24) ^ (2 / 3)) + 4.9766 / (Константы!Q16/ 10) + 0.15- 0.5213 / (Qmin!Q16 / 10) - 0.0659 -> 0.7097542455 | R16: =(0.387231 / ((Константы!R16 / 10) ^ (8 / 3)) + 0.0029) * ((Qmin!R16*ВГФ!R16/24) ^ (2 / 3)) + 4.9766 / (Константы!R16/ 10) + 0.15- 0.5213 / (Qmin!R16 / 10) - 0.0659 -> 0.7098837576 | S16: =(0.387231 / ((Константы!S16 / 10) ^ (8 / 3)) + 0.0029) * ((Qmin!S16*ВГФ!S16/24) ^ (2 / 3)) + 4.9766 / (Константы!S16/ 10) + 0.15- 0.5213 / (Qmin!S16 / 10) - 0.0659 -> 0.7099724096 | T16: =(0.387231 / ((Константы!T16 / 10) ^ (8 / 3)) + 0.0029) * ((Qmin!T16*ВГФ!T16/24) ^ (2 / 3)) + 4.9766 / (Константы!T16/ 10) + 0.15- 0.5213 / (Qmin!T16 / 10) - 0.0659 -> 0.7100734299 | U16: =(0.387231 / ((Константы!U16 / 10) ^ (8 / 3)) + 0.0029) * ((Qmin!U16*ВГФ!U16/24) ^ (2 / 3)) + 4.9766 / (Константы!U16/ 10) + 0.15- 0.5213 / (Qmin!U16 / 10) - 0.0659 -> 0.7102272106 | V16: =(0.387231 / ((Константы!V16 / 10) ^ (8 / 3)) + 0.0029) * ((Qmin!V16*ВГФ!V16/24) ^ (2 / 3)) + 4.9766 / (Константы!V16/ 10) + 0.15- 0.5213 / (Qmin!V16 / 10) - 0.0659 -> 0.7102515297 | W16: =(0.387231 / ((Константы!W16 / 10) ^ (8 / 3)) + 0.0029) * ((Qmin!W16*ВГФ!W16/24) ^ (2 / 3)) + 4.9766 / (Константы!W16/ 10) + 0.15- 0.5213 / (Qmin!W16 / 10) - 0.0659 -> 0.7104772691 | X16: =(0.387231 / ((Константы!X16 / 10) ^ (8 / 3)) + 0.0029) * ((Qmin!X16*ВГФ!X16/24) ^ (2 / 3)) + 4.9766 / (Константы!X16/ 10) + 0.15- 0.5213 / (Qmin!X16 / 10) - 0.0659 -> 0.7105850165 | Y16: =(0.387231 / ((Константы!Y16 / 10) ^ (8 / 3)) + 0.0029) * ((Qmin!Y16*ВГФ!Y16/24) ^ (2 / 3)) + 4.9766 / (Константы!Y16/ 10) + 0.15- 0.5213 / (Qmin!Y16 / 10) - 0.0659 -> 0.7106886635 | Z16: =(0.387231 / ((Константы!Z16 / 10) ^ (8 / 3)) + 0.0029) * ((Qmin!Z16*ВГФ!Z16/24) ^ (2 / 3)) + 4.9766 / (Константы!Z16/ 10) + 0.15- 0.5213 / (Qmin!Z16 / 10) - 0.0659 -> 0.7108192994 | AA16: =(0.387231 / ((Константы!AA16 / 10) ^ (8 / 3)) + 0.0029) * ((Qmin!AA16*ВГФ!AA16/24) ^ (2 / 3)) + 4.9766 / (Константы!AA16/ 10) + 0.15- 0.5213 / (Qmin!AA16 / 10) - 0.0659 -> 0.7109238224 | AB16: =(0.387231 / ((Константы!AB16 / 10) ^ (8 / 3)) + 0.0029) * ((Qmin!AB16*ВГФ!AB16/24) ^ (2 / 3)) + 4.9766 / (Константы!AB16/ 10) + 0.15- 0.5213 / (Qmin!AB16 / 10) - 0.0659 -> 0.7110275989 | AC16: =(0.387231 / ((Константы!AC16 / 10) ^ (8 / 3)) + 0.0029) * ((Qmin!AC16*ВГФ!AC16/24) ^ (2 / 3)) + 4.9766 / (Константы!AC16/ 10) + 0.15- 0.5213 / (Qmin!AC16 / 10) - 0.0659 -> 0.7111419255 | AD16: =(0.387231 / ((Константы!AD16 / 10) ^ (8 / 3)) + 0.0029) * ((Qmin!AD16*ВГФ!AD16/24) ^ (2 / 3)) + 4.9766 / (Константы!AD16/ 10) + 0.15- 0.5213 / (Qmin!AD16 / 10) - 0.0659 -> 0.7112491713 | AE16: =(0.387231 / ((Константы!AE16 / 10) ^ (8 / 3)) + 0.0029) * ((Qmin!AE16*ВГФ!AE16/24) ^ (2 / 3)) + 4.9766 / (Константы!AE16/ 10) + 0.15- 0.5213 / (Qmin!AE16 / 10) - 0.0659 -> 0.7113609344 | AF16: =(0.387231 / ((Константы!AF16 / 10) ^ (8 / 3)) + 0.0029) * ((Qmin!AF16*ВГФ!AF16/24) ^ (2 / 3)) + 4.9766 / (Константы!AF16/ 10) + 0.15- 0.5213 / (Qmin!AF16 / 10) - 0.0659 -> 0.7114955789 | AG16: =(0.387231 / ((Константы!AG16 / 10) ^ (8 / 3)) + 0.0029) * ((Qmin!AG16*ВГФ!AG16/24) ^ (2 / 3)) + 4.9766 / (Константы!AG16/ 10) + 0.15- 0.5213 / (Qmin!AG16 / 10) - 0.0659 -> 0.7115942287 | AH16: =(0.387231 / ((Константы!AH16 / 10) ^ (8 / 3)) + 0.0029) * ((Qmin!AH16*ВГФ!AH16/24) ^ (2 / 3)) + 4.9766 / (Константы!AH16/ 10) + 0.15- 0.5213 / (Qmin!AH16 / 10) - 0.0659 -> 0.711036497 | AI16: =(0.387231 / ((Константы!AI16 / 10) ^ (8 / 3)) + 0.0029) * ((Qmin!AI16*ВГФ!AI16/24) ^ (2 / 3)) + 4.9766 / (Константы!AI16/ 10) + 0.15- 0.5213 / (Qmin!AI16 / 10) - 0.0659 -> 0.7115936162 | AJ16: =(0.387231 / ((Константы!AJ16 / 10) ^ (8 / 3)) + 0.0029) * ((Qmin!AJ16*ВГФ!AJ16/24) ^ (2 / 3)) + 4.9766 / (Константы!AJ16/ 10) + 0.15- 0.5213 / (Qmin!AJ16 / 10) - 0.0659 -> 0.7118747595 | AK16: =(0.387231 / ((Константы!AK16 / 10) ^ (8 / 3)) + 0.0029) * ((Qmin!AK16*ВГФ!AK16/24) ^ (2 / 3)) + 4.9766 / (Константы!AK16/ 10) + 0.15- 0.5213 / (Qmin!AK16 / 10) - 0.0659 -> 0.7121047575 | AL16: =(0.387231 / ((Константы!AL16 / 10) ^ (8 / 3)) + 0.0029) * ((Qmin!AL16*ВГФ!AL16/24) ^ (2 / 3)) + 4.9766 / (Константы!AL16/ 10) + 0.15- 0.5213 / (Qmin!AL16 / 10) - 0.0659 -> 0.7121930417 | AM16: =(0.387231 / ((Константы!AM16 / 10) ^ (8 / 3)) + 0.0029) * ((Qmin!AM16*ВГФ!AM16/24) ^ (2 / 3)) + 4.9766 / (Константы!AM16/ 10) + 0.15- 0.5213 / (Qmin!AM16 / 10) - 0.0659 -> 0.7123589732
A17: 114 | B17: Фруд1 | C17: =(0.387231 / ((Константы!C17 / 10) ^ (8 / 3)) + 0.0029) * ((Qmin!C17*ВГФ!C17/24) ^ (2 / 3)) + 4.9766 / (Константы!C17/ 10) + 0.15- 0.5213 / (Qmin!C17 / 10) - 0.0659 -> 0.6973665357 | D17: =(0.387231 / ((Константы!D17 / 10) ^ (8 / 3)) + 0.0029) * ((Qmin!D17*ВГФ!D17/24) ^ (2 / 3)) + 4.9766 / (Константы!D17/ 10) + 0.15- 0.5213 / (Qmin!D17 / 10) - 0.0659 -> 0.7110560596 | E17: =(0.387231 / ((Константы!E17 / 10) ^ (8 / 3)) + 0.0029) * ((Qmin!E17*ВГФ!E17/24) ^ (2 / 3)) + 4.9766 / (Константы!E17/ 10) + 0.15- 0.5213 / (Qmin!E17 / 10) - 0.0659 -> 0.6964917372 | F17: =(0.387231 / ((Константы!F17 / 10) ^ (8 / 3)) + 0.0029) * ((Qmin!F17*ВГФ!F17/24) ^ (2 / 3)) + 4.9766 / (Константы!F17/ 10) + 0.15- 0.5213 / (Qmin!F17 / 10) - 0.0659 -> 0.6972797283 | G17: =(0.387231 / ((Константы!G17 / 10) ^ (8 / 3)) + 0.0029) * ((Qmin!G17*ВГФ!G17/24) ^ (2 / 3)) + 4.9766 / (Константы!G17/ 10) + 0.15- 0.5213 / (Qmin!G17 / 10) - 0.0659 -> 0.6968948056 | H17: =(0.387231 / ((Константы!H17 / 10) ^ (8 / 3)) + 0.0029) * ((Qmin!H17*ВГФ!H17/24) ^ (2 / 3)) + 4.9766 / (Константы!H17/ 10) + 0.15- 0.5213 / (Qmin!H17 / 10) - 0.0659 -> 0.6966450719 | I17: =(0.387231 / ((Константы!I17 / 10) ^ (8 / 3)) + 0.0029) * ((Qmin!I17*ВГФ!I17/24) ^ (2 / 3)) + 4.9766 / (Константы!I17/ 10) + 0.15- 0.5213 / (Qmin!I17 / 10) - 0.0659 -> 0.7284897895 | J17: =(0.387231 / ((Константы!J17 / 10) ^ (8 / 3)) + 0.0029) * ((Qmin!J17*ВГФ!J17/24) ^ (2 / 3)) + 4.9766 / (Константы!J17/ 10) + 0.15- 0.5213 / (Qmin!J17 / 10) - 0.0659 -> 0.7284897895 | K17: =(0.387231 / ((Константы!K17 / 10) ^ (8 / 3)) + 0.0029) * ((Qmin!K17*ВГФ!K17/24) ^ (2 / 3)) + 4.9766 / (Константы!K17/ 10) + 0.15- 0.5213 / (Qmin!K17 / 10) - 0.0659 -> 0.7284897895 | L17: =(0.387231 / ((Константы!L17 / 10) ^ (8 / 3)) + 0.0029) * ((Qmin!L17*ВГФ!L17/24) ^ (2 / 3)) + 4.9766 / (Константы!L17/ 10) + 0.15- 0.5213 / (Qmin!L17 / 10) - 0.0659 -> 0.7284897895 | M17: =(0.387231 / ((Константы!M17 / 10) ^ (8 / 3)) + 0.0029) * ((Qmin!M17*ВГФ!M17/24) ^ (2 / 3)) + 4.9766 / (Константы!M17/ 10) + 0.15- 0.5213 / (Qmin!M17 / 10) - 0.0659 -> 0.7284897895 | N17: =(0.387231 / ((Константы!N17 / 10) ^ (8 / 3)) + 0.0029) * ((Qmin!N17*ВГФ!N17/24) ^ (2 / 3)) + 4.9766 / (Константы!N17/ 10) + 0.15- 0.5213 / (Qmin!N17 / 10) - 0.0659 -> 0.7284897895 | O17: =(0.387231 / ((Константы!O17 / 10) ^ (8 / 3)) + 0.0029) * ((Qmin!O17*ВГФ!O17/24) ^ (2 / 3)) + 4.9766 / (Константы!O17/ 10) + 0.15- 0.5213 / (Qmin!O17 / 10) - 0.0659 -> 0.7284897895 | P17: =(0.387231 / ((Константы!P17 / 10) ^ (8 / 3)) + 0.0029) * ((Qmin!P17*ВГФ!P17/24) ^ (2 / 3)) + 4.9766 / (Константы!P17/ 10) + 0.15- 0.5213 / (Qmin!P17 / 10) - 0.0659 -> 0.7284897895 | Q17: =(0.387231 / ((Константы!Q17 / 10) ^ (8 / 3)) + 0.0029) * ((Qmin!Q17*ВГФ!Q17/24) ^ (2 / 3)) + 4.9766 / (Константы!Q17/ 10) + 0.15- 0.5213 / (Qmin!Q17 / 10) - 0.0659 -> 0.7284897895 | R17: =(0.387231 / ((Константы!R17 / 10) ^ (8 / 3)) + 0.0029) * ((Qmin!R17*ВГФ!R17/24) ^ (2 / 3)) + 4.9766 / (Константы!R17/ 10) + 0.15- 0.5213 / (Qmin!R17 / 10) - 0.0659 -> 0.7284897895 | S17: =(0.387231 / ((Константы!S17 / 10) ^ (8 / 3)) + 0.0029) * ((Qmin!S17*ВГФ!S17/24) ^ (2 / 3)) + 4.9766 / (Константы!S17/ 10) + 0.15- 0.5213 / (Qmin!S17 / 10) - 0.0659 -> 0.7284897895 | T17: =(0.387231 / ((Константы!T17 / 10) ^ (8 / 3)) + 0.0029) * ((Qmin!T17*ВГФ!T17/24) ^ (2 / 3)) + 4.9766 / (Константы!T17/ 10) + 0.15- 0.5213 / (Qmin!T17 / 10) - 0.0659 -> 0.7284897895 | U17: =(0.387231 / ((Константы!U17 / 10) ^ (8 / 3)) + 0.0029) * ((Qmin!U17*ВГФ!U17/24) ^ (2 / 3)) + 4.9766 / (Константы!U17/ 10) + 0.15- 0.5213 / (Qmin!U17 / 10) - 0.0659 -> 0.7284897895 | V17: =(0.387231 / ((Константы!V17 / 10) ^ (8 / 3)) + 0.0029) * ((Qmin!V17*ВГФ!V17/24) ^ (2 / 3)) + 4.9766 / (Константы!V17/ 10) + 0.15- 0.5213 / (Qmin!V17 / 10) - 0.0659 -> 0.7284897895 | W17: =(0.387231 / ((Константы!W17 / 10) ^ (8 / 3)) + 0.0029) * ((Qmin!W17*ВГФ!W17/24) ^ (2 / 3)) + 4.9766 / (Константы!W17/ 10) + 0.15- 0.5213 / (Qmin!W17 / 10) - 0.0659 -> 0.7284897895 | X17: =(0.387231 / ((Константы!X17 / 10) ^ (8 / 3)) + 0.0029) * ((Qmin!X17*ВГФ!X17/24) ^ (2 / 3)) + 4.9766 / (Константы!X17/ 10) + 0.15- 0.5213 / (Qmin!X17 / 10) - 0.0659 -> 0.7284897895 | Y17: =(0.387231 / ((Константы!Y17 / 10) ^ (8 / 3)) + 0.0029) * ((Qmin!Y17*ВГФ!Y17/24) ^ (2 / 3)) + 4.9766 / (Константы!Y17/ 10) + 0.15- 0.5213 / (Qmin!Y17 / 10) - 0.0659 -> 0.7284897895 | Z17: =(0.387231 / ((Константы!Z17 / 10) ^ (8 / 3)) + 0.0029) * ((Qmin!Z17*ВГФ!Z17/24) ^ (2 / 3)) + 4.9766 / (Константы!Z17/ 10) + 0.15- 0.5213 / (Qmin!Z17 / 10) - 0.0659 -> 0.7284897895 | AA17: =(0.387231 / ((Константы!AA17 / 10) ^ (8 / 3)) + 0.0029) * ((Qmin!AA17*ВГФ!AA17/24) ^ (2 / 3)) + 4.9766 / (Константы!AA17/ 10) + 0.15- 0.5213 / (Qmin!AA17 / 10) - 0.0659 -> 0.7284897895 | AB17: =(0.387231 / ((Константы!AB17 / 10) ^ (8 / 3)) + 0.0029) * ((Qmin!AB17*ВГФ!AB17/24) ^ (2 / 3)) + 4.9766 / (Константы!AB17/ 10) + 0.15- 0.5213 / (Qmin!AB17 / 10) - 0.0659 -> 0.7284897895 | AC17: =(0.387231 / ((Константы!AC17 / 10) ^ (8 / 3)) + 0.0029) * ((Qmin!AC17*ВГФ!AC17/24) ^ (2 / 3)) + 4.9766 / (Константы!AC17/ 10) + 0.15- 0.5213 / (Qmin!AC17 / 10) - 0.0659 -> 0.7284897895 | AD17: =(0.387231 / ((Константы!AD17 / 10) ^ (8 / 3)) + 0.0029) * ((Qmin!AD17*ВГФ!AD17/24) ^ (2 / 3)) + 4.9766 / (Константы!AD17/ 10) + 0.15- 0.5213 / (Qmin!AD17 / 10) - 0.0659 -> 0.7284897895 | AE17: =(0.387231 / ((Константы!AE17 / 10) ^ (8 / 3)) + 0.0029) * ((Qmin!AE17*ВГФ!AE17/24) ^ (2 / 3)) + 4.9766 / (Константы!AE17/ 10) + 0.15- 0.5213 / (Qmin!AE17 / 10) - 0.0659 -> 0.7284897895 | AF17: =(0.387231 / ((Константы!AF17 / 10) ^ (8 / 3)) + 0.0029) * ((Qmin!AF17*ВГФ!AF17/24) ^ (2 / 3)) + 4.9766 / (Константы!AF17/ 10) + 0.15- 0.5213 / (Qmin!AF17 / 10) - 0.0659 -> 0.7284897895 | AG17: =(0.387231 / ((Константы!AG17 / 10) ^ (8 / 3)) + 0.0029) * ((Qmin!AG17*ВГФ!AG17/24) ^ (2 / 3)) + 4.9766 / (Константы!AG17/ 10) + 0.15- 0.5213 / (Qmin!AG17 / 10) - 0.0659 -> 0.7284897895 | AH17: =(0.387231 / ((Константы!AH17 / 10) ^ (8 / 3)) + 0.0029) * ((Qmin!AH17*ВГФ!AH17/24) ^ (2 / 3)) + 4.9766 / (Константы!AH17/ 10) + 0.15- 0.5213 / (Qmin!AH17 / 10) - 0.0659 -> 0.7284897895 | AI17: =(0.387231 / ((Константы!AI17 / 10) ^ (8 / 3)) + 0.0029) * ((Qmin!AI17*ВГФ!AI17/24) ^ (2 / 3)) + 4.9766 / (Константы!AI17/ 10) + 0.15- 0.5213 / (Qmin!AI17 / 10) - 0.0659 -> 0.7284897895 | AJ17: =(0.387231 / ((Константы!AJ17 / 10) ^ (8 / 3)) + 0.0029) * ((Qmin!AJ17*ВГФ!AJ17/24) ^ (2 / 3)) + 4.9766 / (Константы!AJ17/ 10) + 0.15- 0.5213 / (Qmin!AJ17 / 10) - 0.0659 -> 0.7284897895 | AK17: =(0.387231 / ((Константы!AK17 / 10) ^ (8 / 3)) + 0.0029) * ((Qmin!AK17*ВГФ!AK17/24) ^ (2 / 3)) + 4.9766 / (Константы!AK17/ 10) + 0.15- 0.5213 / (Qmin!AK17 / 10) - 0.0659 -> 0.7284897895 | AL17: =(0.387231 / ((Константы!AL17 / 10) ^ (8 / 3)) + 0.0029) * ((Qmin!AL17*ВГФ!AL17/24) ^ (2 / 3)) + 4.9766 / (Константы!AL17/ 10) + 0.15- 0.5213 / (Qmin!AL17 / 10) - 0.0659 -> 0.7284897895 | AM17: =(0.387231 / ((Константы!AM17 / 10) ^ (8 / 3)) + 0.0029) * ((Qmin!AM17*ВГФ!AM17/24) ^ (2 / 3)) + 4.9766 / (Константы!AM17/ 10) + 0.15- 0.5213 / (Qmin!AM17 / 10) - 0.0659 -> 0.7284897895
A18: 115 | B18: Фруд1 | C18: =(0.387231 / ((Константы!C18 / 10) ^ (8 / 3)) + 0.0029) * ((Qmin!C18*ВГФ!C18/24) ^ (2 / 3)) + 4.9766 / (Константы!C18/ 10) + 0.15- 0.5213 / (Qmin!C18 / 10) - 0.0659 -> 0.7284897895 | D18: =(0.387231 / ((Константы!D18 / 10) ^ (8 / 3)) + 0.0029) * ((Qmin!D18*ВГФ!D18/24) ^ (2 / 3)) + 4.9766 / (Константы!D18/ 10) + 0.15- 0.5213 / (Qmin!D18 / 10) - 0.0659 -> 0.7284897895 | E18: =(0.387231 / ((Константы!E18 / 10) ^ (8 / 3)) + 0.0029) * ((Qmin!E18*ВГФ!E18/24) ^ (2 / 3)) + 4.9766 / (Константы!E18/ 10) + 0.15- 0.5213 / (Qmin!E18 / 10) - 0.0659 -> 0.7284897895 | F18: =(0.387231 / ((Константы!F18 / 10) ^ (8 / 3)) + 0.0029) * ((Qmin!F18*ВГФ!F18/24) ^ (2 / 3)) + 4.9766 / (Константы!F18/ 10) + 0.15- 0.5213 / (Qmin!F18 / 10) - 0.0659 -> 0.7284897895 | G18: =(0.387231 / ((Константы!G18 / 10) ^ (8 / 3)) + 0.0029) * ((Qmin!G18*ВГФ!G18/24) ^ (2 / 3)) + 4.9766 / (Константы!G18/ 10) + 0.15- 0.5213 / (Qmin!G18 / 10) - 0.0659 -> 0.7284897895 | H18: =(0.387231 / ((Константы!H18 / 10) ^ (8 / 3)) + 0.0029) * ((Qmin!H18*ВГФ!H18/24) ^ (2 / 3)) + 4.9766 / (Константы!H18/ 10) + 0.15- 0.5213 / (Qmin!H18 / 10) - 0.0659 -> 0.7284897895 | I18: =(0.387231 / ((Константы!I18 / 10) ^ (8 / 3)) + 0.0029) * ((Qmin!I18*ВГФ!I18/24) ^ (2 / 3)) + 4.9766 / (Константы!I18/ 10) + 0.15- 0.5213 / (Qmin!I18 / 10) - 0.0659 -> 0.7284897895 | J18: =(0.387231 / ((Константы!J18 / 10) ^ (8 / 3)) + 0.0029) * ((Qmin!J18*ВГФ!J18/24) ^ (2 / 3)) + 4.9766 / (Константы!J18/ 10) + 0.15- 0.5213 / (Qmin!J18 / 10) - 0.0659 -> 0.7284897895 | K18: =(0.387231 / ((Константы!K18 / 10) ^ (8 / 3)) + 0.0029) * ((Qmin!K18*ВГФ!K18/24) ^ (2 / 3)) + 4.9766 / (Константы!K18/ 10) + 0.15- 0.5213 / (Qmin!K18 / 10) - 0.0659 -> 0.7284897895 | L18: =(0.387231 / ((Константы!L18 / 10) ^ (8 / 3)) + 0.0029) * ((Qmin!L18*ВГФ!L18/24) ^ (2 / 3)) + 4.9766 / (Константы!L18/ 10) + 0.15- 0.5213 / (Qmin!L18 / 10) - 0.0659 -> 0.7284897895 | M18: =(0.387231 / ((Константы!M18 / 10) ^ (8 / 3)) + 0.0029) * ((Qmin!M18*ВГФ!M18/24) ^ (2 / 3)) + 4.9766 / (Константы!M18/ 10) + 0.15- 0.5213 / (Qmin!M18 / 10) - 0.0659 -> 0.7284897895 | N18: =(0.387231 / ((Константы!N18 / 10) ^ (8 / 3)) + 0.0029) * ((Qmin!N18*ВГФ!N18/24) ^ (2 / 3)) + 4.9766 / (Константы!N18/ 10) + 0.15- 0.5213 / (Qmin!N18 / 10) - 0.0659 -> 0.7284897895 | O18: =(0.387231 / ((Константы!O18 / 10) ^ (8 / 3)) + 0.0029) * ((Qmin!O18*ВГФ!O18/24) ^ (2 / 3)) + 4.9766 / (Константы!O18/ 10) + 0.15- 0.5213 / (Qmin!O18 / 10) - 0.0659 -> 0.7284897895 | P18: =(0.387231 / ((Константы!P18 / 10) ^ (8 / 3)) + 0.0029) * ((Qmin!P18*ВГФ!P18/24) ^ (2 / 3)) + 4.9766 / (Константы!P18/ 10) + 0.15- 0.5213 / (Qmin!P18 / 10) - 0.0659 -> 0.7284897895 | Q18: =(0.387231 / ((Константы!Q18 / 10) ^ (8 / 3)) + 0.0029) * ((Qmin!Q18*ВГФ!Q18/24) ^ (2 / 3)) + 4.9766 / (Константы!Q18/ 10) + 0.15- 0.5213 / (Qmin!Q18 / 10) - 0.0659 -> 0.7284897895 | R18: =(0.387231 / ((Константы!R18 / 10) ^ (8 / 3)) + 0.0029) * ((Qmin!R18*ВГФ!R18/24) ^ (2 / 3)) + 4.9766 / (Константы!R18/ 10) + 0.15- 0.5213 / (Qmin!R18 / 10) - 0.0659 -> 0.7284897895 | S18: =(0.387231 / ((Константы!S18 / 10) ^ (8 / 3)) + 0.0029) * ((Qmin!S18*ВГФ!S18/24) ^ (2 / 3)) + 4.9766 / (Константы!S18/ 10) + 0.15- 0.5213 / (Qmin!S18 / 10) - 0.0659 -> 0.7284897895 | T18: =(0.387231 / ((Константы!T18 / 10) ^ (8 / 3)) + 0.0029) * ((Qmin!T18*ВГФ!T18/24) ^ (2 / 3)) + 4.9766 / (Константы!T18/ 10) + 0.15- 0.5213 / (Qmin!T18 / 10) - 0.0659 -> 0.7284897895 | U18: =(0.387231 / ((Константы!U18 / 10) ^ (8 / 3)) + 0.0029) * ((Qmin!U18*ВГФ!U18/24) ^ (2 / 3)) + 4.9766 / (Константы!U18/ 10) + 0.15- 0.5213 / (Qmin!U18 / 10) - 0.0659 -> 0.7284897895 | V18: =(0.387231 / ((Константы!V18 / 10) ^ (8 / 3)) + 0.0029) * ((Qmin!V18*ВГФ!V18/24) ^ (2 / 3)) + 4.9766 / (Константы!V18/ 10) + 0.15- 0.5213 / (Qmin!V18 / 10) - 0.0659 -> 0.7284897895 | W18: =(0.387231 / ((Константы!W18 / 10) ^ (8 / 3)) + 0.0029) * ((Qmin!W18*ВГФ!W18/24) ^ (2 / 3)) + 4.9766 / (Константы!W18/ 10) + 0.15- 0.5213 / (Qmin!W18 / 10) - 0.0659 -> 0.7284897895 | X18: =(0.387231 / ((Константы!X18 / 10) ^ (8 / 3)) + 0.0029) * ((Qmin!X18*ВГФ!X18/24) ^ (2 / 3)) + 4.9766 / (Константы!X18/ 10) + 0.15- 0.5213 / (Qmin!X18 / 10) - 0.0659 -> 0.7284897895 | Y18: =(0.387231 / ((Константы!Y18 / 10) ^ (8 / 3)) + 0.0029) * ((Qmin!Y18*ВГФ!Y18/24) ^ (2 / 3)) + 4.9766 / (Константы!Y18/ 10) + 0.15- 0.5213 / (Qmin!Y18 / 10) - 0.0659 -> 0.7284897895 | Z18: =(0.387231 / ((Константы!Z18 / 10) ^ (8 / 3)) + 0.0029) * ((Qmin!Z18*ВГФ!Z18/24) ^ (2 / 3)) + 4.9766 / (Константы!Z18/ 10) + 0.15- 0.5213 / (Qmin!Z18 / 10) - 0.0659 -> 0.686165606 | AA18: =(0.387231 / ((Константы!AA18 / 10) ^ (8 / 3)) + 0.0029) * ((Qmin!AA18*ВГФ!AA18/24) ^ (2 / 3)) + 4.9766 / (Константы!AA18/ 10) + 0.15- 0.5213 / (Qmin!AA18 / 10) - 0.0659 -> 0.6857033319 | AB18: =(0.387231 / ((Константы!AB18 / 10) ^ (8 / 3)) + 0.0029) * ((Qmin!AB18*ВГФ!AB18/24) ^ (2 / 3)) + 4.9766 / (Константы!AB18/ 10) + 0.15- 0.5213 / (Qmin!AB18 / 10) - 0.0659 -> 0.6854664394 | AC18: =(0.387231 / ((Константы!AC18 / 10) ^ (8 / 3)) + 0.0029) * ((Qmin!AC18*ВГФ!AC18/24) ^ (2 / 3)) + 4.9766 / (Константы!AC18/ 10) + 0.15- 0.5213 / (Qmin!AC18 / 10) - 0.0659 -> 0.6852882557 | AD18: =(0.387231 / ((Константы!AD18 / 10) ^ (8 / 3)) + 0.0029) * ((Qmin!AD18*ВГФ!AD18/24) ^ (2 / 3)) + 4.9766 / (Константы!AD18/ 10) + 0.15- 0.5213 / (Qmin!AD18 / 10) - 0.0659 -> 0.6851140618 | AE18: =(0.387231 / ((Константы!AE18 / 10) ^ (8 / 3)) + 0.0029) * ((Qmin!AE18*ВГФ!AE18/24) ^ (2 / 3)) + 4.9766 / (Константы!AE18/ 10) + 0.15- 0.5213 / (Qmin!AE18 / 10) - 0.0659 -> 0.6849611784 | AF18: =(0.387231 / ((Константы!AF18 / 10) ^ (8 / 3)) + 0.0029) * ((Qmin!AF18*ВГФ!AF18/24) ^ (2 / 3)) + 4.9766 / (Константы!AF18/ 10) + 0.15- 0.5213 / (Qmin!AF18 / 10) - 0.0659 -> 0.6848134638 | AG18: =(0.387231 / ((Константы!AG18 / 10) ^ (8 / 3)) + 0.0029) * ((Qmin!AG18*ВГФ!AG18/24) ^ (2 / 3)) + 4.9766 / (Константы!AG18/ 10) + 0.15- 0.5213 / (Qmin!AG18 / 10) - 0.0659 -> 0.6846818724 | AH18: =(0.387231 / ((Константы!AH18 / 10) ^ (8 / 3)) + 0.0029) * ((Qmin!AH18*ВГФ!AH18/24) ^ (2 / 3)) + 4.9766 / (Константы!AH18/ 10) + 0.15- 0.5213 / (Qmin!AH18 / 10) - 0.0659 -> 0.6845534195 | AI18: =(0.387231 / ((Константы!AI18 / 10) ^ (8 / 3)) + 0.0029) * ((Qmin!AI18*ВГФ!AI18/24) ^ (2 / 3)) + 4.9766 / (Константы!AI18/ 10) + 0.15- 0.5213 / (Qmin!AI18 / 10) - 0.0659 -> 0.6845556184 | AJ18: =(0.387231 / ((Константы!AJ18 / 10) ^ (8 / 3)) + 0.0029) * ((Qmin!AJ18*ВГФ!AJ18/24) ^ (2 / 3)) + 4.9766 / (Константы!AJ18/ 10) + 0.15- 0.5213 / (Qmin!AJ18 / 10) - 0.0659 -> 0.6843231705 | AK18: =(0.387231 / ((Константы!AK18 / 10) ^ (8 / 3)) + 0.0029) * ((Qmin!AK18*ВГФ!AK18/24) ^ (2 / 3)) + 4.9766 / (Константы!AK18/ 10) + 0.15- 0.5213 / (Qmin!AK18 / 10) - 0.0659 -> 0.6841965269 | AL18: =(0.387231 / ((Константы!AL18 / 10) ^ (8 / 3)) + 0.0029) * ((Qmin!AL18*ВГФ!AL18/24) ^ (2 / 3)) + 4.9766 / (Константы!AL18/ 10) + 0.15- 0.5213 / (Qmin!AL18 / 10) - 0.0659 -> 0.6841026519 | AM18: =(0.387231 / ((Константы!AM18 / 10) ^ (8 / 3)) + 0.0029) * ((Qmin!AM18*ВГФ!AM18/24) ^ (2 / 3)) + 4.9766 / (Константы!AM18/ 10) + 0.15- 0.5213 / (Qmin!AM18 / 10) - 0.0659 -> 0.6840103812
A19: 116 | B19: Фруд1 | C19: =(0.387231 / ((Константы!C19 / 10) ^ (8 / 3)) + 0.0029) * ((Qmin!C19*ВГФ!C19/24) ^ (2 / 3)) + 4.9766 / (Константы!C19/ 10) + 0.15- 0.5213 / (Qmin!C19 / 10) - 0.0659 -> 0.7284897895 | D19: =(0.387231 / ((Константы!D19 / 10) ^ (8 / 3)) + 0.0029) * ((Qmin!D19*ВГФ!D19/24) ^ (2 / 3)) + 4.9766 / (Константы!D19/ 10) + 0.15- 0.5213 / (Qmin!D19 / 10) - 0.0659 -> 0.7284897895 | E19: =(0.387231 / ((Константы!E19 / 10) ^ (8 / 3)) + 0.0029) * ((Qmin!E19*ВГФ!E19/24) ^ (2 / 3)) + 4.9766 / (Константы!E19/ 10) + 0.15- 0.5213 / (Qmin!E19 / 10) - 0.0659 -> 0.7284897895 | F19: =(0.387231 / ((Константы!F19 / 10) ^ (8 / 3)) + 0.0029) * ((Qmin!F19*ВГФ!F19/24) ^ (2 / 3)) + 4.9766 / (Константы!F19/ 10) + 0.15- 0.5213 / (Qmin!F19 / 10) - 0.0659 -> 0.7284897895 | G19: =(0.387231 / ((Константы!G19 / 10) ^ (8 / 3)) + 0.0029) * ((Qmin!G19*ВГФ!G19/24) ^ (2 / 3)) + 4.9766 / (Константы!G19/ 10) + 0.15- 0.5213 / (Qmin!G19 / 10) - 0.0659 -> 0.7284897895 | H19: =(0.387231 / ((Константы!H19 / 10) ^ (8 / 3)) + 0.0029) * ((Qmin!H19*ВГФ!H19/24) ^ (2 / 3)) + 4.9766 / (Константы!H19/ 10) + 0.15- 0.5213 / (Qmin!H19 / 10) - 0.0659 -> 0.7284897895 | I19: =(0.387231 / ((Константы!I19 / 10) ^ (8 / 3)) + 0.0029) * ((Qmin!I19*ВГФ!I19/24) ^ (2 / 3)) + 4.9766 / (Константы!I19/ 10) + 0.15- 0.5213 / (Qmin!I19 / 10) - 0.0659 -> 0.7284897895 | J19: =(0.387231 / ((Константы!J19 / 10) ^ (8 / 3)) + 0.0029) * ((Qmin!J19*ВГФ!J19/24) ^ (2 / 3)) + 4.9766 / (Константы!J19/ 10) + 0.15- 0.5213 / (Qmin!J19 / 10) - 0.0659 -> 0.7284897895 | K19: =(0.387231 / ((Константы!K19 / 10) ^ (8 / 3)) + 0.0029) * ((Qmin!K19*ВГФ!K19/24) ^ (2 / 3)) + 4.9766 / (Константы!K19/ 10) + 0.15- 0.5213 / (Qmin!K19 / 10) - 0.0659 -> 0.7284897895 | L19: =(0.387231 / ((Константы!L19 / 10) ^ (8 / 3)) + 0.0029) * ((Qmin!L19*ВГФ!L19/24) ^ (2 / 3)) + 4.9766 / (Константы!L19/ 10) + 0.15- 0.5213 / (Qmin!L19 / 10) - 0.0659 -> 0.7284897895 | M19: =(0.387231 / ((Константы!M19 / 10) ^ (8 / 3)) + 0.0029) * ((Qmin!M19*ВГФ!M19/24) ^ (2 / 3)) + 4.9766 / (Константы!M19/ 10) + 0.15- 0.5213 / (Qmin!M19 / 10) - 0.0659 -> 0.7284897895 | N19: =(0.387231 / ((Константы!N19 / 10) ^ (8 / 3)) + 0.0029) * ((Qmin!N19*ВГФ!N19/24) ^ (2 / 3)) + 4.9766 / (Константы!N19/ 10) + 0.15- 0.5213 / (Qmin!N19 / 10) - 0.0659 -> 0.7284897895 | O19: =(0.387231 / ((Константы!O19 / 10) ^ (8 / 3)) + 0.0029) * ((Qmin!O19*ВГФ!O19/24) ^ (2 / 3)) + 4.9766 / (Константы!O19/ 10) + 0.15- 0.5213 / (Qmin!O19 / 10) - 0.0659 -> 0.7284897895 | P19: =(0.387231 / ((Константы!P19 / 10) ^ (8 / 3)) + 0.0029) * ((Qmin!P19*ВГФ!P19/24) ^ (2 / 3)) + 4.9766 / (Константы!P19/ 10) + 0.15- 0.5213 / (Qmin!P19 / 10) - 0.0659 -> 0.7284897895 | Q19: =(0.387231 / ((Константы!Q19 / 10) ^ (8 / 3)) + 0.0029) * ((Qmin!Q19*ВГФ!Q19/24) ^ (2 / 3)) + 4.9766 / (Константы!Q19/ 10) + 0.15- 0.5213 / (Qmin!Q19 / 10) - 0.0659 -> 0.7284897895 | R19: =(0.387231 / ((Константы!R19 / 10) ^ (8 / 3)) + 0.0029) * ((Qmin!R19*ВГФ!R19/24) ^ (2 / 3)) + 4.9766 / (Константы!R19/ 10) + 0.15- 0.5213 / (Qmin!R19 / 10) - 0.0659 -> 0.7284897895 | S19: =(0.387231 / ((Константы!S19 / 10) ^ (8 / 3)) + 0.0029) * ((Qmin!S19*ВГФ!S19/24) ^ (2 / 3)) + 4.9766 / (Константы!S19/ 10) + 0.15- 0.5213 / (Qmin!S19 / 10) - 0.0659 -> 0.7284897895 | T19: =(0.387231 / ((Константы!T19 / 10) ^ (8 / 3)) + 0.0029) * ((Qmin!T19*ВГФ!T19/24) ^ (2 / 3)) + 4.9766 / (Константы!T19/ 10) + 0.15- 0.5213 / (Qmin!T19 / 10) - 0.0659 -> 0.7284897895 | U19: =(0.387231 / ((Константы!U19 / 10) ^ (8 / 3)) + 0.0029) * ((Qmin!U19*ВГФ!U19/24) ^ (2 / 3)) + 4.9766 / (Константы!U19/ 10) + 0.15- 0.5213 / (Qmin!U19 / 10) - 0.0659 -> 0.7284897895 | V19: =(0.387231 / ((Константы!V19 / 10) ^ (8 / 3)) + 0.0029) * ((Qmin!V19*ВГФ!V19/24) ^ (2 / 3)) + 4.9766 / (Константы!V19/ 10) + 0.15- 0.5213 / (Qmin!V19 / 10) - 0.0659 -> 0.7284897895 | W19: =(0.387231 / ((Константы!W19 / 10) ^ (8 / 3)) + 0.0029) * ((Qmin!W19*ВГФ!W19/24) ^ (2 / 3)) + 4.9766 / (Константы!W19/ 10) + 0.15- 0.5213 / (Qmin!W19 / 10) - 0.0659 -> 0.7284897895 | X19: =(0.387231 / ((Константы!X19 / 10) ^ (8 / 3)) + 0.0029) * ((Qmin!X19*ВГФ!X19/24) ^ (2 / 3)) + 4.9766 / (Константы!X19/ 10) + 0.15- 0.5213 / (Qmin!X19 / 10) - 0.0659 -> 0.7284897895 | Y19: =(0.387231 / ((Константы!Y19 / 10) ^ (8 / 3)) + 0.0029) * ((Qmin!Y19*ВГФ!Y19/24) ^ (2 / 3)) + 4.9766 / (Константы!Y19/ 10) + 0.15- 0.5213 / (Qmin!Y19 / 10) - 0.0659 -> 0.6819258951 | Z19: =(0.387231 / ((Константы!Z19 / 10) ^ (8 / 3)) + 0.0029) * ((Qmin!Z19*ВГФ!Z19/24) ^ (2 / 3)) + 4.9766 / (Константы!Z19/ 10) + 0.15- 0.5213 / (Qmin!Z19 / 10) - 0.0659 -> 0.6816810905 | AA19: =(0.387231 / ((Константы!AA19 / 10) ^ (8 / 3)) + 0.0029) * ((Qmin!AA19*ВГФ!AA19/24) ^ (2 / 3)) + 4.9766 / (Константы!AA19/ 10) + 0.15- 0.5213 / (Qmin!AA19 / 10) - 0.0659 -> 0.6814969315 | AB19: =(0.387231 / ((Константы!AB19 / 10) ^ (8 / 3)) + 0.0029) * ((Qmin!AB19*ВГФ!AB19/24) ^ (2 / 3)) + 4.9766 / (Константы!AB19/ 10) + 0.15- 0.5213 / (Qmin!AB19 / 10) - 0.0659 -> 0.6813598794 | AC19: =(0.387231 / ((Константы!AC19 / 10) ^ (8 / 3)) + 0.0029) * ((Qmin!AC19*ВГФ!AC19/24) ^ (2 / 3)) + 4.9766 / (Константы!AC19/ 10) + 0.15- 0.5213 / (Qmin!AC19 / 10) - 0.0659 -> 0.6812420357 | AD19: =(0.387231 / ((Константы!AD19 / 10) ^ (8 / 3)) + 0.0029) * ((Qmin!AD19*ВГФ!AD19/24) ^ (2 / 3)) + 4.9766 / (Константы!AD19/ 10) + 0.15- 0.5213 / (Qmin!AD19 / 10) - 0.0659 -> 0.681158309 | AE19: =(0.387231 / ((Константы!AE19 / 10) ^ (8 / 3)) + 0.0029) * ((Qmin!AE19*ВГФ!AE19/24) ^ (2 / 3)) + 4.9766 / (Константы!AE19/ 10) + 0.15- 0.5213 / (Qmin!AE19 / 10) - 0.0659 -> 0.6810596115 | AF19: =(0.387231 / ((Константы!AF19 / 10) ^ (8 / 3)) + 0.0029) * ((Qmin!AF19*ВГФ!AF19/24) ^ (2 / 3)) + 4.9766 / (Константы!AF19/ 10) + 0.15- 0.5213 / (Qmin!AF19 / 10) - 0.0659 -> 0.6809932585 | AG19: =(0.387231 / ((Константы!AG19 / 10) ^ (8 / 3)) + 0.0029) * ((Qmin!AG19*ВГФ!AG19/24) ^ (2 / 3)) + 4.9766 / (Константы!AG19/ 10) + 0.15- 0.5213 / (Qmin!AG19 / 10) - 0.0659 -> 0.6809041069 | AH19: =(0.387231 / ((Константы!AH19 / 10) ^ (8 / 3)) + 0.0029) * ((Qmin!AH19*ВГФ!AH19/24) ^ (2 / 3)) + 4.9766 / (Константы!AH19/ 10) + 0.15- 0.5213 / (Qmin!AH19 / 10) - 0.0659 -> 0.6808267626 | AI19: =(0.387231 / ((Константы!AI19 / 10) ^ (8 / 3)) + 0.0029) * ((Qmin!AI19*ВГФ!AI19/24) ^ (2 / 3)) + 4.9766 / (Константы!AI19/ 10) + 0.15- 0.5213 / (Qmin!AI19 / 10) - 0.0659 -> 0.6807761045 | AJ19: =(0.387231 / ((Константы!AJ19 / 10) ^ (8 / 3)) + 0.0029) * ((Qmin!AJ19*ВГФ!AJ19/24) ^ (2 / 3)) + 4.9766 / (Константы!AJ19/ 10) + 0.15- 0.5213 / (Qmin!AJ19 / 10) - 0.0659 -> 0.6807224937 | AK19: =(0.387231 / ((Константы!AK19 / 10) ^ (8 / 3)) + 0.0029) * ((Qmin!AK19*ВГФ!AK19/24) ^ (2 / 3)) + 4.9766 / (Константы!AK19/ 10) + 0.15- 0.5213 / (Qmin!AK19 / 10) - 0.0659 -> 0.6806838058 | AL19: =(0.387231 / ((Константы!AL19 / 10) ^ (8 / 3)) + 0.0029) * ((Qmin!AL19*ВГФ!AL19/24) ^ (2 / 3)) + 4.9766 / (Константы!AL19/ 10) + 0.15- 0.5213 / (Qmin!AL19 / 10) - 0.0659 -> 0.680655704 | AM19: =(0.387231 / ((Константы!AM19 / 10) ^ (8 / 3)) + 0.0029) * ((Qmin!AM19*ВГФ!AM19/24) ^ (2 / 3)) + 4.9766 / (Константы!AM19/ 10) + 0.15- 0.5213 / (Qmin!AM19 / 10) - 0.0659 -> 0.680581967
A20: 117 | B20: Фруд1 | C20: =(0.387231 / ((Константы!C20 / 10) ^ (8 / 3)) + 0.0029) * ((Qmin!C20*ВГФ!C20/24) ^ (2 / 3)) + 4.9766 / (Константы!C20/ 10) + 0.15- 0.5213 / (Qmin!C20 / 10) - 0.0659 -> 0.7284897895 | D20: =(0.387231 / ((Константы!D20 / 10) ^ (8 / 3)) + 0.0029) * ((Qmin!D20*ВГФ!D20/24) ^ (2 / 3)) + 4.9766 / (Константы!D20/ 10) + 0.15- 0.5213 / (Qmin!D20 / 10) - 0.0659 -> 0.7284897895 | E20: =(0.387231 / ((Константы!E20 / 10) ^ (8 / 3)) + 0.0029) * ((Qmin!E20*ВГФ!E20/24) ^ (2 / 3)) + 4.9766 / (Константы!E20/ 10) + 0.15- 0.5213 / (Qmin!E20 / 10) - 0.0659 -> 0.7284897895 | F20: =(0.387231 / ((Константы!F20 / 10) ^ (8 / 3)) + 0.0029) * ((Qmin!F20*ВГФ!F20/24) ^ (2 / 3)) + 4.9766 / (Константы!F20/ 10) + 0.15- 0.5213 / (Qmin!F20 / 10) - 0.0659 -> 0.7284897895 | G20: =(0.387231 / ((Константы!G20 / 10) ^ (8 / 3)) + 0.0029) * ((Qmin!G20*ВГФ!G20/24) ^ (2 / 3)) + 4.9766 / (Константы!G20/ 10) + 0.15- 0.5213 / (Qmin!G20 / 10) - 0.0659 -> 0.7284897895 | H20: =(0.387231 / ((Константы!H20 / 10) ^ (8 / 3)) + 0.0029) * ((Qmin!H20*ВГФ!H20/24) ^ (2 / 3)) + 4.9766 / (Константы!H20/ 10) + 0.15- 0.5213 / (Qmin!H20 / 10) - 0.0659 -> 0.7284897895 | I20: =(0.387231 / ((Константы!I20 / 10) ^ (8 / 3)) + 0.0029) * ((Qmin!I20*ВГФ!I20/24) ^ (2 / 3)) + 4.9766 / (Константы!I20/ 10) + 0.15- 0.5213 / (Qmin!I20 / 10) - 0.0659 -> 0.7284897895 | J20: =(0.387231 / ((Константы!J20 / 10) ^ (8 / 3)) + 0.0029) * ((Qmin!J20*ВГФ!J20/24) ^ (2 / 3)) + 4.9766 / (Константы!J20/ 10) + 0.15- 0.5213 / (Qmin!J20 / 10) - 0.0659 -> 0.7284897895 | K20: =(0.387231 / ((Константы!K20 / 10) ^ (8 / 3)) + 0.0029) * ((Qmin!K20*ВГФ!K20/24) ^ (2 / 3)) + 4.9766 / (Константы!K20/ 10) + 0.15- 0.5213 / (Qmin!K20 / 10) - 0.0659 -> 0.7284897895 | L20: =(0.387231 / ((Константы!L20 / 10) ^ (8 / 3)) + 0.0029) * ((Qmin!L20*ВГФ!L20/24) ^ (2 / 3)) + 4.9766 / (Константы!L20/ 10) + 0.15- 0.5213 / (Qmin!L20 / 10) - 0.0659 -> 0.7284897895 | M20: =(0.387231 / ((Константы!M20 / 10) ^ (8 / 3)) + 0.0029) * ((Qmin!M20*ВГФ!M20/24) ^ (2 / 3)) + 4.9766 / (Константы!M20/ 10) + 0.15- 0.5213 / (Qmin!M20 / 10) - 0.0659 -> 0.7284897895 | N20: =(0.387231 / ((Константы!N20 / 10) ^ (8 / 3)) + 0.0029) * ((Qmin!N20*ВГФ!N20/24) ^ (2 / 3)) + 4.9766 / (Константы!N20/ 10) + 0.15- 0.5213 / (Qmin!N20 / 10) - 0.0659 -> 0.7284897895 | O20: =(0.387231 / ((Константы!O20 / 10) ^ (8 / 3)) + 0.0029) * ((Qmin!O20*ВГФ!O20/24) ^ (2 / 3)) + 4.9766 / (Константы!O20/ 10) + 0.15- 0.5213 / (Qmin!O20 / 10) - 0.0659 -> 0.7284897895 | P20: =(0.387231 / ((Константы!P20 / 10) ^ (8 / 3)) + 0.0029) * ((Qmin!P20*ВГФ!P20/24) ^ (2 / 3)) + 4.9766 / (Константы!P20/ 10) + 0.15- 0.5213 / (Qmin!P20 / 10) - 0.0659 -> 0.7284897895 | Q20: =(0.387231 / ((Константы!Q20 / 10) ^ (8 / 3)) + 0.0029) * ((Qmin!Q20*ВГФ!Q20/24) ^ (2 / 3)) + 4.9766 / (Константы!Q20/ 10) + 0.15- 0.5213 / (Qmin!Q20 / 10) - 0.0659 -> 0.7284897895 | R20: =(0.387231 / ((Константы!R20 / 10) ^ (8 / 3)) + 0.0029) * ((Qmin!R20*ВГФ!R20/24) ^ (2 / 3)) + 4.9766 / (Константы!R20/ 10) + 0.15- 0.5213 / (Qmin!R20 / 10) - 0.0659 -> 0.7284897895 | S20: =(0.387231 / ((Константы!S20 / 10) ^ (8 / 3)) + 0.0029) * ((Qmin!S20*ВГФ!S20/24) ^ (2 / 3)) + 4.9766 / (Константы!S20/ 10) + 0.15- 0.5213 / (Qmin!S20 / 10) - 0.0659 -> 0.7284897895 | T20: =(0.387231 / ((Константы!T20 / 10) ^ (8 / 3)) + 0.0029) * ((Qmin!T20*ВГФ!T20/24) ^ (2 / 3)) + 4.9766 / (Константы!T20/ 10) + 0.15- 0.5213 / (Qmin!T20 / 10) - 0.0659 -> 0.7284897895 | U20: =(0.387231 / ((Константы!U20 / 10) ^ (8 / 3)) + 0.0029) * ((Qmin!U20*ВГФ!U20/24) ^ (2 / 3)) + 4.9766 / (Константы!U20/ 10) + 0.15- 0.5213 / (Qmin!U20 / 10) - 0.0659 -> 0.7284897895 | V20: =(0.387231 / ((Константы!V20 / 10) ^ (8 / 3)) + 0.0029) * ((Qmin!V20*ВГФ!V20/24) ^ (2 / 3)) + 4.9766 / (Константы!V20/ 10) + 0.15- 0.5213 / (Qmin!V20 / 10) - 0.0659 -> 0.7284897895 | W20: =(0.387231 / ((Константы!W20 / 10) ^ (8 / 3)) + 0.0029) * ((Qmin!W20*ВГФ!W20/24) ^ (2 / 3)) + 4.9766 / (Константы!W20/ 10) + 0.15- 0.5213 / (Qmin!W20 / 10) - 0.0659 -> 0.6830982993 | X20: =(0.387231 / ((Константы!X20 / 10) ^ (8 / 3)) + 0.0029) * ((Qmin!X20*ВГФ!X20/24) ^ (2 / 3)) + 4.9766 / (Константы!X20/ 10) + 0.15- 0.5213 / (Qmin!X20 / 10) - 0.0659 -> 0.682247102 | Y20: =(0.387231 / ((Константы!Y20 / 10) ^ (8 / 3)) + 0.0029) * ((Qmin!Y20*ВГФ!Y20/24) ^ (2 / 3)) + 4.9766 / (Константы!Y20/ 10) + 0.15- 0.5213 / (Qmin!Y20 / 10) - 0.0659 -> 0.681970646 | Z20: =(0.387231 / ((Константы!Z20 / 10) ^ (8 / 3)) + 0.0029) * ((Qmin!Z20*ВГФ!Z20/24) ^ (2 / 3)) + 4.9766 / (Константы!Z20/ 10) + 0.15- 0.5213 / (Qmin!Z20 / 10) - 0.0659 -> 0.6818107275 | AA20: =(0.387231 / ((Константы!AA20 / 10) ^ (8 / 3)) + 0.0029) * ((Qmin!AA20*ВГФ!AA20/24) ^ (2 / 3)) + 4.9766 / (Константы!AA20/ 10) + 0.15- 0.5213 / (Qmin!AA20 / 10) - 0.0659 -> 0.681646042 | AB20: =(0.387231 / ((Константы!AB20 / 10) ^ (8 / 3)) + 0.0029) * ((Qmin!AB20*ВГФ!AB20/24) ^ (2 / 3)) + 4.9766 / (Константы!AB20/ 10) + 0.15- 0.5213 / (Qmin!AB20 / 10) - 0.0659 -> 0.6815021264 | AC20: =(0.387231 / ((Константы!AC20 / 10) ^ (8 / 3)) + 0.0029) * ((Qmin!AC20*ВГФ!AC20/24) ^ (2 / 3)) + 4.9766 / (Константы!AC20/ 10) + 0.15- 0.5213 / (Qmin!AC20 / 10) - 0.0659 -> 0.6813594789 | AD20: =(0.387231 / ((Константы!AD20 / 10) ^ (8 / 3)) + 0.0029) * ((Qmin!AD20*ВГФ!AD20/24) ^ (2 / 3)) + 4.9766 / (Константы!AD20/ 10) + 0.15- 0.5213 / (Qmin!AD20 / 10) - 0.0659 -> 0.6812528939 | AE20: =(0.387231 / ((Константы!AE20 / 10) ^ (8 / 3)) + 0.0029) * ((Qmin!AE20*ВГФ!AE20/24) ^ (2 / 3)) + 4.9766 / (Константы!AE20/ 10) + 0.15- 0.5213 / (Qmin!AE20 / 10) - 0.0659 -> 0.6811396044 | AF20: =(0.387231 / ((Константы!AF20 / 10) ^ (8 / 3)) + 0.0029) * ((Qmin!AF20*ВГФ!AF20/24) ^ (2 / 3)) + 4.9766 / (Константы!AF20/ 10) + 0.15- 0.5213 / (Qmin!AF20 / 10) - 0.0659 -> 0.6810669695 | AG20: =(0.387231 / ((Константы!AG20 / 10) ^ (8 / 3)) + 0.0029) * ((Qmin!AG20*ВГФ!AG20/24) ^ (2 / 3)) + 4.9766 / (Константы!AG20/ 10) + 0.15- 0.5213 / (Qmin!AG20 / 10) - 0.0659 -> 0.6809727949 | AH20: =(0.387231 / ((Константы!AH20 / 10) ^ (8 / 3)) + 0.0029) * ((Qmin!AH20*ВГФ!AH20/24) ^ (2 / 3)) + 4.9766 / (Константы!AH20/ 10) + 0.15- 0.5213 / (Qmin!AH20 / 10) - 0.0659 -> 0.6808863632 | AI20: =(0.387231 / ((Константы!AI20 / 10) ^ (8 / 3)) + 0.0029) * ((Qmin!AI20*ВГФ!AI20/24) ^ (2 / 3)) + 4.9766 / (Константы!AI20/ 10) + 0.15- 0.5213 / (Qmin!AI20 / 10) - 0.0659 -> 0.6808272146 | AJ20: =(0.387231 / ((Константы!AJ20 / 10) ^ (8 / 3)) + 0.0029) * ((Qmin!AJ20*ВГФ!AJ20/24) ^ (2 / 3)) + 4.9766 / (Константы!AJ20/ 10) + 0.15- 0.5213 / (Qmin!AJ20 / 10) - 0.0659 -> 0.6807760919 | AK20: =(0.387231 / ((Константы!AK20 / 10) ^ (8 / 3)) + 0.0029) * ((Qmin!AK20*ВГФ!AK20/24) ^ (2 / 3)) + 4.9766 / (Константы!AK20/ 10) + 0.15- 0.5213 / (Qmin!AK20 / 10) - 0.0659 -> 0.6807318009 | AL20: =(0.387231 / ((Константы!AL20 / 10) ^ (8 / 3)) + 0.0029) * ((Qmin!AL20*ВГФ!AL20/24) ^ (2 / 3)) + 4.9766 / (Константы!AL20/ 10) + 0.15- 0.5213 / (Qmin!AL20 / 10) - 0.0659 -> 0.68069089 | AM20: =(0.387231 / ((Константы!AM20 / 10) ^ (8 / 3)) + 0.0029) * ((Qmin!AM20*ВГФ!AM20/24) ^ (2 / 3)) + 4.9766 / (Константы!AM20/ 10) + 0.15- 0.5213 / (Qmin!AM20 / 10) - 0.0659 -> 0.6806108736
A21: 118 | B21: Фруд1 | C21: =(0.387231 / ((Константы!C21 / 10) ^ (8 / 3)) + 0.0029) * ((Qmin!C21*ВГФ!C21/24) ^ (2 / 3)) + 4.9766 / (Константы!C21/ 10) + 0.15- 0.5213 / (Qmin!C21 / 10) - 0.0659 -> 0.7284897895 | D21: =(0.387231 / ((Константы!D21 / 10) ^ (8 / 3)) + 0.0029) * ((Qmin!D21*ВГФ!D21/24) ^ (2 / 3)) + 4.9766 / (Константы!D21/ 10) + 0.15- 0.5213 / (Qmin!D21 / 10) - 0.0659 -> 0.7284897895 | E21: =(0.387231 / ((Константы!E21 / 10) ^ (8 / 3)) + 0.0029) * ((Qmin!E21*ВГФ!E21/24) ^ (2 / 3)) + 4.9766 / (Константы!E21/ 10) + 0.15- 0.5213 / (Qmin!E21 / 10) - 0.0659 -> 0.7284897895 | F21: =(0.387231 / ((Константы!F21 / 10) ^ (8 / 3)) + 0.0029) * ((Qmin!F21*ВГФ!F21/24) ^ (2 / 3)) + 4.9766 / (Константы!F21/ 10) + 0.15- 0.5213 / (Qmin!F21 / 10) - 0.0659 -> 0.7284897895 | G21: =(0.387231 / ((Константы!G21 / 10) ^ (8 / 3)) + 0.0029) * ((Qmin!G21*ВГФ!G21/24) ^ (2 / 3)) + 4.9766 / (Константы!G21/ 10) + 0.15- 0.5213 / (Qmin!G21 / 10) - 0.0659 -> 0.7284897895 | H21: =(0.387231 / ((Константы!H21 / 10) ^ (8 / 3)) + 0.0029) * ((Qmin!H21*ВГФ!H21/24) ^ (2 / 3)) + 4.9766 / (Константы!H21/ 10) + 0.15- 0.5213 / (Qmin!H21 / 10) - 0.0659 -> 0.7284897895 | I21: =(0.387231 / ((Константы!I21 / 10) ^ (8 / 3)) + 0.0029) * ((Qmin!I21*ВГФ!I21/24) ^ (2 / 3)) + 4.9766 / (Константы!I21/ 10) + 0.15- 0.5213 / (Qmin!I21 / 10) - 0.0659 -> 0.7284897895 | J21: =(0.387231 / ((Константы!J21 / 10) ^ (8 / 3)) + 0.0029) * ((Qmin!J21*ВГФ!J21/24) ^ (2 / 3)) + 4.9766 / (Константы!J21/ 10) + 0.15- 0.5213 / (Qmin!J21 / 10) - 0.0659 -> 0.7284897895 | K21: =(0.387231 / ((Константы!K21 / 10) ^ (8 / 3)) + 0.0029) * ((Qmin!K21*ВГФ!K21/24) ^ (2 / 3)) + 4.9766 / (Константы!K21/ 10) + 0.15- 0.5213 / (Qmin!K21 / 10) - 0.0659 -> 0.7284897895 | L21: =(0.387231 / ((Константы!L21 / 10) ^ (8 / 3)) + 0.0029) * ((Qmin!L21*ВГФ!L21/24) ^ (2 / 3)) + 4.9766 / (Константы!L21/ 10) + 0.15- 0.5213 / (Qmin!L21 / 10) - 0.0659 -> 0.7284897895 | M21: =(0.387231 / ((Константы!M21 / 10) ^ (8 / 3)) + 0.0029) * ((Qmin!M21*ВГФ!M21/24) ^ (2 / 3)) + 4.9766 / (Константы!M21/ 10) + 0.15- 0.5213 / (Qmin!M21 / 10) - 0.0659 -> 0.7284897895 | N21: =(0.387231 / ((Константы!N21 / 10) ^ (8 / 3)) + 0.0029) * ((Qmin!N21*ВГФ!N21/24) ^ (2 / 3)) + 4.9766 / (Константы!N21/ 10) + 0.15- 0.5213 / (Qmin!N21 / 10) - 0.0659 -> 0.7284897895 | O21: =(0.387231 / ((Константы!O21 / 10) ^ (8 / 3)) + 0.0029) * ((Qmin!O21*ВГФ!O21/24) ^ (2 / 3)) + 4.9766 / (Константы!O21/ 10) + 0.15- 0.5213 / (Qmin!O21 / 10) - 0.0659 -> 0.7284897895 | P21: =(0.387231 / ((Константы!P21 / 10) ^ (8 / 3)) + 0.0029) * ((Qmin!P21*ВГФ!P21/24) ^ (2 / 3)) + 4.9766 / (Константы!P21/ 10) + 0.15- 0.5213 / (Qmin!P21 / 10) - 0.0659 -> 0.7284897895 | Q21: =(0.387231 / ((Константы!Q21 / 10) ^ (8 / 3)) + 0.0029) * ((Qmin!Q21*ВГФ!Q21/24) ^ (2 / 3)) + 4.9766 / (Константы!Q21/ 10) + 0.15- 0.5213 / (Qmin!Q21 / 10) - 0.0659 -> 0.7284897895 | R21: =(0.387231 / ((Константы!R21 / 10) ^ (8 / 3)) + 0.0029) * ((Qmin!R21*ВГФ!R21/24) ^ (2 / 3)) + 4.9766 / (Константы!R21/ 10) + 0.15- 0.5213 / (Qmin!R21 / 10) - 0.0659 -> 0.7284897895 | S21: =(0.387231 / ((Константы!S21 / 10) ^ (8 / 3)) + 0.0029) * ((Qmin!S21*ВГФ!S21/24) ^ (2 / 3)) + 4.9766 / (Константы!S21/ 10) + 0.15- 0.5213 / (Qmin!S21 / 10) - 0.0659 -> 0.7284897895 | T21: =(0.387231 / ((Константы!T21 / 10) ^ (8 / 3)) + 0.0029) * ((Qmin!T21*ВГФ!T21/24) ^ (2 / 3)) + 4.9766 / (Константы!T21/ 10) + 0.15- 0.5213 / (Qmin!T21 / 10) - 0.0659 -> 0.7284897895 | U21: =(0.387231 / ((Константы!U21 / 10) ^ (8 / 3)) + 0.0029) * ((Qmin!U21*ВГФ!U21/24) ^ (2 / 3)) + 4.9766 / (Константы!U21/ 10) + 0.15- 0.5213 / (Qmin!U21 / 10) - 0.0659 -> 0.7284897895 | V21: =(0.387231 / ((Константы!V21 / 10) ^ (8 / 3)) + 0.0029) * ((Qmin!V21*ВГФ!V21/24) ^ (2 / 3)) + 4.9766 / (Константы!V21/ 10) + 0.15- 0.5213 / (Qmin!V21 / 10) - 0.0659 -> 0.683694183 | W21: =(0.387231 / ((Константы!W21 / 10) ^ (8 / 3)) + 0.0029) * ((Qmin!W21*ВГФ!W21/24) ^ (2 / 3)) + 4.9766 / (Константы!W21/ 10) + 0.15- 0.5213 / (Qmin!W21 / 10) - 0.0659 -> 0.6827988457 | X21: =(0.387231 / ((Константы!X21 / 10) ^ (8 / 3)) + 0.0029) * ((Qmin!X21*ВГФ!X21/24) ^ (2 / 3)) + 4.9766 / (Константы!X21/ 10) + 0.15- 0.5213 / (Qmin!X21 / 10) - 0.0659 -> 0.682082414 | Y21: =(0.387231 / ((Константы!Y21 / 10) ^ (8 / 3)) + 0.0029) * ((Qmin!Y21*ВГФ!Y21/24) ^ (2 / 3)) + 4.9766 / (Константы!Y21/ 10) + 0.15- 0.5213 / (Qmin!Y21 / 10) - 0.0659 -> 0.6819837478 | Z21: =(0.387231 / ((Константы!Z21 / 10) ^ (8 / 3)) + 0.0029) * ((Qmin!Z21*ВГФ!Z21/24) ^ (2 / 3)) + 4.9766 / (Константы!Z21/ 10) + 0.15- 0.5213 / (Qmin!Z21 / 10) - 0.0659 -> 0.6818789422 | AA21: =(0.387231 / ((Константы!AA21 / 10) ^ (8 / 3)) + 0.0029) * ((Qmin!AA21*ВГФ!AA21/24) ^ (2 / 3)) + 4.9766 / (Константы!AA21/ 10) + 0.15- 0.5213 / (Qmin!AA21 / 10) - 0.0659 -> 0.6817440847 | AB21: =(0.387231 / ((Константы!AB21 / 10) ^ (8 / 3)) + 0.0029) * ((Qmin!AB21*ВГФ!AB21/24) ^ (2 / 3)) + 4.9766 / (Константы!AB21/ 10) + 0.15- 0.5213 / (Qmin!AB21 / 10) - 0.0659 -> 0.6816372267 | AC21: =(0.387231 / ((Константы!AC21 / 10) ^ (8 / 3)) + 0.0029) * ((Qmin!AC21*ВГФ!AC21/24) ^ (2 / 3)) + 4.9766 / (Константы!AC21/ 10) + 0.15- 0.5213 / (Qmin!AC21 / 10) - 0.0659 -> 0.6815294975 | AD21: =(0.387231 / ((Константы!AD21 / 10) ^ (8 / 3)) + 0.0029) * ((Qmin!AD21*ВГФ!AD21/24) ^ (2 / 3)) + 4.9766 / (Константы!AD21/ 10) + 0.15- 0.5213 / (Qmin!AD21 / 10) - 0.0659 -> 0.6814316778 | AE21: =(0.387231 / ((Константы!AE21 / 10) ^ (8 / 3)) + 0.0029) * ((Qmin!AE21*ВГФ!AE21/24) ^ (2 / 3)) + 4.9766 / (Константы!AE21/ 10) + 0.15- 0.5213 / (Qmin!AE21 / 10) - 0.0659 -> 0.6813340428 | AF21: =(0.387231 / ((Константы!AF21 / 10) ^ (8 / 3)) + 0.0029) * ((Qmin!AF21*ВГФ!AF21/24) ^ (2 / 3)) + 4.9766 / (Константы!AF21/ 10) + 0.15- 0.5213 / (Qmin!AF21 / 10) - 0.0659 -> 0.6812494657 | AG21: =(0.387231 / ((Константы!AG21 / 10) ^ (8 / 3)) + 0.0029) * ((Qmin!AG21*ВГФ!AG21/24) ^ (2 / 3)) + 4.9766 / (Константы!AG21/ 10) + 0.15- 0.5213 / (Qmin!AG21 / 10) - 0.0659 -> 0.6811457446 | AH21: =(0.387231 / ((Константы!AH21 / 10) ^ (8 / 3)) + 0.0029) * ((Qmin!AH21*ВГФ!AH21/24) ^ (2 / 3)) + 4.9766 / (Константы!AH21/ 10) + 0.15- 0.5213 / (Qmin!AH21 / 10) - 0.0659 -> 0.6810649506 | AI21: =(0.387231 / ((Константы!AI21 / 10) ^ (8 / 3)) + 0.0029) * ((Qmin!AI21*ВГФ!AI21/24) ^ (2 / 3)) + 4.9766 / (Константы!AI21/ 10) + 0.15- 0.5213 / (Qmin!AI21 / 10) - 0.0659 -> 0.6810157553 | AJ21: =(0.387231 / ((Константы!AJ21 / 10) ^ (8 / 3)) + 0.0029) * ((Qmin!AJ21*ВГФ!AJ21/24) ^ (2 / 3)) + 4.9766 / (Константы!AJ21/ 10) + 0.15- 0.5213 / (Qmin!AJ21 / 10) - 0.0659 -> 0.6809459238 | AK21: =(0.387231 / ((Константы!AK21 / 10) ^ (8 / 3)) + 0.0029) * ((Qmin!AK21*ВГФ!AK21/24) ^ (2 / 3)) + 4.9766 / (Константы!AK21/ 10) + 0.15- 0.5213 / (Qmin!AK21 / 10) - 0.0659 -> 0.6809054474 | AL21: =(0.387231 / ((Константы!AL21 / 10) ^ (8 / 3)) + 0.0029) * ((Qmin!AL21*ВГФ!AL21/24) ^ (2 / 3)) + 4.9766 / (Константы!AL21/ 10) + 0.15- 0.5213 / (Qmin!AL21 / 10) - 0.0659 -> 0.6808719957 | AM21: =(0.387231 / ((Константы!AM21 / 10) ^ (8 / 3)) + 0.0029) * ((Qmin!AM21*ВГФ!AM21/24) ^ (2 / 3)) + 4.9766 / (Константы!AM21/ 10) + 0.15- 0.5213 / (Qmin!AM21 / 10) - 0.0659 -> 0.6807756923
A22: 119 | B22: Фруд1 | C22: =(0.387231 / ((Константы!C22 / 10) ^ (8 / 3)) + 0.0029) * ((Qmin!C22*ВГФ!C22/24) ^ (2 / 3)) + 4.9766 / (Константы!C22/ 10) + 0.15- 0.5213 / (Qmin!C22 / 10) - 0.0659 -> 0.7284897895 | D22: =(0.387231 / ((Константы!D22 / 10) ^ (8 / 3)) + 0.0029) * ((Qmin!D22*ВГФ!D22/24) ^ (2 / 3)) + 4.9766 / (Константы!D22/ 10) + 0.15- 0.5213 / (Qmin!D22 / 10) - 0.0659 -> 0.7284897895 | E22: =(0.387231 / ((Константы!E22 / 10) ^ (8 / 3)) + 0.0029) * ((Qmin!E22*ВГФ!E22/24) ^ (2 / 3)) + 4.9766 / (Константы!E22/ 10) + 0.15- 0.5213 / (Qmin!E22 / 10) - 0.0659 -> 0.7284897895 | F22: =(0.387231 / ((Константы!F22 / 10) ^ (8 / 3)) + 0.0029) * ((Qmin!F22*ВГФ!F22/24) ^ (2 / 3)) + 4.9766 / (Константы!F22/ 10) + 0.15- 0.5213 / (Qmin!F22 / 10) - 0.0659 -> 0.7284897895 | G22: =(0.387231 / ((Константы!G22 / 10) ^ (8 / 3)) + 0.0029) * ((Qmin!G22*ВГФ!G22/24) ^ (2 / 3)) + 4.9766 / (Константы!G22/ 10) + 0.15- 0.5213 / (Qmin!G22 / 10) - 0.0659 -> 0.7284897895 | H22: =(0.387231 / ((Константы!H22 / 10) ^ (8 / 3)) + 0.0029) * ((Qmin!H22*ВГФ!H22/24) ^ (2 / 3)) + 4.9766 / (Константы!H22/ 10) + 0.15- 0.5213 / (Qmin!H22 / 10) - 0.0659 -> 0.7284897895 | I22: =(0.387231 / ((Константы!I22 / 10) ^ (8 / 3)) + 0.0029) * ((Qmin!I22*ВГФ!I22/24) ^ (2 / 3)) + 4.9766 / (Константы!I22/ 10) + 0.15- 0.5213 / (Qmin!I22 / 10) - 0.0659 -> 0.7284897895 | J22: =(0.387231 / ((Константы!J22 / 10) ^ (8 / 3)) + 0.0029) * ((Qmin!J22*ВГФ!J22/24) ^ (2 / 3)) + 4.9766 / (Константы!J22/ 10) + 0.15- 0.5213 / (Qmin!J22 / 10) - 0.0659 -> 0.7284897895 | K22: =(0.387231 / ((Константы!K22 / 10) ^ (8 / 3)) + 0.0029) * ((Qmin!K22*ВГФ!K22/24) ^ (2 / 3)) + 4.9766 / (Константы!K22/ 10) + 0.15- 0.5213 / (Qmin!K22 / 10) - 0.0659 -> 0.7284897895 | L22: =(0.387231 / ((Константы!L22 / 10) ^ (8 / 3)) + 0.0029) * ((Qmin!L22*ВГФ!L22/24) ^ (2 / 3)) + 4.9766 / (Константы!L22/ 10) + 0.15- 0.5213 / (Qmin!L22 / 10) - 0.0659 -> 0.7284897895 | M22: =(0.387231 / ((Константы!M22 / 10) ^ (8 / 3)) + 0.0029) * ((Qmin!M22*ВГФ!M22/24) ^ (2 / 3)) + 4.9766 / (Константы!M22/ 10) + 0.15- 0.5213 / (Qmin!M22 / 10) - 0.0659 -> 0.7284897895 | N22: =(0.387231 / ((Константы!N22 / 10) ^ (8 / 3)) + 0.0029) * ((Qmin!N22*ВГФ!N22/24) ^ (2 / 3)) + 4.9766 / (Константы!N22/ 10) + 0.15- 0.5213 / (Qmin!N22 / 10) - 0.0659 -> 0.7284897895 | O22: =(0.387231 / ((Константы!O22 / 10) ^ (8 / 3)) + 0.0029) * ((Qmin!O22*ВГФ!O22/24) ^ (2 / 3)) + 4.9766 / (Константы!O22/ 10) + 0.15- 0.5213 / (Qmin!O22 / 10) - 0.0659 -> 0.7284897895 | P22: =(0.387231 / ((Константы!P22 / 10) ^ (8 / 3)) + 0.0029) * ((Qmin!P22*ВГФ!P22/24) ^ (2 / 3)) + 4.9766 / (Константы!P22/ 10) + 0.15- 0.5213 / (Qmin!P22 / 10) - 0.0659 -> 0.7284897895 | Q22: =(0.387231 / ((Константы!Q22 / 10) ^ (8 / 3)) + 0.0029) * ((Qmin!Q22*ВГФ!Q22/24) ^ (2 / 3)) + 4.9766 / (Константы!Q22/ 10) + 0.15- 0.5213 / (Qmin!Q22 / 10) - 0.0659 -> 0.7284897895 | R22: =(0.387231 / ((Константы!R22 / 10) ^ (8 / 3)) + 0.0029) * ((Qmin!R22*ВГФ!R22/24) ^ (2 / 3)) + 4.9766 / (Константы!R22/ 10) + 0.15- 0.5213 / (Qmin!R22 / 10) - 0.0659 -> 0.7284897895 | S22: =(0.387231 / ((Константы!S22 / 10) ^ (8 / 3)) + 0.0029) * ((Qmin!S22*ВГФ!S22/24) ^ (2 / 3)) + 4.9766 / (Константы!S22/ 10) + 0.15- 0.5213 / (Qmin!S22 / 10) - 0.0659 -> 0.7284897895 | T22: =(0.387231 / ((Константы!T22 / 10) ^ (8 / 3)) + 0.0029) * ((Qmin!T22*ВГФ!T22/24) ^ (2 / 3)) + 4.9766 / (Константы!T22/ 10) + 0.15- 0.5213 / (Qmin!T22 / 10) - 0.0659 -> 0.6879441475 | U22: =(0.387231 / ((Константы!U22 / 10) ^ (8 / 3)) + 0.0029) * ((Qmin!U22*ВГФ!U22/24) ^ (2 / 3)) + 4.9766 / (Константы!U22/ 10) + 0.15- 0.5213 / (Qmin!U22 / 10) - 0.0659 -> 0.6874939847 | V22: =(0.387231 / ((Константы!V22 / 10) ^ (8 / 3)) + 0.0029) * ((Qmin!V22*ВГФ!V22/24) ^ (2 / 3)) + 4.9766 / (Константы!V22/ 10) + 0.15- 0.5213 / (Qmin!V22 / 10) - 0.0659 -> 0.6871896065 | W22: =(0.387231 / ((Константы!W22 / 10) ^ (8 / 3)) + 0.0029) * ((Qmin!W22*ВГФ!W22/24) ^ (2 / 3)) + 4.9766 / (Константы!W22/ 10) + 0.15- 0.5213 / (Qmin!W22 / 10) - 0.0659 -> 0.6868480701 | X22: =(0.387231 / ((Константы!X22 / 10) ^ (8 / 3)) + 0.0029) * ((Qmin!X22*ВГФ!X22/24) ^ (2 / 3)) + 4.9766 / (Константы!X22/ 10) + 0.15- 0.5213 / (Qmin!X22 / 10) - 0.0659 -> 0.6865208542 | Y22: =(0.387231 / ((Константы!Y22 / 10) ^ (8 / 3)) + 0.0029) * ((Qmin!Y22*ВГФ!Y22/24) ^ (2 / 3)) + 4.9766 / (Константы!Y22/ 10) + 0.15- 0.5213 / (Qmin!Y22 / 10) - 0.0659 -> 0.6862512921 | Z22: =(0.387231 / ((Константы!Z22 / 10) ^ (8 / 3)) + 0.0029) * ((Qmin!Z22*ВГФ!Z22/24) ^ (2 / 3)) + 4.9766 / (Константы!Z22/ 10) + 0.15- 0.5213 / (Qmin!Z22 / 10) - 0.0659 -> 0.68604895 | AA22: =(0.387231 / ((Константы!AA22 / 10) ^ (8 / 3)) + 0.0029) * ((Qmin!AA22*ВГФ!AA22/24) ^ (2 / 3)) + 4.9766 / (Константы!AA22/ 10) + 0.15- 0.5213 / (Qmin!AA22 / 10) - 0.0659 -> 0.6859645765 | AB22: =(0.387231 / ((Константы!AB22 / 10) ^ (8 / 3)) + 0.0029) * ((Qmin!AB22*ВГФ!AB22/24) ^ (2 / 3)) + 4.9766 / (Константы!AB22/ 10) + 0.15- 0.5213 / (Qmin!AB22 / 10) - 0.0659 -> 0.686046023 | AC22: =(0.387231 / ((Константы!AC22 / 10) ^ (8 / 3)) + 0.0029) * ((Qmin!AC22*ВГФ!AC22/24) ^ (2 / 3)) + 4.9766 / (Константы!AC22/ 10) + 0.15- 0.5213 / (Qmin!AC22 / 10) - 0.0659 -> 0.6865648989 | AD22: =(0.387231 / ((Константы!AD22 / 10) ^ (8 / 3)) + 0.0029) * ((Qmin!AD22*ВГФ!AD22/24) ^ (2 / 3)) + 4.9766 / (Константы!AD22/ 10) + 0.15- 0.5213 / (Qmin!AD22 / 10) - 0.0659 -> 0.6877297075 | AE22: =(0.387231 / ((Константы!AE22 / 10) ^ (8 / 3)) + 0.0029) * ((Qmin!AE22*ВГФ!AE22/24) ^ (2 / 3)) + 4.9766 / (Константы!AE22/ 10) + 0.15- 0.5213 / (Qmin!AE22 / 10) - 0.0659 -> 0.6902928278 | AF22: =(0.387231 / ((Константы!AF22 / 10) ^ (8 / 3)) + 0.0029) * ((Qmin!AF22*ВГФ!AF22/24) ^ (2 / 3)) + 4.9766 / (Константы!AF22/ 10) + 0.15- 0.5213 / (Qmin!AF22 / 10) - 0.0659 -> 0.6965295049 | AG22: =(0.387231 / ((Константы!AG22 / 10) ^ (8 / 3)) + 0.0029) * ((Qmin!AG22*ВГФ!AG22/24) ^ (2 / 3)) + 4.9766 / (Константы!AG22/ 10) + 0.15- 0.5213 / (Qmin!AG22 / 10) - 0.0659 -> 0.7064158646 | AH22: =(0.387231 / ((Константы!AH22 / 10) ^ (8 / 3)) + 0.0029) * ((Qmin!AH22*ВГФ!AH22/24) ^ (2 / 3)) + 4.9766 / (Константы!AH22/ 10) + 0.15- 0.5213 / (Qmin!AH22 / 10) - 0.0659 -> 0.7291099702 | AI22: =(0.387231 / ((Константы!AI22 / 10) ^ (8 / 3)) + 0.0029) * ((Qmin!AI22*ВГФ!AI22/24) ^ (2 / 3)) + 4.9766 / (Константы!AI22/ 10) + 0.15- 0.5213 / (Qmin!AI22 / 10) - 0.0659 -> 0.7887232763 | AJ22: =(0.387231 / ((Константы!AJ22 / 10) ^ (8 / 3)) + 0.0029) * ((Qmin!AJ22*ВГФ!AJ22/24) ^ (2 / 3)) + 4.9766 / (Константы!AJ22/ 10) + 0.15- 0.5213 / (Qmin!AJ22 / 10) - 0.0659 -> 0.8524343319 | AK22: =(0.387231 / ((Константы!AK22 / 10) ^ (8 / 3)) + 0.0029) * ((Qmin!AK22*ВГФ!AK22/24) ^ (2 / 3)) + 4.9766 / (Константы!AK22/ 10) + 0.15- 0.5213 / (Qmin!AK22 / 10) - 0.0659 -> 0.8722485907 | AL22: =(0.387231 / ((Константы!AL22 / 10) ^ (8 / 3)) + 0.0029) * ((Qmin!AL22*ВГФ!AL22/24) ^ (2 / 3)) + 4.9766 / (Константы!AL22/ 10) + 0.15- 0.5213 / (Qmin!AL22 / 10) - 0.0659 -> 0.888600008 | AM22: =(0.387231 / ((Константы!AM22 / 10) ^ (8 / 3)) + 0.0029) * ((Qmin!AM22*ВГФ!AM22/24) ^ (2 / 3)) + 4.9766 / (Константы!AM22/ 10) + 0.15- 0.5213 / (Qmin!AM22 / 10) - 0.0659 -> 0.9013576732
A23: 120 | B23: Фруд1 | C23: =(0.387231 / ((Константы!C23 / 10) ^ (8 / 3)) + 0.0029) * ((Qmin!C23*ВГФ!C23/24) ^ (2 / 3)) + 4.9766 / (Константы!C23/ 10) + 0.15- 0.5213 / (Qmin!C23 / 10) - 0.0659 ->  | D23: =(0.387231 / ((Константы!D23 / 10) ^ (8 / 3)) + 0.0029) * ((Qmin!D23*ВГФ!D23/24) ^ (2 / 3)) + 4.9766 / (Константы!D23/ 10) + 0.15- 0.5213 / (Qmin!D23 / 10) - 0.0659 ->  | E23: =(0.387231 / ((Константы!E23 / 10) ^ (8 / 3)) + 0.0029) * ((Qmin!E23*ВГФ!E23/24) ^ (2 / 3)) + 4.9766 / (Константы!E23/ 10) + 0.15- 0.5213 / (Qmin!E23 / 10) - 0.0659 ->  | F23: =(0.387231 / ((Константы!F23 / 10) ^ (8 / 3)) + 0.0029) * ((Qmin!F23*ВГФ!F23/24) ^ (2 / 3)) + 4.9766 / (Константы!F23/ 10) + 0.15- 0.5213 / (Qmin!F23 / 10) - 0.0659 ->  | G23: =(0.387231 / ((Константы!G23 / 10) ^ (8 / 3)) + 0.0029) * ((Qmin!G23*ВГФ!G23/24) ^ (2 / 3)) + 4.9766 / (Константы!G23/ 10) + 0.15- 0.5213 / (Qmin!G23 / 10) - 0.0659 ->  | H23: =(0.387231 / ((Константы!H23 / 10) ^ (8 / 3)) + 0.0029) * ((Qmin!H23*ВГФ!H23/24) ^ (2 / 3)) + 4.9766 / (Константы!H23/ 10) + 0.15- 0.5213 / (Qmin!H23 / 10) - 0.0659 ->  | I23: =(0.387231 / ((Константы!I23 / 10) ^ (8 / 3)) + 0.0029) * ((Qmin!I23*ВГФ!I23/24) ^ (2 / 3)) + 4.9766 / (Константы!I23/ 10) + 0.15- 0.5213 / (Qmin!I23 / 10) - 0.0659 ->  | J23: =(0.387231 / ((Константы!J23 / 10) ^ (8 / 3)) + 0.0029) * ((Qmin!J23*ВГФ!J23/24) ^ (2 / 3)) + 4.9766 / (Константы!J23/ 10) + 0.15- 0.5213 / (Qmin!J23 / 10) - 0.0659 ->  | K23: =(0.387231 / ((Константы!K23 / 10) ^ (8 / 3)) + 0.0029) * ((Qmin!K23*ВГФ!K23/24) ^ (2 / 3)) + 4.9766 / (Константы!K23/ 10) + 0.15- 0.5213 / (Qmin!K23 / 10) - 0.0659 ->  | L23: =(0.387231 / ((Константы!L23 / 10) ^ (8 / 3)) + 0.0029) * ((Qmin!L23*ВГФ!L23/24) ^ (2 / 3)) + 4.9766 / (Константы!L23/ 10) + 0.15- 0.5213 / (Qmin!L23 / 10) - 0.0659 ->  | M23: =(0.387231 / ((Константы!M23 / 10) ^ (8 / 3)) + 0.0029) * ((Qmin!M23*ВГФ!M23/24) ^ (2 / 3)) + 4.9766 / (Константы!M23/ 10) + 0.15- 0.5213 / (Qmin!M23 / 10) - 0.0659 ->  | N23: =(0.387231 / ((Константы!N23 / 10) ^ (8 / 3)) + 0.0029) * ((Qmin!N23*ВГФ!N23/24) ^ (2 / 3)) + 4.9766 / (Константы!N23/ 10) + 0.15- 0.5213 / (Qmin!N23 / 10) - 0.0659 ->  | O23: =(0.387231 / ((Константы!O23 / 10) ^ (8 / 3)) + 0.0029) * ((Qmin!O23*ВГФ!O23/24) ^ (2 / 3)) + 4.9766 / (Константы!O23/ 10) + 0.15- 0.5213 / (Qmin!O23 / 10) - 0.0659 ->  | P23: =(0.387231 / ((Константы!P23 / 10) ^ (8 / 3)) + 0.0029) * ((Qmin!P23*ВГФ!P23/24) ^ (2 / 3)) + 4.9766 / (Константы!P23/ 10) + 0.15- 0.5213 / (Qmin!P23 / 10) - 0.0659 ->  | Q23: =(0.387231 / ((Константы!Q23 / 10) ^ (8 / 3)) + 0.0029) * ((Qmin!Q23*ВГФ!Q23/24) ^ (2 / 3)) + 4.9766 / (Константы!Q23/ 10) + 0.15- 0.5213 / (Qmin!Q23 / 10) - 0.0659 ->  | R23: =(0.387231 / ((Константы!R23 / 10) ^ (8 / 3)) + 0.0029) * ((Qmin!R23*ВГФ!R23/24) ^ (2 / 3)) + 4.9766 / (Константы!R23/ 10) + 0.15- 0.5213 / (Qmin!R23 / 10) - 0.0659 ->  | S23: =(0.387231 / ((Константы!S23 / 10) ^ (8 / 3)) + 0.0029) * ((Qmin!S23*ВГФ!S23/24) ^ (2 / 3)) + 4.9766 / (Константы!S23/ 10) + 0.15- 0.5213 / (Qmin!S23 / 10) - 0.0659 ->  | T23: =(0.387231 / ((Константы!T23 / 10) ^ (8 / 3)) + 0.0029) * ((Qmin!T23*ВГФ!T23/24) ^ (2 / 3)) + 4.9766 / (Константы!T23/ 10) + 0.15- 0.5213 / (Qmin!T23 / 10) - 0.0659 ->  | U23: =(0.387231 / ((Константы!U23 / 10) ^ (8 / 3)) + 0.0029) * ((Qmin!U23*ВГФ!U23/24) ^ (2 / 3)) + 4.9766 / (Константы!U23/ 10) + 0.15- 0.5213 / (Qmin!U23 / 10) - 0.0659 ->  | V23: =(0.387231 / ((Константы!V23 / 10) ^ (8 / 3)) + 0.0029) * ((Qmin!V23*ВГФ!V23/24) ^ (2 / 3)) + 4.9766 / (Константы!V23/ 10) + 0.15- 0.5213 / (Qmin!V23 / 10) - 0.0659 ->  | W23: =(0.387231 / ((Константы!W23 / 10) ^ (8 / 3)) + 0.0029) * ((Qmin!W23*ВГФ!W23/24) ^ (2 / 3)) + 4.9766 / (Константы!W23/ 10) + 0.15- 0.5213 / (Qmin!W23 / 10) - 0.0659 ->  | X23: =(0.387231 / ((Константы!X23 / 10) ^ (8 / 3)) + 0.0029) * ((Qmin!X23*ВГФ!X23/24) ^ (2 / 3)) + 4.9766 / (Константы!X23/ 10) + 0.15- 0.5213 / (Qmin!X23 / 10) - 0.0659 ->  | Y23: =(0.387231 / ((Константы!Y23 / 10) ^ (8 / 3)) + 0.0029) * ((Qmin!Y23*ВГФ!Y23/24) ^ (2 / 3)) + 4.9766 / (Константы!Y23/ 10) + 0.15- 0.5213 / (Qmin!Y23 / 10) - 0.0659 ->  | Z23: =(0.387231 / ((Константы!Z23 / 10) ^ (8 / 3)) + 0.0029) * ((Qmin!Z23*ВГФ!Z23/24) ^ (2 / 3)) + 4.9766 / (Константы!Z23/ 10) + 0.15- 0.5213 / (Qmin!Z23 / 10) - 0.0659 ->  | AA23: =(0.387231 / ((Константы!AA23 / 10) ^ (8 / 3)) + 0.0029) * ((Qmin!AA23*ВГФ!AA23/24) ^ (2 / 3)) + 4.9766 / (Константы!AA23/ 10) + 0.15- 0.5213 / (Qmin!AA23 / 10) - 0.0659 ->  | AB23: =(0.387231 / ((Константы!AB23 / 10) ^ (8 / 3)) + 0.0029) * ((Qmin!AB23*ВГФ!AB23/24) ^ (2 / 3)) + 4.9766 / (Константы!AB23/ 10) + 0.15- 0.5213 / (Qmin!AB23 / 10) - 0.0659 ->  | AC23: =(0.387231 / ((Константы!AC23 / 10) ^ (8 / 3)) + 0.0029) * ((Qmin!AC23*ВГФ!AC23/24) ^ (2 / 3)) + 4.9766 / (Константы!AC23/ 10) + 0.15- 0.5213 / (Qmin!AC23 / 10) - 0.0659 ->  | AD23: =(0.387231 / ((Константы!AD23 / 10) ^ (8 / 3)) + 0.0029) * ((Qmin!AD23*ВГФ!AD23/24) ^ (2 / 3)) + 4.9766 / (Константы!AD23/ 10) + 0.15- 0.5213 / (Qmin!AD23 / 10) - 0.0659 ->  | AE23: =(0.387231 / ((Константы!AE23 / 10) ^ (8 / 3)) + 0.0029) * ((Qmin!AE23*ВГФ!AE23/24) ^ (2 / 3)) + 4.9766 / (Константы!AE23/ 10) + 0.15- 0.5213 / (Qmin!AE23 / 10) - 0.0659 ->  | AF23: =(0.387231 / ((Константы!AF23 / 10) ^ (8 / 3)) + 0.0029) * ((Qmin!AF23*ВГФ!AF23/24) ^ (2 / 3)) + 4.9766 / (Константы!AF23/ 10) + 0.15- 0.5213 / (Qmin!AF23 / 10) - 0.0659 ->  | AG23: =(0.387231 / ((Константы!AG23 / 10) ^ (8 / 3)) + 0.0029) * ((Qmin!AG23*ВГФ!AG23/24) ^ (2 / 3)) + 4.9766 / (Константы!AG23/ 10) + 0.15- 0.5213 / (Qmin!AG23 / 10) - 0.0659 ->  | AH23: =(0.387231 / ((Константы!AH23 / 10) ^ (8 / 3)) + 0.0029) * ((Qmin!AH23*ВГФ!AH23/24) ^ (2 / 3)) + 4.9766 / (Константы!AH23/ 10) + 0.15- 0.5213 / (Qmin!AH23 / 10) - 0.0659 ->  | AI23: =(0.387231 / ((Константы!AI23 / 10) ^ (8 / 3)) + 0.0029) * ((Qmin!AI23*ВГФ!AI23/24) ^ (2 / 3)) + 4.9766 / (Константы!AI23/ 10) + 0.15- 0.5213 / (Qmin!AI23 / 10) - 0.0659 ->  | AJ23: =(0.387231 / ((Константы!AJ23 / 10) ^ (8 / 3)) + 0.0029) * ((Qmin!AJ23*ВГФ!AJ23/24) ^ (2 / 3)) + 4.9766 / (Константы!AJ23/ 10) + 0.15- 0.5213 / (Qmin!AJ23 / 10) - 0.0659 ->  | AK23: =(0.387231 / ((Константы!AK23 / 10) ^ (8 / 3)) + 0.0029) * ((Qmin!AK23*ВГФ!AK23/24) ^ (2 / 3)) + 4.9766 / (Константы!AK23/ 10) + 0.15- 0.5213 / (Qmin!AK23 / 10) - 0.0659 ->  | AL23: =(0.387231 / ((Константы!AL23 / 10) ^ (8 / 3)) + 0.0029) * ((Qmin!AL23*ВГФ!AL23/24) ^ (2 / 3)) + 4.9766 / (Константы!AL23/ 10) + 0.15- 0.5213 / (Qmin!AL23 / 10) - 0.0659 ->  | AM23: =(0.387231 / ((Константы!AM23 / 10) ^ (8 / 3)) + 0.0029) * ((Qmin!AM23*ВГФ!AM23/24) ^ (2 / 3)) + 4.9766 / (Константы!AM23/ 10) + 0.15- 0.5213 / (Qmin!AM23 / 10) - 0.0659 -> 
A24: 121 | B24: Фруд1 | C24: =(0.387231 / ((Константы!C24 / 10) ^ (8 / 3)) + 0.0029) * ((Qmin!C24*ВГФ!C24/24) ^ (2 / 3)) + 4.9766 / (Константы!C24/ 10) + 0.15- 0.5213 / (Qmin!C24 / 10) - 0.0659 ->  | D24: =(0.387231 / ((Константы!D24 / 10) ^ (8 / 3)) + 0.0029) * ((Qmin!D24*ВГФ!D24/24) ^ (2 / 3)) + 4.9766 / (Константы!D24/ 10) + 0.15- 0.5213 / (Qmin!D24 / 10) - 0.0659 ->  | E24: =(0.387231 / ((Константы!E24 / 10) ^ (8 / 3)) + 0.0029) * ((Qmin!E24*ВГФ!E24/24) ^ (2 / 3)) + 4.9766 / (Константы!E24/ 10) + 0.15- 0.5213 / (Qmin!E24 / 10) - 0.0659 ->  | F24: =(0.387231 / ((Константы!F24 / 10) ^ (8 / 3)) + 0.0029) * ((Qmin!F24*ВГФ!F24/24) ^ (2 / 3)) + 4.9766 / (Константы!F24/ 10) + 0.15- 0.5213 / (Qmin!F24 / 10) - 0.0659 ->  | G24: =(0.387231 / ((Константы!G24 / 10) ^ (8 / 3)) + 0.0029) * ((Qmin!G24*ВГФ!G24/24) ^ (2 / 3)) + 4.9766 / (Константы!G24/ 10) + 0.15- 0.5213 / (Qmin!G24 / 10) - 0.0659 ->  | H24: =(0.387231 / ((Константы!H24 / 10) ^ (8 / 3)) + 0.0029) * ((Qmin!H24*ВГФ!H24/24) ^ (2 / 3)) + 4.9766 / (Константы!H24/ 10) + 0.15- 0.5213 / (Qmin!H24 / 10) - 0.0659 ->  | I24: =(0.387231 / ((Константы!I24 / 10) ^ (8 / 3)) + 0.0029) * ((Qmin!I24*ВГФ!I24/24) ^ (2 / 3)) + 4.9766 / (Константы!I24/ 10) + 0.15- 0.5213 / (Qmin!I24 / 10) - 0.0659 ->  | J24: =(0.387231 / ((Константы!J24 / 10) ^ (8 / 3)) + 0.0029) * ((Qmin!J24*ВГФ!J24/24) ^ (2 / 3)) + 4.9766 / (Константы!J24/ 10) + 0.15- 0.5213 / (Qmin!J24 / 10) - 0.0659 ->  | K24: =(0.387231 / ((Константы!K24 / 10) ^ (8 / 3)) + 0.0029) * ((Qmin!K24*ВГФ!K24/24) ^ (2 / 3)) + 4.9766 / (Константы!K24/ 10) + 0.15- 0.5213 / (Qmin!K24 / 10) - 0.0659 ->  | L24: =(0.387231 / ((Константы!L24 / 10) ^ (8 / 3)) + 0.0029) * ((Qmin!L24*ВГФ!L24/24) ^ (2 / 3)) + 4.9766 / (Константы!L24/ 10) + 0.15- 0.5213 / (Qmin!L24 / 10) - 0.0659 ->  | M24: =(0.387231 / ((Константы!M24 / 10) ^ (8 / 3)) + 0.0029) * ((Qmin!M24*ВГФ!M24/24) ^ (2 / 3)) + 4.9766 / (Константы!M24/ 10) + 0.15- 0.5213 / (Qmin!M24 / 10) - 0.0659 ->  | N24: =(0.387231 / ((Константы!N24 / 10) ^ (8 / 3)) + 0.0029) * ((Qmin!N24*ВГФ!N24/24) ^ (2 / 3)) + 4.9766 / (Константы!N24/ 10) + 0.15- 0.5213 / (Qmin!N24 / 10) - 0.0659 ->  | O24: =(0.387231 / ((Константы!O24 / 10) ^ (8 / 3)) + 0.0029) * ((Qmin!O24*ВГФ!O24/24) ^ (2 / 3)) + 4.9766 / (Константы!O24/ 10) + 0.15- 0.5213 / (Qmin!O24 / 10) - 0.0659 ->  | P24: =(0.387231 / ((Константы!P24 / 10) ^ (8 / 3)) + 0.0029) * ((Qmin!P24*ВГФ!P24/24) ^ (2 / 3)) + 4.9766 / (Константы!P24/ 10) + 0.15- 0.5213 / (Qmin!P24 / 10) - 0.0659 ->  | Q24: =(0.387231 / ((Константы!Q24 / 10) ^ (8 / 3)) + 0.0029) * ((Qmin!Q24*ВГФ!Q24/24) ^ (2 / 3)) + 4.9766 / (Константы!Q24/ 10) + 0.15- 0.5213 / (Qmin!Q24 / 10) - 0.0659 ->  | R24: =(0.387231 / ((Константы!R24 / 10) ^ (8 / 3)) + 0.0029) * ((Qmin!R24*ВГФ!R24/24) ^ (2 / 3)) + 4.9766 / (Константы!R24/ 10) + 0.15- 0.5213 / (Qmin!R24 / 10) - 0.0659 ->  | S24: =(0.387231 / ((Константы!S24 / 10) ^ (8 / 3)) + 0.0029) * ((Qmin!S24*ВГФ!S24/24) ^ (2 / 3)) + 4.9766 / (Константы!S24/ 10) + 0.15- 0.5213 / (Qmin!S24 / 10) - 0.0659 ->  | T24: =(0.387231 / ((Константы!T24 / 10) ^ (8 / 3)) + 0.0029) * ((Qmin!T24*ВГФ!T24/24) ^ (2 / 3)) + 4.9766 / (Константы!T24/ 10) + 0.15- 0.5213 / (Qmin!T24 / 10) - 0.0659 ->  | U24: =(0.387231 / ((Константы!U24 / 10) ^ (8 / 3)) + 0.0029) * ((Qmin!U24*ВГФ!U24/24) ^ (2 / 3)) + 4.9766 / (Константы!U24/ 10) + 0.15- 0.5213 / (Qmin!U24 / 10) - 0.0659 ->  | V24: =(0.387231 / ((Константы!V24 / 10) ^ (8 / 3)) + 0.0029) * ((Qmin!V24*ВГФ!V24/24) ^ (2 / 3)) + 4.9766 / (Константы!V24/ 10) + 0.15- 0.5213 / (Qmin!V24 / 10) - 0.0659 ->  | W24: =(0.387231 / ((Константы!W24 / 10) ^ (8 / 3)) + 0.0029) * ((Qmin!W24*ВГФ!W24/24) ^ (2 / 3)) + 4.9766 / (Константы!W24/ 10) + 0.15- 0.5213 / (Qmin!W24 / 10) - 0.0659 ->  | X24: =(0.387231 / ((Константы!X24 / 10) ^ (8 / 3)) + 0.0029) * ((Qmin!X24*ВГФ!X24/24) ^ (2 / 3)) + 4.9766 / (Константы!X24/ 10) + 0.15- 0.5213 / (Qmin!X24 / 10) - 0.0659 ->  | Y24: =(0.387231 / ((Константы!Y24 / 10) ^ (8 / 3)) + 0.0029) * ((Qmin!Y24*ВГФ!Y24/24) ^ (2 / 3)) + 4.9766 / (Константы!Y24/ 10) + 0.15- 0.5213 / (Qmin!Y24 / 10) - 0.0659 ->  | Z24: =(0.387231 / ((Константы!Z24 / 10) ^ (8 / 3)) + 0.0029) * ((Qmin!Z24*ВГФ!Z24/24) ^ (2 / 3)) + 4.9766 / (Константы!Z24/ 10) + 0.15- 0.5213 / (Qmin!Z24 / 10) - 0.0659 ->  | AA24: =(0.387231 / ((Константы!AA24 / 10) ^ (8 / 3)) + 0.0029) * ((Qmin!AA24*ВГФ!AA24/24) ^ (2 / 3)) + 4.9766 / (Константы!AA24/ 10) + 0.15- 0.5213 / (Qmin!AA24 / 10) - 0.0659 ->  | AB24: =(0.387231 / ((Константы!AB24 / 10) ^ (8 / 3)) + 0.0029) * ((Qmin!AB24*ВГФ!AB24/24) ^ (2 / 3)) + 4.9766 / (Константы!AB24/ 10) + 0.15- 0.5213 / (Qmin!AB24 / 10) - 0.0659 ->  | AC24: =(0.387231 / ((Константы!AC24 / 10) ^ (8 / 3)) + 0.0029) * ((Qmin!AC24*ВГФ!AC24/24) ^ (2 / 3)) + 4.9766 / (Константы!AC24/ 10) + 0.15- 0.5213 / (Qmin!AC24 / 10) - 0.0659 ->  | AD24: =(0.387231 / ((Константы!AD24 / 10) ^ (8 / 3)) + 0.0029) * ((Qmin!AD24*ВГФ!AD24/24) ^ (2 / 3)) + 4.9766 / (Константы!AD24/ 10) + 0.15- 0.5213 / (Qmin!AD24 / 10) - 0.0659 ->  | AE24: =(0.387231 / ((Константы!AE24 / 10) ^ (8 / 3)) + 0.0029) * ((Qmin!AE24*ВГФ!AE24/24) ^ (2 / 3)) + 4.9766 / (Константы!AE24/ 10) + 0.15- 0.5213 / (Qmin!AE24 / 10) - 0.0659 ->  | AF24: =(0.387231 / ((Константы!AF24 / 10) ^ (8 / 3)) + 0.0029) * ((Qmin!AF24*ВГФ!AF24/24) ^ (2 / 3)) + 4.9766 / (Константы!AF24/ 10) + 0.15- 0.5213 / (Qmin!AF24 / 10) - 0.0659 ->  | AG24: =(0.387231 / ((Константы!AG24 / 10) ^ (8 / 3)) + 0.0029) * ((Qmin!AG24*ВГФ!AG24/24) ^ (2 / 3)) + 4.9766 / (Константы!AG24/ 10) + 0.15- 0.5213 / (Qmin!AG24 / 10) - 0.0659 ->  | AH24: =(0.387231 / ((Константы!AH24 / 10) ^ (8 / 3)) + 0.0029) * ((Qmin!AH24*ВГФ!AH24/24) ^ (2 / 3)) + 4.9766 / (Константы!AH24/ 10) + 0.15- 0.5213 / (Qmin!AH24 / 10) - 0.0659 ->  | AI24: =(0.387231 / ((Константы!AI24 / 10) ^ (8 / 3)) + 0.0029) * ((Qmin!AI24*ВГФ!AI24/24) ^ (2 / 3)) + 4.9766 / (Константы!AI24/ 10) + 0.15- 0.5213 / (Qmin!AI24 / 10) - 0.0659 ->  | AJ24: =(0.387231 / ((Константы!AJ24 / 10) ^ (8 / 3)) + 0.0029) * ((Qmin!AJ24*ВГФ!AJ24/24) ^ (2 / 3)) + 4.9766 / (Константы!AJ24/ 10) + 0.15- 0.5213 / (Qmin!AJ24 / 10) - 0.0659 ->  | AK24: =(0.387231 / ((Константы!AK24 / 10) ^ (8 / 3)) + 0.0029) * ((Qmin!AK24*ВГФ!AK24/24) ^ (2 / 3)) + 4.9766 / (Константы!AK24/ 10) + 0.15- 0.5213 / (Qmin!AK24 / 10) - 0.0659 ->  | AL24: =(0.387231 / ((Константы!AL24 / 10) ^ (8 / 3)) + 0.0029) * ((Qmin!AL24*ВГФ!AL24/24) ^ (2 / 3)) + 4.9766 / (Константы!AL24/ 10) + 0.15- 0.5213 / (Qmin!AL24 / 10) - 0.0659 ->  | AM24: =(0.387231 / ((Константы!AM24 / 10) ^ (8 / 3)) + 0.0029) * ((Qmin!AM24*ВГФ!AM24/24) ^ (2 / 3)) + 4.9766 / (Константы!AM24/ 10) + 0.15- 0.5213 / (Qmin!AM24 / 10) - 0.0659 -> 
A25: 122 | B25: Фруд1 | C25: =(0.387231 / ((Константы!C25 / 10) ^ (8 / 3)) + 0.0029) * ((Qmin!C25*ВГФ!C25/24) ^ (2 / 3)) + 4.9766 / (Константы!C25/ 10) + 0.15- 0.5213 / (Qmin!C25 / 10) - 0.0659 ->  | D25: =(0.387231 / ((Константы!D25 / 10) ^ (8 / 3)) + 0.0029) * ((Qmin!D25*ВГФ!D25/24) ^ (2 / 3)) + 4.9766 / (Константы!D25/ 10) + 0.15- 0.5213 / (Qmin!D25 / 10) - 0.0659 ->  | E25: =(0.387231 / ((Константы!E25 / 10) ^ (8 / 3)) + 0.0029) * ((Qmin!E25*ВГФ!E25/24) ^ (2 / 3)) + 4.9766 / (Константы!E25/ 10) + 0.15- 0.5213 / (Qmin!E25 / 10) - 0.0659 ->  | F25: =(0.387231 / ((Константы!F25 / 10) ^ (8 / 3)) + 0.0029) * ((Qmin!F25*ВГФ!F25/24) ^ (2 / 3)) + 4.9766 / (Константы!F25/ 10) + 0.15- 0.5213 / (Qmin!F25 / 10) - 0.0659 ->  | G25: =(0.387231 / ((Константы!G25 / 10) ^ (8 / 3)) + 0.0029) * ((Qmin!G25*ВГФ!G25/24) ^ (2 / 3)) + 4.9766 / (Константы!G25/ 10) + 0.15- 0.5213 / (Qmin!G25 / 10) - 0.0659 ->  | H25: =(0.387231 / ((Константы!H25 / 10) ^ (8 / 3)) + 0.0029) * ((Qmin!H25*ВГФ!H25/24) ^ (2 / 3)) + 4.9766 / (Константы!H25/ 10) + 0.15- 0.5213 / (Qmin!H25 / 10) - 0.0659 ->  | I25: =(0.387231 / ((Константы!I25 / 10) ^ (8 / 3)) + 0.0029) * ((Qmin!I25*ВГФ!I25/24) ^ (2 / 3)) + 4.9766 / (Константы!I25/ 10) + 0.15- 0.5213 / (Qmin!I25 / 10) - 0.0659 ->  | J25: =(0.387231 / ((Константы!J25 / 10) ^ (8 / 3)) + 0.0029) * ((Qmin!J25*ВГФ!J25/24) ^ (2 / 3)) + 4.9766 / (Константы!J25/ 10) + 0.15- 0.5213 / (Qmin!J25 / 10) - 0.0659 ->  | K25: =(0.387231 / ((Константы!K25 / 10) ^ (8 / 3)) + 0.0029) * ((Qmin!K25*ВГФ!K25/24) ^ (2 / 3)) + 4.9766 / (Константы!K25/ 10) + 0.15- 0.5213 / (Qmin!K25 / 10) - 0.0659 ->  | L25: =(0.387231 / ((Константы!L25 / 10) ^ (8 / 3)) + 0.0029) * ((Qmin!L25*ВГФ!L25/24) ^ (2 / 3)) + 4.9766 / (Константы!L25/ 10) + 0.15- 0.5213 / (Qmin!L25 / 10) - 0.0659 ->  | M25: =(0.387231 / ((Константы!M25 / 10) ^ (8 / 3)) + 0.0029) * ((Qmin!M25*ВГФ!M25/24) ^ (2 / 3)) + 4.9766 / (Константы!M25/ 10) + 0.15- 0.5213 / (Qmin!M25 / 10) - 0.0659 ->  | N25: =(0.387231 / ((Константы!N25 / 10) ^ (8 / 3)) + 0.0029) * ((Qmin!N25*ВГФ!N25/24) ^ (2 / 3)) + 4.9766 / (Константы!N25/ 10) + 0.15- 0.5213 / (Qmin!N25 / 10) - 0.0659 ->  | O25: =(0.387231 / ((Константы!O25 / 10) ^ (8 / 3)) + 0.0029) * ((Qmin!O25*ВГФ!O25/24) ^ (2 / 3)) + 4.9766 / (Константы!O25/ 10) + 0.15- 0.5213 / (Qmin!O25 / 10) - 0.0659 ->  | P25: =(0.387231 / ((Константы!P25 / 10) ^ (8 / 3)) + 0.0029) * ((Qmin!P25*ВГФ!P25/24) ^ (2 / 3)) + 4.9766 / (Константы!P25/ 10) + 0.15- 0.5213 / (Qmin!P25 / 10) - 0.0659 ->  | Q25: =(0.387231 / ((Константы!Q25 / 10) ^ (8 / 3)) + 0.0029) * ((Qmin!Q25*ВГФ!Q25/24) ^ (2 / 3)) + 4.9766 / (Константы!Q25/ 10) + 0.15- 0.5213 / (Qmin!Q25 / 10) - 0.0659 ->  | R25: =(0.387231 / ((Константы!R25 / 10) ^ (8 / 3)) + 0.0029) * ((Qmin!R25*ВГФ!R25/24) ^ (2 / 3)) + 4.9766 / (Константы!R25/ 10) + 0.15- 0.5213 / (Qmin!R25 / 10) - 0.0659 ->  | S25: =(0.387231 / ((Константы!S25 / 10) ^ (8 / 3)) + 0.0029) * ((Qmin!S25*ВГФ!S25/24) ^ (2 / 3)) + 4.9766 / (Константы!S25/ 10) + 0.15- 0.5213 / (Qmin!S25 / 10) - 0.0659 ->  | T25: =(0.387231 / ((Константы!T25 / 10) ^ (8 / 3)) + 0.0029) * ((Qmin!T25*ВГФ!T25/24) ^ (2 / 3)) + 4.9766 / (Константы!T25/ 10) + 0.15- 0.5213 / (Qmin!T25 / 10) - 0.0659 ->  | U25: =(0.387231 / ((Константы!U25 / 10) ^ (8 / 3)) + 0.0029) * ((Qmin!U25*ВГФ!U25/24) ^ (2 / 3)) + 4.9766 / (Константы!U25/ 10) + 0.15- 0.5213 / (Qmin!U25 / 10) - 0.0659 ->  | V25: =(0.387231 / ((Константы!V25 / 10) ^ (8 / 3)) + 0.0029) * ((Qmin!V25*ВГФ!V25/24) ^ (2 / 3)) + 4.9766 / (Константы!V25/ 10) + 0.15- 0.5213 / (Qmin!V25 / 10) - 0.0659 ->  | W25: =(0.387231 / ((Константы!W25 / 10) ^ (8 / 3)) + 0.0029) * ((Qmin!W25*ВГФ!W25/24) ^ (2 / 3)) + 4.9766 / (Константы!W25/ 10) + 0.15- 0.5213 / (Qmin!W25 / 10) - 0.0659 ->  | X25: =(0.387231 / ((Константы!X25 / 10) ^ (8 / 3)) + 0.0029) * ((Qmin!X25*ВГФ!X25/24) ^ (2 / 3)) + 4.9766 / (Константы!X25/ 10) + 0.15- 0.5213 / (Qmin!X25 / 10) - 0.0659 ->  | Y25: =(0.387231 / ((Константы!Y25 / 10) ^ (8 / 3)) + 0.0029) * ((Qmin!Y25*ВГФ!Y25/24) ^ (2 / 3)) + 4.9766 / (Константы!Y25/ 10) + 0.15- 0.5213 / (Qmin!Y25 / 10) - 0.0659 ->  | Z25: =(0.387231 / ((Константы!Z25 / 10) ^ (8 / 3)) + 0.0029) * ((Qmin!Z25*ВГФ!Z25/24) ^ (2 / 3)) + 4.9766 / (Константы!Z25/ 10) + 0.15- 0.5213 / (Qmin!Z25 / 10) - 0.0659 ->  | AA25: =(0.387231 / ((Константы!AA25 / 10) ^ (8 / 3)) + 0.0029) * ((Qmin!AA25*ВГФ!AA25/24) ^ (2 / 3)) + 4.9766 / (Константы!AA25/ 10) + 0.15- 0.5213 / (Qmin!AA25 / 10) - 0.0659 ->  | AB25: =(0.387231 / ((Константы!AB25 / 10) ^ (8 / 3)) + 0.0029) * ((Qmin!AB25*ВГФ!AB25/24) ^ (2 / 3)) + 4.9766 / (Константы!AB25/ 10) + 0.15- 0.5213 / (Qmin!AB25 / 10) - 0.0659 ->  | AC25: =(0.387231 / ((Константы!AC25 / 10) ^ (8 / 3)) + 0.0029) * ((Qmin!AC25*ВГФ!AC25/24) ^ (2 / 3)) + 4.9766 / (Константы!AC25/ 10) + 0.15- 0.5213 / (Qmin!AC25 / 10) - 0.0659 ->  | AD25: =(0.387231 / ((Константы!AD25 / 10) ^ (8 / 3)) + 0.0029) * ((Qmin!AD25*ВГФ!AD25/24) ^ (2 / 3)) + 4.9766 / (Константы!AD25/ 10) + 0.15- 0.5213 / (Qmin!AD25 / 10) - 0.0659 ->  | AE25: =(0.387231 / ((Константы!AE25 / 10) ^ (8 / 3)) + 0.0029) * ((Qmin!AE25*ВГФ!AE25/24) ^ (2 / 3)) + 4.9766 / (Константы!AE25/ 10) + 0.15- 0.5213 / (Qmin!AE25 / 10) - 0.0659 ->  | AF25: =(0.387231 / ((Константы!AF25 / 10) ^ (8 / 3)) + 0.0029) * ((Qmin!AF25*ВГФ!AF25/24) ^ (2 / 3)) + 4.9766 / (Константы!AF25/ 10) + 0.15- 0.5213 / (Qmin!AF25 / 10) - 0.0659 ->  | AG25: =(0.387231 / ((Константы!AG25 / 10) ^ (8 / 3)) + 0.0029) * ((Qmin!AG25*ВГФ!AG25/24) ^ (2 / 3)) + 4.9766 / (Константы!AG25/ 10) + 0.15- 0.5213 / (Qmin!AG25 / 10) - 0.0659 ->  | AH25: =(0.387231 / ((Константы!AH25 / 10) ^ (8 / 3)) + 0.0029) * ((Qmin!AH25*ВГФ!AH25/24) ^ (2 / 3)) + 4.9766 / (Константы!AH25/ 10) + 0.15- 0.5213 / (Qmin!AH25 / 10) - 0.0659 ->  | AI25: =(0.387231 / ((Константы!AI25 / 10) ^ (8 / 3)) + 0.0029) * ((Qmin!AI25*ВГФ!AI25/24) ^ (2 / 3)) + 4.9766 / (Константы!AI25/ 10) + 0.15- 0.5213 / (Qmin!AI25 / 10) - 0.0659 ->  | AJ25: =(0.387231 / ((Константы!AJ25 / 10) ^ (8 / 3)) + 0.0029) * ((Qmin!AJ25*ВГФ!AJ25/24) ^ (2 / 3)) + 4.9766 / (Константы!AJ25/ 10) + 0.15- 0.5213 / (Qmin!AJ25 / 10) - 0.0659 ->  | AK25: =(0.387231 / ((Константы!AK25 / 10) ^ (8 / 3)) + 0.0029) * ((Qmin!AK25*ВГФ!AK25/24) ^ (2 / 3)) + 4.9766 / (Константы!AK25/ 10) + 0.15- 0.5213 / (Qmin!AK25 / 10) - 0.0659 ->  | AL25: =(0.387231 / ((Константы!AL25 / 10) ^ (8 / 3)) + 0.0029) * ((Qmin!AL25*ВГФ!AL25/24) ^ (2 / 3)) + 4.9766 / (Константы!AL25/ 10) + 0.15- 0.5213 / (Qmin!AL25 / 10) - 0.0659 ->  | AM25: =(0.387231 / ((Константы!AM25 / 10) ^ (8 / 3)) + 0.0029) * ((Qmin!AM25*ВГФ!AM25/24) ^ (2 / 3)) + 4.9766 / (Константы!AM25/ 10) + 0.15- 0.5213 / (Qmin!AM25 / 10) - 0.0659 -> 
A26: 123 | B26: Фруд1 | C26: =(0.387231 / ((Константы!C26 / 10) ^ (8 / 3)) + 0.0029) * ((Qmin!C26*ВГФ!C26/24) ^ (2 / 3)) + 4.9766 / (Константы!C26/ 10) + 0.15- 0.5213 / (Qmin!C26 / 10) - 0.0659 ->  | D26: =(0.387231 / ((Константы!D26 / 10) ^ (8 / 3)) + 0.0029) * ((Qmin!D26*ВГФ!D26/24) ^ (2 / 3)) + 4.9766 / (Константы!D26/ 10) + 0.15- 0.5213 / (Qmin!D26 / 10) - 0.0659 ->  | E26: =(0.387231 / ((Константы!E26 / 10) ^ (8 / 3)) + 0.0029) * ((Qmin!E26*ВГФ!E26/24) ^ (2 / 3)) + 4.9766 / (Константы!E26/ 10) + 0.15- 0.5213 / (Qmin!E26 / 10) - 0.0659 ->  | F26: =(0.387231 / ((Константы!F26 / 10) ^ (8 / 3)) + 0.0029) * ((Qmin!F26*ВГФ!F26/24) ^ (2 / 3)) + 4.9766 / (Константы!F26/ 10) + 0.15- 0.5213 / (Qmin!F26 / 10) - 0.0659 ->  | G26: =(0.387231 / ((Константы!G26 / 10) ^ (8 / 3)) + 0.0029) * ((Qmin!G26*ВГФ!G26/24) ^ (2 / 3)) + 4.9766 / (Константы!G26/ 10) + 0.15- 0.5213 / (Qmin!G26 / 10) - 0.0659 ->  | H26: =(0.387231 / ((Константы!H26 / 10) ^ (8 / 3)) + 0.0029) * ((Qmin!H26*ВГФ!H26/24) ^ (2 / 3)) + 4.9766 / (Константы!H26/ 10) + 0.15- 0.5213 / (Qmin!H26 / 10) - 0.0659 ->  | I26: =(0.387231 / ((Константы!I26 / 10) ^ (8 / 3)) + 0.0029) * ((Qmin!I26*ВГФ!I26/24) ^ (2 / 3)) + 4.9766 / (Константы!I26/ 10) + 0.15- 0.5213 / (Qmin!I26 / 10) - 0.0659 ->  | J26: =(0.387231 / ((Константы!J26 / 10) ^ (8 / 3)) + 0.0029) * ((Qmin!J26*ВГФ!J26/24) ^ (2 / 3)) + 4.9766 / (Константы!J26/ 10) + 0.15- 0.5213 / (Qmin!J26 / 10) - 0.0659 ->  | K26: =(0.387231 / ((Константы!K26 / 10) ^ (8 / 3)) + 0.0029) * ((Qmin!K26*ВГФ!K26/24) ^ (2 / 3)) + 4.9766 / (Константы!K26/ 10) + 0.15- 0.5213 / (Qmin!K26 / 10) - 0.0659 ->  | L26: =(0.387231 / ((Константы!L26 / 10) ^ (8 / 3)) + 0.0029) * ((Qmin!L26*ВГФ!L26/24) ^ (2 / 3)) + 4.9766 / (Константы!L26/ 10) + 0.15- 0.5213 / (Qmin!L26 / 10) - 0.0659 ->  | M26: =(0.387231 / ((Константы!M26 / 10) ^ (8 / 3)) + 0.0029) * ((Qmin!M26*ВГФ!M26/24) ^ (2 / 3)) + 4.9766 / (Константы!M26/ 10) + 0.15- 0.5213 / (Qmin!M26 / 10) - 0.0659 ->  | N26: =(0.387231 / ((Константы!N26 / 10) ^ (8 / 3)) + 0.0029) * ((Qmin!N26*ВГФ!N26/24) ^ (2 / 3)) + 4.9766 / (Константы!N26/ 10) + 0.15- 0.5213 / (Qmin!N26 / 10) - 0.0659 ->  | O26: =(0.387231 / ((Константы!O26 / 10) ^ (8 / 3)) + 0.0029) * ((Qmin!O26*ВГФ!O26/24) ^ (2 / 3)) + 4.9766 / (Константы!O26/ 10) + 0.15- 0.5213 / (Qmin!O26 / 10) - 0.0659 ->  | P26: =(0.387231 / ((Константы!P26 / 10) ^ (8 / 3)) + 0.0029) * ((Qmin!P26*ВГФ!P26/24) ^ (2 / 3)) + 4.9766 / (Константы!P26/ 10) + 0.15- 0.5213 / (Qmin!P26 / 10) - 0.0659 ->  | Q26: =(0.387231 / ((Константы!Q26 / 10) ^ (8 / 3)) + 0.0029) * ((Qmin!Q26*ВГФ!Q26/24) ^ (2 / 3)) + 4.9766 / (Константы!Q26/ 10) + 0.15- 0.5213 / (Qmin!Q26 / 10) - 0.0659 ->  | R26: =(0.387231 / ((Константы!R26 / 10) ^ (8 / 3)) + 0.0029) * ((Qmin!R26*ВГФ!R26/24) ^ (2 / 3)) + 4.9766 / (Константы!R26/ 10) + 0.15- 0.5213 / (Qmin!R26 / 10) - 0.0659 ->  | S26: =(0.387231 / ((Константы!S26 / 10) ^ (8 / 3)) + 0.0029) * ((Qmin!S26*ВГФ!S26/24) ^ (2 / 3)) + 4.9766 / (Константы!S26/ 10) + 0.15- 0.5213 / (Qmin!S26 / 10) - 0.0659 ->  | T26: =(0.387231 / ((Константы!T26 / 10) ^ (8 / 3)) + 0.0029) * ((Qmin!T26*ВГФ!T26/24) ^ (2 / 3)) + 4.9766 / (Константы!T26/ 10) + 0.15- 0.5213 / (Qmin!T26 / 10) - 0.0659 ->  | U26: =(0.387231 / ((Константы!U26 / 10) ^ (8 / 3)) + 0.0029) * ((Qmin!U26*ВГФ!U26/24) ^ (2 / 3)) + 4.9766 / (Константы!U26/ 10) + 0.15- 0.5213 / (Qmin!U26 / 10) - 0.0659 ->  | V26: =(0.387231 / ((Константы!V26 / 10) ^ (8 / 3)) + 0.0029) * ((Qmin!V26*ВГФ!V26/24) ^ (2 / 3)) + 4.9766 / (Константы!V26/ 10) + 0.15- 0.5213 / (Qmin!V26 / 10) - 0.0659 ->  | W26: =(0.387231 / ((Константы!W26 / 10) ^ (8 / 3)) + 0.0029) * ((Qmin!W26*ВГФ!W26/24) ^ (2 / 3)) + 4.9766 / (Константы!W26/ 10) + 0.15- 0.5213 / (Qmin!W26 / 10) - 0.0659 ->  | X26: =(0.387231 / ((Константы!X26 / 10) ^ (8 / 3)) + 0.0029) * ((Qmin!X26*ВГФ!X26/24) ^ (2 / 3)) + 4.9766 / (Константы!X26/ 10) + 0.15- 0.5213 / (Qmin!X26 / 10) - 0.0659 ->  | Y26: =(0.387231 / ((Константы!Y26 / 10) ^ (8 / 3)) + 0.0029) * ((Qmin!Y26*ВГФ!Y26/24) ^ (2 / 3)) + 4.9766 / (Константы!Y26/ 10) + 0.15- 0.5213 / (Qmin!Y26 / 10) - 0.0659 ->  | Z26: =(0.387231 / ((Константы!Z26 / 10) ^ (8 / 3)) + 0.0029) * ((Qmin!Z26*ВГФ!Z26/24) ^ (2 / 3)) + 4.9766 / (Константы!Z26/ 10) + 0.15- 0.5213 / (Qmin!Z26 / 10) - 0.0659 ->  | AA26: =(0.387231 / ((Константы!AA26 / 10) ^ (8 / 3)) + 0.0029) * ((Qmin!AA26*ВГФ!AA26/24) ^ (2 / 3)) + 4.9766 / (Константы!AA26/ 10) + 0.15- 0.5213 / (Qmin!AA26 / 10) - 0.0659 ->  | AB26: =(0.387231 / ((Константы!AB26 / 10) ^ (8 / 3)) + 0.0029) * ((Qmin!AB26*ВГФ!AB26/24) ^ (2 / 3)) + 4.9766 / (Константы!AB26/ 10) + 0.15- 0.5213 / (Qmin!AB26 / 10) - 0.0659 ->  | AC26: =(0.387231 / ((Константы!AC26 / 10) ^ (8 / 3)) + 0.0029) * ((Qmin!AC26*ВГФ!AC26/24) ^ (2 / 3)) + 4.9766 / (Константы!AC26/ 10) + 0.15- 0.5213 / (Qmin!AC26 / 10) - 0.0659 ->  | AD26: =(0.387231 / ((Константы!AD26 / 10) ^ (8 / 3)) + 0.0029) * ((Qmin!AD26*ВГФ!AD26/24) ^ (2 / 3)) + 4.9766 / (Константы!AD26/ 10) + 0.15- 0.5213 / (Qmin!AD26 / 10) - 0.0659 ->  | AE26: =(0.387231 / ((Константы!AE26 / 10) ^ (8 / 3)) + 0.0029) * ((Qmin!AE26*ВГФ!AE26/24) ^ (2 / 3)) + 4.9766 / (Константы!AE26/ 10) + 0.15- 0.5213 / (Qmin!AE26 / 10) - 0.0659 ->  | AF26: =(0.387231 / ((Константы!AF26 / 10) ^ (8 / 3)) + 0.0029) * ((Qmin!AF26*ВГФ!AF26/24) ^ (2 / 3)) + 4.9766 / (Константы!AF26/ 10) + 0.15- 0.5213 / (Qmin!AF26 / 10) - 0.0659 ->  | AG26: =(0.387231 / ((Константы!AG26 / 10) ^ (8 / 3)) + 0.0029) * ((Qmin!AG26*ВГФ!AG26/24) ^ (2 / 3)) + 4.9766 / (Константы!AG26/ 10) + 0.15- 0.5213 / (Qmin!AG26 / 10) - 0.0659 ->  | AH26: =(0.387231 / ((Константы!AH26 / 10) ^ (8 / 3)) + 0.0029) * ((Qmin!AH26*ВГФ!AH26/24) ^ (2 / 3)) + 4.9766 / (Константы!AH26/ 10) + 0.15- 0.5213 / (Qmin!AH26 / 10) - 0.0659 ->  | AI26: =(0.387231 / ((Константы!AI26 / 10) ^ (8 / 3)) + 0.0029) * ((Qmin!AI26*ВГФ!AI26/24) ^ (2 / 3)) + 4.9766 / (Константы!AI26/ 10) + 0.15- 0.5213 / (Qmin!AI26 / 10) - 0.0659 ->  | AJ26: =(0.387231 / ((Константы!AJ26 / 10) ^ (8 / 3)) + 0.0029) * ((Qmin!AJ26*ВГФ!AJ26/24) ^ (2 / 3)) + 4.9766 / (Константы!AJ26/ 10) + 0.15- 0.5213 / (Qmin!AJ26 / 10) - 0.0659 ->  | AK26: =(0.387231 / ((Константы!AK26 / 10) ^ (8 / 3)) + 0.0029) * ((Qmin!AK26*ВГФ!AK26/24) ^ (2 / 3)) + 4.9766 / (Константы!AK26/ 10) + 0.15- 0.5213 / (Qmin!AK26 / 10) - 0.0659 ->  | AL26: =(0.387231 / ((Константы!AL26 / 10) ^ (8 / 3)) + 0.0029) * ((Qmin!AL26*ВГФ!AL26/24) ^ (2 / 3)) + 4.9766 / (Константы!AL26/ 10) + 0.15- 0.5213 / (Qmin!AL26 / 10) - 0.0659 ->  | AM26: =(0.387231 / ((Константы!AM26 / 10) ^ (8 / 3)) + 0.0029) * ((Qmin!AM26*ВГФ!AM26/24) ^ (2 / 3)) + 4.9766 / (Константы!AM26/ 10) + 0.15- 0.5213 / (Qmin!AM26 / 10) - 0.0659 -> 

Sheet Критерий2
A3: 100 | B3: Фруд2 | C3: =940 * 0.71 / 1.292 * Zзаб!C3 * 323 * Qmin!C3 * Qmin!C3 / 1007 / (Константы!C3 / 10) ^ 5 / (' давление'!C3/0.982) -> 0.5526640716 | D3: =940 * 0.71 / 1.292 * Zзаб!D3 * 323 * Qmin!D3 * Qmin!D3 / 1007 / (Константы!D3 / 10) ^ 5 / (' давление'!D3/0.982) -> 0.5526663873 | E3: =940 * 0.71 / 1.292 * Zзаб!E3 * 323 * Qmin!E3 * Qmin!E3 / 1007 / (Константы!E3 / 10) ^ 5 / (' давление'!E3/0.982) -> 0.552619843 | F3: =940 * 0.71 / 1.292 * Zзаб!F3 * 323 * Qmin!F3 * Qmin!F3 / 1007 / (Константы!F3 / 10) ^ 5 / (' давление'!F3/0.982) -> 0.5525868932 | G3: =940 * 0.71 / 1.292 * Zзаб!G3 * 323 * Qmin!G3 * Qmin!G3 / 1007 / (Константы!G3 / 10) ^ 5 / (' давление'!G3/0.982) -> 0.552521716 | H3: =940 * 0.71 / 1.292 * Zзаб!H3 * 323 * Qmin!H3 * Qmin!H3 / 1007 / (Константы!H3 / 10) ^ 5 / (' давление'!H3/0.982) -> 0.5524682138 | I3: =940 * 0.71 / 1.292 * Zзаб!I3 * 323 * Qmin!I3 * Qmin!I3 / 1007 / (Константы!I3 / 10) ^ 5 / (' давление'!I3/0.982) -> 0.5523593152 | J3: =940 * 0.71 / 1.292 * Zзаб!J3 * 323 * Qmin!J3 * Qmin!J3 / 1007 / (Константы!J3 / 10) ^ 5 / (' давление'!J3/0.982) -> 0.5513041653 | K3: =940 * 0.71 / 1.292 * Zзаб!K3 * 323 * Qmin!K3 * Qmin!K3 / 1007 / (Константы!K3 / 10) ^ 5 / (' давление'!K3/0.982) -> 0.5523487905 | L3: =940 * 0.71 / 1.292 * Zзаб!L3 * 323 * Qmin!L3 * Qmin!L3 / 1007 / (Константы!L3 / 10) ^ 5 / (' давление'!L3/0.982) -> 0.5512305178 | M3: =940 * 0.71 / 1.292 * Zзаб!M3 * 323 * Qmin!M3 * Qmin!M3 / 1007 / (Константы!M3 / 10) ^ 5 / (' давление'!M3/0.982) -> 0.5511622885 | N3: =940 * 0.71 / 1.292 * Zзаб!N3 * 323 * Qmin!N3 * Qmin!N3 / 1007 / (Константы!N3 / 10) ^ 5 / (' давление'!N3/0.982) -> 0.5510961242 | O3: =940 * 0.71 / 1.292 * Zзаб!O3 * 323 * Qmin!O3 * Qmin!O3 / 1007 / (Константы!O3 / 10) ^ 5 / (' давление'!O3/0.982) -> 0.5510218774 | P3: =940 * 0.71 / 1.292 * Zзаб!P3 * 323 * Qmin!P3 * Qmin!P3 / 1007 / (Константы!P3 / 10) ^ 5 / (' давление'!P3/0.982) -> 0.5509447525 | Q3: =940 * 0.71 / 1.292 * [15]Zзаб!Q3 * 323 * [15]Qmin!Q3 * [15]Qmin!Q3 / 1007 / ([15]Константы!Q3 / 10) ^ 5 / ('[15] давление'!Q3/0.982) -> 4.832236155 | R3: =940 * 0.71 / 1.292 * Zзаб!R3 * 323 * Qmin!R3 * Qmin!R3 / 1007 / (Константы!R3 / 10) ^ 5 / (' давление'!R3/0.982) -> 0.5508568758 | S3: =940 * 0.71 / 1.292 * Zзаб!S3 * 323 * Qmin!S3 * Qmin!S3 / 1007 / (Константы!S3 / 10) ^ 5 / (' давление'!S3/0.982) -> 0.5508201333 | T3: =940 * 0.71 / 1.292 * Zзаб!T3 * 323 * Qmin!T3 * Qmin!T3 / 1007 / (Константы!T3 / 10) ^ 5 / (' давление'!T3/0.982) -> 0.5507851192 | U3: =940 * 0.71 / 1.292 * Zзаб!U3 * 323 * Qmin!U3 * Qmin!U3 / 1007 / (Константы!U3 / 10) ^ 5 / (' давление'!U3/0.982) -> 0.5507478915 | V3: =940 * 0.71 / 1.292 * Zзаб!V3 * 323 * Qmin!V3 * Qmin!V3 / 1007 / (Константы!V3 / 10) ^ 5 / (' давление'!V3/0.982) -> 0.5506704641 | W3: =940 * 0.71 / 1.292 * Zзаб!W3 * 323 * Qmin!W3 * Qmin!W3 / 1007 / (Константы!W3 / 10) ^ 5 / (' давление'!W3/0.982) -> 0.5505876108 | X3: =940 * 0.71 / 1.292 * Zзаб!X3 * 323 * Qmin!X3 * Qmin!X3 / 1007 / (Константы!X3 / 10) ^ 5 / (' давление'!X3/0.982) -> 0.5503213616 | Y3: =940 * 0.71 / 1.292 * Zзаб!Y3 * 323 * Qmin!Y3 * Qmin!Y3 / 1007 / (Константы!Y3 / 10) ^ 5 / (' давление'!Y3/0.982) -> 0.5500756969 | Z3: =940 * 0.71 / 1.292 * Zзаб!Z3 * 323 * Qmin!Z3 * Qmin!Z3 / 1007 / (Константы!Z3 / 10) ^ 5 / (' давление'!Z3/0.982) -> 0.5498648362 | AA3: =940 * 0.71 / 1.292 * Zзаб!AA3 * 323 * Qmin!AA3 * Qmin!AA3 / 1007 / (Константы!AA3 / 10) ^ 5 / (' давление'!AA3/0.982) -> 0.5497032044 | AB3: =940 * 0.71 / 1.292 * Zзаб!AB3 * 323 * Qmin!AB3 * Qmin!AB3 / 1007 / (Константы!AB3 / 10) ^ 5 / (' давление'!AB3/0.982) -> 0.5495519068 | AC3: =940 * 0.71 / 1.292 * Zзаб!AC3 * 323 * Qmin!AC3 * Qmin!AC3 / 1007 / (Константы!AC3 / 10) ^ 5 / (' давление'!AC3/0.982) -> 0.549406427 | AD3: =940 * 0.71 / 1.292 * Zзаб!AD3 * 323 * Qmin!AD3 * Qmin!AD3 / 1007 / (Константы!AD3 / 10) ^ 5 / (' давление'!AD3/0.982) -> 0.549280653 | AE3: =940 * 0.71 / 1.292 * Zзаб!AE3 * 323 * Qmin!AE3 * Qmin!AE3 / 1007 / (Константы!AE3 / 10) ^ 5 / (' давление'!AE3/0.982) -> 0.5492049551 | AF3: =940 * 0.71 / 1.292 * Zзаб!AF3 * 323 * Qmin!AF3 * Qmin!AF3 / 1007 / (Константы!AF3 / 10) ^ 5 / (' давление'!AF3/0.982) -> 0.5491776909 | AG3: =940 * 0.71 / 1.292 * Zзаб!AG3 * 323 * Qmin!AG3 * Qmin!AG3 / 1007 / (Константы!AG3 / 10) ^ 5 / (' давление'!AG3/0.982) -> 0.549120029 | AH3: =940 * 0.71 / 1.292 * Zзаб!AH3 * 323 * Qmin!AH3 * Qmin!AH3 / 1007 / (Константы!AH3 / 10) ^ 5 / (' давление'!AH3/0.982) -> 0.5490766583 | AI3: =940 * 0.71 / 1.292 * Zзаб!AI3 * 323 * Qmin!AI3 * Qmin!AI3 / 1007 / (Константы!AI3 / 10) ^ 5 / (' давление'!AI3/0.982) -> 0.5490361584 | AJ3: =940 * 0.71 / 1.292 * Zзаб!AJ3 * 323 * Qmin!AJ3 * Qmin!AJ3 / 1007 / (Константы!AJ3 / 10) ^ 5 / (' давление'!AJ3/0.982) -> 0.5490241618 | AK3: =940 * 0.71 / 1.292 * Zзаб!AK3 * 323 * Qmin!AK3 * Qmin!AK3 / 1007 / (Константы!AK3 / 10) ^ 5 / (' давление'!AK3/0.982) -> 0.5489974015 | AL3: =940 * 0.71 / 1.292 * Zзаб!AL3 * 323 * Qmin!AL3 * Qmin!AL3 / 1007 / (Константы!AL3 / 10) ^ 5 / (' давление'!AL3/0.982) -> 0.5489894159 | AM3: =940 * 0.71 / 1.292 * Zзаб!AM3 * 323 * Qmin!AM3 * Qmin!AM3 / 1007 / (Константы!AM3 / 10) ^ 5 / (' давление'!AM3/0.982) -> 0.5489466881
A4: =A3+1 -> 101 | B4: Фруд2 | C4: =940 * 0.71 / 1.292 * Zзаб!C4 * 323 * Qmin!C4 * Qmin!C4 / 1007 / (Константы!C4 / 10) ^ 5 / (' давление'!C4/0.982) -> 0.6281753734 | D4: =940 * 0.71 / 1.292 * Zзаб!D4 * 323 * Qmin!D4 * Qmin!D4 / 1007 / (Константы!D4 / 10) ^ 5 / (' давление'!D4/0.982) -> 0.6275853876 | E4: =940 * 0.71 / 1.292 * Zзаб!E4 * 323 * Qmin!E4 * Qmin!E4 / 1007 / (Константы!E4 / 10) ^ 5 / (' давление'!E4/0.982) -> 0.6308435025 | F4: =940 * 0.71 / 1.292 * Zзаб!F4 * 323 * Qmin!F4 * Qmin!F4 / 1007 / (Константы!F4 / 10) ^ 5 / (' давление'!F4/0.982) -> 0.6313779725 | G4: =940 * 0.71 / 1.292 * Zзаб!G4 * 323 * Qmin!G4 * Qmin!G4 / 1007 / (Константы!G4 / 10) ^ 5 / (' давление'!G4/0.982) -> 0.6324797106 | H4: =940 * 0.71 / 1.292 * Zзаб!H4 * 323 * Qmin!H4 * Qmin!H4 / 1007 / (Константы!H4 / 10) ^ 5 / (' давление'!H4/0.982) -> 0.6304030744 | I4: =940 * 0.71 / 1.292 * Zзаб!I4 * 323 * Qmin!I4 * Qmin!I4 / 1007 / (Константы!I4 / 10) ^ 5 / (' давление'!I4/0.982) -> 0.6317991944 | J4: =940 * 0.71 / 1.292 * Zзаб!J4 * 323 * Qmin!J4 * Qmin!J4 / 1007 / (Константы!J4 / 10) ^ 5 / (' давление'!J4/0.982) -> 0.631670696 | K4: =940 * 0.71 / 1.292 * Zзаб!K4 * 323 * Qmin!K4 * Qmin!K4 / 1007 / (Константы!K4 / 10) ^ 5 / (' давление'!K4/0.982) -> 0.6334855204 | L4: =940 * 0.71 / 1.292 * Zзаб!L4 * 323 * Qmin!L4 * Qmin!L4 / 1007 / (Константы!L4 / 10) ^ 5 / (' давление'!L4/0.982) -> 0.6338764233 | M4: =940 * 0.71 / 1.292 * Zзаб!M4 * 323 * Qmin!M4 * Qmin!M4 / 1007 / (Константы!M4 / 10) ^ 5 / (' давление'!M4/0.982) -> 0.6347344905 | N4: =940 * 0.71 / 1.292 * Zзаб!N4 * 323 * Qmin!N4 * Qmin!N4 / 1007 / (Константы!N4 / 10) ^ 5 / (' давление'!N4/0.982) -> 0.6359788703 | O4: =940 * 0.71 / 1.292 * Zзаб!O4 * 323 * Qmin!O4 * Qmin!O4 / 1007 / (Константы!O4 / 10) ^ 5 / (' давление'!O4/0.982) -> 0.6373727783 | P4: =940 * 0.71 / 1.292 * Zзаб!P4 * 323 * Qmin!P4 * Qmin!P4 / 1007 / (Константы!P4 / 10) ^ 5 / (' давление'!P4/0.982) -> 0.6386340309 | Q4: =940 * 0.71 / 1.292 * Zзаб!Q4 * 323 * Qmin!Q4 * Qmin!Q4 / 1007 / (Константы!Q4 / 10) ^ 5 / (' давление'!Q4/0.982) -> 0.6405012284 | R4: =940 * 0.71 / 1.292 * Zзаб!R4 * 323 * Qmin!R4 * Qmin!R4 / 1007 / (Константы!R4 / 10) ^ 5 / (' давление'!R4/0.982) -> 0.6423519279 | S4: =940 * 0.71 / 1.292 * Zзаб!S4 * 323 * Qmin!S4 * Qmin!S4 / 1007 / (Константы!S4 / 10) ^ 5 / (' давление'!S4/0.982) -> 0.6440755806 | T4: =940 * 0.71 / 1.292 * Zзаб!T4 * 323 * Qmin!T4 * Qmin!T4 / 1007 / (Константы!T4 / 10) ^ 5 / (' давление'!T4/0.982) -> 0.6462605818 | U4: =940 * 0.71 / 1.292 * Zзаб!U4 * 323 * Qmin!U4 * Qmin!U4 / 1007 / (Константы!U4 / 10) ^ 5 / (' давление'!U4/0.982) -> 0.6495851222 | V4: =940 * 0.71 / 1.292 * Zзаб!V4 * 323 * Qmin!V4 * Qmin!V4 / 1007 / (Константы!V4 / 10) ^ 5 / (' давление'!V4/0.982) -> 0.6520872516 | W4: =940 * 0.71 / 1.292 * Zзаб!W4 * 323 * Qmin!W4 * Qmin!W4 / 1007 / (Константы!W4 / 10) ^ 5 / (' давление'!W4/0.982) -> 0.6594203724 | X4: =940 * 0.71 / 1.292 * Zзаб!X4 * 323 * Qmin!X4 * Qmin!X4 / 1007 / (Константы!X4 / 10) ^ 5 / (' давление'!X4/0.982) -> 0.6648713114 | Y4: =940 * 0.71 / 1.292 * Zзаб!Y4 * 323 * Qmin!Y4 * Qmin!Y4 / 1007 / (Константы!Y4 / 10) ^ 5 / (' давление'!Y4/0.982) -> 0.6734277864 | Z4: =940 * 0.71 / 1.292 * Zзаб!Z4 * 323 * Qmin!Z4 * Qmin!Z4 / 1007 / (Константы!Z4 / 10) ^ 5 / (' давление'!Z4/0.982) -> 0.6908661166 | AA4: =940 * 0.71 / 1.292 * Zзаб!AA4 * 323 * Qmin!AA4 * Qmin!AA4 / 1007 / (Константы!AA4 / 10) ^ 5 / (' давление'!AA4/0.982) -> 0.693365706 | AB4: =940 * 0.71 / 1.292 * Zзаб!AB4 * 323 * Qmin!AB4 * Qmin!AB4 / 1007 / (Константы!AB4 / 10) ^ 5 / (' давление'!AB4/0.982) -> 0.7057095989 | AC4: =940 * 0.71 / 1.292 * Zзаб!AC4 * 323 * Qmin!AC4 * Qmin!AC4 / 1007 / (Константы!AC4 / 10) ^ 5 / (' давление'!AC4/0.982) -> 0.7195442619 | AD4: =940 * 0.71 / 1.292 * Zзаб!AD4 * 323 * Qmin!AD4 * Qmin!AD4 / 1007 / (Константы!AD4 / 10) ^ 5 / (' давление'!AD4/0.982) -> 0.7334483 | AE4: =940 * 0.71 / 1.292 * Zзаб!AE4 * 323 * Qmin!AE4 * Qmin!AE4 / 1007 / (Константы!AE4 / 10) ^ 5 / (' давление'!AE4/0.982) -> 0.7561618674 | AF4: =940 * 0.71 / 1.292 * Zзаб!AF4 * 323 * Qmin!AF4 * Qmin!AF4 / 1007 / (Константы!AF4 / 10) ^ 5 / (' давление'!AF4/0.982) -> 0.9126334795 | AG4: =940 * 0.71 / 1.292 * Zзаб!AG4 * 323 * Qmin!AG4 * Qmin!AG4 / 1007 / (Константы!AG4 / 10) ^ 5 / (' давление'!AG4/0.982) -> 0.9239421986 | AH4: =940 * 0.71 / 1.292 * Zзаб!AH4 * 323 * Qmin!AH4 * Qmin!AH4 / 1007 / (Константы!AH4 / 10) ^ 5 / (' давление'!AH4/0.982) -> 0.9203079192 | AI4: =940 * 0.71 / 1.292 * Zзаб!AI4 * 323 * Qmin!AI4 * Qmin!AI4 / 1007 / (Константы!AI4 / 10) ^ 5 / (' давление'!AI4/0.982) -> 0.9389443357 | AJ4: =940 * 0.71 / 1.292 * Zзаб!AJ4 * 323 * Qmin!AJ4 * Qmin!AJ4 / 1007 / (Константы!AJ4 / 10) ^ 5 / (' давление'!AJ4/0.982) -> 0.9512577145 | AK4: =940 * 0.71 / 1.292 * Zзаб!AK4 * 323 * Qmin!AK4 * Qmin!AK4 / 1007 / (Константы!AK4 / 10) ^ 5 / (' давление'!AK4/0.982) -> 0.9646332525 | AL4: =940 * 0.71 / 1.292 * Zзаб!AL4 * 323 * Qmin!AL4 * Qmin!AL4 / 1007 / (Константы!AL4 / 10) ^ 5 / (' давление'!AL4/0.982) -> 0.9692142842 | AM4: =940 * 0.71 / 1.292 * Zзаб!AM4 * 323 * Qmin!AM4 * Qmin!AM4 / 1007 / (Константы!AM4 / 10) ^ 5 / (' давление'!AM4/0.982) -> 0.979051211
A5: =A4+1 -> 102 | B5: Фруд2 | C5: =940 * 0.71 / 1.292 * Zзаб!C5 * 323 * Qmin!C5 * Qmin!C5 / 1007 / (Константы!C5 / 10) ^ 5 / (' давление'!C5/0.982) -> 0.6114991659 | D5: =940 * 0.71 / 1.292 * Zзаб!D5 * 323 * Qmin!D5 * Qmin!D5 / 1007 / (Константы!D5 / 10) ^ 5 / (' давление'!D5/0.982) -> 0.6121795381 | E5: =940 * 0.71 / 1.292 * Zзаб!E5 * 323 * Qmin!E5 * Qmin!E5 / 1007 / (Константы!E5 / 10) ^ 5 / (' давление'!E5/0.982) -> 0.6124297578 | F5: =940 * 0.71 / 1.292 * Zзаб!F5 * 323 * Qmin!F5 * Qmin!F5 / 1007 / (Константы!F5 / 10) ^ 5 / (' давление'!F5/0.982) -> 0.6128684925 | G5: =940 * 0.71 / 1.292 * Zзаб!G5 * 323 * Qmin!G5 * Qmin!G5 / 1007 / (Константы!G5 / 10) ^ 5 / (' давление'!G5/0.982) -> 0.615957885 | H5: =940 * 0.71 / 1.292 * Zзаб!H5 * 323 * Qmin!H5 * Qmin!H5 / 1007 / (Константы!H5 / 10) ^ 5 / (' давление'!H5/0.982) -> 0.611882985 | I5: =940 * 0.71 / 1.292 * Zзаб!I5 * 323 * Qmin!I5 * Qmin!I5 / 1007 / (Константы!I5 / 10) ^ 5 / (' давление'!I5/0.982) -> 0.6114031639 | J5: =940 * 0.71 / 1.292 * Zзаб!J5 * 323 * Qmin!J5 * Qmin!J5 / 1007 / (Константы!J5 / 10) ^ 5 / (' давление'!J5/0.982) -> 0.609101389 | K5: =940 * 0.71 / 1.292 * Zзаб!K5 * 323 * Qmin!K5 * Qmin!K5 / 1007 / (Константы!K5 / 10) ^ 5 / (' давление'!K5/0.982) -> 0.6121992269 | L5: =940 * 0.71 / 1.292 * Zзаб!L5 * 323 * Qmin!L5 * Qmin!L5 / 1007 / (Константы!L5 / 10) ^ 5 / (' давление'!L5/0.982) -> 0.6120727577 | M5: =940 * 0.71 / 1.292 * Zзаб!M5 * 323 * Qmin!M5 * Qmin!M5 / 1007 / (Константы!M5 / 10) ^ 5 / (' давление'!M5/0.982) -> 0.6125521152 | N5: =940 * 0.71 / 1.292 * Zзаб!N5 * 323 * Qmin!N5 * Qmin!N5 / 1007 / (Константы!N5 / 10) ^ 5 / (' давление'!N5/0.982) -> 0.61301252 | O5: =940 * 0.71 / 1.292 * Zзаб!O5 * 323 * Qmin!O5 * Qmin!O5 / 1007 / (Константы!O5 / 10) ^ 5 / (' давление'!O5/0.982) -> 0.6141807088 | P5: =940 * 0.71 / 1.292 * Zзаб!P5 * 323 * Qmin!P5 * Qmin!P5 / 1007 / (Константы!P5 / 10) ^ 5 / (' давление'!P5/0.982) -> 0.620626765 | Q5: =940 * 0.71 / 1.292 * Zзаб!Q5 * 323 * Qmin!Q5 * Qmin!Q5 / 1007 / (Константы!Q5 / 10) ^ 5 / (' давление'!Q5/0.982) -> 0.5531242077 | R5: =940 * 0.71 / 1.292 * Zзаб!R5 * 323 * Qmin!R5 * Qmin!R5 / 1007 / (Константы!R5 / 10) ^ 5 / (' давление'!R5/0.982) -> 0.5532526654 | S5: =940 * 0.71 / 1.292 * Zзаб!S5 * 323 * Qmin!S5 * Qmin!S5 / 1007 / (Константы!S5 / 10) ^ 5 / (' давление'!S5/0.982) -> 0.5532595723 | T5: =940 * 0.71 / 1.292 * Zзаб!T5 * 323 * Qmin!T5 * Qmin!T5 / 1007 / (Константы!T5 / 10) ^ 5 / (' давление'!T5/0.982) -> 0.5532564681 | U5: =940 * 0.71 / 1.292 * Zзаб!U5 * 323 * Qmin!U5 * Qmin!U5 / 1007 / (Константы!U5 / 10) ^ 5 / (' давление'!U5/0.982) -> 0.553242109 | V5: =940 * 0.71 / 1.292 * Zзаб!V5 * 323 * Qmin!V5 * Qmin!V5 / 1007 / (Константы!V5 / 10) ^ 5 / (' давление'!V5/0.982) -> 0.5532184658 | W5: =940 * 0.71 / 1.292 * Zзаб!W5 * 323 * Qmin!W5 * Qmin!W5 / 1007 / (Константы!W5 / 10) ^ 5 / (' давление'!W5/0.982) -> 0.5531876115 | X5: =940 * 0.71 / 1.292 * Zзаб!X5 * 323 * Qmin!X5 * Qmin!X5 / 1007 / (Константы!X5 / 10) ^ 5 / (' давление'!X5/0.982) -> 0.5531289797 | Y5: =940 * 0.71 / 1.292 * Zзаб!Y5 * 323 * Qmin!Y5 * Qmin!Y5 / 1007 / (Константы!Y5 / 10) ^ 5 / (' давление'!Y5/0.982) -> 0.553058988 | Z5: =940 * 0.71 / 1.292 * Zзаб!Z5 * 323 * Qmin!Z5 * Qmin!Z5 / 1007 / (Константы!Z5 / 10) ^ 5 / (' давление'!Z5/0.982) -> 0.5529843757 | AA5: =940 * 0.71 / 1.292 * Zзаб!AA5 * 323 * Qmin!AA5 * Qmin!AA5 / 1007 / (Константы!AA5 / 10) ^ 5 / (' давление'!AA5/0.982) -> 0.5529097563 | AB5: =940 * 0.71 / 1.292 * Zзаб!AB5 * 323 * Qmin!AB5 * Qmin!AB5 / 1007 / (Константы!AB5 / 10) ^ 5 / (' давление'!AB5/0.982) -> 0.552837123 | AC5: =940 * 0.71 / 1.292 * Zзаб!AC5 * 323 * Qmin!AC5 * Qmin!AC5 / 1007 / (Константы!AC5 / 10) ^ 5 / (' давление'!AC5/0.982) -> 0.5527731321 | AD5: =940 * 0.71 / 1.292 * Zзаб!AD5 * 323 * Qmin!AD5 * Qmin!AD5 / 1007 / (Константы!AD5 / 10) ^ 5 / (' давление'!AD5/0.982) -> 0.5527514246 | AE5: =940 * 0.71 / 1.292 * Zзаб!AE5 * 323 * Qmin!AE5 * Qmin!AE5 / 1007 / (Константы!AE5 / 10) ^ 5 / (' давление'!AE5/0.982) -> 0.552662906 | AF5: =940 * 0.71 / 1.292 * Zзаб!AF5 * 323 * Qmin!AF5 * Qmin!AF5 / 1007 / (Константы!AF5 / 10) ^ 5 / (' давление'!AF5/0.982) -> 0.5526094497 | AG5: =940 * 0.71 / 1.292 * Zзаб!AG5 * 323 * Qmin!AG5 * Qmin!AG5 / 1007 / (Константы!AG5 / 10) ^ 5 / (' давление'!AG5/0.982) -> 0.5525685506 | AH5: =940 * 0.71 / 1.292 * Zзаб!AH5 * 323 * Qmin!AH5 * Qmin!AH5 / 1007 / (Константы!AH5 / 10) ^ 5 / (' давление'!AH5/0.982) -> 0.5525230011 | AI5: =940 * 0.71 / 1.292 * Zзаб!AI5 * 323 * Qmin!AI5 * Qmin!AI5 / 1007 / (Константы!AI5 / 10) ^ 5 / (' давление'!AI5/0.982) -> 0.5525010228 | AJ5: =940 * 0.71 / 1.292 * Zзаб!AJ5 * 323 * Qmin!AJ5 * Qmin!AJ5 / 1007 / (Константы!AJ5 / 10) ^ 5 / (' давление'!AJ5/0.982) -> 0.552452113 | AK5: =940 * 0.71 / 1.292 * Zзаб!AK5 * 323 * Qmin!AK5 * Qmin!AK5 / 1007 / (Константы!AK5 / 10) ^ 5 / (' давление'!AK5/0.982) -> 0.5523697791 | AL5: =940 * 0.71 / 1.292 * Zзаб!AL5 * 323 * Qmin!AL5 * Qmin!AL5 / 1007 / (Константы!AL5 / 10) ^ 5 / (' давление'!AL5/0.982) -> 0.5523731436 | AM5: =940 * 0.71 / 1.292 * Zзаб!AM5 * 323 * Qmin!AM5 * Qmin!AM5 / 1007 / (Константы!AM5 / 10) ^ 5 / (' давление'!AM5/0.982) -> 0.5523541656
A6: 103 | B6: Фруд2 | C6: =940 * 0.71 / 1.292 * Zзаб!C6 * 323 * Qmin!C6 * Qmin!C6 / 1007 / (Константы!C6 / 10) ^ 5 / (' давление'!C6/0.982) -> 0.7925652204 | D6: =940 * 0.71 / 1.292 * Zзаб!D6 * 323 * Qmin!D6 * Qmin!D6 / 1007 / (Константы!D6 / 10) ^ 5 / (' давление'!D6/0.982) -> 0.7970313346 | E6: =940 * 0.71 / 1.292 * Zзаб!E6 * 323 * Qmin!E6 * Qmin!E6 / 1007 / (Константы!E6 / 10) ^ 5 / (' давление'!E6/0.982) -> 0.7675326055 | F6: =940 * 0.71 / 1.292 * Zзаб!F6 * 323 * Qmin!F6 * Qmin!F6 / 1007 / (Константы!F6 / 10) ^ 5 / (' давление'!F6/0.982) -> 0.5524553866 | G6: =940 * 0.71 / 1.292 * Zзаб!G6 * 323 * Qmin!G6 * Qmin!G6 / 1007 / (Константы!G6 / 10) ^ 5 / (' давление'!G6/0.982) -> 0.553768133 | H6: =940 * 0.71 / 1.292 * Zзаб!H6 * 323 * Qmin!H6 * Qmin!H6 / 1007 / (Константы!H6 / 10) ^ 5 / (' давление'!H6/0.982) -> 0.5538621521 | I6: =940 * 0.71 / 1.292 * Zзаб!I6 * 323 * Qmin!I6 * Qmin!I6 / 1007 / (Константы!I6 / 10) ^ 5 / (' давление'!I6/0.982) -> 0.5538996993 | J6: =940 * 0.71 / 1.292 * Zзаб!J6 * 323 * Qmin!J6 * Qmin!J6 / 1007 / (Константы!J6 / 10) ^ 5 / (' давление'!J6/0.982) -> 0.5539045714 | K6: =940 * 0.71 / 1.292 * Zзаб!K6 * 323 * Qmin!K6 * Qmin!K6 / 1007 / (Константы!K6 / 10) ^ 5 / (' давление'!K6/0.982) -> 0.5539220859 | L6: =940 * 0.71 / 1.292 * Zзаб!L6 * 323 * Qmin!L6 * Qmin!L6 / 1007 / (Константы!L6 / 10) ^ 5 / (' давление'!L6/0.982) -> 0.5538972789 | M6: =940 * 0.71 / 1.292 * Zзаб!M6 * 323 * Qmin!M6 * Qmin!M6 / 1007 / (Константы!M6 / 10) ^ 5 / (' давление'!M6/0.982) -> 0.5538664196 | N6: =940 * 0.71 / 1.292 * Zзаб!N6 * 323 * Qmin!N6 * Qmin!N6 / 1007 / (Константы!N6 / 10) ^ 5 / (' давление'!N6/0.982) -> 0.553848603 | O6: =940 * 0.71 / 1.292 * Zзаб!O6 * 323 * Qmin!O6 * Qmin!O6 / 1007 / (Константы!O6 / 10) ^ 5 / (' давление'!O6/0.982) -> 0.5538334707 | P6: =940 * 0.71 / 1.292 * Zзаб!P6 * 323 * Qmin!P6 * Qmin!P6 / 1007 / (Константы!P6 / 10) ^ 5 / (' давление'!P6/0.982) -> 0.5538122107 | Q6: =940 * 0.71 / 1.292 * Zзаб!Q6 * 323 * Qmin!Q6 * Qmin!Q6 / 1007 / (Константы!Q6 / 10) ^ 5 / (' давление'!Q6/0.982) -> 0.553791082 | R6: =940 * 0.71 / 1.292 * Zзаб!R6 * 323 * Qmin!R6 * Qmin!R6 / 1007 / (Константы!R6 / 10) ^ 5 / (' давление'!R6/0.982) -> 0.5537718914 | S6: =940 * 0.71 / 1.292 * Zзаб!S6 * 323 * Qmin!S6 * Qmin!S6 / 1007 / (Константы!S6 / 10) ^ 5 / (' давление'!S6/0.982) -> 0.5537551254 | T6: =940 * 0.71 / 1.292 * Zзаб!T6 * 323 * Qmin!T6 * Qmin!T6 / 1007 / (Константы!T6 / 10) ^ 5 / (' давление'!T6/0.982) -> 0.553712211 | U6: =940 * 0.71 / 1.292 * Zзаб!U6 * 323 * Qmin!U6 * Qmin!U6 / 1007 / (Константы!U6 / 10) ^ 5 / (' давление'!U6/0.982) -> 0.5536037247 | V6: =940 * 0.71 / 1.292 * Zзаб!V6 * 323 * Qmin!V6 * Qmin!V6 / 1007 / (Константы!V6 / 10) ^ 5 / (' давление'!V6/0.982) -> 0.5533838942 | W6: =940 * 0.71 / 1.292 * Zзаб!W6 * 323 * Qmin!W6 * Qmin!W6 / 1007 / (Константы!W6 / 10) ^ 5 / (' давление'!W6/0.982) -> 0.5531905288 | X6: =940 * 0.71 / 1.292 * Zзаб!X6 * 323 * Qmin!X6 * Qmin!X6 / 1007 / (Константы!X6 / 10) ^ 5 / (' давление'!X6/0.982) -> 0.5530388678 | Y6: =940 * 0.71 / 1.292 * Zзаб!Y6 * 323 * Qmin!Y6 * Qmin!Y6 / 1007 / (Константы!Y6 / 10) ^ 5 / (' давление'!Y6/0.982) -> 0.5529128522 | Z6: =940 * 0.71 / 1.292 * Zзаб!Z6 * 323 * Qmin!Z6 * Qmin!Z6 / 1007 / (Константы!Z6 / 10) ^ 5 / (' давление'!Z6/0.982) -> 0.5528058369 | AA6: =940 * 0.71 / 1.292 * Zзаб!AA6 * 323 * Qmin!AA6 * Qmin!AA6 / 1007 / (Константы!AA6 / 10) ^ 5 / (' давление'!AA6/0.982) -> 0.5527154279 | AB6: =940 * 0.71 / 1.292 * Zзаб!AB6 * 323 * Qmin!AB6 * Qmin!AB6 / 1007 / (Константы!AB6 / 10) ^ 5 / (' давление'!AB6/0.982) -> 0.5526383561 | AC6: =940 * 0.71 / 1.292 * Zзаб!AC6 * 323 * Qmin!AC6 * Qmin!AC6 / 1007 / (Константы!AC6 / 10) ^ 5 / (' давление'!AC6/0.982) -> 0.5525634874 | AD6: =940 * 0.71 / 1.292 * Zзаб!AD6 * 323 * Qmin!AD6 * Qmin!AD6 / 1007 / (Константы!AD6 / 10) ^ 5 / (' давление'!AD6/0.982) -> 0.5524895167 | AE6: =940 * 0.71 / 1.292 * Zзаб!AE6 * 323 * Qmin!AE6 * Qmin!AE6 / 1007 / (Константы!AE6 / 10) ^ 5 / (' давление'!AE6/0.982) -> 0.5524195472 | AF6: =940 * 0.71 / 1.292 * Zзаб!AF6 * 323 * Qmin!AF6 * Qmin!AF6 / 1007 / (Константы!AF6 / 10) ^ 5 / (' давление'!AF6/0.982) -> 0.5523517319 | AG6: =940 * 0.71 / 1.292 * Zзаб!AG6 * 323 * Qmin!AG6 * Qmin!AG6 / 1007 / (Константы!AG6 / 10) ^ 5 / (' давление'!AG6/0.982) -> 0.5512356525 | AH6: =940 * 0.71 / 1.292 * Zзаб!AH6 * 323 * Qmin!AH6 * Qmin!AH6 / 1007 / (Константы!AH6 / 10) ^ 5 / (' давление'!AH6/0.982) -> 0.5511509814 | AI6: =940 * 0.71 / 1.292 * Zзаб!AI6 * 323 * Qmin!AI6 * Qmin!AI6 / 1007 / (Константы!AI6 / 10) ^ 5 / (' давление'!AI6/0.982) -> 0.5510968807 | AJ6: =940 * 0.71 / 1.292 * Zзаб!AJ6 * 323 * Qmin!AJ6 * Qmin!AJ6 / 1007 / (Константы!AJ6 / 10) ^ 5 / (' давление'!AJ6/0.982) -> 0.5510203229 | AK6: =940 * 0.71 / 1.292 * Zзаб!AK6 * 323 * Qmin!AK6 * Qmin!AK6 / 1007 / (Константы!AK6 / 10) ^ 5 / (' давление'!AK6/0.982) -> 0.5509467165 | AL6: =940 * 0.71 / 1.292 * Zзаб!AL6 * 323 * Qmin!AL6 * Qmin!AL6 / 1007 / (Константы!AL6 / 10) ^ 5 / (' давление'!AL6/0.982) -> 0.5508860425 | AM6: =940 * 0.71 / 1.292 * Zзаб!AM6 * 323 * Qmin!AM6 * Qmin!AM6 / 1007 / (Константы!AM6 / 10) ^ 5 / (' давление'!AM6/0.982) -> 0.5507454196
A7: 104 | B7: Фруд2 | C7: =940 * 0.71 / 1.292 * Zзаб!C7 * 323 * Qmin!C7 * Qmin!C7 / 1007 / (Константы!C7 / 10) ^ 5 / (' давление'!C7/0.982) ->  | D7: =940 * 0.71 / 1.292 * Zзаб!D7 * 323 * Qmin!D7 * Qmin!D7 / 1007 / (Константы!D7 / 10) ^ 5 / (' давление'!D7/0.982) ->  | E7: =940 * 0.71 / 1.292 * Zзаб!E7 * 323 * Qmin!E7 * Qmin!E7 / 1007 / (Константы!E7 / 10) ^ 5 / (' давление'!E7/0.982) ->  | F7: =940 * 0.71 / 1.292 * Zзаб!F7 * 323 * Qmin!F7 * Qmin!F7 / 1007 / (Константы!F7 / 10) ^ 5 / (' давление'!F7/0.982) ->  | G7: =940 * 0.71 / 1.292 * Zзаб!G7 * 323 * Qmin!G7 * Qmin!G7 / 1007 / (Константы!G7 / 10) ^ 5 / (' давление'!G7/0.982) ->  | H7: =940 * 0.71 / 1.292 * Zзаб!H7 * 323 * Qmin!H7 * Qmin!H7 / 1007 / (Константы!H7 / 10) ^ 5 / (' давление'!H7/0.982) ->  | I7: =940 * 0.71 / 1.292 * Zзаб!I7 * 323 * Qmin!I7 * Qmin!I7 / 1007 / (Константы!I7 / 10) ^ 5 / (' давление'!I7/0.982) ->  | J7: =940 * 0.71 / 1.292 * Zзаб!J7 * 323 * Qmin!J7 * Qmin!J7 / 1007 / (Константы!J7 / 10) ^ 5 / (' давление'!J7/0.982) ->  | K7: =940 * 0.71 / 1.292 * Zзаб!K7 * 323 * Qmin!K7 * Qmin!K7 / 1007 / (Константы!K7 / 10) ^ 5 / (' давление'!K7/0.982) ->  | L7: =940 * 0.71 / 1.292 * Zзаб!L7 * 323 * Qmin!L7 * Qmin!L7 / 1007 / (Константы!L7 / 10) ^ 5 / (' давление'!L7/0.982) ->  | M7: =940 * 0.71 / 1.292 * Zзаб!M7 * 323 * Qmin!M7 * Qmin!M7 / 1007 / (Константы!M7 / 10) ^ 5 / (' давление'!M7/0.982) ->  | N7: =940 * 0.71 / 1.292 * Zзаб!N7 * 323 * Qmin!N7 * Qmin!N7 / 1007 / (Константы!N7 / 10) ^ 5 / (' давление'!N7/0.982) ->  | O7: =940 * 0.71 / 1.292 * Zзаб!O7 * 323 * Qmin!O7 * Qmin!O7 / 1007 / (Константы!O7 / 10) ^ 5 / (' давление'!O7/0.982) ->  | P7: =940 * 0.71 / 1.292 * Zзаб!P7 * 323 * Qmin!P7 * Qmin!P7 / 1007 / (Константы!P7 / 10) ^ 5 / (' давление'!P7/0.982) ->  | Q7: =940 * 0.71 / 1.292 * Zзаб!Q7 * 323 * Qmin!Q7 * Qmin!Q7 / 1007 / (Константы!Q7 / 10) ^ 5 / (' давление'!Q7/0.982) ->  | R7: =940 * 0.71 / 1.292 * Zзаб!R7 * 323 * Qmin!R7 * Qmin!R7 / 1007 / (Константы!R7 / 10) ^ 5 / (' давление'!R7/0.982) ->  | S7: =940 * 0.71 / 1.292 * Zзаб!S7 * 323 * Qmin!S7 * Qmin!S7 / 1007 / (Константы!S7 / 10) ^ 5 / (' давление'!S7/0.982) ->  | T7: =940 * 0.71 / 1.292 * Zзаб!T7 * 323 * Qmin!T7 * Qmin!T7 / 1007 / (Константы!T7 / 10) ^ 5 / (' давление'!T7/0.982) ->  | U7: =940 * 0.71 / 1.292 * Zзаб!U7 * 323 * Qmin!U7 * Qmin!U7 / 1007 / (Константы!U7 / 10) ^ 5 / (' давление'!U7/0.982) ->  | V7: =940 * 0.71 / 1.292 * Zзаб!V7 * 323 * Qmin!V7 * Qmin!V7 / 1007 / (Константы!V7 / 10) ^ 5 / (' давление'!V7/0.982) ->  | W7: =940 * 0.71 / 1.292 * Zзаб!W7 * 323 * Qmin!W7 * Qmin!W7 / 1007 / (Константы!W7 / 10) ^ 5 / (' давление'!W7/0.982) ->  | X7: =940 * 0.71 / 1.292 * Zзаб!X7 * 323 * Qmin!X7 * Qmin!X7 / 1007 / (Константы!X7 / 10) ^ 5 / (' давление'!X7/0.982) ->  | Y7: =940 * 0.71 / 1.292 * Zзаб!Y7 * 323 * Qmin!Y7 * Qmin!Y7 / 1007 / (Константы!Y7 / 10) ^ 5 / (' давление'!Y7/0.982) ->  | Z7: =940 * 0.71 / 1.292 * Zзаб!Z7 * 323 * Qmin!Z7 * Qmin!Z7 / 1007 / (Константы!Z7 / 10) ^ 5 / (' давление'!Z7/0.982) ->  | AA7: =940 * 0.71 / 1.292 * Zзаб!AA7 * 323 * Qmin!AA7 * Qmin!AA7 / 1007 / (Константы!AA7 / 10) ^ 5 / (' давление'!AA7/0.982) ->  | AB7: =940 * 0.71 / 1.292 * Zзаб!AB7 * 323 * Qmin!AB7 * Qmin!AB7 / 1007 / (Константы!AB7 / 10) ^ 5 / (' давление'!AB7/0.982) ->  | AC7: =940 * 0.71 / 1.292 * Zзаб!AC7 * 323 * Qmin!AC7 * Qmin!AC7 / 1007 / (Константы!AC7 / 10) ^ 5 / (' давление'!AC7/0.982) ->  | AD7: =940 * 0.71 / 1.292 * Zзаб!AD7 * 323 * Qmin!AD7 * Qmin!AD7 / 1007 / (Константы!AD7 / 10) ^ 5 / (' давление'!AD7/0.982) ->  | AE7: =940 * 0.71 / 1.292 * Zзаб!AE7 * 323 * Qmin!AE7 * Qmin!AE7 / 1007 / (Константы!AE7 / 10) ^ 5 / (' давление'!AE7/0.982) ->  | AF7: =940 * 0.71 / 1.292 * Zзаб!AF7 * 323 * Qmin!AF7 * Qmin!AF7 / 1007 / (Константы!AF7 / 10) ^ 5 / (' давление'!AF7/0.982) ->  | AG7: =940 * 0.71 / 1.292 * Zзаб!AG7 * 323 * Qmin!AG7 * Qmin!AG7 / 1007 / (Константы!AG7 / 10) ^ 5 / (' давление'!AG7/0.982) ->  | AH7: =940 * 0.71 / 1.292 * Zзаб!AH7 * 323 * Qmin!AH7 * Qmin!AH7 / 1007 / (Константы!AH7 / 10) ^ 5 / (' давление'!AH7/0.982) ->  | AI7: =940 * 0.71 / 1.292 * Zзаб!AI7 * 323 * Qmin!AI7 * Qmin!AI7 / 1007 / (Константы!AI7 / 10) ^ 5 / (' давление'!AI7/0.982) ->  | AJ7: =940 * 0.71 / 1.292 * Zзаб!AJ7 * 323 * Qmin!AJ7 * Qmin!AJ7 / 1007 / (Константы!AJ7 / 10) ^ 5 / (' давление'!AJ7/0.982) ->  | AK7: =940 * 0.71 / 1.292 * Zзаб!AK7 * 323 * Qmin!AK7 * Qmin!AK7 / 1007 / (Константы!AK7 / 10) ^ 5 / (' давление'!AK7/0.982) ->  | AL7: =940 * 0.71 / 1.292 * Zзаб!AL7 * 323 * Qmin!AL7 * Qmin!AL7 / 1007 / (Константы!AL7 / 10) ^ 5 / (' давление'!AL7/0.982) ->  | AM7: =940 * 0.71 / 1.292 * Zзаб!AM7 * 323 * Qmin!AM7 * Qmin!AM7 / 1007 / (Константы!AM7 / 10) ^ 5 / (' давление'!AM7/0.982) -> 
A8: 105 | B8: Фруд2 | C8: =940 * 0.71 / 1.292 * Zзаб!C8 * 323 * Qmin!C8 * Qmin!C8 / 1007 / (Константы!C8 / 10) ^ 5 / (' давление'!C8/0.982) -> 0.6856870599 | D8: =940 * 0.71 / 1.292 * Zзаб!D8 * 323 * Qmin!D8 * Qmin!D8 / 1007 / (Константы!D8 / 10) ^ 5 / (' давление'!D8/0.982) -> 0.6854425425 | E8: =940 * 0.71 / 1.292 * Zзаб!E8 * 323 * Qmin!E8 * Qmin!E8 / 1007 / (Константы!E8 / 10) ^ 5 / (' давление'!E8/0.982) -> 0.6839497985 | F8: =940 * 0.71 / 1.292 * Zзаб!F8 * 323 * Qmin!F8 * Qmin!F8 / 1007 / (Константы!F8 / 10) ^ 5 / (' давление'!F8/0.982) -> 0.6842776994 | G8: =940 * 0.71 / 1.292 * Zзаб!G8 * 323 * Qmin!G8 * Qmin!G8 / 1007 / (Константы!G8 / 10) ^ 5 / (' давление'!G8/0.982) -> 0.6838904039 | H8: =940 * 0.71 / 1.292 * Zзаб!H8 * 323 * Qmin!H8 * Qmin!H8 / 1007 / (Константы!H8 / 10) ^ 5 / (' давление'!H8/0.982) -> 0.6861953232 | I8: =940 * 0.71 / 1.292 * Zзаб!I8 * 323 * Qmin!I8 * Qmin!I8 / 1007 / (Константы!I8 / 10) ^ 5 / (' давление'!I8/0.982) -> 0.6837636826 | J8: =940 * 0.71 / 1.292 * Zзаб!J8 * 323 * Qmin!J8 * Qmin!J8 / 1007 / (Константы!J8 / 10) ^ 5 / (' давление'!J8/0.982) -> 0.6837116532 | K8: =940 * 0.71 / 1.292 * Zзаб!K8 * 323 * Qmin!K8 * Qmin!K8 / 1007 / (Константы!K8 / 10) ^ 5 / (' давление'!K8/0.982) -> 0.6836843288 | L8: =940 * 0.71 / 1.292 * Zзаб!L8 * 323 * Qmin!L8 * Qmin!L8 / 1007 / (Константы!L8 / 10) ^ 5 / (' давление'!L8/0.982) -> 0.6836633238 | M8: =940 * 0.71 / 1.292 * Zзаб!M8 * 323 * Qmin!M8 * Qmin!M8 / 1007 / (Константы!M8 / 10) ^ 5 / (' давление'!M8/0.982) -> 0.6836448371 | N8: =940 * 0.71 / 1.292 * Zзаб!N8 * 323 * Qmin!N8 * Qmin!N8 / 1007 / (Константы!N8 / 10) ^ 5 / (' давление'!N8/0.982) -> 0.6836283813 | O8: =940 * 0.71 / 1.292 * Zзаб!O8 * 323 * Qmin!O8 * Qmin!O8 / 1007 / (Константы!O8 / 10) ^ 5 / (' давление'!O8/0.982) -> 0.6836125814 | P8: =940 * 0.71 / 1.292 * Zзаб!P8 * 323 * Qmin!P8 * Qmin!P8 / 1007 / (Константы!P8 / 10) ^ 5 / (' давление'!P8/0.982) -> 0.6835973721 | Q8: =940 * 0.71 / 1.292 * Zзаб!Q8 * 323 * Qmin!Q8 * Qmin!Q8 / 1007 / (Константы!Q8 / 10) ^ 5 / (' давление'!Q8/0.982) -> 0.6835840224 | R8: =940 * 0.71 / 1.292 * Zзаб!R8 * 323 * Qmin!R8 * Qmin!R8 / 1007 / (Константы!R8 / 10) ^ 5 / (' давление'!R8/0.982) -> 0.6835687974 | S8: =940 * 0.71 / 1.292 * Zзаб!S8 * 323 * Qmin!S8 * Qmin!S8 / 1007 / (Константы!S8 / 10) ^ 5 / (' давление'!S8/0.982) -> 0.6835551228 | T8: =940 * 0.71 / 1.292 * Zзаб!T8 * 323 * Qmin!T8 * Qmin!T8 / 1007 / (Константы!T8 / 10) ^ 5 / (' давление'!T8/0.982) -> 0.6835399891 | U8: =940 * 0.71 / 1.292 * Zзаб!U8 * 323 * Qmin!U8 * Qmin!U8 / 1007 / (Константы!U8 / 10) ^ 5 / (' давление'!U8/0.982) -> 0.6835254688 | V8: =940 * 0.71 / 1.292 * Zзаб!V8 * 323 * Qmin!V8 * Qmin!V8 / 1007 / (Константы!V8 / 10) ^ 5 / (' давление'!V8/0.982) -> 0.6835106261 | W8: =940 * 0.71 / 1.292 * Zзаб!W8 * 323 * Qmin!W8 * Qmin!W8 / 1007 / (Константы!W8 / 10) ^ 5 / (' давление'!W8/0.982) -> 0.6834965518 | X8: =940 * 0.71 / 1.292 * Zзаб!X8 * 323 * Qmin!X8 * Qmin!X8 / 1007 / (Константы!X8 / 10) ^ 5 / (' давление'!X8/0.982) -> 0.6834831048 | Y8: =940 * 0.71 / 1.292 * Zзаб!Y8 * 323 * Qmin!Y8 * Qmin!Y8 / 1007 / (Константы!Y8 / 10) ^ 5 / (' давление'!Y8/0.982) -> 0.6834680419 | Z8: =940 * 0.71 / 1.292 * Zзаб!Z8 * 323 * Qmin!Z8 * Qmin!Z8 / 1007 / (Константы!Z8 / 10) ^ 5 / (' давление'!Z8/0.982) -> 0.6834543951 | AA8: =940 * 0.71 / 1.292 * Zзаб!AA8 * 323 * Qmin!AA8 * Qmin!AA8 / 1007 / (Константы!AA8 / 10) ^ 5 / (' давление'!AA8/0.982) ->  | AB8: =940 * 0.71 / 1.292 * Zзаб!AB8 * 323 * Qmin!AB8 * Qmin!AB8 / 1007 / (Константы!AB8 / 10) ^ 5 / (' давление'!AB8/0.982) ->  | AC8: =940 * 0.71 / 1.292 * Zзаб!AC8 * 323 * Qmin!AC8 * Qmin!AC8 / 1007 / (Константы!AC8 / 10) ^ 5 / (' давление'!AC8/0.982) ->  | AD8: =940 * 0.71 / 1.292 * Zзаб!AD8 * 323 * Qmin!AD8 * Qmin!AD8 / 1007 / (Константы!AD8 / 10) ^ 5 / (' давление'!AD8/0.982) ->  | AE8: =940 * 0.71 / 1.292 * Zзаб!AE8 * 323 * Qmin!AE8 * Qmin!AE8 / 1007 / (Константы!AE8 / 10) ^ 5 / (' давление'!AE8/0.982) ->  | AF8: =940 * 0.71 / 1.292 * Zзаб!AF8 * 323 * Qmin!AF8 * Qmin!AF8 / 1007 / (Константы!AF8 / 10) ^ 5 / (' давление'!AF8/0.982) ->  | AG8: =940 * 0.71 / 1.292 * Zзаб!AG8 * 323 * Qmin!AG8 * Qmin!AG8 / 1007 / (Константы!AG8 / 10) ^ 5 / (' давление'!AG8/0.982) ->  | AH8: =940 * 0.71 / 1.292 * Zзаб!AH8 * 323 * Qmin!AH8 * Qmin!AH8 / 1007 / (Константы!AH8 / 10) ^ 5 / (' давление'!AH8/0.982) ->  | AI8: =940 * 0.71 / 1.292 * Zзаб!AI8 * 323 * Qmin!AI8 * Qmin!AI8 / 1007 / (Константы!AI8 / 10) ^ 5 / (' давление'!AI8/0.982) ->  | AJ8: =940 * 0.71 / 1.292 * Zзаб!AJ8 * 323 * Qmin!AJ8 * Qmin!AJ8 / 1007 / (Константы!AJ8 / 10) ^ 5 / (' давление'!AJ8/0.982) ->  | AK8: =940 * 0.71 / 1.292 * Zзаб!AK8 * 323 * Qmin!AK8 * Qmin!AK8 / 1007 / (Константы!AK8 / 10) ^ 5 / (' давление'!AK8/0.982) ->  | AL8: =940 * 0.71 / 1.292 * Zзаб!AL8 * 323 * Qmin!AL8 * Qmin!AL8 / 1007 / (Константы!AL8 / 10) ^ 5 / (' давление'!AL8/0.982) ->  | AM8: =940 * 0.71 / 1.292 * Zзаб!AM8 * 323 * Qmin!AM8 * Qmin!AM8 / 1007 / (Константы!AM8 / 10) ^ 5 / (' давление'!AM8/0.982) -> 
A9: 106 | B9: Фруд2 | C9: =940 * 0.71 / 1.292 * Zзаб!C9 * 323 * Qmin!C9 * Qmin!C9 / 1007 / (Константы!C9 / 10) ^ 5 / (' давление'!C9/0.982) -> 0.5529222591 | D9: =940 * 0.71 / 1.292 * Zзаб!D9 * 323 * Qmin!D9 * Qmin!D9 / 1007 / (Константы!D9 / 10) ^ 5 / (' давление'!D9/0.982) -> 0.5528481509 | E9: =940 * 0.71 / 1.292 * Zзаб!E9 * 323 * Qmin!E9 * Qmin!E9 / 1007 / (Константы!E9 / 10) ^ 5 / (' давление'!E9/0.982) -> 0.5528888568 | F9: =940 * 0.71 / 1.292 * Zзаб!F9 * 323 * Qmin!F9 * Qmin!F9 / 1007 / (Константы!F9 / 10) ^ 5 / (' давление'!F9/0.982) -> 0.5528230914 | G9: =940 * 0.71 / 1.292 * Zзаб!G9 * 323 * Qmin!G9 * Qmin!G9 / 1007 / (Константы!G9 / 10) ^ 5 / (' давление'!G9/0.982) -> 0.5527474376 | H9: =940 * 0.71 / 1.292 * Zзаб!H9 * 323 * Qmin!H9 * Qmin!H9 / 1007 / (Константы!H9 / 10) ^ 5 / (' давление'!H9/0.982) -> 0.5526975078 | I9: =940 * 0.71 / 1.292 * Zзаб!I9 * 323 * Qmin!I9 * Qmin!I9 / 1007 / (Константы!I9 / 10) ^ 5 / (' давление'!I9/0.982) -> 0.5525927105 | J9: =940 * 0.71 / 1.292 * Zзаб!J9 * 323 * Qmin!J9 * Qmin!J9 / 1007 / (Константы!J9 / 10) ^ 5 / (' давление'!J9/0.982) -> 0.5525537669 | K9: =940 * 0.71 / 1.292 * Zзаб!K9 * 323 * Qmin!K9 * Qmin!K9 / 1007 / (Константы!K9 / 10) ^ 5 / (' давление'!K9/0.982) -> 0.5525718433 | L9: =940 * 0.71 / 1.292 * Zзаб!L9 * 323 * Qmin!L9 * Qmin!L9 / 1007 / (Константы!L9 / 10) ^ 5 / (' давление'!L9/0.982) -> 0.552499418 | M9: =940 * 0.71 / 1.292 * Zзаб!M9 * 323 * Qmin!M9 * Qmin!M9 / 1007 / (Константы!M9 / 10) ^ 5 / (' давление'!M9/0.982) -> 0.552449772 | N9: =940 * 0.71 / 1.292 * Zзаб!N9 * 323 * Qmin!N9 * Qmin!N9 / 1007 / (Константы!N9 / 10) ^ 5 / (' давление'!N9/0.982) -> 0.552400833 | O9: =940 * 0.71 / 1.292 * Zзаб!O9 * 323 * Qmin!O9 * Qmin!O9 / 1007 / (Константы!O9 / 10) ^ 5 / (' давление'!O9/0.982) -> 0.5523479759 | P9: =940 * 0.71 / 1.292 * Zзаб!P9 * 323 * Qmin!P9 * Qmin!P9 / 1007 / (Константы!P9 / 10) ^ 5 / (' давление'!P9/0.982) -> 0.5512537104 | Q9: =940 * 0.71 / 1.292 * Zзаб!Q9 * 323 * Qmin!Q9 * Qmin!Q9 / 1007 / (Константы!Q9 / 10) ^ 5 / (' давление'!Q9/0.982) -> 0.5511908149 | R9: =940 * 0.71 / 1.292 * Zзаб!R9 * 323 * Qmin!R9 * Qmin!R9 / 1007 / (Константы!R9 / 10) ^ 5 / (' давление'!R9/0.982) -> 0.5511456762 | S9: =940 * 0.71 / 1.292 * Zзаб!S9 * 323 * Qmin!S9 * Qmin!S9 / 1007 / (Константы!S9 / 10) ^ 5 / (' давление'!S9/0.982) -> 0.5511057554 | T9: =940 * 0.71 / 1.292 * Zзаб!T9 * 323 * Qmin!T9 * Qmin!T9 / 1007 / (Константы!T9 / 10) ^ 5 / (' давление'!T9/0.982) -> 0.5510673513 | U9: =940 * 0.71 / 1.292 * Zзаб!U9 * 323 * Qmin!U9 * Qmin!U9 / 1007 / (Константы!U9 / 10) ^ 5 / (' давление'!U9/0.982) -> 0.5510283809 | V9: =940 * 0.71 / 1.292 * Zзаб!V9 * 323 * Qmin!V9 * Qmin!V9 / 1007 / (Константы!V9 / 10) ^ 5 / (' давление'!V9/0.982) -> 0.5509633767 | W9: =940 * 0.71 / 1.292 * Zзаб!W9 * 323 * Qmin!W9 * Qmin!W9 / 1007 / (Константы!W9 / 10) ^ 5 / (' давление'!W9/0.982) -> 0.5509100836 | X9: =940 * 0.71 / 1.292 * Zзаб!X9 * 323 * Qmin!X9 * Qmin!X9 / 1007 / (Константы!X9 / 10) ^ 5 / (' давление'!X9/0.982) -> 0.5506957244 | Y9: =940 * 0.71 / 1.292 * Zзаб!Y9 * 323 * Qmin!Y9 * Qmin!Y9 / 1007 / (Константы!Y9 / 10) ^ 5 / (' давление'!Y9/0.982) -> 0.5504400548 | Z9: =940 * 0.71 / 1.292 * Zзаб!Z9 * 323 * Qmin!Z9 * Qmin!Z9 / 1007 / (Константы!Z9 / 10) ^ 5 / (' давление'!Z9/0.982) -> 0.5503096075 | AA9: =940 * 0.71 / 1.292 * Zзаб!AA9 * 323 * Qmin!AA9 * Qmin!AA9 / 1007 / (Константы!AA9 / 10) ^ 5 / (' давление'!AA9/0.982) -> 0.5502139683 | AB9: =940 * 0.71 / 1.292 * Zзаб!AB9 * 323 * Qmin!AB9 * Qmin!AB9 / 1007 / (Константы!AB9 / 10) ^ 5 / (' давление'!AB9/0.982) -> 0.5501386819 | AC9: =940 * 0.71 / 1.292 * Zзаб!AC9 * 323 * Qmin!AC9 * Qmin!AC9 / 1007 / (Константы!AC9 / 10) ^ 5 / (' давление'!AC9/0.982) -> 0.5500874489 | AD9: =940 * 0.71 / 1.292 * Zзаб!AD9 * 323 * Qmin!AD9 * Qmin!AD9 / 1007 / (Константы!AD9 / 10) ^ 5 / (' давление'!AD9/0.982) -> 0.5500656234 | AE9: =940 * 0.71 / 1.292 * Zзаб!AE9 * 323 * Qmin!AE9 * Qmin!AE9 / 1007 / (Константы!AE9 / 10) ^ 5 / (' давление'!AE9/0.982) -> 0.5500914927 | AF9: =940 * 0.71 / 1.292 * Zзаб!AF9 * 323 * Qmin!AF9 * Qmin!AF9 / 1007 / (Константы!AF9 / 10) ^ 5 / (' давление'!AF9/0.982) -> 0.5502169164 | AG9: =940 * 0.71 / 1.292 * Zзаб!AG9 * 323 * Qmin!AG9 * Qmin!AG9 / 1007 / (Константы!AG9 / 10) ^ 5 / (' давление'!AG9/0.982) -> 0.5503695813 | AH9: =940 * 0.71 / 1.292 * Zзаб!AH9 * 323 * Qmin!AH9 * Qmin!AH9 / 1007 / (Константы!AH9 / 10) ^ 5 / (' давление'!AH9/0.982) -> 0.5506767222 | AI9: =940 * 0.71 / 1.292 * Zзаб!AI9 * 323 * Qmin!AI9 * Qmin!AI9 / 1007 / (Константы!AI9 / 10) ^ 5 / (' давление'!AI9/0.982) -> 0.5511847944 | AJ9: =940 * 0.71 / 1.292 * Zзаб!AJ9 * 323 * Qmin!AJ9 * Qmin!AJ9 / 1007 / (Константы!AJ9 / 10) ^ 5 / (' давление'!AJ9/0.982) -> 0.5519659547 | AK9: =940 * 0.71 / 1.292 * Zзаб!AK9 * 323 * Qmin!AK9 * Qmin!AK9 / 1007 / (Константы!AK9 / 10) ^ 5 / (' давление'!AK9/0.982) -> 0.5534155706 | AL9: =940 * 0.71 / 1.292 * Zзаб!AL9 * 323 * Qmin!AL9 * Qmin!AL9 / 1007 / (Константы!AL9 / 10) ^ 5 / (' давление'!AL9/0.982) -> 0.554501562 | AM9: =940 * 0.71 / 1.292 * Zзаб!AM9 * 323 * Qmin!AM9 * Qmin!AM9 / 1007 / (Константы!AM9 / 10) ^ 5 / (' давление'!AM9/0.982) -> 0.5573452579
A10: 107 | B10: Фруд2 | C10: =940 * 0.71 / 1.292 * Zзаб!C10 * 323 * Qmin!C10 * Qmin!C10 / 1007 / (Константы!C10 / 10) ^ 5 / (' давление'!C10/0.982) -> 0.7647220275 | D10: =940 * 0.71 / 1.292 * Zзаб!D10 * 323 * Qmin!D10 * Qmin!D10 / 1007 / (Константы!D10 / 10) ^ 5 / (' давление'!D10/0.982) -> 0.7730152307 | E10: =940 * 0.71 / 1.292 * Zзаб!E10 * 323 * Qmin!E10 * Qmin!E10 / 1007 / (Константы!E10 / 10) ^ 5 / (' давление'!E10/0.982) -> 0.7983515225 | F10: =940 * 0.71 / 1.292 * Zзаб!F10 * 323 * Qmin!F10 * Qmin!F10 / 1007 / (Константы!F10 / 10) ^ 5 / (' давление'!F10/0.982) -> 0.7822734647 | G10: =940 * 0.71 / 1.292 * Zзаб!G10 * 323 * Qmin!G10 * Qmin!G10 / 1007 / (Константы!G10 / 10) ^ 5 / (' давление'!G10/0.982) -> 0.78874588 | H10: =940 * 0.71 / 1.292 * Zзаб!H10 * 323 * Qmin!H10 * Qmin!H10 / 1007 / (Константы!H10 / 10) ^ 5 / (' давление'!H10/0.982) -> 0.8196419126 | I10: =940 * 0.71 / 1.292 * Zзаб!I10 * 323 * Qmin!I10 * Qmin!I10 / 1007 / (Константы!I10 / 10) ^ 5 / (' давление'!I10/0.982) -> 0.8094458991 | J10: =940 * 0.71 / 1.292 * Zзаб!J10 * 323 * Qmin!J10 * Qmin!J10 / 1007 / (Константы!J10 / 10) ^ 5 / (' давление'!J10/0.982) -> 0.8064737649 | K10: =940 * 0.71 / 1.292 * Zзаб!K10 * 323 * Qmin!K10 * Qmin!K10 / 1007 / (Константы!K10 / 10) ^ 5 / (' давление'!K10/0.982) -> 0.8054344412 | L10: =940 * 0.71 / 1.292 * Zзаб!L10 * 323 * Qmin!L10 * Qmin!L10 / 1007 / (Константы!L10 / 10) ^ 5 / (' давление'!L10/0.982) -> 0.8091266578 | M10: =940 * 0.71 / 1.292 * Zзаб!M10 * 323 * Qmin!M10 * Qmin!M10 / 1007 / (Константы!M10 / 10) ^ 5 / (' давление'!M10/0.982) -> 0.8087998375 | N10: =940 * 0.71 / 1.292 * Zзаб!N10 * 323 * Qmin!N10 * Qmin!N10 / 1007 / (Константы!N10 / 10) ^ 5 / (' давление'!N10/0.982) -> 0.809849133 | O10: =940 * 0.71 / 1.292 * Zзаб!O10 * 323 * Qmin!O10 * Qmin!O10 / 1007 / (Константы!O10 / 10) ^ 5 / (' давление'!O10/0.982) -> 0.8110070824 | P10: =940 * 0.71 / 1.292 * Zзаб!P10 * 323 * Qmin!P10 * Qmin!P10 / 1007 / (Константы!P10 / 10) ^ 5 / (' давление'!P10/0.982) -> 0.8123136161 | Q10: =940 * 0.71 / 1.292 * Zзаб!Q10 * 323 * Qmin!Q10 * Qmin!Q10 / 1007 / (Константы!Q10 / 10) ^ 5 / (' давление'!Q10/0.982) -> 0.8122859442 | R10: =940 * 0.71 / 1.292 * Zзаб!R10 * 323 * Qmin!R10 * Qmin!R10 / 1007 / (Константы!R10 / 10) ^ 5 / (' давление'!R10/0.982) -> 0.8151944236 | S10: =940 * 0.71 / 1.292 * Zзаб!S10 * 323 * Qmin!S10 * Qmin!S10 / 1007 / (Константы!S10 / 10) ^ 5 / (' давление'!S10/0.982) -> 0.8153972578 | T10: =940 * 0.71 / 1.292 * Zзаб!T10 * 323 * Qmin!T10 * Qmin!T10 / 1007 / (Константы!T10 / 10) ^ 5 / (' давление'!T10/0.982) -> 0.8170769643 | U10: =940 * 0.71 / 1.292 * Zзаб!U10 * 323 * Qmin!U10 * Qmin!U10 / 1007 / (Константы!U10 / 10) ^ 5 / (' давление'!U10/0.982) -> 0.8193950689 | V10: =940 * 0.71 / 1.292 * Zзаб!V10 * 323 * Qmin!V10 * Qmin!V10 / 1007 / (Константы!V10 / 10) ^ 5 / (' давление'!V10/0.982) -> 0.8201668215 | W10: =940 * 0.71 / 1.292 * Zзаб!W10 * 323 * Qmin!W10 * Qmin!W10 / 1007 / (Константы!W10 / 10) ^ 5 / (' давление'!W10/0.982) -> 0.5507439539 | X10: =940 * 0.71 / 1.292 * Zзаб!X10 * 323 * Qmin!X10 * Qmin!X10 / 1007 / (Константы!X10 / 10) ^ 5 / (' давление'!X10/0.982) ->  | Y10: =940 * 0.71 / 1.292 * Zзаб!Y10 * 323 * Qmin!Y10 * Qmin!Y10 / 1007 / (Константы!Y10 / 10) ^ 5 / (' давление'!Y10/0.982) ->  | Z10: =940 * 0.71 / 1.292 * Zзаб!Z10 * 323 * Qmin!Z10 * Qmin!Z10 / 1007 / (Константы!Z10 / 10) ^ 5 / (' давление'!Z10/0.982) ->  | AA10: =940 * 0.71 / 1.292 * Zзаб!AA10 * 323 * Qmin!AA10 * Qmin!AA10 / 1007 / (Константы!AA10 / 10) ^ 5 / (' давление'!AA10/0.982) ->  | AB10: =940 * 0.71 / 1.292 * Zзаб!AB10 * 323 * Qmin!AB10 * Qmin!AB10 / 1007 / (Константы!AB10 / 10) ^ 5 / (' давление'!AB10/0.982) ->  | AC10: =940 * 0.71 / 1.292 * Zзаб!AC10 * 323 * Qmin!AC10 * Qmin!AC10 / 1007 / (Константы!AC10 / 10) ^ 5 / (' давление'!AC10/0.982) ->  | AD10: =940 * 0.71 / 1.292 * Zзаб!AD10 * 323 * Qmin!AD10 * Qmin!AD10 / 1007 / (Константы!AD10 / 10) ^ 5 / (' давление'!AD10/0.982) ->  | AE10: =940 * 0.71 / 1.292 * Zзаб!AE10 * 323 * Qmin!AE10 * Qmin!AE10 / 1007 / (Константы!AE10 / 10) ^ 5 / (' давление'!AE10/0.982) ->  | AF10: =940 * 0.71 / 1.292 * Zзаб!AF10 * 323 * Qmin!AF10 * Qmin!AF10 / 1007 / (Константы!AF10 / 10) ^ 5 / (' давление'!AF10/0.982) ->  | AG10: =940 * 0.71 / 1.292 * Zзаб!AG10 * 323 * Qmin!AG10 * Qmin!AG10 / 1007 / (Константы!AG10 / 10) ^ 5 / (' давление'!AG10/0.982) ->  | AH10: =940 * 0.71 / 1.292 * Zзаб!AH10 * 323 * Qmin!AH10 * Qmin!AH10 / 1007 / (Константы!AH10 / 10) ^ 5 / (' давление'!AH10/0.982) ->  | AI10: =940 * 0.71 / 1.292 * Zзаб!AI10 * 323 * Qmin!AI10 * Qmin!AI10 / 1007 / (Константы!AI10 / 10) ^ 5 / (' давление'!AI10/0.982) ->  | AJ10: =940 * 0.71 / 1.292 * Zзаб!AJ10 * 323 * Qmin!AJ10 * Qmin!AJ10 / 1007 / (Константы!AJ10 / 10) ^ 5 / (' давление'!AJ10/0.982) ->  | AK10: =940 * 0.71 / 1.292 * Zзаб!AK10 * 323 * Qmin!AK10 * Qmin!AK10 / 1007 / (Константы!AK10 / 10) ^ 5 / (' давление'!AK10/0.982) ->  | AL10: =940 * 0.71 / 1.292 * Zзаб!AL10 * 323 * Qmin!AL10 * Qmin!AL10 / 1007 / (Константы!AL10 / 10) ^ 5 / (' давление'!AL10/0.982) ->  | AM10: =940 * 0.71 / 1.292 * Zзаб!AM10 * 323 * Qmin!AM10 * Qmin!AM10 / 1007 / (Константы!AM10 / 10) ^ 5 / (' давление'!AM10/0.982) -> 
A11: 108 | B11: Фруд2 | C11: =940 * 0.71 / 1.292 * Zзаб!C11 * 323 * Qmin!C11 * Qmin!C11 / 1007 / (Константы!C11 / 10) ^ 5 / (' давление'!C11/0.982) -> 0.6233542494 | D11: =940 * 0.71 / 1.292 * Zзаб!D11 * 323 * Qmin!D11 * Qmin!D11 / 1007 / (Константы!D11 / 10) ^ 5 / (' давление'!D11/0.982) -> 0.6231145379 | E11: =940 * 0.71 / 1.292 * Zзаб!E11 * 323 * Qmin!E11 * Qmin!E11 / 1007 / (Константы!E11 / 10) ^ 5 / (' давление'!E11/0.982) -> 0.6245187744 | F11: =940 * 0.71 / 1.292 * Zзаб!F11 * 323 * Qmin!F11 * Qmin!F11 / 1007 / (Константы!F11 / 10) ^ 5 / (' давление'!F11/0.982) -> 0.6258752825 | G11: =940 * 0.71 / 1.292 * Zзаб!G11 * 323 * Qmin!G11 * Qmin!G11 / 1007 / (Константы!G11 / 10) ^ 5 / (' давление'!G11/0.982) -> 0.6258714319 | H11: =940 * 0.71 / 1.292 * Zзаб!H11 * 323 * Qmin!H11 * Qmin!H11 / 1007 / (Константы!H11 / 10) ^ 5 / (' давление'!H11/0.982) -> 0.6220736892 | I11: =940 * 0.71 / 1.292 * Zзаб!I11 * 323 * Qmin!I11 * Qmin!I11 / 1007 / (Константы!I11 / 10) ^ 5 / (' давление'!I11/0.982) -> 0.624106033 | J11: =940 * 0.71 / 1.292 * Zзаб!J11 * 323 * Qmin!J11 * Qmin!J11 / 1007 / (Константы!J11 / 10) ^ 5 / (' давление'!J11/0.982) -> 0.6224793484 | K11: =940 * 0.71 / 1.292 * Zзаб!K11 * 323 * Qmin!K11 * Qmin!K11 / 1007 / (Константы!K11 / 10) ^ 5 / (' давление'!K11/0.982) -> 0.6248844454 | L11: =940 * 0.71 / 1.292 * Zзаб!L11 * 323 * Qmin!L11 * Qmin!L11 / 1007 / (Константы!L11 / 10) ^ 5 / (' давление'!L11/0.982) -> 0.6248996465 | M11: =940 * 0.71 / 1.292 * Zзаб!M11 * 323 * Qmin!M11 * Qmin!M11 / 1007 / (Константы!M11 / 10) ^ 5 / (' давление'!M11/0.982) -> 0.6251781533 | N11: =940 * 0.71 / 1.292 * Zзаб!N11 * 323 * Qmin!N11 * Qmin!N11 / 1007 / (Константы!N11 / 10) ^ 5 / (' давление'!N11/0.982) -> 0.6254827708 | O11: =940 * 0.71 / 1.292 * Zзаб!O11 * 323 * Qmin!O11 * Qmin!O11 / 1007 / (Константы!O11 / 10) ^ 5 / (' давление'!O11/0.982) -> 0.6257853238 | P11: =940 * 0.71 / 1.292 * Zзаб!P11 * 323 * Qmin!P11 * Qmin!P11 / 1007 / (Константы!P11 / 10) ^ 5 / (' давление'!P11/0.982) -> 0.6260883295 | Q11: =940 * 0.71 / 1.292 * Zзаб!Q11 * 323 * Qmin!Q11 * Qmin!Q11 / 1007 / (Константы!Q11 / 10) ^ 5 / (' давление'!Q11/0.982) -> 0.626581622 | R11: =940 * 0.71 / 1.292 * Zзаб!R11 * 323 * Qmin!R11 * Qmin!R11 / 1007 / (Константы!R11 / 10) ^ 5 / (' давление'!R11/0.982) -> 0.6272531508 | S11: =940 * 0.71 / 1.292 * Zзаб!S11 * 323 * Qmin!S11 * Qmin!S11 / 1007 / (Константы!S11 / 10) ^ 5 / (' давление'!S11/0.982) -> 0.627690142 | T11: =940 * 0.71 / 1.292 * Zзаб!T11 * 323 * Qmin!T11 * Qmin!T11 / 1007 / (Константы!T11 / 10) ^ 5 / (' давление'!T11/0.982) -> 0.6280437485 | U11: =940 * 0.71 / 1.292 * Zзаб!U11 * 323 * Qmin!U11 * Qmin!U11 / 1007 / (Константы!U11 / 10) ^ 5 / (' давление'!U11/0.982) -> 0.6283344715 | V11: =940 * 0.71 / 1.292 * Zзаб!V11 * 323 * Qmin!V11 * Qmin!V11 / 1007 / (Константы!V11 / 10) ^ 5 / (' давление'!V11/0.982) -> 0.6280883083 | W11: =940 * 0.71 / 1.292 * Zзаб!W11 * 323 * Qmin!W11 * Qmin!W11 / 1007 / (Константы!W11 / 10) ^ 5 / (' давление'!W11/0.982) -> 0.6263124893 | X11: =940 * 0.71 / 1.292 * Zзаб!X11 * 323 * Qmin!X11 * Qmin!X11 / 1007 / (Константы!X11 / 10) ^ 5 / (' давление'!X11/0.982) -> 0.6264842495 | Y11: =940 * 0.71 / 1.292 * Zзаб!Y11 * 323 * Qmin!Y11 * Qmin!Y11 / 1007 / (Константы!Y11 / 10) ^ 5 / (' давление'!Y11/0.982) -> 0.6265910926 | Z11: =940 * 0.71 / 1.292 * Zзаб!Z11 * 323 * Qmin!Z11 * Qmin!Z11 / 1007 / (Константы!Z11 / 10) ^ 5 / (' давление'!Z11/0.982) -> 0.6338861533 | AA11: =940 * 0.71 / 1.292 * Zзаб!AA11 * 323 * Qmin!AA11 * Qmin!AA11 / 1007 / (Константы!AA11 / 10) ^ 5 / (' давление'!AA11/0.982) -> 0.6365891199 | AB11: =940 * 0.71 / 1.292 * Zзаб!AB11 * 323 * Qmin!AB11 * Qmin!AB11 / 1007 / (Константы!AB11 / 10) ^ 5 / (' давление'!AB11/0.982) -> 0.6380192638 | AC11: =940 * 0.71 / 1.292 * Zзаб!AC11 * 323 * Qmin!AC11 * Qmin!AC11 / 1007 / (Константы!AC11 / 10) ^ 5 / (' давление'!AC11/0.982) -> 0.6393596443 | AD11: =940 * 0.71 / 1.292 * Zзаб!AD11 * 323 * Qmin!AD11 * Qmin!AD11 / 1007 / (Константы!AD11 / 10) ^ 5 / (' давление'!AD11/0.982) -> 0.6403527057 | AE11: =940 * 0.71 / 1.292 * Zзаб!AE11 * 323 * Qmin!AE11 * Qmin!AE11 / 1007 / (Константы!AE11 / 10) ^ 5 / (' давление'!AE11/0.982) -> 0.6418120673 | AF11: =940 * 0.71 / 1.292 * Zзаб!AF11 * 323 * Qmin!AF11 * Qmin!AF11 / 1007 / (Константы!AF11 / 10) ^ 5 / (' давление'!AF11/0.982) -> 0.6425902805 | AG11: =940 * 0.71 / 1.292 * Zзаб!AG11 * 323 * Qmin!AG11 * Qmin!AG11 / 1007 / (Константы!AG11 / 10) ^ 5 / (' давление'!AG11/0.982) -> 0.6438737314 | AH11: =940 * 0.71 / 1.292 * Zзаб!AH11 * 323 * Qmin!AH11 * Qmin!AH11 / 1007 / (Константы!AH11 / 10) ^ 5 / (' давление'!AH11/0.982) -> 0.6418696046 | AI11: =940 * 0.71 / 1.292 * Zзаб!AI11 * 323 * Qmin!AI11 * Qmin!AI11 / 1007 / (Константы!AI11 / 10) ^ 5 / (' давление'!AI11/0.982) -> 0.6505124973 | AJ11: =940 * 0.71 / 1.292 * Zзаб!AJ11 * 323 * Qmin!AJ11 * Qmin!AJ11 / 1007 / (Константы!AJ11 / 10) ^ 5 / (' давление'!AJ11/0.982) -> 0.6485367617 | AK11: =940 * 0.71 / 1.292 * Zзаб!AK11 * 323 * Qmin!AK11 * Qmin!AK11 / 1007 / (Константы!AK11 / 10) ^ 5 / (' давление'!AK11/0.982) -> 0.6537650186 | AL11: =940 * 0.71 / 1.292 * Zзаб!AL11 * 323 * Qmin!AL11 * Qmin!AL11 / 1007 / (Константы!AL11 / 10) ^ 5 / (' давление'!AL11/0.982) -> 0.654803653 | AM11: =940 * 0.71 / 1.292 * Zзаб!AM11 * 323 * Qmin!AM11 * Qmin!AM11 / 1007 / (Константы!AM11 / 10) ^ 5 / (' давление'!AM11/0.982) -> 0.6541566885
A12: 109 | B12: Фруд2 | C12: =940 * 0.71 / 1.292 * Zзаб!C12 * 323 * Qmin!C12 * Qmin!C12 / 1007 / (Константы!C12 / 10) ^ 5 / (' давление'!C12/0.982) -> 0.5552054074 | D12: =940 * 0.71 / 1.292 * Zзаб!D12 * 323 * Qmin!D12 * Qmin!D12 / 1007 / (Константы!D12 / 10) ^ 5 / (' давление'!D12/0.982) -> 0.5550455017 | E12: =940 * 0.71 / 1.292 * Zзаб!E12 * 323 * Qmin!E12 * Qmin!E12 / 1007 / (Константы!E12 / 10) ^ 5 / (' давление'!E12/0.982) -> 0.5551947792 | F12: =940 * 0.71 / 1.292 * Zзаб!F12 * 323 * Qmin!F12 * Qmin!F12 / 1007 / (Константы!F12 / 10) ^ 5 / (' давление'!F12/0.982) -> 0.5549494345 | G12: =940 * 0.71 / 1.292 * Zзаб!G12 * 323 * Qmin!G12 * Qmin!G12 / 1007 / (Константы!G12 / 10) ^ 5 / (' давление'!G12/0.982) -> 0.5548726312 | H12: =940 * 0.71 / 1.292 * Zзаб!H12 * 323 * Qmin!H12 * Qmin!H12 / 1007 / (Константы!H12 / 10) ^ 5 / (' давление'!H12/0.982) -> 0.5548090014 | I12: =940 * 0.71 / 1.292 * Zзаб!I12 * 323 * Qmin!I12 * Qmin!I12 / 1007 / (Константы!I12 / 10) ^ 5 / (' давление'!I12/0.982) -> 0.5541365431 | J12: =940 * 0.71 / 1.292 * Zзаб!J12 * 323 * Qmin!J12 * Qmin!J12 / 1007 / (Константы!J12 / 10) ^ 5 / (' давление'!J12/0.982) -> 0.554075059 | K12: =940 * 0.71 / 1.292 * Zзаб!K12 * 323 * Qmin!K12 * Qmin!K12 / 1007 / (Константы!K12 / 10) ^ 5 / (' давление'!K12/0.982) -> 0.5540441254 | L12: =940 * 0.71 / 1.292 * Zзаб!L12 * 323 * Qmin!L12 * Qmin!L12 / 1007 / (Константы!L12 / 10) ^ 5 / (' давление'!L12/0.982) -> 0.5539858666 | M12: =940 * 0.71 / 1.292 * Zзаб!M12 * 323 * Qmin!M12 * Qmin!M12 / 1007 / (Константы!M12 / 10) ^ 5 / (' давление'!M12/0.982) -> 0.5539269057 | N12: =940 * 0.71 / 1.292 * Zзаб!N12 * 323 * Qmin!N12 * Qmin!N12 / 1007 / (Константы!N12 / 10) ^ 5 / (' давление'!N12/0.982) -> 0.5538765513 | O12: =940 * 0.71 / 1.292 * Zзаб!O12 * 323 * Qmin!O12 * Qmin!O12 / 1007 / (Константы!O12 / 10) ^ 5 / (' давление'!O12/0.982) -> 0.5538278977 | P12: =940 * 0.71 / 1.292 * Zзаб!P12 * 323 * Qmin!P12 * Qmin!P12 / 1007 / (Константы!P12 / 10) ^ 5 / (' давление'!P12/0.982) -> 0.5537763536 | Q12: =940 * 0.71 / 1.292 * Zзаб!Q12 * 323 * Qmin!Q12 * Qmin!Q12 / 1007 / (Константы!Q12 / 10) ^ 5 / (' давление'!Q12/0.982) -> 0.5537202334 | R12: =940 * 0.71 / 1.292 * Zзаб!R12 * 323 * Qmin!R12 * Qmin!R12 / 1007 / (Константы!R12 / 10) ^ 5 / (' давление'!R12/0.982) -> 0.5536769468 | S12: =940 * 0.71 / 1.292 * Zзаб!S12 * 323 * Qmin!S12 * Qmin!S12 / 1007 / (Константы!S12 / 10) ^ 5 / (' давление'!S12/0.982) -> 0.5536371091 | T12: =940 * 0.71 / 1.292 * Zзаб!T12 * 323 * Qmin!T12 * Qmin!T12 / 1007 / (Константы!T12 / 10) ^ 5 / (' давление'!T12/0.982) -> 0.5536101135 | U12: =940 * 0.71 / 1.292 * Zзаб!U12 * 323 * Qmin!U12 * Qmin!U12 / 1007 / (Константы!U12 / 10) ^ 5 / (' давление'!U12/0.982) -> 0.5535746598 | V12: =940 * 0.71 / 1.292 * Zзаб!V12 * 323 * Qmin!V12 * Qmin!V12 / 1007 / (Константы!V12 / 10) ^ 5 / (' давление'!V12/0.982) -> 0.5535575304 | W12: =940 * 0.71 / 1.292 * Zзаб!W12 * 323 * Qmin!W12 * Qmin!W12 / 1007 / (Константы!W12 / 10) ^ 5 / (' давление'!W12/0.982) -> 0.5535446035 | X12: =940 * 0.71 / 1.292 * Zзаб!X12 * 323 * Qmin!X12 * Qmin!X12 / 1007 / (Константы!X12 / 10) ^ 5 / (' давление'!X12/0.982) -> 0.5535024933 | Y12: =940 * 0.71 / 1.292 * Zзаб!Y12 * 323 * Qmin!Y12 * Qmin!Y12 / 1007 / (Константы!Y12 / 10) ^ 5 / (' давление'!Y12/0.982) -> 0.5534806178 | Z12: =940 * 0.71 / 1.292 * Zзаб!Z12 * 323 * Qmin!Z12 * Qmin!Z12 / 1007 / (Константы!Z12 / 10) ^ 5 / (' давление'!Z12/0.982) -> 0.5534947679 | AA12: =940 * 0.71 / 1.292 * Zзаб!AA12 * 323 * Qmin!AA12 * Qmin!AA12 / 1007 / (Константы!AA12 / 10) ^ 5 / (' давление'!AA12/0.982) -> 0.5534581148 | AB12: =940 * 0.71 / 1.292 * Zзаб!AB12 * 323 * Qmin!AB12 * Qmin!AB12 / 1007 / (Константы!AB12 / 10) ^ 5 / (' давление'!AB12/0.982) -> 0.5534212732 | AC12: =940 * 0.71 / 1.292 * Zзаб!AC12 * 323 * Qmin!AC12 * Qmin!AC12 / 1007 / (Константы!AC12 / 10) ^ 5 / (' давление'!AC12/0.982) -> 0.5533881409 | AD12: =940 * 0.71 / 1.292 * Zзаб!AD12 * 323 * Qmin!AD12 * Qmin!AD12 / 1007 / (Константы!AD12 / 10) ^ 5 / (' давление'!AD12/0.982) -> 0.5533610977 | AE12: =940 * 0.71 / 1.292 * Zзаб!AE12 * 323 * Qmin!AE12 * Qmin!AE12 / 1007 / (Константы!AE12 / 10) ^ 5 / (' давление'!AE12/0.982) -> 0.5533254969 | AF12: =940 * 0.71 / 1.292 * Zзаб!AF12 * 323 * Qmin!AF12 * Qmin!AF12 / 1007 / (Константы!AF12 / 10) ^ 5 / (' давление'!AF12/0.982) -> 0.5532976875 | AG12: =940 * 0.71 / 1.292 * Zзаб!AG12 * 323 * Qmin!AG12 * Qmin!AG12 / 1007 / (Константы!AG12 / 10) ^ 5 / (' давление'!AG12/0.982) -> 0.5532636261 | AH12: =940 * 0.71 / 1.292 * Zзаб!AH12 * 323 * Qmin!AH12 * Qmin!AH12 / 1007 / (Константы!AH12 / 10) ^ 5 / (' давление'!AH12/0.982) -> 0.553228727 | AI12: =940 * 0.71 / 1.292 * Zзаб!AI12 * 323 * Qmin!AI12 * Qmin!AI12 / 1007 / (Константы!AI12 / 10) ^ 5 / (' давление'!AI12/0.982) -> 0.5532189656 | AJ12: =940 * 0.71 / 1.292 * Zзаб!AJ12 * 323 * Qmin!AJ12 * Qmin!AJ12 / 1007 / (Константы!AJ12 / 10) ^ 5 / (' давление'!AJ12/0.982) -> 0.5531767188 | AK12: =940 * 0.71 / 1.292 * Zзаб!AK12 * 323 * Qmin!AK12 * Qmin!AK12 / 1007 / (Константы!AK12 / 10) ^ 5 / (' давление'!AK12/0.982) -> 0.5531505765 | AL12: =940 * 0.71 / 1.292 * Zзаб!AL12 * 323 * Qmin!AL12 * Qmin!AL12 / 1007 / (Константы!AL12 / 10) ^ 5 / (' давление'!AL12/0.982) -> 0.5531290245 | AM12: =940 * 0.71 / 1.292 * Zзаб!AM12 * 323 * Qmin!AM12 * Qmin!AM12 / 1007 / (Константы!AM12 / 10) ^ 5 / (' давление'!AM12/0.982) -> 0.553101851
A13: 110 | B13: Фруд2 | C13: =940 * 0.71 / 1.292 * Zзаб!C13 * 323 * Qmin!C13 * Qmin!C13 / 1007 / (Константы!C13 / 10) ^ 5 / (' давление'!C13/0.982) -> 0.9740565382 | D13: =940 * 0.71 / 1.292 * Zзаб!D13 * 323 * Qmin!D13 * Qmin!D13 / 1007 / (Константы!D13 / 10) ^ 5 / (' давление'!D13/0.982) -> 1.017183406 | E13: =940 * 0.71 / 1.292 * Zзаб!E13 * 323 * Qmin!E13 * Qmin!E13 / 1007 / (Константы!E13 / 10) ^ 5 / (' давление'!E13/0.982) -> 1.033199557 | F13: =940 * 0.71 / 1.292 * Zзаб!F13 * 323 * Qmin!F13 * Qmin!F13 / 1007 / (Константы!F13 / 10) ^ 5 / (' давление'!F13/0.982) -> 1.024693756 | G13: =940 * 0.71 / 1.292 * Zзаб!G13 * 323 * Qmin!G13 * Qmin!G13 / 1007 / (Константы!G13 / 10) ^ 5 / (' давление'!G13/0.982) -> 1.028476583 | H13: =940 * 0.71 / 1.292 * Zзаб!H13 * 323 * Qmin!H13 * Qmin!H13 / 1007 / (Константы!H13 / 10) ^ 5 / (' давление'!H13/0.982) -> 0.6825142834 | I13: =940 * 0.71 / 1.292 * Zзаб!I13 * 323 * Qmin!I13 * Qmin!I13 / 1007 / (Константы!I13 / 10) ^ 5 / (' давление'!I13/0.982) -> 0.6868874805 | J13: =940 * 0.71 / 1.292 * Zзаб!J13 * 323 * Qmin!J13 * Qmin!J13 / 1007 / (Константы!J13 / 10) ^ 5 / (' давление'!J13/0.982) -> 0.6868749962 | K13: =940 * 0.71 / 1.292 * Zзаб!K13 * 323 * Qmin!K13 * Qmin!K13 / 1007 / (Константы!K13 / 10) ^ 5 / (' давление'!K13/0.982) -> 0.6868791808 | L13: =940 * 0.71 / 1.292 * Zзаб!L13 * 323 * Qmin!L13 * Qmin!L13 / 1007 / (Константы!L13 / 10) ^ 5 / (' давление'!L13/0.982) -> 0.6868133446 | M13: =940 * 0.71 / 1.292 * Zзаб!M13 * 323 * Qmin!M13 * Qmin!M13 / 1007 / (Константы!M13 / 10) ^ 5 / (' давление'!M13/0.982) -> 0.6867433927 | N13: =940 * 0.71 / 1.292 * Zзаб!N13 * 323 * Qmin!N13 * Qmin!N13 / 1007 / (Константы!N13 / 10) ^ 5 / (' давление'!N13/0.982) -> 0.6866708566 | O13: =940 * 0.71 / 1.292 * Zзаб!O13 * 323 * Qmin!O13 * Qmin!O13 / 1007 / (Константы!O13 / 10) ^ 5 / (' давление'!O13/0.982) -> 0.6866091111 | P13: =940 * 0.71 / 1.292 * Zзаб!P13 * 323 * Qmin!P13 * Qmin!P13 / 1007 / (Константы!P13 / 10) ^ 5 / (' давление'!P13/0.982) -> 0.6865180094 | Q13: =940 * 0.71 / 1.292 * Zзаб!Q13 * 323 * Qmin!Q13 * Qmin!Q13 / 1007 / (Константы!Q13 / 10) ^ 5 / (' давление'!Q13/0.982) -> 0.6864444899 | R13: =940 * 0.71 / 1.292 * Zзаб!R13 * 323 * Qmin!R13 * Qmin!R13 / 1007 / (Константы!R13 / 10) ^ 5 / (' давление'!R13/0.982) -> 0.6864025436 | S13: =940 * 0.71 / 1.292 * Zзаб!S13 * 323 * Qmin!S13 * Qmin!S13 / 1007 / (Константы!S13 / 10) ^ 5 / (' давление'!S13/0.982) -> 0.6863599543 | T13: =940 * 0.71 / 1.292 * Zзаб!T13 * 323 * Qmin!T13 * Qmin!T13 / 1007 / (Константы!T13 / 10) ^ 5 / (' давление'!T13/0.982) -> 0.686319963 | U13: =940 * 0.71 / 1.292 * Zзаб!U13 * 323 * Qmin!U13 * Qmin!U13 / 1007 / (Константы!U13 / 10) ^ 5 / (' давление'!U13/0.982) -> 0.6862885278 | V13: =940 * 0.71 / 1.292 * Zзаб!V13 * 323 * Qmin!V13 * Qmin!V13 / 1007 / (Константы!V13 / 10) ^ 5 / (' давление'!V13/0.982) -> 0.6860709271 | W13: =940 * 0.71 / 1.292 * Zзаб!W13 * 323 * Qmin!W13 * Qmin!W13 / 1007 / (Константы!W13 / 10) ^ 5 / (' давление'!W13/0.982) -> 0.6857821698 | X13: =940 * 0.71 / 1.292 * Zзаб!X13 * 323 * Qmin!X13 * Qmin!X13 / 1007 / (Константы!X13 / 10) ^ 5 / (' давление'!X13/0.982) -> 0.6854093924 | Y13: =940 * 0.71 / 1.292 * Zзаб!Y13 * 323 * Qmin!Y13 * Qmin!Y13 / 1007 / (Константы!Y13 / 10) ^ 5 / (' давление'!Y13/0.982) -> 0.6849873596 | Z13: =940 * 0.71 / 1.292 * Zзаб!Z13 * 323 * Qmin!Z13 * Qmin!Z13 / 1007 / (Константы!Z13 / 10) ^ 5 / (' давление'!Z13/0.982) -> 0.6846410376 | AA13: =940 * 0.71 / 1.292 * Zзаб!AA13 * 323 * Qmin!AA13 * Qmin!AA13 / 1007 / (Константы!AA13 / 10) ^ 5 / (' давление'!AA13/0.982) -> 0.6843923242 | AB13: =940 * 0.71 / 1.292 * Zзаб!AB13 * 323 * Qmin!AB13 * Qmin!AB13 / 1007 / (Константы!AB13 / 10) ^ 5 / (' давление'!AB13/0.982) -> 0.6841926181 | AC13: =940 * 0.71 / 1.292 * Zзаб!AC13 * 323 * Qmin!AC13 * Qmin!AC13 / 1007 / (Константы!AC13 / 10) ^ 5 / (' давление'!AC13/0.982) -> 0.6840174223 | AD13: =940 * 0.71 / 1.292 * Zзаб!AD13 * 323 * Qmin!AD13 * Qmin!AD13 / 1007 / (Константы!AD13 / 10) ^ 5 / (' давление'!AD13/0.982) -> 0.6838545807 | AE13: =940 * 0.71 / 1.292 * Zзаб!AE13 * 323 * Qmin!AE13 * Qmin!AE13 / 1007 / (Константы!AE13 / 10) ^ 5 / (' давление'!AE13/0.982) -> 0.6837182837 | AF13: =940 * 0.71 / 1.292 * Zзаб!AF13 * 323 * Qmin!AF13 * Qmin!AF13 / 1007 / (Константы!AF13 / 10) ^ 5 / (' давление'!AF13/0.982) -> 0.6835875969 | AG13: =940 * 0.71 / 1.292 * Zзаб!AG13 * 323 * Qmin!AG13 * Qmin!AG13 / 1007 / (Константы!AG13 / 10) ^ 5 / (' давление'!AG13/0.982) -> 0.6834786725 | AH13: =940 * 0.71 / 1.292 * Zзаб!AH13 * 323 * Qmin!AH13 * Qmin!AH13 / 1007 / (Константы!AH13 / 10) ^ 5 / (' давление'!AH13/0.982) -> 0.6833655118 | AI13: =940 * 0.71 / 1.292 * Zзаб!AI13 * 323 * Qmin!AI13 * Qmin!AI13 / 1007 / (Константы!AI13 / 10) ^ 5 / (' давление'!AI13/0.982) -> 0.6833099164 | AJ13: =940 * 0.71 / 1.292 * Zзаб!AJ13 * 323 * Qmin!AJ13 * Qmin!AJ13 / 1007 / (Константы!AJ13 / 10) ^ 5 / (' давление'!AJ13/0.982) -> 0.6832278785 | AK13: =940 * 0.71 / 1.292 * Zзаб!AK13 * 323 * Qmin!AK13 * Qmin!AK13 / 1007 / (Константы!AK13 / 10) ^ 5 / (' давление'!AK13/0.982) -> 0.6831449362 | AL13: =940 * 0.71 / 1.292 * Zзаб!AL13 * 323 * Qmin!AL13 * Qmin!AL13 / 1007 / (Константы!AL13 / 10) ^ 5 / (' давление'!AL13/0.982) -> 0.6830638392 | AM13: =940 * 0.71 / 1.292 * Zзаб!AM13 * 323 * Qmin!AM13 * Qmin!AM13 / 1007 / (Константы!AM13 / 10) ^ 5 / (' давление'!AM13/0.982) -> 0.6829985921
A14: 111 | B14: Фруд2 | C14: =940 * 0.71 / 1.292 * Zзаб!C14 * 323 * Qmin!C14 * Qmin!C14 / 1007 / (Константы!C14 / 10) ^ 5 / (' давление'!C14/0.982) -> 0.6875784371 | D14: =940 * 0.71 / 1.292 * Zзаб!D14 * 323 * Qmin!D14 * Qmin!D14 / 1007 / (Константы!D14 / 10) ^ 5 / (' давление'!D14/0.982) -> 0.6875381895 | E14: =940 * 0.71 / 1.292 * Zзаб!E14 * 323 * Qmin!E14 * Qmin!E14 / 1007 / (Константы!E14 / 10) ^ 5 / (' давление'!E14/0.982) -> 0.6874695016 | F14: =940 * 0.71 / 1.292 * Zзаб!F14 * 323 * Qmin!F14 * Qmin!F14 / 1007 / (Константы!F14 / 10) ^ 5 / (' давление'!F14/0.982) -> 0.687814811 | G14: =940 * 0.71 / 1.292 * Zзаб!G14 * 323 * Qmin!G14 * Qmin!G14 / 1007 / (Константы!G14 / 10) ^ 5 / (' давление'!G14/0.982) -> 0.6884030196 | H14: =940 * 0.71 / 1.292 * Zзаб!H14 * 323 * Qmin!H14 * Qmin!H14 / 1007 / (Константы!H14 / 10) ^ 5 / (' давление'!H14/0.982) -> 0.6885946697 | I14: =940 * 0.71 / 1.292 * Zзаб!I14 * 323 * Qmin!I14 * Qmin!I14 / 1007 / (Константы!I14 / 10) ^ 5 / (' давление'!I14/0.982) ->  | J14: =940 * 0.71 / 1.292 * Zзаб!J14 * 323 * Qmin!J14 * Qmin!J14 / 1007 / (Константы!J14 / 10) ^ 5 / (' давление'!J14/0.982) ->  | K14: =940 * 0.71 / 1.292 * Zзаб!K14 * 323 * Qmin!K14 * Qmin!K14 / 1007 / (Константы!K14 / 10) ^ 5 / (' давление'!K14/0.982) ->  | L14: =940 * 0.71 / 1.292 * Zзаб!L14 * 323 * Qmin!L14 * Qmin!L14 / 1007 / (Константы!L14 / 10) ^ 5 / (' давление'!L14/0.982) ->  | M14: =940 * 0.71 / 1.292 * Zзаб!M14 * 323 * Qmin!M14 * Qmin!M14 / 1007 / (Константы!M14 / 10) ^ 5 / (' давление'!M14/0.982) ->  | N14: =940 * 0.71 / 1.292 * Zзаб!N14 * 323 * Qmin!N14 * Qmin!N14 / 1007 / (Константы!N14 / 10) ^ 5 / (' давление'!N14/0.982) ->  | O14: =940 * 0.71 / 1.292 * Zзаб!O14 * 323 * Qmin!O14 * Qmin!O14 / 1007 / (Константы!O14 / 10) ^ 5 / (' давление'!O14/0.982) ->  | P14: =940 * 0.71 / 1.292 * Zзаб!P14 * 323 * Qmin!P14 * Qmin!P14 / 1007 / (Константы!P14 / 10) ^ 5 / (' давление'!P14/0.982) ->  | Q14: =940 * 0.71 / 1.292 * Zзаб!Q14 * 323 * Qmin!Q14 * Qmin!Q14 / 1007 / (Константы!Q14 / 10) ^ 5 / (' давление'!Q14/0.982) ->  | R14: =940 * 0.71 / 1.292 * Zзаб!R14 * 323 * Qmin!R14 * Qmin!R14 / 1007 / (Константы!R14 / 10) ^ 5 / (' давление'!R14/0.982) ->  | S14: =940 * 0.71 / 1.292 * Zзаб!S14 * 323 * Qmin!S14 * Qmin!S14 / 1007 / (Константы!S14 / 10) ^ 5 / (' давление'!S14/0.982) ->  | T14: =940 * 0.71 / 1.292 * Zзаб!T14 * 323 * Qmin!T14 * Qmin!T14 / 1007 / (Константы!T14 / 10) ^ 5 / (' давление'!T14/0.982) ->  | U14: =940 * 0.71 / 1.292 * Zзаб!U14 * 323 * Qmin!U14 * Qmin!U14 / 1007 / (Константы!U14 / 10) ^ 5 / (' давление'!U14/0.982) ->  | V14: =940 * 0.71 / 1.292 * Zзаб!V14 * 323 * Qmin!V14 * Qmin!V14 / 1007 / (Константы!V14 / 10) ^ 5 / (' давление'!V14/0.982) ->  | W14: =940 * 0.71 / 1.292 * Zзаб!W14 * 323 * Qmin!W14 * Qmin!W14 / 1007 / (Константы!W14 / 10) ^ 5 / (' давление'!W14/0.982) ->  | X14: =940 * 0.71 / 1.292 * Zзаб!X14 * 323 * Qmin!X14 * Qmin!X14 / 1007 / (Константы!X14 / 10) ^ 5 / (' давление'!X14/0.982) ->  | Y14: =940 * 0.71 / 1.292 * Zзаб!Y14 * 323 * Qmin!Y14 * Qmin!Y14 / 1007 / (Константы!Y14 / 10) ^ 5 / (' давление'!Y14/0.982) ->  | Z14: =940 * 0.71 / 1.292 * Zзаб!Z14 * 323 * Qmin!Z14 * Qmin!Z14 / 1007 / (Константы!Z14 / 10) ^ 5 / (' давление'!Z14/0.982) ->  | AA14: =940 * 0.71 / 1.292 * Zзаб!AA14 * 323 * Qmin!AA14 * Qmin!AA14 / 1007 / (Константы!AA14 / 10) ^ 5 / (' давление'!AA14/0.982) ->  | AB14: =940 * 0.71 / 1.292 * Zзаб!AB14 * 323 * Qmin!AB14 * Qmin!AB14 / 1007 / (Константы!AB14 / 10) ^ 5 / (' давление'!AB14/0.982) ->  | AC14: =940 * 0.71 / 1.292 * Zзаб!AC14 * 323 * Qmin!AC14 * Qmin!AC14 / 1007 / (Константы!AC14 / 10) ^ 5 / (' давление'!AC14/0.982) ->  | AD14: =940 * 0.71 / 1.292 * Zзаб!AD14 * 323 * Qmin!AD14 * Qmin!AD14 / 1007 / (Константы!AD14 / 10) ^ 5 / (' давление'!AD14/0.982) ->  | AE14: =940 * 0.71 / 1.292 * Zзаб!AE14 * 323 * Qmin!AE14 * Qmin!AE14 / 1007 / (Константы!AE14 / 10) ^ 5 / (' давление'!AE14/0.982) ->  | AF14: =940 * 0.71 / 1.292 * Zзаб!AF14 * 323 * Qmin!AF14 * Qmin!AF14 / 1007 / (Константы!AF14 / 10) ^ 5 / (' давление'!AF14/0.982) ->  | AG14: =940 * 0.71 / 1.292 * Zзаб!AG14 * 323 * Qmin!AG14 * Qmin!AG14 / 1007 / (Константы!AG14 / 10) ^ 5 / (' давление'!AG14/0.982) ->  | AH14: =940 * 0.71 / 1.292 * Zзаб!AH14 * 323 * Qmin!AH14 * Qmin!AH14 / 1007 / (Константы!AH14 / 10) ^ 5 / (' давление'!AH14/0.982) ->  | AI14: =940 * 0.71 / 1.292 * Zзаб!AI14 * 323 * Qmin!AI14 * Qmin!AI14 / 1007 / (Константы!AI14 / 10) ^ 5 / (' давление'!AI14/0.982) ->  | AJ14: =940 * 0.71 / 1.292 * Zзаб!AJ14 * 323 * Qmin!AJ14 * Qmin!AJ14 / 1007 / (Константы!AJ14 / 10) ^ 5 / (' давление'!AJ14/0.982) ->  | AK14: =940 * 0.71 / 1.292 * Zзаб!AK14 * 323 * Qmin!AK14 * Qmin!AK14 / 1007 / (Константы!AK14 / 10) ^ 5 / (' давление'!AK14/0.982) ->  | AL14: =940 * 0.71 / 1.292 * Zзаб!AL14 * 323 * Qmin!AL14 * Qmin!AL14 / 1007 / (Константы!AL14 / 10) ^ 5 / (' давление'!AL14/0.982) ->  | AM14: =940 * 0.71 / 1.292 * Zзаб!AM14 * 323 * Qmin!AM14 * Qmin!AM14 / 1007 / (Константы!AM14 / 10) ^ 5 / (' давление'!AM14/0.982) -> 
A15: 112 | B15: Фруд2 | C15: =940 * 0.71 / 1.292 * Zзаб!C15 * 323 * Qmin!C15 * Qmin!C15 / 1007 / (Константы!C15 / 10) ^ 5 / (' давление'!C15/0.982) -> 0.7331740718 | D15: =940 * 0.71 / 1.292 * Zзаб!D15 * 323 * Qmin!D15 * Qmin!D15 / 1007 / (Константы!D15 / 10) ^ 5 / (' давление'!D15/0.982) -> 0.7342035298 | E15: =940 * 0.71 / 1.292 * Zзаб!E15 * 323 * Qmin!E15 * Qmin!E15 / 1007 / (Константы!E15 / 10) ^ 5 / (' давление'!E15/0.982) -> 0.7321089623 | F15: =940 * 0.71 / 1.292 * Zзаб!F15 * 323 * Qmin!F15 * Qmin!F15 / 1007 / (Константы!F15 / 10) ^ 5 / (' давление'!F15/0.982) -> 0.7330699778 | G15: =940 * 0.71 / 1.292 * Zзаб!G15 * 323 * Qmin!G15 * Qmin!G15 / 1007 / (Константы!G15 / 10) ^ 5 / (' давление'!G15/0.982) -> 0.7325891439 | H15: =940 * 0.71 / 1.292 * Zзаб!H15 * 323 * Qmin!H15 * Qmin!H15 / 1007 / (Константы!H15 / 10) ^ 5 / (' давление'!H15/0.982) -> 0.7300855377 | I15: =940 * 0.71 / 1.292 * Zзаб!I15 * 323 * Qmin!I15 * Qmin!I15 / 1007 / (Константы!I15 / 10) ^ 5 / (' давление'!I15/0.982) -> 0.7301846458 | J15: =940 * 0.71 / 1.292 * Zзаб!J15 * 323 * Qmin!J15 * Qmin!J15 / 1007 / (Константы!J15 / 10) ^ 5 / (' давление'!J15/0.982) -> 0.7289764919 | K15: =940 * 0.71 / 1.292 * Zзаб!K15 * 323 * Qmin!K15 * Qmin!K15 / 1007 / (Константы!K15 / 10) ^ 5 / (' давление'!K15/0.982) -> 0.729598264 | L15: =940 * 0.71 / 1.292 * Zзаб!L15 * 323 * Qmin!L15 * Qmin!L15 / 1007 / (Константы!L15 / 10) ^ 5 / (' давление'!L15/0.982) -> 0.7286724803 | M15: =940 * 0.71 / 1.292 * Zзаб!M15 * 323 * Qmin!M15 * Qmin!M15 / 1007 / (Константы!M15 / 10) ^ 5 / (' давление'!M15/0.982) -> 0.7280079609 | N15: =940 * 0.71 / 1.292 * Zзаб!N15 * 323 * Qmin!N15 * Qmin!N15 / 1007 / (Константы!N15 / 10) ^ 5 / (' давление'!N15/0.982) -> 0.7274747153 | O15: =940 * 0.71 / 1.292 * Zзаб!O15 * 323 * Qmin!O15 * Qmin!O15 / 1007 / (Константы!O15 / 10) ^ 5 / (' давление'!O15/0.982) -> 0.7269707857 | P15: =940 * 0.71 / 1.292 * Zзаб!P15 * 323 * Qmin!P15 * Qmin!P15 / 1007 / (Константы!P15 / 10) ^ 5 / (' давление'!P15/0.982) -> 0.7265002112 | Q15: =940 * 0.71 / 1.292 * Zзаб!Q15 * 323 * Qmin!Q15 * Qmin!Q15 / 1007 / (Константы!Q15 / 10) ^ 5 / (' давление'!Q15/0.982) -> 0.7261405094 | R15: =940 * 0.71 / 1.292 * Zзаб!R15 * 323 * Qmin!R15 * Qmin!R15 / 1007 / (Константы!R15 / 10) ^ 5 / (' давление'!R15/0.982) -> 0.7257273358 | S15: =940 * 0.71 / 1.292 * Zзаб!S15 * 323 * Qmin!S15 * Qmin!S15 / 1007 / (Константы!S15 / 10) ^ 5 / (' давление'!S15/0.982) -> 0.7253524378 | T15: =940 * 0.71 / 1.292 * Zзаб!T15 * 323 * Qmin!T15 * Qmin!T15 / 1007 / (Константы!T15 / 10) ^ 5 / (' давление'!T15/0.982) -> 0.7249808901 | U15: =940 * 0.71 / 1.292 * Zзаб!U15 * 323 * Qmin!U15 * Qmin!U15 / 1007 / (Константы!U15 / 10) ^ 5 / (' давление'!U15/0.982) -> 0.7246688425 | V15: =940 * 0.71 / 1.292 * Zзаб!V15 * 323 * Qmin!V15 * Qmin!V15 / 1007 / (Константы!V15 / 10) ^ 5 / (' давление'!V15/0.982) -> 0.724248647 | W15: =940 * 0.71 / 1.292 * Zзаб!W15 * 323 * Qmin!W15 * Qmin!W15 / 1007 / (Константы!W15 / 10) ^ 5 / (' давление'!W15/0.982) -> 0.7243901968 | X15: =940 * 0.71 / 1.292 * Zзаб!X15 * 323 * Qmin!X15 * Qmin!X15 / 1007 / (Константы!X15 / 10) ^ 5 / (' давление'!X15/0.982) -> 0.7241526209 | Y15: =940 * 0.71 / 1.292 * Zзаб!Y15 * 323 * Qmin!Y15 * Qmin!Y15 / 1007 / (Константы!Y15 / 10) ^ 5 / (' давление'!Y15/0.982) -> 0.7242081909 | Z15: =940 * 0.71 / 1.292 * Zзаб!Z15 * 323 * Qmin!Z15 * Qmin!Z15 / 1007 / (Константы!Z15 / 10) ^ 5 / (' давление'!Z15/0.982) -> 0.7243609429 | AA15: =940 * 0.71 / 1.292 * Zзаб!AA15 * 323 * Qmin!AA15 * Qmin!AA15 / 1007 / (Константы!AA15 / 10) ^ 5 / (' давление'!AA15/0.982) -> 0.7245138946 | AB15: =940 * 0.71 / 1.292 * Zзаб!AB15 * 323 * Qmin!AB15 * Qmin!AB15 / 1007 / (Константы!AB15 / 10) ^ 5 / (' давление'!AB15/0.982) -> 0.7247014198 | AC15: =940 * 0.71 / 1.292 * Zзаб!AC15 * 323 * Qmin!AC15 * Qmin!AC15 / 1007 / (Константы!AC15 / 10) ^ 5 / (' давление'!AC15/0.982) -> 0.7249596315 | AD15: =940 * 0.71 / 1.292 * Zзаб!AD15 * 323 * Qmin!AD15 * Qmin!AD15 / 1007 / (Константы!AD15 / 10) ^ 5 / (' давление'!AD15/0.982) -> 0.7252080168 | AE15: =940 * 0.71 / 1.292 * Zзаб!AE15 * 323 * Qmin!AE15 * Qmin!AE15 / 1007 / (Константы!AE15 / 10) ^ 5 / (' давление'!AE15/0.982) -> 0.7254867415 | AF15: =940 * 0.71 / 1.292 * Zзаб!AF15 * 323 * Qmin!AF15 * Qmin!AF15 / 1007 / (Константы!AF15 / 10) ^ 5 / (' давление'!AF15/0.982) -> 0.7258560806 | AG15: =940 * 0.71 / 1.292 * Zзаб!AG15 * 323 * Qmin!AG15 * Qmin!AG15 / 1007 / (Константы!AG15 / 10) ^ 5 / (' давление'!AG15/0.982) -> 0.7261066714 | AH15: =940 * 0.71 / 1.292 * Zзаб!AH15 * 323 * Qmin!AH15 * Qmin!AH15 / 1007 / (Константы!AH15 / 10) ^ 5 / (' давление'!AH15/0.982) -> 0.7249724248 | AI15: =940 * 0.71 / 1.292 * Zзаб!AI15 * 323 * Qmin!AI15 * Qmin!AI15 / 1007 / (Константы!AI15 / 10) ^ 5 / (' давление'!AI15/0.982) -> 0.7268830545 | AJ15: =940 * 0.71 / 1.292 * Zзаб!AJ15 * 323 * Qmin!AJ15 * Qmin!AJ15 / 1007 / (Константы!AJ15 / 10) ^ 5 / (' давление'!AJ15/0.982) -> 0.7271453045 | AK15: =940 * 0.71 / 1.292 * Zзаб!AK15 * 323 * Qmin!AK15 * Qmin!AK15 / 1007 / (Константы!AK15 / 10) ^ 5 / (' давление'!AK15/0.982) -> 0.7277643822 | AL15: =940 * 0.71 / 1.292 * Zзаб!AL15 * 323 * Qmin!AL15 * Qmin!AL15 / 1007 / (Константы!AL15 / 10) ^ 5 / (' давление'!AL15/0.982) -> 0.7280186348 | AM15: =940 * 0.71 / 1.292 * Zзаб!AM15 * 323 * Qmin!AM15 * Qmin!AM15 / 1007 / (Константы!AM15 / 10) ^ 5 / (' давление'!AM15/0.982) -> 0.7284999353
A16: 113 | B16: Фруд2 | C16: =940 * 0.71 / 1.292 * Zзаб!C16 * 323 * Qmin!C16 * Qmin!C16 / 1007 / (Константы!C16 / 10) ^ 5 / (' давление'!C16/0.982) -> 0.7094167304 | D16: =940 * 0.71 / 1.292 * Zзаб!D16 * 323 * Qmin!D16 * Qmin!D16 / 1007 / (Константы!D16 / 10) ^ 5 / (' давление'!D16/0.982) -> 0.7083926456 | E16: =940 * 0.71 / 1.292 * Zзаб!E16 * 323 * Qmin!E16 * Qmin!E16 / 1007 / (Константы!E16 / 10) ^ 5 / (' давление'!E16/0.982) -> 0.7035632286 | F16: =940 * 0.71 / 1.292 * Zзаб!F16 * 323 * Qmin!F16 * Qmin!F16 / 1007 / (Константы!F16 / 10) ^ 5 / (' давление'!F16/0.982) -> 0.7047662142 | G16: =940 * 0.71 / 1.292 * Zзаб!G16 * 323 * Qmin!G16 * Qmin!G16 / 1007 / (Константы!G16 / 10) ^ 5 / (' давление'!G16/0.982) -> 0.7053093431 | H16: =940 * 0.71 / 1.292 * Zзаб!H16 * 323 * Qmin!H16 * Qmin!H16 / 1007 / (Константы!H16 / 10) ^ 5 / (' давление'!H16/0.982) -> 0.7076535331 | I16: =940 * 0.71 / 1.292 * Zзаб!I16 * 323 * Qmin!I16 * Qmin!I16 / 1007 / (Константы!I16 / 10) ^ 5 / (' давление'!I16/0.982) -> 0.7089718033 | J16: =940 * 0.71 / 1.292 * Zзаб!J16 * 323 * Qmin!J16 * Qmin!J16 / 1007 / (Константы!J16 / 10) ^ 5 / (' давление'!J16/0.982) -> 0.7084665353 | K16: =940 * 0.71 / 1.292 * Zзаб!K16 * 323 * Qmin!K16 * Qmin!K16 / 1007 / (Константы!K16 / 10) ^ 5 / (' давление'!K16/0.982) -> 0.7095788238 | L16: =940 * 0.71 / 1.292 * Zзаб!L16 * 323 * Qmin!L16 * Qmin!L16 / 1007 / (Константы!L16 / 10) ^ 5 / (' давление'!L16/0.982) -> 0.7092748793 | M16: =940 * 0.71 / 1.292 * Zзаб!M16 * 323 * Qmin!M16 * Qmin!M16 / 1007 / (Константы!M16 / 10) ^ 5 / (' давление'!M16/0.982) -> 0.7093932386 | N16: =940 * 0.71 / 1.292 * Zзаб!N16 * 323 * Qmin!N16 * Qmin!N16 / 1007 / (Константы!N16 / 10) ^ 5 / (' давление'!N16/0.982) -> 0.7094965366 | O16: =940 * 0.71 / 1.292 * Zзаб!O16 * 323 * Qmin!O16 * Qmin!O16 / 1007 / (Константы!O16 / 10) ^ 5 / (' давление'!O16/0.982) -> 0.7096039761 | P16: =940 * 0.71 / 1.292 * Zзаб!P16 * 323 * Qmin!P16 * Qmin!P16 / 1007 / (Константы!P16 / 10) ^ 5 / (' давление'!P16/0.982) -> 0.7097065267 | Q16: =940 * 0.71 / 1.292 * Zзаб!Q16 * 323 * Qmin!Q16 * Qmin!Q16 / 1007 / (Константы!Q16 / 10) ^ 5 / (' давление'!Q16/0.982) -> 0.7098533987 | R16: =940 * 0.71 / 1.292 * Zзаб!R16 * 323 * Qmin!R16 * Qmin!R16 / 1007 / (Константы!R16 / 10) ^ 5 / (' давление'!R16/0.982) -> 0.7099836511 | S16: =940 * 0.71 / 1.292 * Zзаб!S16 * 323 * Qmin!S16 * Qmin!S16 / 1007 / (Константы!S16 / 10) ^ 5 / (' давление'!S16/0.982) -> 0.7100730275 | T16: =940 * 0.71 / 1.292 * Zзаб!T16 * 323 * Qmin!T16 * Qmin!T16 / 1007 / (Константы!T16 / 10) ^ 5 / (' давление'!T16/0.982) -> 0.7101746944 | U16: =940 * 0.71 / 1.292 * Zзаб!U16 * 323 * Qmin!U16 * Qmin!U16 / 1007 / (Константы!U16 / 10) ^ 5 / (' давление'!U16/0.982) -> 0.7103290569 | V16: =940 * 0.71 / 1.292 * Zзаб!V16 * 323 * Qmin!V16 * Qmin!V16 / 1007 / (Константы!V16 / 10) ^ 5 / (' давление'!V16/0.982) -> 0.7103540189 | W16: =940 * 0.71 / 1.292 * Zзаб!W16 * 323 * Qmin!W16 * Qmin!W16 / 1007 / (Константы!W16 / 10) ^ 5 / (' давление'!W16/0.982) -> 0.7105794115 | X16: =940 * 0.71 / 1.292 * Zзаб!X16 * 323 * Qmin!X16 * Qmin!X16 / 1007 / (Константы!X16 / 10) ^ 5 / (' давление'!X16/0.982) -> 0.7106883768 | Y16: =940 * 0.71 / 1.292 * Zзаб!Y16 * 323 * Qmin!Y16 * Qmin!Y16 / 1007 / (Константы!Y16 / 10) ^ 5 / (' давление'!Y16/0.982) -> 0.7107927376 | Z16: =940 * 0.71 / 1.292 * Zзаб!Z16 * 323 * Qmin!Z16 * Qmin!Z16 / 1007 / (Константы!Z16 / 10) ^ 5 / (' давление'!Z16/0.982) -> 0.710923924 | AA16: =940 * 0.71 / 1.292 * Zзаб!AA16 * 323 * Qmin!AA16 * Qmin!AA16 / 1007 / (Константы!AA16 / 10) ^ 5 / (' давление'!AA16/0.982) -> 0.7110289454 | AB16: =940 * 0.71 / 1.292 * Zзаб!AB16 * 323 * Qmin!AB16 * Qmin!AB16 / 1007 / (Константы!AB16 / 10) ^ 5 / (' давление'!AB16/0.982) -> 0.7111331769 | AC16: =940 * 0.71 / 1.292 * Zзаб!AC16 * 323 * Qmin!AC16 * Qmin!AC16 / 1007 / (Константы!AC16 / 10) ^ 5 / (' давление'!AC16/0.982) -> 0.7112479091 | AD16: =940 * 0.71 / 1.292 * Zзаб!AD16 * 323 * Qmin!AD16 * Qmin!AD16 / 1007 / (Константы!AD16 / 10) ^ 5 / (' давление'!AD16/0.982) -> 0.7113555715 | AE16: =940 * 0.71 / 1.292 * Zзаб!AE16 * 323 * Qmin!AE16 * Qmin!AE16 / 1007 / (Константы!AE16 / 10) ^ 5 / (' давление'!AE16/0.982) -> 0.7114677258 | AF16: =940 * 0.71 / 1.292 * Zзаб!AF16 * 323 * Qmin!AF16 * Qmin!AF16 / 1007 / (Константы!AF16 / 10) ^ 5 / (' давление'!AF16/0.982) -> 0.7116027573 | AG16: =940 * 0.71 / 1.292 * Zзаб!AG16 * 323 * Qmin!AG16 * Qmin!AG16 / 1007 / (Константы!AG16 / 10) ^ 5 / (' давление'!AG16/0.982) -> 0.7117017845 | AH16: =940 * 0.71 / 1.292 * Zзаб!AH16 * 323 * Qmin!AH16 * Qmin!AH16 / 1007 / (Константы!AH16 / 10) ^ 5 / (' давление'!AH16/0.982) -> 0.711144699 | AI16: =940 * 0.71 / 1.292 * Zзаб!AI16 * 323 * Qmin!AI16 * Qmin!AI16 / 1007 / (Константы!AI16 / 10) ^ 5 / (' давление'!AI16/0.982) -> 0.7117001075 | AJ16: =940 * 0.71 / 1.292 * Zзаб!AJ16 * 323 * Qmin!AJ16 * Qmin!AJ16 / 1007 / (Константы!AJ16 / 10) ^ 5 / (' давление'!AJ16/0.982) -> 0.7119829243 | AK16: =940 * 0.71 / 1.292 * Zзаб!AK16 * 323 * Qmin!AK16 * Qmin!AK16 / 1007 / (Константы!AK16 / 10) ^ 5 / (' давление'!AK16/0.982) -> 0.7122135268 | AL16: =940 * 0.71 / 1.292 * Zзаб!AL16 * 323 * Qmin!AL16 * Qmin!AL16 / 1007 / (Константы!AL16 / 10) ^ 5 / (' давление'!AL16/0.982) -> 0.7123022567 | AM16: =940 * 0.71 / 1.292 * Zзаб!AM16 * 323 * Qmin!AM16 * Qmin!AM16 / 1007 / (Константы!AM16 / 10) ^ 5 / (' давление'!AM16/0.982) -> 0.7124685799
